Workbook

Sheet Cover
A12: CPI General Adjustment Model
F14: Version: | H14: CPI 2024 V25.6
H15: 2025-03-27
F16: Adjustment Date: | H16: =AdjDateRCS -> 2025-07-01

Sheet Index
A1: Ministry of Social Development
A2: CPI General Adjustment Model
A4: Table of Contents
A6: Assumptions
B8: ='Input Assumptions'!A4 -> Input Assumptions
A15: Main Benefit Rates
B17: ='Table 1'!A6 -> 1 | C17: ='Table 1'!B6 -> NZ Superannuation / Veteran's Pension
B19: ='Table 2'!A6 -> 2 | C19: ='Table 2'!B6 -> Weekly Benefit Rates
B21: ='Table 3'!A6 -> 3 | C21: ='Table 3'!B6 -> Student Allowance Rates
A24: Miscellaneous Rates and Payments
B26: ='Table 4'!A6 -> 4 | C26: ='Table 4'!B6 -> Supplementary Assistance
B28: ='Table 5'!A6 -> 5 | C28: ='Table 5'!B6 -> Childcare Subsidy and OSCAR Subsidy Payments
B30: ='Table 6'!A6 -> 6 | C30: ='Table 6'!B6 -> Maximum Weekly Amounts of Seasonal Work Assistance Payments
B32: ='Table 7'!A6 -> 7 | C32: ='Table 7'!B6 -> New Employment Transition Grant
B34: ='Table 8'!A6 -> 8 | C34: ='Table 8'!B6 -> Non-Taxable Annual Rates
B36: ='Table 9'!A6 -> 9 | C36: ='Table 9'!B6 -> Other Taxable Rates
B38: ='Table 17'!A6 -> 17 | C38: ='Table 17'!B6 -> Income Exemption - Home Base Care
B40: ='Table 21'!A6 -> 21 | C40: ='Table 21'!B6 -> Civil Defence Scheme
B42: ='Table 24'!A6 -> 24 | C42: ='Table 24'!B6 -> Care Supplement Rates
B44: ='Table 25'!A6 -> 25 | C44: ='Table 25'!B6 -> Maximum Weekly Rates of Special Assistance to the Rural Sector
B46: ='Table 27'!A6 -> 27 | C46: ='Table 27'!B6 -> Social Rehabilitation Assistance Programme
B48: ='Table 28'!A6 -> 28 | C48: ='Table 28'!B6 -> Income Support For Live Organ Donors
B50: ='Table 29'!A6 -> 29 | C50: ='Table 29'!B6 -> Family Tax Credit and Accommodation Supplement Maxima
B52: ='Table 30'!A6 -> 30 | C52: ='Table 30'!B6 -> Temporary Additional Support
B54: ='Table 31'!A6 -> 31 | C54: ='Table 31'!B6 -> Civil Defence Accommodation Costs
B56: ='Table 32'!A6 -> 32 | C56: ='Table 32'!B6 -> Home Help Programme
B58: ='Table 33'!A6 -> 33 | C58: ='Table 33'!B6 -> FAMILY START AND EARLY START (Childcare Assistance), [aka Early Learning Payment]
B60: ='Table 34'!A6 -> 34 | C60: ='Table 34'!B6 -> Maximum Weekly Rates of Employment Transition Assistance
B62: ='Table 36'!A6 -> 36 | C62: ='Table 36'!B6 -> Residential Care Subsidy
B64: ='Table 37'!A6 -> 37 | C64: ='Table 37'!B6 -> Average Regional Rents Information For Special Transfer Allowance
B66: ='Table 38'!A6 -> 38 | C66: ='Table 38'!B6 -> Work Bonus
B68: Table 39 | C68: Clothing Allowance for Unsupported Child's Benefit and/or Orphans Benefit
B70: Social Housing | C70: Social Housing Calculations
A72: Benefit Cut-Out Points, Limits and Thresholds
B74: ='Table 10'!A6 -> 10 | C74: ='Table 10'!B6 -> NZ Superannuation / Veteran's Pensions and Weekly Benefit Rates
B76: ='Table 11'!A6 -> 11 | C76: ='Table 11'!B6 -> Income Limits for Disability Allowance
B78: ='Table 12'!A6 -> 12 | C78: ='Table 12'!B6 -> Accommodation Supplement Entry Thresholds
B80: ='Table 13'!A6 -> 13 | C80: ='Table 13'!B6 -> Accommodation Supplement Entry Thresholds for Married, Civil Union or Defacto Couples Being Paid Different Half Benefit Rates
B82: ='Table 14'!A6 -> 14 | C82: ='Table 14'!B6 -> Accommodation Supplement Entry Thresholds - Married, Civil Union or Defacto Partner at home whose partner is in subsidised long term residential care
B84: ='Table 15'!A6 -> 15 | C84: ='Table 15'!B6 -> Accommodation Supplement Cut-Out Points for Non-Beneficiaries
B86: ='Table 16'!A6 -> 16 | C86: ='Table 16'!B6 -> Accommodation Supplement Non-Beneficiary Abatement Thresholds
B88: ='Table 20'!A6 -> 20 | C88: ='Table 20'!B6 -> Community Services Card Income Thresholds
B90: ='Table 22'!A6 -> 22 | C90: ='Table 22'!B6 -> Income Limits for Advance Payments of Benefits, Special Needs Grants, Recoverable Assistance Payments, Funeral Grants, Seasonal Work Assistance, Course Participation Assistance, Transition to Work Grant, Community Costs Programme and Flexible Funding Programme
B92: ='Table 23'!A6 -> 23 | C92: ='Table 23'!B6 -> Cash Asset Limits for Special Benefit, Advance Payment of Benefits, Special Needs Grants, Recoverable Assistance Payments, Seasonal Work Assistance Programme, New Employment Transition Grant Programme, Funeral Grants (cash assets exemption), Temporary Additional Support, Course Participation Assistance, Transition to Work Grant, Student Allowance Transfer Grant Programme, Community Costs Programme, Flexible Funding Programme
B94: ='Table 26'!A6 -> 26 | C94: ='Table 26'!B6 -> Additional Income Limits Making it Advantageous to Exclude NQS/NQP
B96: ='Table 35'!A6 -> 35 | C96: ='Table 35'!B6 -> Accommodation Supplement Income Limits for NZ Superannuation/Veterans pension
A98: Special Benefit Assessment Standard Costs
B100: ='Table 18'!A6 -> 18 | C100: ='Table 18'!B6 -> Special Benefit Standard Costs - For those Without Children ONLY
B102: ='Table 19'!A6 -> 19 | C102: ='Table 19'!B6 -> Special Benefit Standard Costs - For Those Without Children ONLY Being Paid Different Half Benefit Rates

Sheet Wage Calc (Gross to net)
B3: Net Average Ordinary Time Weekly Wage Calculation
B4: Adjustment Year | C4: =PrevDate -> 2024-07-31 | D4: =AdjDate -> 2025-04-01
B5: Average Ordinary Time Weekly Earnings | C5: =AOTWE_prev -> 1556.16 | D5: =AOTWE -> 1622.73
B6: Truncate to nearest dollar | C6: =INT(C5) -> 1556 | D6: =INT(D5) -> 1622
B7: Tax Rule (includes ACC Levy) | C7: =VLOOKUP(C5,TaxBracketQES_prev,TaxBracketLookupQES_prev) -> 4 | D7: =VLOOKUP(D5,TaxBracketQES,TaxBracketLookupQES) -> 4
B8: PAYE | C8: =CHOOSE(C7,C6*TaxRateQES1_Prev, (C6*TaxRateQES1_Prev)+(C6-ThreshQES1_Prev/Weeks)*(TaxRateQES2_Prev-TaxRateQES1_Prev), (C6*TaxRateQES1_Prev)+(C6-ThreshQES2_Prev/Weeks)*(TaxRateQES3_Prev-TaxRateQES2_Prev)+(C6-ThreshQES1_Prev/Weeks)*(TaxRateQES2_Prev-TaxRateQES1_Prev), (C6*TaxRateQES1_Prev)+(C6-ThreshQES3_Prev/Weeks)*(TaxRateQES4_Prev-TaxRateQES3_Prev)+(C6-ThreshQES2_Prev/Weeks)*(TaxRateQES3_Prev-TaxRateQES2_Prev)+(C6-ThreshQES1_Prev/Weeks)*(TaxRateQES2_Prev-TaxRateQES1_Prev), (C6*TaxRateQES1_Prev)+(C6-ThreshQES4_Prev/Weeks)*(TaxRateQES6_Prev-TaxRateQES4_Prev)+(C6-ThreshQES3_Prev/Weeks)*(TaxRateQES4_Prev-TaxRateQES3_Prev)+(C6-ThreshQES2_Prev/Weeks)*(TaxRateQES3_Prev-TaxRateQES2_Prev)+(C6-ThreshQES1_Prev/Weeks)*(TaxRateQES2_Prev-TaxRateQES1_Prev)) -> 343.7125385 | D8: =CHOOSE(D7,D6*TaxRateQES1, (D6*TaxRateQES1)+(D6-ThreshQES1/Weeks)*(TaxRateQES2-TaxRateQES1), (D6*TaxRateQES1)+(D6-ThreshQES2/Weeks)*(TaxRateQES3-TaxRateQES2)+(D6-ThreshQES1/Weeks)*(TaxRateQES2-TaxRateQES1), (D6*TaxRateQES1)+(D6-ThreshQES3/Weeks)*(TaxRateQES4-TaxRateQES3)+(D6-ThreshQES2/Weeks)*(TaxRateQES3-TaxRateQES2)+(D6-ThreshQES1/Weeks)*(TaxRateQES2-TaxRateQES1), (D6*TaxRateQES1)+(D6-ThreshQES4/Weeks)*(TaxRateQES5-TaxRateQES4)+(D6-ThreshQES3/Weeks)*(TaxRateQES4-TaxRateQES3)+(D6-ThreshQES2/Weeks)*(TaxRateQES3-TaxRateQES2)+(D6-ThreshQES1/Weeks)*(TaxRateQES2-TaxRateQES1)) -> 367.6839385
B9: less: Tax @ M (including ACC levy) | C9: =TRUNC(C8,2) -> 343.71 | D9: =TRUNC(D8,2) -> 367.68
B11: After-Tax Average Wage | C11: =C5-C9 -> 1212.45 | D11: =D5-D9 -> 1255.05
B13: CPI adjusted increase | D13: =CPI -> 0.02223987292 | F13: =D13/D14-1 -> -0.3670250255 | G13: 15.66 percent difference in % increments
B14: Percentage wage increase to Main Benefits (Minimum 0%) | D14: =MAX(0,D11/C11-1) -> 0.0351354695 | F14: =D13-D14 -> -0.01289559659 | G14: .98 percent point diff
B15: CPI adj above wage = CPI_increment | C15: CPI_incmt | D15: =(1+D13)/(1+D14)-1 -> -0.01245788302 | F15: multiply by 1+0.92% to convert from wage to cpi
B16: Choose CPI or Wage Adjusted increase
D17: Index Value | F17: Type
D18: 2 | F18: CPI
F19: Wage
B20: =INDEX($F$18:$F$19,$D$18)&" Percentage increase applied to Main Benefits" -> Wage Percentage increase applied to Main Benefits | D20: =D14 -> 0.0351354695
C22: Lorry Checks step thru
C23: Base | D23: 1
C24: With Wage | D24: =(1+D14)*D23 -> 1.03513547
C25: With CPI | D25: =D23*(1+D13) -> 1.022239873
C26: % Difference | D26: =D25/D24-1 -> -0.01245788302
D27: =D26=CPI_incmt -> TRUE
B30: Lambda Function alternative
B32: ='Input Assumptions'!C51 -> Tax Rates & Thresholds In Use (General)
B33: ='Input Assumptions'!C52 -> Current Year | D33: ='Input Assumptions'!E52 -> Min Gross Threshold | E33: ='Input Assumptions'!F52 -> Max Gross Threshold | F33: ='Input Assumptions'!D52 -> Tax Rate
B34: Tax Bracket 1 | D34: 0 | E34: 15600 | F34: 0.105
B35: Tax Bracket 2 | D35: =E34 -> 15600 | E35: 53500 | F35: 0.175
B36: Tax Bracket 3 | D36: =E35 -> 53500 | E36: 78100 | F36: 0.3
B37: Tax Bracket 4 | D37: 78100 | E37: 180000 | F37: 0.33
B38: Tax Bracket 5 | D38: 180000 | E38: 999999 | F38: 0.39
B39: Tax Bracket 6 | D39: 999999 | E39: 99999999 | F39: 0.39
B41: Lambda Gross to Net Function (Alternative check) | D41: =Gross_to_net_Lambda(D5,ACCLevy,ACCLevy_max_earn,$D$34:$F$39) -> 1255.05
D42: =D41=D11 -> TRUE

Sheet SA_parental_IncTest
D3: Created to show gross abatement for the two single no kids aged <25 Student Allowance rates following shift into higher tax bracket in April 2022 and April 2023 respectively
D5: Student Allowances Regulations 1998 (SR 1998/277) (as at 01 August 2022) Schedule 2 Amounts of certain grants – New Zealand Legislation
E7: Schedule 2, Subpart 2 of SA Regulations 1998
E8: (3)
C9: as at 1 apr 2022 | E9: If the student is under 24, childless, not living in a parental home, and the average gross weekly income of the student’s parents or parent exceeds $1,172.48, the value of the basic grant payable
E10: for a week to the student specified in item 4 of the table in subclause (1) is reduced by the amount calculated in accordance with the following formula—
E11: (30.30303% × (the amount of item A up to a maximum of $156.02)) + (27.93296% × (any amount of item A exceeding $156.02))
E12: where—
E13: A | F13: is the average gross weekly income of the student’s parents or parent less $1,172.48.
E15: (4)
C16: as at 1 apr 2022 | E16: If the student is under 24, childless, living in a parental home, and the average gross weekly income of the student’s parents or parent exceeds $1,172.48, the value of the basic grant payable
E17: for a week to the student specified in item 5 of the table in subclause (1) is reduced by 27.93296% of that excess.
C18: (4) expected to be deleted at April 2023 and incorporated into (3)
E20: Fronde formula | G20: :Allow Gross Rate = :Allow Max Rate -(:Parental Lineslope * (:Parent Income - :Lower Parental Threshold) / 52 )
E21: This sheet based upon above formula. | G21: L = K - $E$39 * (G - $E$31)/52 )
G24: Living at home further to the right ===>>
D26: Example of abatement | G26: Age < 24, no kids, living away from home | P26: Age < 24, no kids, living away from home | Y26: Example of abatement | AB26: Age < 24, no kids, living at parental home
Q27: check that result same as using net abatement
G28: Parents Annual Gross Income | H28: Parents Annual Gross Above Theshold | J28: Annual Gross Abatement Amount | K28: Weekly Gross Abatement Amount | L28: Gross SA rate | M28: Abated Gross (Gross Rate - Gross Abatement Amount) | N28: 15600 threshold (weekly gross) | P28: Net SA rate | Q28: Net abatement | R28: Net SA rate | S28: Tax bracket | T28: Implied Gross Rate | U28: check on gross calc | AB28: Parents Annual Gross Income | AC28: Parents Annual Gross Above Theshold | AE28: Annual Gross Abatement Amount | AF28: Weekly Gross Abatement Amount | AG28: Gross SA rate | AH28: Abated Gross (Gross Rate - Gross Abatement Amount) | AI28: =N28 -> 15600 threshold (weekly gross) | AK28: Net SA rate | AL28: Net abatement | AM28: Net SA rate | AN28: Tax bracket | AO28: Implied Gross Rate | AP28: check on gross calc
G29: =E31 -> 69935.32 | H29: =G29-$E$31 -> 0 | J29: =ROUND(IF(H29<$E$45,H29*$E$39,(H29-$E$45)*$E$40+$E$44),2) -> 0 | K29: =ROUND(J29/52,2) -> 0 | L29: ='Table 3'!N14 -> 366.46 | M29: =MAX(L29-K29,0) -> 366.46 | N29: =$E$43 -> 300 | P29: ='Table 3'!L14 -> 323.33 | Q29: =ROUND(H29*0.25/52,2) -> 0 | R29: =ROUND(P29-Q29,2) -> 323.33 | S29: =VLOOKUP(R29,TaxBracket,TaxBracketLookup) -> 2 | T29: =ROUND(CHOOSE(S29, R29/(1-TaxRate1), GrossThresh2+(R29-NetThresh2)/(1-TaxRate2), GrossThresh3+(R29-NetThresh3)/(1-TaxRate3), GrossThresh4+(R29-NetThresh4)/(1-TaxRate4)),NTNRounding) -> 366.46 | U29: =T29-M29 -> 0 | AB29: =Z31 -> 69935.32 | AC29: =AB29-$Z$31 -> 0 | AE29: =ROUND(IF(AC29<$Z$45,AC29*$Z$39,(AC29-$Z$45)*$Z$40+$Z$44),2) -> 0 | AF29: =ROUND(AE29/52,2) -> 0 | AG29: ='Table 3'!N13 -> 311.18 | AH29: =MAX(AG29-AF29,0) -> 311.18 | AI29: =$Z$43 -> 300 | AK29: ='Table 3'!L13 -> 277.72 | AL29: =ROUND(AC29*0.25/52,2) -> 0 | AM29: =ROUND(AK29-AL29,2) -> 277.72 | AN29: =VLOOKUP(AM29,TaxBracket,TaxBracketLookup) -> 2 | AO29: =ROUND(CHOOSE(AN29, AM29/(1-TaxRate1), GrossThresh2+(AM29-NetThresh2)/(1-TaxRate2), GrossThresh3+(AM29-NetThresh3)/(1-TaxRate3), GrossThresh4+(AM29-NetThresh4)/(1-TaxRate4)),NTNRounding) -> 311.18 | AP29: =AO29-AH29 -> 0
E30: Proposed Parents Thresholds | F30: =IF($E$32-G29<500,$E$32-G29,500) -> 500 | G30: =G29+F30 -> 70435.32 | H30: =G30-$E$31 -> 500 | I30: =H30-H29 -> 500 | J30: 151.52 | K30: =ROUND(J30/52,2) -> 2.91 | L30: =L29 -> 366.46 | M30: =MAX(L30-K30,0) -> 363.55 | N30: =N29 -> 300 | P30: =P29 -> 323.33 | Q30: =ROUND(H30*0.25/52,2) -> 2.4 | R30: =ROUND(P30-Q30,2) -> 320.93 | S30: 2 | T30: 363.55 | U30: =T30-M30 -> 0 | Z30: Proposed Parents Thresholds | AA30: =IF($Z$32-AB29<500,$Z$32-AB29,500) -> 500 | AB30: =AB29+AA30 -> 70435.32 | AC30: =AB30-$Z$31 -> 500 | AD30: =AC30-AC29 -> 500 | AE30: =ROUND(IF(AC30<$Z$45,AC30*$Z$39,(AC30-$Z$45)*$Z$40+$Z$44),2) -> 151.52 | AF30: =ROUND(AE30/52,2) -> 2.91 | AG30: =AG29 -> 311.18 | AH30: =MAX(AG30-AF30,0) -> 308.27 | AI30: =AI29 -> 300 | AK30: =AK29 -> 277.72 | AL30: =ROUND(AC30*0.25/52,2) -> 2.4 | AM30: =ROUND(AK30-AL30,2) -> 275.32 | AN30: =VLOOKUP(AM30,TaxBracket,TaxBracketLookup) -> 2 | AO30: 308.27 | AP30: =AO30-AH30 -> 0
D31: annual income threshold | E31: =ROUND(E36*52,2) -> 69935.32 | F31: =IF($E$32-G30<500,$E$32-G30,500) -> 500 | G31: =IF(I30<>500,G30+500,IF(ABS(G29+F30-E$45-E$31)<(500-1),E$31+E$45,MIN(G30+F31,E$32))) -> 70935.32 | H31: 1000 | I31: =H31-H30 -> 500 | J31: 303.03 | K31: 5.83 | L31: =L30 -> 366.46 | M31: 360.63 | N31: =N30 -> 300 | P31: =P30 -> 323.33 | Q31: 4.81 | R31: 318.52 | S31: 2 | T31: 360.63 | U31: 0 | Y31: annual income threshold | Z31: =ROUND(Z36*52,2) -> 69935.32 | AA31: =IF($Z$32-AB30<500,$Z$32-AB30,500) -> 500 | AB31: =IF(AD30<>500,AB30+500,IF(ABS(AB29+AA30-Z$45-Z$31)<(500-1),Z$31+Z$45,MIN(AB30+AA31,Z$32))) -> 70935.32 | AC31: 1000 | AD31: =AC31-AC30 -> 500 | AE31: =ROUND(IF(AC31<$Z$45,AC31*$Z$39,(AC31-$Z$45)*$Z$40+$Z$44),2) -> 303.03 | AF31: =ROUND(AE31/52,2) -> 5.83 | AG31: =AG30 -> 311.18 | AH31: 305.35 | AI31: =AI30 -> 300 | AK31: =AK30 -> 277.72 | AL31: 4.81 | AM31: 272.91 | AN31: 2 | AO31: 305.35 | AP31: 0
D32: annual income SA cutout | E32: =ROUND(E31+IF(L29>N29,(L29-N29)/E39+N29/E40,L29/E40)*52,2) -> 137187.86 | F32: 500 | G32: 71435.32 | H32: 1500 | I32: 500 | J32: 454.55 | K32: 8.74 | L32: 366.46 | M32: 357.72 | N32: 300 | P32: 323.33 | Q32: 7.21 | R32: 316.12 | S32: 2 | T32: 357.72 | U32: 0 | Y32: annual income SA cutout | Z32: =ROUND(Z31+IF(AG29>AI29,(AG29-AI29)/Z39+AI29/Z40,AG29/Z40)*52,2) -> 127701.81 | AA32: 500 | AB32: 71435.32 | AC32: 1500 | AD32: 500 | AE32: 454.55 | AF32: 8.74 | AG32: 311.18 | AH32: 302.44 | AI32: 300 | AK32: 277.72 | AL32: 7.21 | AM32: 270.51 | AN32: 2 | AO32: 302.44 | AP32: 0
D33: ="check : "&(E33=E31) -> check : TRUE | E33: ='Table 3'!$L$63 -> 69935.32 | F33: 500 | G33: 71935.32 | H33: 2000 | I33: 500 | J33: 606.06 | K33: 11.66 | L33: 366.46 | M33: 354.8 | N33: =N32 -> 300 | P33: 323.33 | Q33: 9.62 | R33: 313.71 | S33: 2 | T33: 354.8 | U33: 0 | Y33: ="check : "&(Z33=Z31) -> check : TRUE | Z33: ='Table 3'!$L$63 -> 69935.32 | AA33: 500 | AB33: 71853.81 | AC33: 1918.49 | AD33: 418.49 | AE33: 581.36 | AF33: 11.18 | AG33: 311.18 | AH33: 300 | AI33: 300 | AK33: 277.72 | AL33: 9.22 | AM33: 268.5 | AN33: 2 | AO33: 300 | AP33: 0
D34: ="check : "&(E34=E32) -> check : TRUE | E34: ='Table 3'!$L$74 -> 137187.86 | F34: 500 | G34: 72435.32 | H34: 2500 | I34: 500 | J34: 757.58 | K34: 14.57 | L34: 366.46 | M34: 351.89 | N34: 300 | P34: 323.33 | Q34: 12.02 | R34: 311.31 | S34: 2 | T34: 351.89 | U34: 0 | Y34: ="check : "&(Z34=Z32) -> check : TRUE | Z34: ='Table 3'!$L$73 -> 127701.81 | AA34: 500 | AB34: 72353.81 | AC34: 2418.49 | AD34: 500 | AE34: 721.02 | AF34: 13.87 | AG34: 311.18 | AH34: 297.31 | AI34: 300 | AK34: 277.72 | AL34: 11.63 | AM34: 266.09 | AN34: 1 | AO34: 297.31 | AP34: 0
D35: weekly | E35: ='Table 3'!D62 -> 1315.65 | F35: 500 | G35: 72935.32 | H35: 3000 | I35: 500 | J35: 909.09 | K35: 17.48 | L35: 366.46 | M35: 348.98 | N35: 300 | P35: 323.33 | Q35: 14.42 | R35: 308.91 | S35: 2 | T35: 348.98 | U35: 0 | Y35: weekly | Z35: =E35 -> 1315.65 | AA35: 500 | AB35: 72853.81 | AC35: 2918.49 | AD35: 500 | AE35: 860.69 | AF35: 16.55 | AG35: 311.18 | AH35: 294.63 | AI35: 300 | AK35: 277.72 | AL35: 14.03 | AM35: 263.69 | AN35: 1 | AO35: 294.63 | AP35: 0
D36: new weekly | E36: ='Table 3'!L62 -> 1344.91 | F36: 500 | G36: 73435.32 | H36: 3500 | I36: 500 | J36: 1060.61 | K36: 20.4 | L36: 366.46 | M36: 346.06 | N36: 300 | P36: 323.33 | Q36: 16.83 | R36: 306.5 | S36: 2 | T36: 346.06 | U36: 0 | Y36: new weekly | Z36: =E36 -> 1344.91 | AA36: 500 | AB36: 73353.81 | AC36: 3418.49 | AD36: 500 | AE36: 1000.35 | AF36: 19.24 | AG36: 311.18 | AH36: 291.94 | AI36: 300 | AK36: 277.72 | AL36: 16.44 | AM36: 261.28 | AN36: 1 | AO36: 291.93 | AP36: -0.01
F37: 500 | G37: 73935.32 | H37: 4000 | I37: 500 | J37: 1212.12 | K37: 23.31 | L37: 366.46 | M37: 343.15 | N37: 300 | P37: 323.33 | Q37: 19.23 | R37: 304.1 | S37: 2 | T37: 343.15 | U37: 0 | AA37: 500 | AB37: 73853.81 | AC37: 3918.49 | AD37: 500 | AE37: 1140.02 | AF37: 21.92 | AG37: 311.18 | AH37: 289.26 | AI37: 300 | AK37: 277.72 | AL37: 18.84 | AM37: 258.88 | AN37: 1 | AO37: 289.25 | AP37: -0.01
F38: 500 | G38: 74435.32 | H38: 4500 | I38: 500 | J38: 1363.64 | K38: 26.22 | L38: 366.46 | M38: 340.24 | N38: 300 | P38: 323.33 | Q38: 21.63 | R38: 301.7 | S38: 2 | T38: 340.24 | U38: 0 | AA38: 500 | AB38: 74353.81 | AC38: 4418.49 | AD38: 500 | AE38: 1279.68 | AF38: 24.61 | AG38: 311.18 | AH38: 286.57 | AI38: 300 | AK38: 277.72 | AL38: 21.24 | AM38: 256.48 | AN38: 1 | AO38: 286.57 | AP38: 0
D39: abatement rate, tax rate 2 | E39: =StuAllowAbate2 -> 0.3030303 | F39: 500 | G39: 74935.32 | H39: 5000 | I39: 500 | J39: 1515.15 | K39: 29.14 | L39: 366.46 | M39: 337.32 | N39: 300 | P39: 323.33 | Q39: 24.04 | R39: 299.29 | S39: 2 | T39: 337.32 | U39: 0 | Y39: abatement rate, tax rate 2 | Z39: =E39 -> 0.3030303 | AA39: 500 | AB39: 74853.81 | AC39: 4918.49 | AD39: 500 | AE39: 1419.35 | AF39: 27.3 | AG39: 311.18 | AH39: 283.88 | AI39: 300 | AK39: 277.72 | AL39: 23.65 | AM39: 254.07 | AN39: 1 | AO39: 283.88 | AP39: 0
D40: abatement rate, tax rate 1 | E40: =StuAllowAbate1 -> 0.2793296 | F40: 500 | G40: 75435.32 | H40: 5500 | I40: 500 | J40: 1666.67 | K40: 32.05 | L40: 366.46 | M40: 334.41 | N40: 300 | P40: 323.33 | Q40: 26.44 | R40: 296.89 | S40: 2 | T40: 334.41 | U40: 0 | Y40: abatement rate, tax rate 1 | Z40: =E40 -> 0.2793296 | AA40: 500 | AB40: 75353.81 | AC40: 5418.49 | AD40: 500 | AE40: 1559.01 | AF40: 29.98 | AG40: 311.18 | AH40: 281.2 | AI40: 300 | AK40: 277.72 | AL40: 26.05 | AM40: 251.67 | AN40: 1 | AO40: 281.2 | AP40: 0
D41: weighted average abatement | E41: =ROUND(IF(L29>N29,0.25/(P29/L29),0.25/(1-TaxRate1)),7) -> 0.2833483 | F41: 500 | G41: 75935.32 | H41: 6000 | I41: 500 | J41: 1818.18 | K41: 34.97 | L41: 366.46 | M41: 331.49 | N41: 300 | P41: 323.33 | Q41: 28.85 | R41: 294.48 | S41: 2 | T41: 331.49 | U41: 0 | Y41: weighted average abatement | Z41: =ROUND(IF(AG29>AI29,0.25/(AK29/AG29),0.25/(1-TaxRate1)),7) -> 0.2801203 | AA41: 500 | AB41: 75853.81 | AC41: 5918.49 | AD41: 500 | AE41: 1698.68 | AF41: 32.67 | AG41: 311.18 | AH41: 278.51 | AI41: 300 | AK41: 277.72 | AL41: 28.45 | AM41: 249.27 | AN41: 1 | AO41: 278.51 | AP41: 0
F42: 500 | G42: 76435.32 | H42: 6500 | I42: 500 | J42: 1969.7 | K42: 37.88 | L42: 366.46 | M42: 328.58 | N42: 300 | P42: 323.33 | Q42: 31.25 | R42: 292.08 | S42: 2 | T42: 328.58 | U42: 0 | AA42: 500 | AB42: 76353.81 | AC42: 6418.49 | AD42: 500 | AE42: 1838.34 | AF42: 35.35 | AG42: 311.18 | AH42: 275.83 | AI42: 300 | AK42: 277.72 | AL42: 30.86 | AM42: 246.86 | AN42: 1 | AO42: 275.82 | AP42: -0.01
D43: post abatement gross > 15600 cut off | E43: =GrossThresh2 -> 300 | F43: 500 | G43: 76935.32 | H43: 7000 | I43: 500 | J43: 2121.21 | K43: 40.79 | L43: 366.46 | M43: 325.67 | N43: 300 | P43: 323.33 | Q43: 33.65 | R43: 289.68 | S43: 2 | T43: 325.67 | U43: 0 | Y43: =D43 -> post abatement gross > 15600 cut off | Z43: =E43 -> 300 | AA43: 500 | AB43: 76853.81 | AC43: 6918.49 | AD43: 500 | AE43: 1978.01 | AF43: 38.04 | AG43: 311.18 | AH43: 273.14 | AI43: 300 | AK43: 277.72 | AL43: 33.26 | AM43: 244.46 | AN43: 1 | AO43: 273.14 | AP43: 0
D44: implied abatement (annual) in > 15600 range | E44: =MAX(0,ROUND(($L$29-E43)*52,2)) -> 3455.92 | F44: 500 | G44: 77435.32 | H44: 7500 | I44: 500 | J44: 2272.73 | K44: 43.71 | L44: 366.46 | M44: 322.75 | N44: 300 | P44: 323.33 | Q44: 36.06 | R44: 287.27 | S44: 2 | T44: 322.75 | U44: 0 | Y44: =D44 -> implied abatement (annual) in > 15600 range | Z44: =MAX(0,ROUND(($AG$29-Z43)*52,2)) -> 581.36 | AA44: 500 | AB44: 77353.81 | AC44: 7418.49 | AD44: 500 | AE44: 2117.67 | AF44: 40.72 | AG44: 311.18 | AH44: 270.46 | AI44: 300 | AK44: 277.72 | AL44: 35.67 | AM44: 242.05 | AN44: 1 | AO44: 270.45 | AP44: -0.01
D45: >15600 abate rate stop | E45: =ROUND(E44/E39,2) -> 11404.54 | F45: 500 | G45: 77935.32 | H45: 8000 | I45: 500 | J45: 2424.24 | K45: 46.62 | L45: 366.46 | M45: 319.84 | N45: 300 | P45: 323.33 | Q45: 38.46 | R45: 284.87 | S45: 2 | T45: 319.84 | U45: 0 | Y45: >15600 abate rate stop | Z45: =ROUND(Z44/E39,2) -> 1918.49 | AA45: 500 | AB45: 77853.81 | AC45: 7918.49 | AD45: 500 | AE45: 2257.34 | AF45: 43.41 | AG45: 311.18 | AH45: 267.77 | AI45: 300 | AK45: 277.72 | AL45: 38.07 | AM45: 239.65 | AN45: 1 | AO45: 267.77 | AP45: 0
E46: =ROUND(E45/52,2) -> 219.32 | F46: 500 | G46: 78435.32 | H46: 8500 | I46: 500 | J46: 2575.76 | K46: 49.53 | L46: 366.46 | M46: 316.93 | N46: 300 | P46: 323.33 | Q46: 40.87 | R46: 282.46 | S46: 2 | T46: 316.92 | U46: -0.01 | Z46: =ROUND(Z45/52,2) -> 36.89 | AA46: 500 | AB46: 78353.81 | AC46: 8418.49 | AD46: 500 | AE46: 2397 | AF46: 46.1 | AG46: 311.18 | AH46: 265.08 | AI46: 300 | AK46: 277.72 | AL46: 40.47 | AM46: 237.25 | AN46: 1 | AO46: 265.08 | AP46: 0
D47: ="check : "&(E47=E46) -> check : TRUE | E47: ='Table 3'!$L$65 -> 219.32 | F47: 500 | G47: 78935.32 | H47: 9000 | I47: 500 | J47: 2727.27 | K47: 52.45 | L47: 366.46 | M47: 314.01 | N47: 300 | P47: 323.33 | Q47: 43.27 | R47: 280.06 | S47: 2 | T47: 314.01 | U47: 0 | Y47: ="check : "&(Z47=Z46) -> check : TRUE | Z47: ='Table 3'!$L$64 -> 36.89 | AA47: 500 | AB47: 78853.81 | AC47: 8918.49 | AD47: 500 | AE47: 2536.67 | AF47: 48.78 | AG47: 311.18 | AH47: 262.4 | AI47: 300 | AK47: 277.72 | AL47: 42.88 | AM47: 234.84 | AN47: 1 | AO47: 262.39 | AP47: -0.01
E48: =E46*E39 -> 66.4606054 | F48: 500 | G48: 79435.32 | H48: 9500 | I48: 500 | J48: 2878.79 | K48: 55.36 | L48: 366.46 | M48: 311.1 | N48: 300 | P48: 323.33 | Q48: 45.67 | R48: 277.66 | S48: 2 | T48: 311.1 | U48: 0 | Z48: =Z46*Z39 -> 11.17878777 | AA48: 500 | AB48: 79353.81 | AC48: 9418.49 | AD48: 500 | AE48: 2676.33 | AF48: 51.47 | AG48: 311.18 | AH48: 259.71 | AI48: 300 | AK48: 277.72 | AL48: 45.28 | AM48: 232.44 | AN48: 1 | AO48: 259.71 | AP48: 0
F49: 500 | G49: 79935.32 | H49: 10000 | I49: 500 | J49: 3030.3 | K49: 58.28 | L49: 366.46 | M49: 308.18 | N49: 300 | P49: 323.33 | Q49: 48.08 | R49: 275.25 | S49: 2 | T49: 308.18 | U49: 0 | AA49: 500 | AB49: 79853.81 | AC49: 9918.49 | AD49: 500 | AE49: 2816 | AF49: 54.15 | AG49: 311.18 | AH49: 257.03 | AI49: 300 | AK49: 277.72 | AL49: 47.69 | AM49: 230.03 | AN49: 1 | AO49: 257.02 | AP49: -0.01
F50: 500 | G50: 80435.32 | H50: 10500 | I50: 500 | J50: 3181.82 | K50: 61.19 | L50: 366.46 | M50: 305.27 | N50: 300 | P50: 323.33 | Q50: 50.48 | R50: 272.85 | S50: 2 | T50: 305.27 | U50: 0 | AA50: 500 | AB50: 80353.81 | AC50: 10418.49 | AD50: 500 | AE50: 2955.66 | AF50: 56.84 | AG50: 311.18 | AH50: 254.34 | AI50: 300 | AK50: 277.72 | AL50: 50.09 | AM50: 227.63 | AN50: 1 | AO50: 254.34 | AP50: 0
F51: 500 | G51: 80935.32 | H51: 11000 | I51: 500 | J51: 3333.33 | K51: 64.1 | L51: 366.46 | M51: 302.36 | N51: 300 | P51: 323.33 | Q51: 52.88 | R51: 270.45 | S51: 2 | T51: 302.36 | U51: 0 | AA51: 500 | AB51: 80853.81 | AC51: 10918.49 | AD51: 500 | AE51: 3095.33 | AF51: 59.53 | AG51: 311.18 | AH51: 251.65 | AI51: 300 | AK51: 277.72 | AL51: 52.49 | AM51: 225.23 | AN51: 1 | AO51: 251.65 | AP51: 0
F52: 500 | G52: 81339.86 | H52: 11404.54 | I52: 404.54 | J52: =ROUND(IF(H52<$E$45,H52*$E$39,(H52-$E$45)*$E$40+$E$44),2) -> 3455.92 | K52: 66.46 | L52: 366.46 | M52: 300 | N52: 300 | P52: 323.33 | Q52: 54.83 | R52: 268.5 | S52: 2 | T52: 300 | U52: 0 | AA52: 500 | AB52: 81353.81 | AC52: 11418.49 | AD52: 500 | AE52: 3234.99 | AF52: 62.21 | AG52: 311.18 | AH52: 248.97 | AI52: 300 | AK52: 277.72 | AL52: 54.9 | AM52: 222.82 | AN52: 1 | AO52: 248.96 | AP52: -0.01
F53: 500 | G53: 81839.86 | H53: 11904.54 | I53: 500 | J53: 3595.58 | K53: 69.15 | L53: 366.46 | M53: 297.31 | N53: 300 | P53: 323.33 | Q53: 57.23 | R53: 266.1 | S53: 1 | T53: 297.32 | U53: 0.01 | AA53: 500 | AB53: 81853.81 | AC53: 11918.49 | AD53: 500 | AE53: 3374.66 | AF53: 64.9 | AG53: 311.18 | AH53: 246.28 | AI53: 300 | AK53: 277.72 | AL53: 57.3 | AM53: 220.42 | AN53: 1 | AO53: 246.28 | AP53: 0
F54: 500 | G54: 82339.86 | H54: 12404.54 | I54: 500 | J54: 3735.25 | K54: 71.83 | L54: 366.46 | M54: 294.63 | N54: 300 | P54: 323.33 | Q54: 59.64 | R54: 263.69 | S54: 1 | T54: 294.63 | U54: 0 | AA54: 500 | AB54: 82353.81 | AC54: 12418.49 | AD54: 500 | AE54: 3514.32 | AF54: 67.58 | AG54: 311.18 | AH54: 243.6 | AI54: 300 | AK54: 277.72 | AL54: 59.7 | AM54: 218.02 | AN54: 1 | AO54: 243.6 | AP54: 0
F55: 500 | G55: 82839.86 | H55: 12904.54 | I55: 500 | J55: 3874.91 | K55: 74.52 | L55: 366.46 | M55: 291.94 | N55: 300 | P55: 323.33 | Q55: 62.04 | R55: 261.29 | S55: 1 | T55: 291.94 | U55: 0 | AA55: 500 | AB55: 82853.81 | AC55: 12918.49 | AD55: 500 | AE55: 3653.99 | AF55: 70.27 | AG55: 311.18 | AH55: 240.91 | AI55: 300 | AK55: 277.72 | AL55: 62.11 | AM55: 215.61 | AN55: 1 | AO55: 240.91 | AP55: 0
F56: 500 | G56: 83339.86 | H56: 13404.54 | I56: 500 | J56: 4014.58 | K56: 77.2 | L56: 366.46 | M56: 289.26 | N56: 300 | P56: 323.33 | Q56: 64.44 | R56: 258.89 | S56: 1 | T56: 289.26 | U56: 0 | AA56: 500 | AB56: 83353.81 | AC56: 13418.49 | AD56: 500 | AE56: 3793.65 | AF56: 72.95 | AG56: 311.18 | AH56: 238.23 | AI56: 300 | AK56: 277.72 | AL56: 64.51 | AM56: 213.21 | AN56: 1 | AO56: 238.22 | AP56: -0.01
F57: 500 | G57: 83839.86 | H57: 13904.54 | I57: 500 | J57: 4154.24 | K57: 79.89 | L57: 366.46 | M57: 286.57 | N57: 300 | P57: 323.33 | Q57: 66.85 | R57: 256.48 | S57: 1 | T57: 286.57 | U57: 0 | AA57: 500 | AB57: 83853.81 | AC57: 13918.49 | AD57: 500 | AE57: 3933.32 | AF57: 75.64 | AG57: 311.18 | AH57: 235.54 | AI57: 300 | AK57: 277.72 | AL57: 66.92 | AM57: 210.8 | AN57: 1 | AO57: 235.53 | AP57: -0.01
F58: 500 | G58: 84339.86 | H58: 14404.54 | I58: 500 | J58: 4293.91 | K58: 82.58 | L58: 366.46 | M58: 283.88 | N58: 300 | P58: 323.33 | Q58: 69.25 | R58: 254.08 | S58: 1 | T58: 283.89 | U58: 0.01 | AA58: 500 | AB58: 84353.81 | AC58: 14418.49 | AD58: 500 | AE58: 4072.98 | AF58: 78.33 | AG58: 311.18 | AH58: 232.85 | AI58: 300 | AK58: 277.72 | AL58: 69.32 | AM58: 208.4 | AN58: 1 | AO58: 232.85 | AP58: 0
F59: 500 | G59: 84839.86 | H59: 14904.54 | I59: 500 | J59: 4433.57 | K59: 85.26 | L59: 366.46 | M59: 281.2 | N59: 300 | P59: 323.33 | Q59: 71.66 | R59: 251.67 | S59: 1 | T59: 281.2 | U59: 0 | AA59: 500 | AB59: 84853.81 | AC59: 14918.49 | AD59: 500 | AE59: 4212.64 | AF59: 81.01 | AG59: 311.18 | AH59: 230.17 | AI59: 300 | AK59: 277.72 | AL59: 71.72 | AM59: 206 | AN59: 1 | AO59: 230.17 | AP59: 0
F60: 500 | G60: 85339.86 | H60: 15404.54 | I60: 500 | J60: 4573.24 | K60: 87.95 | L60: 366.46 | M60: 278.51 | N60: 300 | P60: 323.33 | Q60: 74.06 | R60: 249.27 | S60: 1 | T60: 278.51 | U60: 0 | AA60: 500 | AB60: 85353.81 | AC60: 15418.49 | AD60: 500 | AE60: 4352.31 | AF60: 83.7 | AG60: 311.18 | AH60: 227.48 | AI60: 300 | AK60: 277.72 | AL60: 74.13 | AM60: 203.59 | AN60: 1 | AO60: 227.47 | AP60: -0.01
F61: 500 | G61: 85839.86 | H61: 15904.54 | I61: 500 | J61: 4712.9 | K61: 90.63 | L61: 366.46 | M61: 275.83 | N61: 300 | P61: 323.33 | Q61: 76.46 | R61: 246.87 | S61: 1 | T61: 275.83 | U61: 0 | AA61: 500 | AB61: 85853.81 | AC61: 15918.49 | AD61: 500 | AE61: 4491.97 | AF61: 86.38 | AG61: 311.18 | AH61: 224.8 | AI61: 300 | AK61: 277.72 | AL61: 76.53 | AM61: 201.19 | AN61: 1 | AO61: 224.79 | AP61: -0.01
F62: 500 | G62: 86339.86 | H62: 16404.54 | I62: 500 | J62: 4852.57 | K62: 93.32 | L62: 366.46 | M62: 273.14 | N62: 300 | P62: 323.33 | Q62: 78.87 | R62: 244.46 | S62: 1 | T62: 273.14 | U62: 0 | AA62: 500 | AB62: 86353.81 | AC62: 16418.49 | AD62: 500 | AE62: 4631.64 | AF62: 89.07 | AG62: 311.18 | AH62: 222.11 | AI62: 300 | AK62: 277.72 | AL62: 78.94 | AM62: 198.78 | AN62: 1 | AO62: 222.1 | AP62: -0.01
F63: 500 | G63: 86839.86 | H63: 16904.54 | I63: 500 | J63: 4992.23 | K63: 96 | L63: 366.46 | M63: 270.46 | N63: 300 | P63: 323.33 | Q63: 81.27 | R63: 242.06 | S63: 1 | T63: 270.46 | U63: 0 | AA63: 500 | AB63: 86853.81 | AC63: 16918.49 | AD63: 500 | AE63: 4771.3 | AF63: 91.76 | AG63: 311.18 | AH63: 219.42 | AI63: 300 | AK63: 277.72 | AL63: 81.34 | AM63: 196.38 | AN63: 1 | AO63: 219.42 | AP63: 0
F64: 500 | G64: 87339.86 | H64: 17404.54 | I64: 500 | J64: 5131.9 | K64: 98.69 | L64: 366.46 | M64: 267.77 | N64: 300 | P64: 323.33 | Q64: 83.68 | R64: 239.65 | S64: 1 | T64: 267.77 | U64: 0 | AA64: 500 | AB64: 87353.81 | AC64: 17418.49 | AD64: 500 | AE64: 4910.97 | AF64: 94.44 | AG64: 311.18 | AH64: 216.74 | AI64: 300 | AK64: 277.72 | AL64: 83.74 | AM64: 193.98 | AN64: 1 | AO64: 216.74 | AP64: 0
F65: 500 | G65: 87839.86 | H65: 17904.54 | I65: 500 | J65: 5271.56 | K65: 101.38 | L65: 366.46 | M65: 265.08 | N65: 300 | P65: 323.33 | Q65: 86.08 | R65: 237.25 | S65: 1 | T65: 265.08 | U65: 0 | AA65: 500 | AB65: 87853.81 | AC65: 17918.49 | AD65: 500 | AE65: 5050.63 | AF65: 97.13 | AG65: 311.18 | AH65: 214.05 | AI65: 300 | AK65: 277.72 | AL65: 86.15 | AM65: 191.57 | AN65: 1 | AO65: 214.04 | AP65: -0.01
F66: 500 | G66: 88339.86 | H66: 18404.54 | I66: 500 | J66: 5411.23 | K66: 104.06 | L66: 366.46 | M66: 262.4 | N66: 300 | P66: 323.33 | Q66: 88.48 | R66: 234.85 | S66: 1 | T66: 262.4 | U66: 0 | AA66: 500 | AB66: 88353.81 | AC66: 18418.49 | AD66: 500 | AE66: 5190.3 | AF66: 99.81 | AG66: 311.18 | AH66: 211.37 | AI66: 300 | AK66: 277.72 | AL66: 88.55 | AM66: 189.17 | AN66: 1 | AO66: 211.36 | AP66: -0.01
F67: 500 | G67: 88839.86 | H67: 18904.54 | I67: 500 | J67: 5550.89 | K67: 106.75 | L67: 366.46 | M67: 259.71 | N67: 300 | P67: 323.33 | Q67: 90.89 | R67: 232.44 | S67: 1 | T67: 259.71 | U67: 0 | AA67: 500 | AB67: 88853.81 | AC67: 18918.49 | AD67: 500 | AE67: 5329.96 | AF67: 102.5 | AG67: 311.18 | AH67: 208.68 | AI67: 300 | AK67: 277.72 | AL67: 90.95 | AM67: 186.77 | AN67: 1 | AO67: 208.68 | AP67: 0
F68: 500 | G68: 89339.86 | H68: 19404.54 | I68: 500 | J68: 5690.56 | K68: 109.43 | L68: 366.46 | M68: 257.03 | N68: 300 | P68: 323.33 | Q68: 93.29 | R68: 230.04 | S68: 1 | T68: 257.03 | U68: 0 | AA68: 500 | AB68: 89353.81 | AC68: 19418.49 | AD68: 500 | AE68: 5469.63 | AF68: 105.19 | AG68: 311.18 | AH68: 205.99 | AI68: 300 | AK68: 277.72 | AL68: 93.36 | AM68: 184.36 | AN68: 1 | AO68: 205.99 | AP68: 0
F69: 500 | G69: 89839.86 | H69: 19904.54 | I69: 500 | J69: 5830.22 | K69: 112.12 | L69: 366.46 | M69: 254.34 | N69: 300 | P69: 323.33 | Q69: 95.69 | R69: 227.64 | S69: 1 | T69: 254.35 | U69: 0.01 | AA69: 500 | AB69: 89853.81 | AC69: 19918.49 | AD69: 500 | AE69: 5609.29 | AF69: 107.87 | AG69: 311.18 | AH69: 203.31 | AI69: 300 | AK69: 277.72 | AL69: 95.76 | AM69: 181.96 | AN69: 1 | AO69: 203.31 | AP69: 0
F70: 500 | G70: 90339.86 | H70: 20404.54 | I70: 500 | J70: 5969.89 | K70: 114.81 | L70: 366.46 | M70: 251.65 | N70: 300 | P70: 323.33 | Q70: 98.1 | R70: 225.23 | S70: 1 | T70: 251.65 | U70: 0 | AA70: 500 | AB70: 90353.81 | AC70: 20418.49 | AD70: 500 | AE70: 5748.96 | AF70: 110.56 | AG70: 311.18 | AH70: 200.62 | AI70: 300 | AK70: 277.72 | AL70: 98.17 | AM70: 179.55 | AN70: 1 | AO70: 200.61 | AP70: -0.01
F71: 500 | G71: 90839.86 | H71: 20904.54 | I71: 500 | J71: 6109.55 | K71: 117.49 | L71: 366.46 | M71: 248.97 | N71: 300 | P71: 323.33 | Q71: 100.5 | R71: 222.83 | S71: 1 | T71: 248.97 | U71: 0 | AA71: 500 | AB71: 90853.81 | AC71: 20918.49 | AD71: 500 | AE71: 5888.62 | AF71: 113.24 | AG71: 311.18 | AH71: 197.94 | AI71: 300 | AK71: 277.72 | AL71: 100.57 | AM71: 177.15 | AN71: 1 | AO71: 197.93 | AP71: -0.01
F72: 500 | G72: 91339.86 | H72: 21404.54 | I72: 500 | J72: 6249.22 | K72: 120.18 | L72: 366.46 | M72: 246.28 | N72: 300 | P72: 323.33 | Q72: 102.91 | R72: 220.42 | S72: 1 | T72: 246.28 | U72: 0 | AA72: 500 | AB72: 91353.81 | AC72: 21418.49 | AD72: 500 | AE72: 6028.29 | AF72: 115.93 | AG72: 311.18 | AH72: 195.25 | AI72: 300 | AK72: 277.72 | AL72: 102.97 | AM72: 174.75 | AN72: 1 | AO72: 195.25 | AP72: 0
F73: 500 | G73: 91839.86 | H73: 21904.54 | I73: 500 | J73: 6388.88 | K73: 122.86 | L73: 366.46 | M73: 243.6 | N73: 300 | P73: 323.33 | Q73: 105.31 | R73: 218.02 | S73: 1 | T73: 243.6 | U73: 0 | AA73: 500 | AB73: 91853.81 | AC73: 21918.49 | AD73: 500 | AE73: 6167.95 | AF73: 118.61 | AG73: 311.18 | AH73: 192.57 | AI73: 300 | AK73: 277.72 | AL73: 105.38 | AM73: 172.34 | AN73: 1 | AO73: 192.56 | AP73: -0.01
F74: 500 | G74: 92339.86 | H74: 22404.54 | I74: 500 | J74: 6528.55 | K74: 125.55 | L74: 366.46 | M74: 240.91 | N74: 300 | P74: 323.33 | Q74: 107.71 | R74: 215.62 | S74: 1 | T74: 240.92 | U74: 0.01 | AA74: 500 | AB74: 92353.81 | AC74: 22418.49 | AD74: 500 | AE74: 6307.62 | AF74: 121.3 | AG74: 311.18 | AH74: 189.88 | AI74: 300 | AK74: 277.72 | AL74: 107.78 | AM74: 169.94 | AN74: 1 | AO74: 189.88 | AP74: 0
F75: 500 | G75: 92839.86 | H75: 22904.54 | I75: 500 | J75: 6668.21 | K75: 128.23 | L75: 366.46 | M75: 238.23 | N75: 300 | P75: 323.33 | Q75: 110.12 | R75: 213.21 | S75: 1 | T75: 238.22 | U75: -0.01 | AA75: 500 | AB75: 92853.81 | AC75: 22918.49 | AD75: 500 | AE75: 6447.28 | AF75: 123.99 | AG75: 311.18 | AH75: 187.19 | AI75: 300 | AK75: 277.72 | AL75: 110.19 | AM75: 167.53 | AN75: 1 | AO75: 187.18 | AP75: -0.01
F76: 500 | G76: 93339.86 | H76: 23404.54 | I76: 500 | J76: 6807.88 | K76: 130.92 | L76: 366.46 | M76: 235.54 | N76: 300 | P76: 323.33 | Q76: 112.52 | R76: 210.81 | S76: 1 | T76: 235.54 | U76: 0 | AA76: 500 | AB76: 93353.81 | AC76: 23418.49 | AD76: 500 | AE76: 6586.95 | AF76: 126.67 | AG76: 311.18 | AH76: 184.51 | AI76: 300 | AK76: 277.72 | AL76: 112.59 | AM76: 165.13 | AN76: 1 | AO76: 184.5 | AP76: -0.01
F77: 500 | G77: 93839.86 | H77: 23904.54 | I77: 500 | J77: 6947.54 | K77: 133.61 | L77: 366.46 | M77: 232.85 | N77: 300 | P77: 323.33 | Q77: 114.93 | R77: 208.4 | S77: 1 | T77: 232.85 | U77: 0 | AA77: 500 | AB77: 93853.81 | AC77: 23918.49 | AD77: 500 | AE77: 6726.61 | AF77: 129.36 | AG77: 311.18 | AH77: 181.82 | AI77: 300 | AK77: 277.72 | AL77: 114.99 | AM77: 162.73 | AN77: 1 | AO77: 181.82 | AP77: 0
F78: 500 | G78: 94339.86 | H78: 24404.54 | I78: 500 | J78: 7087.2 | K78: 136.29 | L78: 366.46 | M78: 230.17 | N78: 300 | P78: 323.33 | Q78: 117.33 | R78: 206 | S78: 1 | T78: 230.17 | U78: 0 | AA78: 500 | AB78: 94353.81 | AC78: 24418.49 | AD78: 500 | AE78: 6866.28 | AF78: 132.04 | AG78: 311.18 | AH78: 179.14 | AI78: 300 | AK78: 277.72 | AL78: 117.4 | AM78: 160.32 | AN78: 1 | AO78: 179.13 | AP78: -0.01
F79: 500 | G79: 94839.86 | H79: 24904.54 | I79: 500 | J79: 7226.87 | K79: 138.98 | L79: 366.46 | M79: 227.48 | N79: 300 | P79: 323.33 | Q79: 119.73 | R79: 203.6 | S79: 1 | T79: 227.49 | U79: 0.01 | AA79: 500 | AB79: 94853.81 | AC79: 24918.49 | AD79: 500 | AE79: 7005.94 | AF79: 134.73 | AG79: 311.18 | AH79: 176.45 | AI79: 300 | AK79: 277.72 | AL79: 119.8 | AM79: 157.92 | AN79: 1 | AO79: 176.45 | AP79: 0
F80: 500 | G80: 95339.86 | H80: 25404.54 | I80: 500 | J80: 7366.53 | K80: 141.66 | L80: 366.46 | M80: 224.8 | N80: 300 | P80: 323.33 | Q80: 122.14 | R80: 201.19 | S80: 1 | T80: 224.79 | U80: -0.01 | AA80: 500 | AB80: 95353.81 | AC80: 25418.49 | AD80: 500 | AE80: 7145.61 | AF80: 137.42 | AG80: 311.18 | AH80: 173.76 | AI80: 300 | AK80: 277.72 | AL80: 122.2 | AM80: 155.52 | AN80: 1 | AO80: 173.77 | AP80: 0.01
F81: 500 | G81: 95839.86 | H81: 25904.54 | I81: 500 | J81: 7506.2 | K81: 144.35 | L81: 366.46 | M81: 222.11 | N81: 300 | P81: 323.33 | Q81: 124.54 | R81: 198.79 | S81: 1 | T81: 222.11 | U81: 0 | AA81: 500 | AB81: 95853.81 | AC81: 25918.49 | AD81: 500 | AE81: 7285.27 | AF81: 140.1 | AG81: 311.18 | AH81: 171.08 | AI81: 300 | AK81: 277.72 | AL81: 124.61 | AM81: 153.11 | AN81: 1 | AO81: 171.07 | AP81: -0.01
F82: 500 | G82: 96339.86 | H82: 26404.54 | I82: 500 | J82: 7645.86 | K82: 147.04 | L82: 366.46 | M82: 219.42 | N82: 300 | P82: 323.33 | Q82: 126.94 | R82: 196.39 | S82: 1 | T82: 219.43 | U82: 0.01 | AA82: 500 | AB82: 96353.81 | AC82: 26418.49 | AD82: 500 | AE82: 7424.94 | AF82: 142.79 | AG82: 311.18 | AH82: 168.39 | AI82: 300 | AK82: 277.72 | AL82: 127.01 | AM82: 150.71 | AN82: 1 | AO82: 168.39 | AP82: 0
F83: 500 | G83: 96839.86 | H83: 26904.54 | I83: 500 | J83: 7785.53 | K83: 149.72 | L83: 366.46 | M83: 216.74 | N83: 300 | P83: 323.33 | Q83: 129.35 | R83: 193.98 | S83: 1 | T83: 216.74 | U83: 0 | AA83: 500 | AB83: 96853.81 | AC83: 26918.49 | AD83: 500 | AE83: 7564.6 | AF83: 145.47 | AG83: 311.18 | AH83: 165.71 | AI83: 300 | AK83: 277.72 | AL83: 129.42 | AM83: 148.3 | AN83: 1 | AO83: 165.7 | AP83: -0.01
F84: 500 | G84: 97339.86 | H84: 27404.54 | I84: 500 | J84: 7925.19 | K84: 152.41 | L84: 366.46 | M84: 214.05 | N84: 300 | P84: 323.33 | Q84: 131.75 | R84: 191.58 | S84: 1 | T84: 214.06 | U84: 0.01 | AA84: 500 | AB84: 97353.81 | AC84: 27418.49 | AD84: 500 | AE84: 7704.26 | AF84: 148.16 | AG84: 311.18 | AH84: 163.02 | AI84: 300 | AK84: 277.72 | AL84: 131.82 | AM84: 145.9 | AN84: 1 | AO84: 163.02 | AP84: 0
F85: 500 | G85: 97839.86 | H85: 27904.54 | I85: 500 | J85: 8064.86 | K85: 155.09 | L85: 366.46 | M85: 211.37 | N85: 300 | P85: 323.33 | Q85: 134.16 | R85: 189.17 | S85: 1 | T85: 211.36 | U85: -0.01 | AA85: 500 | AB85: 97853.81 | AC85: 27918.49 | AD85: 500 | AE85: 7843.93 | AF85: 150.84 | AG85: 311.18 | AH85: 160.34 | AI85: 300 | AK85: 277.72 | AL85: 134.22 | AM85: 143.5 | AN85: 1 | AO85: 160.34 | AP85: 0
F86: 500 | G86: 98339.86 | H86: 28404.54 | I86: 500 | J86: 8204.52 | K86: 157.78 | L86: 366.46 | M86: 208.68 | N86: 300 | P86: 323.33 | Q86: 136.56 | R86: 186.77 | S86: 1 | T86: 208.68 | U86: 0 | AA86: 500 | AB86: 98353.81 | AC86: 28418.49 | AD86: 500 | AE86: 7983.59 | AF86: 153.53 | AG86: 311.18 | AH86: 157.65 | AI86: 300 | AK86: 277.72 | AL86: 136.63 | AM86: 141.09 | AN86: 1 | AO86: 157.64 | AP86: -0.01
F87: 500 | G87: 98839.86 | H87: 28904.54 | I87: 500 | J87: 8344.19 | K87: 160.47 | L87: 366.46 | M87: 205.99 | N87: 300 | P87: 323.33 | Q87: 138.96 | R87: 184.37 | S87: 1 | T87: 206 | U87: 0.01 | AA87: 500 | AB87: 98853.81 | AC87: 28918.49 | AD87: 500 | AE87: 8123.26 | AF87: 156.22 | AG87: 311.18 | AH87: 154.96 | AI87: 300 | AK87: 277.72 | AL87: 139.03 | AM87: 138.69 | AN87: 1 | AO87: 154.96 | AP87: 0
F88: 500 | G88: 99339.86 | H88: 29404.54 | I88: 500 | J88: 8483.85 | K88: 163.15 | L88: 366.46 | M88: 203.31 | N88: 300 | P88: 323.33 | Q88: 141.37 | R88: 181.96 | S88: 1 | T88: 203.31 | U88: 0 | AA88: 500 | AB88: 99353.81 | AC88: 29418.49 | AD88: 500 | AE88: 8262.92 | AF88: 158.9 | AG88: 311.18 | AH88: 152.28 | AI88: 300 | AK88: 277.72 | AL88: 141.44 | AM88: 136.28 | AN88: 1 | AO88: 152.27 | AP88: -0.01
F89: 500 | G89: 99839.86 | H89: 29904.54 | I89: 500 | J89: 8623.52 | K89: 165.84 | L89: 366.46 | M89: 200.62 | N89: 300 | P89: 323.33 | Q89: 143.77 | R89: 179.56 | S89: 1 | T89: 200.63 | U89: 0.01 | AA89: 500 | AB89: 99853.81 | AC89: 29918.49 | AD89: 500 | AE89: 8402.59 | AF89: 161.59 | AG89: 311.18 | AH89: 149.59 | AI89: 300 | AK89: 277.72 | AL89: 143.84 | AM89: 133.88 | AN89: 1 | AO89: 149.59 | AP89: 0
F90: 500 | G90: 100339.86 | H90: 30404.54 | I90: 500 | J90: 8763.18 | K90: 168.52 | L90: 366.46 | M90: 197.94 | N90: 300 | P90: 323.33 | Q90: 146.18 | R90: 177.15 | S90: 1 | T90: 197.93 | U90: -0.01 | AA90: 500 | AB90: 100353.81 | AC90: 30418.49 | AD90: 500 | AE90: 8542.25 | AF90: 164.27 | AG90: 311.18 | AH90: 146.91 | AI90: 300 | AK90: 277.72 | AL90: 146.24 | AM90: 131.48 | AN90: 1 | AO90: 146.91 | AP90: 0
F91: 500 | G91: 100839.86 | H91: 30904.54 | I91: 500 | J91: 8902.85 | K91: 171.21 | L91: 366.46 | M91: 195.25 | N91: 300 | P91: 323.33 | Q91: 148.58 | R91: 174.75 | S91: 1 | T91: 195.25 | U91: 0 | AA91: 500 | AB91: 100853.81 | AC91: 30918.49 | AD91: 500 | AE91: 8681.92 | AF91: 166.96 | AG91: 311.18 | AH91: 144.22 | AI91: 300 | AK91: 277.72 | AL91: 148.65 | AM91: 129.07 | AN91: 1 | AO91: 144.21 | AP91: -0.01
F92: 500 | G92: 101339.86 | H92: 31404.54 | I92: 500 | J92: 9042.51 | K92: 173.89 | L92: 366.46 | M92: 192.57 | N92: 300 | P92: 323.33 | Q92: 150.98 | R92: 172.35 | S92: 1 | T92: 192.57 | U92: 0 | AA92: 500 | AB92: 101353.81 | AC92: 31418.49 | AD92: 500 | AE92: 8821.58 | AF92: 169.65 | AG92: 311.18 | AH92: 141.53 | AI92: 300 | AK92: 277.72 | AL92: 151.05 | AM92: 126.67 | AN92: 1 | AO92: 141.53 | AP92: 0
F93: 500 | G93: 101839.86 | H93: 31904.54 | I93: 500 | J93: 9182.18 | K93: 176.58 | L93: 366.46 | M93: 189.88 | N93: 300 | P93: 323.33 | Q93: 153.39 | R93: 169.94 | S93: =VLOOKUP(R93,TaxBracket,TaxBracketLookup) -> 1 | T93: =ROUND(CHOOSE(S93, R93/(1-TaxRate1), GrossThresh2+(R93-NetThresh2)/(1-TaxRate2), GrossThresh3+(R93-NetThresh3)/(1-TaxRate3), GrossThresh4+(R93-NetThresh4)/(1-TaxRate4)),NTNRounding) -> 189.88 | U93: 0 | AA93: 500 | AB93: 101853.81 | AC93: 31918.49 | AD93: 500 | AE93: 8961.25 | AF93: 172.33 | AG93: 311.18 | AH93: 138.85 | AI93: 300 | AK93: 277.72 | AL93: 153.45 | AM93: 124.27 | AN93: =VLOOKUP(AM93,TaxBracket,TaxBracketLookup) -> 1 | AO93: =ROUND(CHOOSE(AN93, AM93/(1-TaxRate1), GrossThresh2+(AM93-NetThresh2)/(1-TaxRate2), GrossThresh3+(AM93-NetThresh3)/(1-TaxRate3), GrossThresh4+(AM93-NetThresh4)/(1-TaxRate4)),NTNRounding) -> 138.85 | AP93: 0
F94: 500 | G94: 102339.86 | H94: =G94-$E$31 -> 32404.54 | I94: 500 | J94: 9321.84 | K94: =ROUND(J94/52,2) -> 179.27 | L94: 366.46 | M94: =MAX(L94-K94,0) -> 187.19 | N94: 300 | P94: 323.33 | Q94: =ROUND(H94*0.25/52,2) -> 155.79 | R94: =ROUND(P94-Q94,2) -> 167.54 | S94: 1 | T94: 187.2 | U94: =T94-M94 -> 0.01 | AA94: 500 | AB94: 102353.81 | AC94: =AB94-$Z$31 -> 32418.49 | AD94: 500 | AE94: 9100.91 | AF94: 175.02 | AG94: 311.18 | AH94: =MAX(AG94-AF94,0) -> 136.16 | AI94: 300 | AK94: 277.72 | AL94: =ROUND(AC94*0.25/52,2) -> 155.86 | AM94: =ROUND(AK94-AL94,2) -> 121.86 | AN94: 1 | AO94: 136.16 | AP94: =AO94-AH94 -> 0
F95: =IF($E$32-G94<500,$E$32-G94,500) -> 500 | G95: =IF(I94<>500,G94+500,IF(ABS(G93+F94-E$45-E$31)<(500-1),E$31+E$45,MIN(G94+F95,E$32))) -> 102839.86 | H95: 32904.54 | I95: =H95-H94 -> 500 | J95: 9461.51 | K95: 181.95 | L95: =L94 -> 366.46 | M95: 184.51 | N95: =N94 -> 300 | P95: =P94 -> 323.33 | Q95: 158.19 | R95: 165.14 | S95: 1 | T95: 184.51 | U95: 0 | AA95: =IF($Z$32-AB94<500,$Z$32-AB94,500) -> 500 | AB95: =IF(AD94<>500,AB94+500,IF(ABS(AB93+AA94-Z$45-Z$31)<(500-1),Z$31+Z$45,MIN(AB94+AA95,Z$32))) -> 102853.81 | AC95: 32918.49 | AD95: =AC95-AC94 -> 500 | AE95: =ROUND(IF(AC95<$Z$45,AC95*$Z$39,(AC95-$Z$45)*$Z$40+$Z$44),2) -> 9240.58 | AF95: =ROUND(AE95/52,2) -> 177.7 | AG95: =AG94 -> 311.18 | AH95: 133.48 | AI95: =AI94 -> 300 | AK95: =AK94 -> 277.72 | AL95: 158.26 | AM95: 119.46 | AN95: 1 | AO95: 133.47 | AP95: -0.01
F96: 500 | G96: 103339.86 | H96: 33404.54 | I96: 500 | J96: 9601.17 | K96: 184.64 | L96: 366.46 | M96: 181.82 | N96: 300 | P96: 323.33 | Q96: 160.6 | R96: 162.73 | S96: 1 | T96: 181.82 | U96: 0 | AA96: 500 | AB96: 103353.81 | AC96: 33418.49 | AD96: 500 | AE96: 9380.24 | AF96: 180.39 | AG96: 311.18 | AH96: 130.79 | AI96: 300 | AK96: 277.72 | AL96: 160.67 | AM96: 117.05 | AN96: 1 | AO96: 130.78 | AP96: -0.01
F97: 500 | G97: 103839.86 | H97: 33904.54 | I97: 500 | J97: 9740.84 | K97: 187.32 | L97: 366.46 | M97: 179.14 | N97: 300 | P97: 323.33 | Q97: 163 | R97: 160.33 | S97: 1 | T97: 179.14 | U97: 0 | AA97: 500 | AB97: 103853.81 | AC97: 33918.49 | AD97: 500 | AE97: 9519.91 | AF97: 183.08 | AG97: 311.18 | AH97: 128.1 | AI97: 300 | AK97: 277.72 | AL97: 163.07 | AM97: 114.65 | AN97: 1 | AO97: 128.1 | AP97: 0
F98: 500 | G98: 104339.86 | H98: 34404.54 | I98: 500 | J98: 9880.5 | K98: 190.01 | L98: 366.46 | M98: 176.45 | N98: 300 | P98: 323.33 | Q98: 165.41 | R98: 157.92 | S98: 1 | T98: 176.45 | U98: 0 | AA98: 500 | AB98: 104353.81 | AC98: 34418.49 | AD98: 500 | AE98: 9659.57 | AF98: 185.76 | AG98: 311.18 | AH98: 125.42 | AI98: 300 | AK98: 277.72 | AL98: 165.47 | AM98: 112.25 | AN98: 1 | AO98: 125.42 | AP98: 0
F99: 500 | G99: 104839.86 | H99: 34904.54 | I99: 500 | J99: 10020.17 | K99: 192.7 | L99: 366.46 | M99: 173.76 | N99: 300 | P99: 323.33 | Q99: 167.81 | R99: 155.52 | S99: 1 | T99: 173.77 | U99: 0.01 | AA99: 500 | AB99: 104853.81 | AC99: 34918.49 | AD99: 500 | AE99: 9799.24 | AF99: 188.45 | AG99: 311.18 | AH99: 122.73 | AI99: 300 | AK99: 277.72 | AL99: 167.88 | AM99: 109.84 | AN99: 1 | AO99: 122.73 | AP99: 0
F100: 500 | G100: 105339.86 | H100: 35404.54 | I100: 500 | J100: 10159.83 | K100: 195.38 | L100: 366.46 | M100: 171.08 | N100: 300 | P100: 323.33 | Q100: 170.21 | R100: 153.12 | S100: 1 | T100: 171.08 | U100: 0 | AA100: 500 | AB100: 105353.81 | AC100: 35418.49 | AD100: 500 | AE100: 9938.9 | AF100: 191.13 | AG100: 311.18 | AH100: 120.05 | AI100: 300 | AK100: 277.72 | AL100: 170.28 | AM100: 107.44 | AN100: 1 | AO100: 120.04 | AP100: -0.01
F101: 500 | G101: 105839.86 | H101: 35904.54 | I101: 500 | J101: 10299.5 | K101: 198.07 | L101: 366.46 | M101: 168.39 | N101: 300 | P101: 323.33 | Q101: 172.62 | R101: 150.71 | S101: 1 | T101: 168.39 | U101: 0 | AA101: 500 | AB101: 105853.81 | AC101: 35918.49 | AD101: 500 | AE101: 10078.57 | AF101: 193.82 | AG101: 311.18 | AH101: 117.36 | AI101: 300 | AK101: 277.72 | AL101: 172.69 | AM101: 105.03 | AN101: 1 | AO101: 117.35 | AP101: -0.01
F102: 500 | G102: 106339.86 | H102: 36404.54 | I102: 500 | J102: 10439.16 | K102: 200.75 | L102: 366.46 | M102: 165.71 | N102: 300 | P102: 323.33 | Q102: 175.02 | R102: 148.31 | S102: 1 | T102: 165.71 | U102: 0 | AA102: 500 | AB102: 106353.81 | AC102: 36418.49 | AD102: 500 | AE102: 10218.23 | AF102: 196.5 | AG102: 311.18 | AH102: 114.68 | AI102: 300 | AK102: 277.72 | AL102: 175.09 | AM102: 102.63 | AN102: 1 | AO102: 114.67 | AP102: -0.01
F103: 500 | G103: 106839.86 | H103: 36904.54 | I103: 500 | J103: 10578.82 | K103: 203.44 | L103: 366.46 | M103: 163.02 | N103: 300 | P103: 323.33 | Q103: 177.43 | R103: 145.9 | S103: 1 | T103: 163.02 | U103: 0 | AA103: 500 | AB103: 106853.81 | AC103: 36918.49 | AD103: 500 | AE103: 10357.9 | AF103: 199.19 | AG103: 311.18 | AH103: 111.99 | AI103: 300 | AK103: 277.72 | AL103: 177.49 | AM103: 100.23 | AN103: 1 | AO103: 111.99 | AP103: 0
F104: 500 | G104: 107339.86 | H104: 37404.54 | I104: 500 | J104: 10718.49 | K104: 206.12 | L104: 366.46 | M104: 160.34 | N104: 300 | P104: 323.33 | Q104: 179.83 | R104: 143.5 | S104: 1 | T104: 160.34 | U104: 0 | AA104: 500 | AB104: 107353.81 | AC104: 37418.49 | AD104: 500 | AE104: 10497.56 | AF104: 201.88 | AG104: 311.18 | AH104: 109.3 | AI104: 300 | AK104: 277.72 | AL104: 179.9 | AM104: 97.82 | AN104: 1 | AO104: 109.3 | AP104: 0
F105: 500 | G105: 107839.86 | H105: 37904.54 | I105: 500 | J105: 10858.15 | K105: 208.81 | L105: 366.46 | M105: 157.65 | N105: 300 | P105: 323.33 | Q105: 182.23 | R105: 141.1 | S105: 1 | T105: 157.65 | U105: 0 | AA105: 500 | AB105: 107853.81 | AC105: 37918.49 | AD105: 500 | AE105: 10637.23 | AF105: 204.56 | AG105: 311.18 | AH105: 106.62 | AI105: 300 | AK105: 277.72 | AL105: 182.3 | AM105: 95.42 | AN105: 1 | AO105: 106.61 | AP105: -0.01
F106: 500 | G106: 108339.86 | H106: 38404.54 | I106: 500 | J106: 10997.82 | K106: 211.5 | L106: 366.46 | M106: 154.96 | N106: 300 | P106: 323.33 | Q106: 184.64 | R106: 138.69 | S106: 1 | T106: 154.96 | U106: 0 | AA106: 500 | AB106: 108353.81 | AC106: 38418.49 | AD106: 500 | AE106: 10776.89 | AF106: 207.25 | AG106: 311.18 | AH106: 103.93 | AI106: 300 | AK106: 277.72 | AL106: 184.7 | AM106: 93.02 | AN106: 1 | AO106: 103.93 | AP106: 0
F107: 500 | G107: 108839.86 | H107: 38904.54 | I107: 500 | J107: 11137.48 | K107: 214.18 | L107: 366.46 | M107: 152.28 | N107: 300 | P107: 323.33 | Q107: 187.04 | R107: 136.29 | S107: 1 | T107: 152.28 | U107: 0 | AA107: 500 | AB107: 108853.81 | AC107: 38918.49 | AD107: 500 | AE107: 10916.56 | AF107: 209.93 | AG107: 311.18 | AH107: 101.25 | AI107: 300 | AK107: 277.72 | AL107: 187.11 | AM107: 90.61 | AN107: 1 | AO107: 101.24 | AP107: -0.01
F108: 500 | G108: 109339.86 | H108: 39404.54 | I108: 500 | J108: 11277.15 | K108: 216.87 | L108: 366.46 | M108: 149.59 | N108: 300 | P108: 323.33 | Q108: 189.44 | R108: 133.89 | S108: 1 | T108: 149.6 | U108: 0.01 | AA108: 500 | AB108: 109353.81 | AC108: 39418.49 | AD108: 500 | AE108: 11056.22 | AF108: 212.62 | AG108: 311.18 | AH108: 98.56 | AI108: 300 | AK108: 277.72 | AL108: 189.51 | AM108: 88.21 | AN108: 1 | AO108: 98.56 | AP108: 0
F109: 500 | G109: 109839.86 | H109: 39904.54 | I109: 500 | J109: 11416.81 | K109: 219.55 | L109: 366.46 | M109: 146.91 | N109: 300 | P109: 323.33 | Q109: 191.85 | R109: 131.48 | S109: 1 | T109: 146.91 | U109: 0 | AA109: 500 | AB109: 109853.81 | AC109: 39918.49 | AD109: 500 | AE109: 11195.88 | AF109: 215.31 | AG109: 311.18 | AH109: 95.87 | AI109: 300 | AK109: 277.72 | AL109: 191.92 | AM109: 85.8 | AN109: 1 | AO109: 95.87 | AP109: 0
F110: 500 | G110: 110339.86 | H110: 40404.54 | I110: 500 | J110: 11556.48 | K110: 222.24 | L110: 366.46 | M110: 144.22 | N110: 300 | P110: 323.33 | Q110: 194.25 | R110: 129.08 | S110: 1 | T110: 144.22 | U110: 0 | AA110: 500 | AB110: 110353.81 | AC110: 40418.49 | AD110: 500 | AE110: 11335.55 | AF110: 217.99 | AG110: 311.18 | AH110: 93.19 | AI110: 300 | AK110: 277.72 | AL110: 194.32 | AM110: 83.4 | AN110: 1 | AO110: 93.18 | AP110: -0.01
F111: 500 | G111: 110839.86 | H111: 40904.54 | I111: 500 | J111: 11696.14 | K111: 224.93 | L111: 366.46 | M111: 141.53 | N111: 300 | P111: 323.33 | Q111: 196.66 | R111: 126.67 | S111: 1 | T111: 141.53 | U111: 0 | AA111: 500 | AB111: 110853.81 | AC111: 40918.49 | AD111: 500 | AE111: 11475.21 | AF111: 220.68 | AG111: 311.18 | AH111: 90.5 | AI111: 300 | AK111: 277.72 | AL111: 196.72 | AM111: 81 | AN111: 1 | AO111: 90.5 | AP111: 0
F112: 500 | G112: 111339.86 | H112: 41404.54 | I112: 500 | J112: 11835.81 | K112: 227.61 | L112: 366.46 | M112: 138.85 | N112: 300 | P112: 323.33 | Q112: 199.06 | R112: 124.27 | S112: 1 | T112: 138.85 | U112: 0 | AA112: 500 | AB112: 111353.81 | AC112: 41418.49 | AD112: 500 | AE112: 11614.88 | AF112: 223.36 | AG112: 311.18 | AH112: 87.82 | AI112: 300 | AK112: 277.72 | AL112: 199.13 | AM112: 78.59 | AN112: 1 | AO112: 87.81 | AP112: -0.01
F113: 500 | G113: 111839.86 | H113: 41904.54 | I113: 500 | J113: 11975.47 | K113: 230.3 | L113: 366.46 | M113: 136.16 | N113: 300 | P113: 323.33 | Q113: 201.46 | R113: 121.87 | S113: 1 | T113: 136.17 | U113: 0.01 | AA113: 500 | AB113: 111853.81 | AC113: 41918.49 | AD113: 500 | AE113: 11754.54 | AF113: 226.05 | AG113: 311.18 | AH113: 85.13 | AI113: 300 | AK113: 277.72 | AL113: 201.53 | AM113: 76.19 | AN113: 1 | AO113: 85.13 | AP113: 0
F114: 500 | G114: 112339.86 | H114: 42404.54 | I114: 500 | J114: 12115.14 | K114: 232.98 | L114: 366.46 | M114: 133.48 | N114: 300 | P114: 323.33 | Q114: 203.87 | R114: 119.46 | S114: 1 | T114: 133.47 | U114: -0.01 | AA114: 500 | AB114: 112353.81 | AC114: 42418.49 | AD114: 500 | AE114: 11894.21 | AF114: 228.73 | AG114: 311.18 | AH114: 82.45 | AI114: 300 | AK114: 277.72 | AL114: 203.94 | AM114: 73.78 | AN114: 1 | AO114: 82.44 | AP114: -0.01
F115: 500 | G115: 112839.86 | H115: 42904.54 | I115: 500 | J115: 12254.8 | K115: 235.67 | L115: 366.46 | M115: 130.79 | N115: 300 | P115: 323.33 | Q115: 206.27 | R115: 117.06 | S115: 1 | T115: 130.79 | U115: 0 | AA115: 500 | AB115: 112853.81 | AC115: 42918.49 | AD115: 500 | AE115: 12033.87 | AF115: 231.42 | AG115: 311.18 | AH115: 79.76 | AI115: 300 | AK115: 277.72 | AL115: 206.34 | AM115: 71.38 | AN115: 1 | AO115: 79.75 | AP115: -0.01
F116: 500 | G116: 113339.86 | H116: 43404.54 | I116: 500 | J116: =ROUND(IF(H116<$E$45,H116*$E$39,(H116-$E$45)*$E$40+$E$44),2) -> 12394.47 | K116: 238.36 | L116: 366.46 | M116: 128.1 | N116: 300 | P116: 323.33 | Q116: 208.68 | R116: 114.65 | S116: 1 | T116: 128.1 | U116: 0 | AA116: 500 | AB116: 113353.81 | AC116: 43418.49 | AD116: 500 | AE116: 12173.54 | AF116: 234.11 | AG116: 311.18 | AH116: 77.07 | AI116: 300 | AK116: 277.72 | AL116: 208.74 | AM116: 68.98 | AN116: 1 | AO116: 77.07 | AP116: 0
F117: 500 | G117: 113839.86 | H117: 43904.54 | I117: 500 | J117: 12534.13 | K117: 241.04 | L117: 366.46 | M117: 125.42 | N117: 300 | P117: 323.33 | Q117: 211.08 | R117: 112.25 | S117: 1 | T117: 125.42 | U117: 0 | AA117: 500 | AB117: 113853.81 | AC117: 43918.49 | AD117: 500 | AE117: 12313.2 | AF117: 236.79 | AG117: 311.18 | AH117: 74.39 | AI117: 300 | AK117: 277.72 | AL117: 211.15 | AM117: 66.57 | AN117: 1 | AO117: 74.38 | AP117: -0.01
F118: 500 | G118: 114339.86 | H118: 44404.54 | I118: 500 | J118: 12673.8 | K118: 243.73 | L118: 366.46 | M118: 122.73 | N118: 300 | P118: 323.33 | Q118: 213.48 | R118: 109.85 | S118: 1 | T118: 122.74 | U118: 0.01 | AA118: 500 | AB118: 114353.81 | AC118: 44418.49 | AD118: 500 | AE118: 12452.87 | AF118: 239.48 | AG118: 311.18 | AH118: 71.7 | AI118: 300 | AK118: 277.72 | AL118: 213.55 | AM118: 64.17 | AN118: 1 | AO118: 71.7 | AP118: 0
F119: 500 | G119: 114839.86 | H119: 44904.54 | I119: 500 | J119: 12813.46 | K119: 246.41 | L119: 366.46 | M119: 120.05 | N119: 300 | P119: 323.33 | Q119: 215.89 | R119: 107.44 | S119: 1 | T119: 120.04 | U119: -0.01 | AA119: 500 | AB119: 114853.81 | AC119: 44918.49 | AD119: 500 | AE119: 12592.53 | AF119: 242.16 | AG119: 311.18 | AH119: 69.02 | AI119: 300 | AK119: 277.72 | AL119: 215.95 | AM119: 61.77 | AN119: 1 | AO119: 69.02 | AP119: 0
F120: 500 | G120: 115339.86 | H120: 45404.54 | I120: 500 | J120: 12953.13 | K120: 249.1 | L120: 366.46 | M120: 117.36 | N120: 300 | P120: 323.33 | Q120: 218.29 | R120: 105.04 | S120: 1 | T120: 117.36 | U120: 0 | AA120: 500 | AB120: 115353.81 | AC120: 45418.49 | AD120: 500 | AE120: 12732.2 | AF120: 244.85 | AG120: 311.18 | AH120: 66.33 | AI120: 300 | AK120: 277.72 | AL120: 218.36 | AM120: 59.36 | AN120: 1 | AO120: 66.32 | AP120: -0.01
F121: 500 | G121: 115839.86 | H121: 45904.54 | I121: 500 | J121: 13092.79 | K121: 251.78 | L121: 366.46 | M121: 114.68 | N121: 300 | P121: 323.33 | Q121: 220.69 | R121: 102.64 | S121: 1 | T121: 114.68 | U121: 0 | AA121: 500 | AB121: 115853.81 | AC121: 45918.49 | AD121: 500 | AE121: 12871.86 | AF121: 247.54 | AG121: 311.18 | AH121: 63.64 | AI121: 300 | AK121: 277.72 | AL121: 220.76 | AM121: 56.96 | AN121: 1 | AO121: 63.64 | AP121: 0
F122: 500 | G122: 116339.86 | H122: 46404.54 | I122: 500 | J122: 13232.46 | K122: 254.47 | L122: 366.46 | M122: 111.99 | N122: 300 | P122: 323.33 | Q122: 223.1 | R122: 100.23 | S122: 1 | T122: 111.99 | U122: 0 | AA122: 500 | AB122: 116353.81 | AC122: 46418.49 | AD122: 500 | AE122: 13011.53 | AF122: 250.22 | AG122: 311.18 | AH122: 60.96 | AI122: 300 | AK122: 277.72 | AL122: 223.17 | AM122: 54.55 | AN122: 1 | AO122: 60.95 | AP122: -0.01
F123: 500 | G123: 116839.86 | H123: 46904.54 | I123: 500 | J123: 13372.12 | K123: 257.16 | L123: 366.46 | M123: 109.3 | N123: 300 | P123: 323.33 | Q123: 225.5 | R123: 97.83 | S123: 1 | T123: 109.31 | U123: 0.01 | AA123: 500 | AB123: 116853.81 | AC123: 46918.49 | AD123: 500 | AE123: 13151.19 | AF123: 252.91 | AG123: 311.18 | AH123: 58.27 | AI123: 300 | AK123: 277.72 | AL123: 225.57 | AM123: 52.15 | AN123: 1 | AO123: 58.27 | AP123: 0
F124: 500 | G124: 117339.86 | H124: 47404.54 | I124: 500 | J124: 13511.79 | K124: 259.84 | L124: 366.46 | M124: 106.62 | N124: 300 | P124: 323.33 | Q124: 227.91 | R124: 95.42 | S124: 1 | T124: 106.61 | U124: -0.01 | AA124: 500 | AB124: 117353.81 | AC124: 47418.49 | AD124: 500 | AE124: 13290.86 | AF124: 255.59 | AG124: 311.18 | AH124: 55.59 | AI124: 300 | AK124: 277.72 | AL124: 227.97 | AM124: 49.75 | AN124: 1 | AO124: 55.59 | AP124: 0
F125: 500 | G125: 117839.86 | H125: 47904.54 | I125: 500 | J125: 13651.45 | K125: 262.53 | L125: 366.46 | M125: 103.93 | N125: 300 | P125: 323.33 | Q125: 230.31 | R125: 93.02 | S125: 1 | T125: 103.93 | U125: 0 | AA125: 500 | AB125: 117853.81 | AC125: 47918.49 | AD125: 500 | AE125: 13430.52 | AF125: 258.28 | AG125: 311.18 | AH125: 52.9 | AI125: 300 | AK125: 277.72 | AL125: 230.38 | AM125: 47.34 | AN125: 1 | AO125: 52.89 | AP125: -0.01
F126: 500 | G126: 118339.86 | H126: 48404.54 | I126: 500 | J126: 13791.12 | K126: 265.21 | L126: 366.46 | M126: 101.25 | N126: 300 | P126: 323.33 | Q126: 232.71 | R126: 90.62 | S126: 1 | T126: 101.25 | U126: 0 | AA126: 500 | AB126: 118353.81 | AC126: 48418.49 | AD126: 500 | AE126: 13570.19 | AF126: 260.97 | AG126: 311.18 | AH126: 50.21 | AI126: 300 | AK126: 277.72 | AL126: 232.78 | AM126: 44.94 | AN126: 1 | AO126: 50.21 | AP126: 0
F127: 500 | G127: 118839.86 | H127: 48904.54 | I127: 500 | J127: 13930.78 | K127: 267.9 | L127: 366.46 | M127: 98.56 | N127: 300 | P127: 323.33 | Q127: 235.12 | R127: 88.21 | S127: 1 | T127: 98.56 | U127: 0 | AA127: 500 | AB127: 118853.81 | AC127: 48918.49 | AD127: 500 | AE127: 13709.85 | AF127: 263.65 | AG127: 311.18 | AH127: 47.53 | AI127: 300 | AK127: 277.72 | AL127: 235.19 | AM127: 42.53 | AN127: 1 | AO127: 47.52 | AP127: -0.01
F128: 500 | G128: 119339.86 | H128: 49404.54 | I128: 500 | J128: 14070.44 | K128: 270.59 | L128: 366.46 | M128: 95.87 | N128: 300 | P128: 323.33 | Q128: 237.52 | R128: 85.81 | S128: 1 | T128: 95.88 | U128: 0.01 | AA128: 500 | AB128: 119353.81 | AC128: =AB128-$Z$31 -> 49418.49 | AD128: 500 | AE128: 13849.52 | AF128: 266.34 | AG128: 311.18 | AH128: =MAX(AG128-AF128,0) -> 44.84 | AI128: 300 | AK128: 277.72 | AL128: =ROUND(AC128*0.25/52,2) -> 237.59 | AM128: =ROUND(AK128-AL128,2) -> 40.13 | AN128: =VLOOKUP(AM128,TaxBracket,TaxBracketLookup) -> 1 | AO128: =ROUND(CHOOSE(AN128, AM128/(1-TaxRate1), GrossThresh2+(AM128-NetThresh2)/(1-TaxRate2), GrossThresh3+(AM128-NetThresh3)/(1-TaxRate3), GrossThresh4+(AM128-NetThresh4)/(1-TaxRate4)),NTNRounding) -> 44.84 | AP128: =AO128-AH128 -> 0
F129: 500 | G129: 119839.86 | H129: 49904.54 | I129: 500 | J129: 14210.11 | K129: 273.27 | L129: 366.46 | M129: 93.19 | N129: 300 | P129: 323.33 | Q129: 239.93 | R129: 83.4 | S129: 1 | T129: 93.18 | U129: -0.01 | AA129: 500 | AB129: 119853.81 | AC129: 49918.49 | AD129: 500 | AE129: 13989.18 | AF129: 269.02 | AG129: 311.18 | AH129: 42.16 | AI129: 300 | AK129: 277.72 | AL129: 239.99 | AM129: 37.73 | AN129: 1 | AO129: 42.16 | AP129: 0
F130: 500 | G130: 120339.86 | H130: 50404.54 | I130: 500 | J130: 14349.77 | K130: 275.96 | L130: 366.46 | M130: 90.5 | N130: 300 | P130: 323.33 | Q130: 242.33 | R130: 81 | S130: 1 | T130: 90.5 | U130: 0 | AA130: 500 | AB130: 120353.81 | AC130: 50418.49 | AD130: 500 | AE130: 14128.85 | AF130: 271.71 | AG130: 311.18 | AH130: 39.47 | AI130: 300 | AK130: 277.72 | AL130: 242.4 | AM130: 35.32 | AN130: 1 | AO130: 39.46 | AP130: -0.01
F131: 500 | G131: 120839.86 | H131: 50904.54 | I131: 500 | J131: 14489.44 | K131: 278.64 | L131: 366.46 | M131: 87.82 | N131: 300 | P131: 323.33 | Q131: 244.73 | R131: 78.6 | S131: 1 | T131: 87.82 | U131: 0 | AA131: 500 | AB131: 120853.81 | AC131: 50918.49 | AD131: 500 | AE131: 14268.51 | AF131: 274.39 | AG131: 311.18 | AH131: 36.79 | AI131: 300 | AK131: 277.72 | AL131: 244.8 | AM131: 32.92 | AN131: 1 | AO131: 36.78 | AP131: -0.01
F132: 500 | G132: 121339.86 | H132: 51404.54 | I132: 500 | J132: 14629.1 | K132: 281.33 | L132: 366.46 | M132: 85.13 | N132: 300 | P132: 323.33 | Q132: 247.14 | R132: 76.19 | S132: 1 | T132: 85.13 | U132: 0 | AA132: 500 | AB132: 121353.81 | AC132: 51418.49 | AD132: 500 | AE132: 14408.18 | AF132: 277.08 | AG132: 311.18 | AH132: 34.1 | AI132: 300 | AK132: 277.72 | AL132: 247.2 | AM132: 30.52 | AN132: 1 | AO132: 34.1 | AP132: 0
F133: 500 | G133: 121839.86 | H133: 51904.54 | I133: 500 | J133: 14768.77 | K133: 284.01 | L133: 366.46 | M133: 82.45 | N133: 300 | P133: 323.33 | Q133: 249.54 | R133: 73.79 | S133: 1 | T133: 82.45 | U133: 0 | AA133: 500 | AB133: 121853.81 | AC133: 51918.49 | AD133: 500 | AE133: 14547.84 | AF133: 279.77 | AG133: 311.18 | AH133: 31.41 | AI133: 300 | AK133: 277.72 | AL133: 249.61 | AM133: 28.11 | AN133: 1 | AO133: 31.41 | AP133: 0
F134: 500 | G134: 122339.86 | H134: 52404.54 | I134: 500 | J134: 14908.43 | K134: 286.7 | L134: 366.46 | M134: 79.76 | N134: 300 | P134: 323.33 | Q134: 251.94 | R134: 71.39 | S134: 1 | T134: 79.77 | U134: 0.01 | AA134: 500 | AB134: 122353.81 | AC134: 52418.49 | AD134: 500 | AE134: 14687.5 | AF134: 282.45 | AG134: 311.18 | AH134: 28.73 | AI134: 300 | AK134: 277.72 | AL134: 252.01 | AM134: 25.71 | AN134: 1 | AO134: 28.73 | AP134: 0
F135: 500 | G135: 122839.86 | H135: 52904.54 | I135: 500 | J135: 15048.1 | K135: 289.39 | L135: 366.46 | M135: 77.07 | N135: 300 | P135: 323.33 | Q135: 254.35 | R135: 68.98 | S135: 1 | T135: 77.07 | U135: 0 | AA135: 500 | AB135: 122853.81 | AC135: 52918.49 | AD135: 500 | AE135: 14827.17 | AF135: 285.14 | AG135: 311.18 | AH135: 26.04 | AI135: 300 | AK135: 277.72 | AL135: 254.42 | AM135: 23.3 | AN135: 1 | AO135: 26.03 | AP135: -0.01
F136: 500 | G136: 123339.86 | H136: 53404.54 | I136: 500 | J136: 15187.76 | K136: 292.07 | L136: 366.46 | M136: 74.39 | N136: 300 | P136: 323.33 | Q136: 256.75 | R136: 66.58 | S136: 1 | T136: 74.39 | U136: 0 | AA136: 500 | AB136: =IF(AD135<>500,AB135+500,IF(ABS(AB134+AA135-Z$45-Z$31)<(500-1),Z$31+Z$45,MIN(AB135+AA136,Z$32))) -> 123353.81 | AC136: =AB136-$Z$31 -> 53418.49 | AD136: 500 | AE136: 14966.83 | AF136: 287.82 | AG136: 311.18 | AH136: =MAX(AG136-AF136,0) -> 23.36 | AI136: 300 | AK136: 277.72 | AL136: =ROUND(AC136*0.25/52,2) -> 256.82 | AM136: =ROUND(AK136-AL136,2) -> 20.9 | AN136: =VLOOKUP(AM136,TaxBracket,TaxBracketLookup) -> 1 | AO136: =ROUND(CHOOSE(AN136, AM136/(1-TaxRate1), GrossThresh2+(AM136-NetThresh2)/(1-TaxRate2), GrossThresh3+(AM136-NetThresh3)/(1-TaxRate3), GrossThresh4+(AM136-NetThresh4)/(1-TaxRate4)),NTNRounding) -> 23.35 | AP136: =AO136-AH136 -> -0.01
F137: 500 | G137: 123839.86 | H137: 53904.54 | I137: 500 | J137: 15327.43 | K137: 294.76 | L137: 366.46 | M137: 71.7 | N137: 300 | P137: 323.33 | Q137: 259.16 | R137: 64.17 | S137: 1 | T137: 71.7 | U137: 0 | AA137: =IF($Z$32-AB136<500,$Z$32-AB136,500) -> 500 | AB137: =IF(AD136<>500,AB136+500,IF(ABS(AB135+AA136-Z$45-Z$31)<(500-1),Z$31+Z$45,MIN(AB136+AA137,Z$32))) -> 123853.81 | AC137: =AB137-$Z$31 -> 53918.49 | AD137: =AC137-AC136 -> 500 | AE137: =ROUND(IF(AC137<$Z$45,AC137*$Z$39,(AC137-$Z$45)*$Z$40+$Z$44),2) -> 15106.5 | AF137: =ROUND(AE137/52,2) -> 290.51 | AG137: 311.18 | AH137: =MAX(AG137-AF137,0) -> 20.67 | AI137: 300 | AK137: 277.72 | AL137: =ROUND(AC137*0.25/52,2) -> 259.22 | AM137: =ROUND(AK137-AL137,2) -> 18.5 | AN137: =VLOOKUP(AM137,TaxBracket,TaxBracketLookup) -> 1 | AO137: =ROUND(CHOOSE(AN137, AM137/(1-TaxRate1), GrossThresh2+(AM137-NetThresh2)/(1-TaxRate2), GrossThresh3+(AM137-NetThresh3)/(1-TaxRate3), GrossThresh4+(AM137-NetThresh4)/(1-TaxRate4)),NTNRounding) -> 20.67 | AP137: =AO137-AH137 -> 0
F138: 500 | G138: 124339.86 | H138: 54404.54 | I138: 500 | J138: 15467.09 | K138: 297.44 | L138: 366.46 | M138: 69.02 | N138: 300 | P138: 323.33 | Q138: 261.56 | R138: 61.77 | S138: 1 | T138: 69.02 | U138: 0 | AA138: 500 | AB138: 124353.81 | AC138: 54418.49 | AD138: 500 | AE138: 15246.16 | AF138: 293.2 | AG138: 311.18 | AH138: 17.98 | AI138: 300 | AK138: 277.72 | AL138: 261.63 | AM138: 16.09 | AN138: 1 | AO138: 17.98 | AP138: 0
F139: 500 | G139: 124839.86 | H139: 54904.54 | I139: 500 | J139: 15606.76 | K139: 300.13 | L139: 366.46 | M139: 66.33 | N139: 300 | P139: 323.33 | Q139: 263.96 | R139: 59.37 | S139: 1 | T139: 66.34 | U139: 0.01 | AA139: 500 | AB139: 124853.81 | AC139: 54918.49 | AD139: 500 | AE139: 15385.83 | AF139: 295.88 | AG139: 311.18 | AH139: 15.3 | AI139: 300 | AK139: 277.72 | AL139: 264.03 | AM139: 13.69 | AN139: 1 | AO139: 15.3 | AP139: 0
F140: 500 | G140: 125339.86 | H140: 55404.54 | I140: 500 | J140: 15746.42 | K140: 302.82 | L140: 366.46 | M140: 63.64 | N140: 300 | P140: 323.33 | Q140: 266.37 | R140: 56.96 | S140: 1 | T140: 63.64 | U140: 0 | AA140: 500 | AB140: 125353.81 | AC140: 55418.49 | AD140: 500 | AE140: 15525.49 | AF140: 298.57 | AG140: 311.18 | AH140: 12.61 | AI140: 300 | AK140: 277.72 | AL140: 266.44 | AM140: 11.28 | AN140: 1 | AO140: 12.6 | AP140: -0.01
F141: 500 | G141: 125839.86 | H141: 55904.54 | I141: 500 | J141: 15886.09 | K141: 305.5 | L141: 366.46 | M141: 60.96 | N141: 300 | P141: 323.33 | Q141: 268.77 | R141: 54.56 | S141: 1 | T141: 60.96 | U141: 0 | AA141: =IF($Z$32-AB140<500,$Z$32-AB140,500) -> 500 | AB141: =IF(AD140<>500,AB140+500,IF(ABS(AB139+AA140-Z$45-Z$31)<(500-1),Z$31+Z$45,MIN(AB140+AA141,Z$32))) -> 125853.81 | AC141: =AB141-$Z$31 -> 55918.49 | AD141: =AC141-AC140 -> 500 | AE141: =ROUND(IF(AC141<$Z$45,AC141*$Z$39,(AC141-$Z$45)*$Z$40+$Z$44),2) -> 15665.16 | AF141: =ROUND(AE141/52,2) -> 301.25 | AG141: 311.18 | AH141: =MAX(AG141-AF141,0) -> 9.93 | AI141: 300 | AK141: 277.72 | AL141: =ROUND(AC141*0.25/52,2) -> 268.84 | AM141: =ROUND(AK141-AL141,2) -> 8.88 | AN141: =VLOOKUP(AM141,TaxBracket,TaxBracketLookup) -> 1 | AO141: =ROUND(CHOOSE(AN141, AM141/(1-TaxRate1), GrossThresh2+(AM141-NetThresh2)/(1-TaxRate2), GrossThresh3+(AM141-NetThresh3)/(1-TaxRate3), GrossThresh4+(AM141-NetThresh4)/(1-TaxRate4)),NTNRounding) -> 9.92 | AP141: =AO141-AH141 -> -0.01
F142: 500 | G142: 126339.86 | H142: 56404.54 | I142: 500 | J142: 16025.75 | K142: 308.19 | L142: 366.46 | M142: 58.27 | N142: 300 | P142: 323.33 | Q142: 271.18 | R142: 52.15 | S142: 1 | T142: 58.27 | U142: 0 | AA142: 500 | AB142: 126353.81 | AC142: 56418.49 | AD142: 500 | AE142: 15804.82 | AF142: 303.94 | AG142: 311.18 | AH142: 7.24 | AI142: 300 | AK142: 277.72 | AL142: 271.24 | AM142: 6.48 | AN142: 1 | AO142: 7.24 | AP142: -8.881784197e-15
F143: 500 | G143: 126839.86 | H143: 56904.54 | I143: 500 | J143: 16165.42 | K143: 310.87 | L143: 366.46 | M143: 55.59 | N143: 300 | P143: 323.33 | Q143: 273.58 | R143: 49.75 | S143: 1 | T143: 55.59 | U143: 0 | AA143: =IF($Z$32-AB142<500,$Z$32-AB142,500) -> 500 | AB143: =IF(AD142<>500,AB142+500,IF(ABS(AB141+AA142-Z$45-Z$31)<(500-1),Z$31+Z$45,MIN(AB142+AA143,Z$32))) -> 126853.81 | AC143: =AB143-$Z$31 -> 56918.49 | AD143: =AC143-AC142 -> 500 | AE143: =ROUND(IF(AC143<$Z$45,AC143*$Z$39,(AC143-$Z$45)*$Z$40+$Z$44),2) -> 15944.49 | AF143: =ROUND(AE143/52,2) -> 306.62 | AG143: 311.18 | AH143: =MAX(AG143-AF143,0) -> 4.56 | AI143: 300 | AK143: 277.72 | AL143: =ROUND(AC143*0.25/52,2) -> 273.65 | AM143: =ROUND(AK143-AL143,2) -> 4.07 | AN143: =VLOOKUP(AM143,TaxBracket,TaxBracketLookup) -> 1 | AO143: =ROUND(CHOOSE(AN143, AM143/(1-TaxRate1), GrossThresh2+(AM143-NetThresh2)/(1-TaxRate2), GrossThresh3+(AM143-NetThresh3)/(1-TaxRate3), GrossThresh4+(AM143-NetThresh4)/(1-TaxRate4)),NTNRounding) -> 4.55 | AP143: =AO143-AH143 -> -0.01
F144: 500 | G144: 127339.86 | H144: 57404.54 | I144: 500 | J144: 16305.08 | K144: 313.56 | L144: 366.46 | M144: 52.9 | N144: 300 | P144: 323.33 | Q144: 275.98 | R144: 47.35 | S144: 1 | T144: 52.91 | U144: 0.01 | AA144: =IF($Z$32-AB143<500,$Z$32-AB143,500) -> 500 | AB144: =IF(AD143<>500,AB143+500,IF(ABS(AB142+AA143-Z$45-Z$31)<(500-1),Z$31+Z$45,MIN(AB143+AA144,Z$32))) -> 127353.81 | AC144: =AB144-$Z$31 -> 57418.49 | AD144: =AC144-AC143 -> 500 | AE144: =ROUND(IF(AC144<$Z$45,AC144*$Z$39,(AC144-$Z$45)*$Z$40+$Z$44),2) -> 16084.15 | AF144: =ROUND(AE144/52,2) -> 309.31 | AG144: 311.18 | AH144: =MAX(AG144-AF144,0) -> 1.87 | AI144: 300 | AK144: 277.72 | AL144: =ROUND(AC144*0.25/52,2) -> 276.05 | AM144: =ROUND(AK144-AL144,2) -> 1.67 | AN144: =VLOOKUP(AM144,TaxBracket,TaxBracketLookup) -> 1 | AO144: =ROUND(CHOOSE(AN144, AM144/(1-TaxRate1), GrossThresh2+(AM144-NetThresh2)/(1-TaxRate2), GrossThresh3+(AM144-NetThresh3)/(1-TaxRate3), GrossThresh4+(AM144-NetThresh4)/(1-TaxRate4)),NTNRounding) -> 1.87 | AP144: =AO144-AH144 -> -4.440892099e-15
F145: 500 | G145: 127839.86 | H145: 57904.54 | I145: 500 | J145: 16444.75 | K145: 316.25 | L145: 366.46 | M145: 50.21 | N145: 300 | P145: 323.33 | Q145: 278.39 | R145: 44.94 | S145: 1 | T145: 50.21 | U145: 0 | AA145: 348 | AB145: 127701.81 | AC145: 57766.49 | AD145: 348 | AE145: 16181.36 | AF145: 311.18 | AG145: 311.18 | AH145: 0 | AI145: 300 | AK145: 277.72 | AL145: 277.72 | AM145: 0 | AN145: 1 | AO145: 0 | AP145: 0
F146: =IF($E$32-G145<500,$E$32-G145,500) -> 500 | G146: 128339.86 | H146: =G146-$E$31 -> 58404.54 | I146: 500 | J146: 16584.41 | K146: 318.93 | L146: 366.46 | M146: =MAX(L146-K146,0) -> 47.53 | N146: 300 | P146: 323.33 | Q146: 280.79 | R146: =ROUND(P146-Q146,2) -> 42.54 | S146: =VLOOKUP(R146,TaxBracket,TaxBracketLookup) -> 1 | T146: =ROUND(CHOOSE(S146, R146/(1-TaxRate1), GrossThresh2+(R146-NetThresh2)/(1-TaxRate2), GrossThresh3+(R146-NetThresh3)/(1-TaxRate3), GrossThresh4+(R146-NetThresh4)/(1-TaxRate4)),NTNRounding) -> 47.53 | U146: 0
F147: 500 | G147: 128839.86 | H147: 58904.54 | I147: 500 | J147: 16724.08 | K147: 321.62 | L147: 366.46 | M147: 44.84 | N147: 300 | P147: 323.33 | Q147: 283.19 | R147: 40.14 | S147: 1 | T147: 44.85 | U147: 0.01 | AA147: copy above down until column AH = zero
F148: 500 | G148: 129339.86 | H148: 59404.54 | I148: 500 | J148: 16863.74 | K148: 324.3 | L148: 366.46 | M148: 42.16 | N148: 300 | P148: 323.33 | Q148: 285.6 | R148: 37.73 | S148: 1 | T148: 42.16 | U148: 0
F149: 500 | G149: 129839.86 | H149: 59904.54 | I149: 500 | J149: 17003.41 | K149: 326.99 | L149: 366.46 | M149: 39.47 | N149: 300 | P149: 323.33 | Q149: 288 | R149: 35.33 | S149: 1 | T149: 39.47 | U149: 0
F150: 500 | G150: 130339.86 | H150: 60404.54 | I150: 500 | J150: 17143.07 | K150: 329.67 | L150: 366.46 | M150: 36.79 | N150: 300 | P150: 323.33 | Q150: 290.41 | R150: 32.92 | S150: 1 | T150: 36.78 | U150: -0.01
F151: 500 | G151: 130839.86 | H151: 60904.54 | I151: 500 | J151: 17282.74 | K151: 332.36 | L151: 366.46 | M151: 34.1 | N151: 300 | P151: 323.33 | Q151: 292.81 | R151: 30.52 | S151: 1 | T151: 34.1 | U151: 0
F152: 500 | G152: 131339.86 | H152: 61404.54 | I152: 500 | J152: 17422.4 | K152: 335.05 | L152: 366.46 | M152: 31.41 | N152: 300 | P152: 323.33 | Q152: 295.21 | R152: 28.12 | S152: 1 | T152: 31.42 | U152: 0.01
F153: 500 | G153: 131839.86 | H153: 61904.54 | I153: 500 | J153: 17562.06 | K153: 337.73 | L153: 366.46 | M153: 28.73 | N153: 300 | P153: 323.33 | Q153: 297.62 | R153: 25.71 | S153: 1 | T153: 28.73 | U153: 3.907985047e-14
F154: =IF($E$32-G153<500,$E$32-G153,500) -> 500 | G154: =IF(I153<>500,G153+500,IF(ABS(G152+F153-E$45-E$31)<(500-1),E$31+E$45,MIN(G153+F154,E$32))) -> 132339.86 | H154: =G154-$E$31 -> 62404.54 | I154: =H154-H153 -> 500 | J154: =ROUND(IF(H154<$E$45,H154*$E$39,(H154-$E$45)*$E$40+$E$44),2) -> 17701.73 | K154: 340.42 | L154: 366.46 | M154: =MAX(L154-K154,0) -> 26.04 | N154: 300 | P154: 323.33 | Q154: 300.02 | R154: =ROUND(P154-Q154,2) -> 23.31 | S154: =VLOOKUP(R154,TaxBracket,TaxBracketLookup) -> 1 | T154: =ROUND(CHOOSE(S154, R154/(1-TaxRate1), GrossThresh2+(R154-NetThresh2)/(1-TaxRate2), GrossThresh3+(R154-NetThresh3)/(1-TaxRate3), GrossThresh4+(R154-NetThresh4)/(1-TaxRate4)),NTNRounding) -> 26.04 | U154: 3.552713679e-14
F155: 500 | G155: 132839.86 | H155: 62904.54 | I155: 500 | J155: 17841.39 | K155: 343.1 | L155: 366.46 | M155: 23.36 | N155: 300 | P155: 323.33 | Q155: 302.43 | R155: 20.9 | S155: 1 | T155: 23.35 | U155: -0.01
F156: 500 | G156: 133339.86 | H156: 63404.54 | I156: 500 | J156: 17981.06 | K156: 345.79 | L156: 366.46 | M156: 20.67 | N156: 300 | P156: 323.33 | Q156: 304.83 | R156: 18.5 | S156: 1 | T156: 20.67 | U156: 4.263256415e-14
F157: 500 | G157: 133839.86 | H157: 63904.54 | I157: 500 | J157: 18120.72 | K157: 348.48 | L157: 366.46 | M157: 17.98 | N157: 300 | P157: 323.33 | Q157: 307.23 | R157: 16.1 | S157: 1 | T157: 17.99 | U157: 0.01
F158: =IF($E$32-G157<500,$E$32-G157,500) -> 500 | G158: =IF(I157<>500,G157+500,IF(ABS(G156+F157-E$45-E$31)<(500-1),E$31+E$45,MIN(G157+F158,E$32))) -> 134339.86 | H158: =G158-$E$31 -> 64404.54 | I158: =H158-H157 -> 500 | J158: =ROUND(IF(H158<$E$45,H158*$E$39,(H158-$E$45)*$E$40+$E$44),2) -> 18260.39 | K158: =ROUND(J158/52,2) -> 351.16 | L158: 366.46 | M158: =MAX(L158-K158,0) -> 15.3 | N158: 300 | P158: 323.33 | Q158: =ROUND(H158*0.25/52,2) -> 309.64 | R158: =ROUND(P158-Q158,2) -> 13.69 | S158: =VLOOKUP(R158,TaxBracket,TaxBracketLookup) -> 1 | T158: =ROUND(CHOOSE(S158, R158/(1-TaxRate1), GrossThresh2+(R158-NetThresh2)/(1-TaxRate2), GrossThresh3+(R158-NetThresh3)/(1-TaxRate3), GrossThresh4+(R158-NetThresh4)/(1-TaxRate4)),NTNRounding) -> 15.3 | U158: =T158-M158 -> 4.618527782e-14
F159: 500 | G159: 134839.86 | H159: 64904.54 | I159: 500 | J159: 18400.05 | K159: 353.85 | L159: =L158 -> 366.46 | M159: 12.61 | N159: =N158 -> 300 | P159: =P158 -> 323.33 | Q159: 312.04 | R159: 11.29 | S159: 1 | T159: 12.61 | U159: 4.263256415e-14
F160: 500 | G160: 135339.86 | H160: 65404.54 | I160: 500 | J160: 18539.72 | K160: 356.53 | L160: 366.46 | M160: 9.93 | N160: 300 | P160: 323.33 | Q160: 314.44 | R160: 8.89 | S160: 1 | T160: 9.93 | U160: 0
F161: =IF($E$32-G160<500,$E$32-G160,500) -> 500 | G161: =IF(I160<>500,G160+500,IF(ABS(G159+F160-E$45-E$31)<(500-1),E$31+E$45,MIN(G160+F161,E$32))) -> 135839.86 | H161: =G161-$E$31 -> 65904.54 | I161: =H161-H160 -> 500 | J161: =ROUND(IF(H161<$E$45,H161*$E$39,(H161-$E$45)*$E$40+$E$44),2) -> 18679.38 | K161: =ROUND(J161/52,2) -> 359.22 | L161: 366.46 | M161: =MAX(L161-K161,0) -> 7.24 | N161: 300 | P161: 323.33 | Q161: =ROUND(H161*0.25/52,2) -> 316.85 | R161: =ROUND(P161-Q161,2) -> 6.48 | S161: =VLOOKUP(R161,TaxBracket,TaxBracketLookup) -> 1 | T161: =ROUND(CHOOSE(S161, R161/(1-TaxRate1), GrossThresh2+(R161-NetThresh2)/(1-TaxRate2), GrossThresh3+(R161-NetThresh3)/(1-TaxRate3), GrossThresh4+(R161-NetThresh4)/(1-TaxRate4)),NTNRounding) -> 7.24 | U161: =T161-M161 -> 4.796163466e-14
F162: 500 | G162: 136339.86 | H162: 66404.54 | I162: 500 | J162: 18819.05 | K162: 361.9 | L162: 366.46 | M162: 4.56 | N162: 300 | P162: 323.33 | Q162: 319.25 | R162: 4.08 | S162: 1 | T162: 4.56 | U162: 0
F163: 500 | G163: 136839.86 | H163: 66904.54 | I163: 500 | J163: 18958.71 | K163: 364.59 | L163: 366.46 | M163: 1.87 | N163: 300 | P163: 323.33 | Q163: 321.66 | R163: 1.67 | S163: 1 | T163: 1.87 | U163: -4.440892099e-15
F164: 348 | G164: 137187.86 | H164: 67252.54 | I164: 348 | J164: 19055.92 | K164: 366.46 | L164: 366.46 | M164: 0 | N164: 300 | P164: 323.33 | Q164: 323.33 | R164: 0 | S164: 1 | T164: 0 | U164: 0
G166: copy above down until column M = zero

Sheet Input Assumptions
A1: Ministry of Social Development
A2: CPI General Adjustment Model | F2: Not Updated | G2: Reviewed and/or Updated
G3: Intermediate update (what-if) - to be changed to blue when final data at hand
A4: Input Assumptions
A6: =MAX(A$1:A5)+1 -> 1 | B6: General Assumptions
B8: =IF(MAX(B$1:B7)=0,MAX(A$1:A7)+0.01,(MAX(B$1:B7,A$1:A7))+0.01) -> 1.01 | C8: All amounts are "per week" unless otherwise stated
B11: =IF(MAX(B$1:B10)=0,MAX(A$1:A10)+0.01,(MAX(B$1:B10,A$1:A10))+0.01) -> 1.02 | C11: Reset Model
C12: Click the button on the right to reset the model for the next adjustment year
B15: =IF(MAX(B$1:B14)=0,MAX(A$1:A14)+0.01,(MAX(B$1:B14,A$1:A14))+0.01) -> 1.03 | C15: CPI Assumptions | E15: without 0% bound | F15: Current Index | G15: Previous Index
C16: Consumers Price Index including cigarettes and tobacco subgroup (December Year) | D16: =MAX(F16/G16-1,0) -> 0.02223987292 | E16: =IF(CPI=0,F16/G16-1,0) -> 0 | F16: =F17 -> 1287 | G16: 1259 | I16: All groups (including cigarettes and tobacco subgroup)
C17: CPI All groups | D17: =MAX(F17/G17-1,0) -> 0.02223987292 | F17: 1287 | G17: 1259 | I17: CPI All Groups December year | M17: 1059 | N17: 1044
C18: RentalCPI (December Year) | I18: Actual rentals for housing (within Housing and household utilities group). Series ID CPIQ.SE9041
C20: Consumers Price Index (March Year headline CPI - for RCS use in Table 36) | D20: =MAX(F20/G20-1,0) -> 0.02525651144 | F20: 1299 | G20: 1267 | I20: March Quarter All Groups
C21: Adjustment Date | D21: 2025-04-01
C22: Previous Year Adjustment Date | D22: 2024-07-31
C23: Alt Prev Year | D23: 2024-04-01
B25: =IF(MAX(B$1:B22)=0,MAX(A$1:A22)+0.01,(MAX(B$1:B22,A$1:A22))+0.01) -> 1.04 | C25: CCS and Oscar CPI Assumptions
C27: CCS and Oscar Rounding | D27: 0 | E27: [Number of Decimal Places]
B38: =IF(MAX(B$1:B37)=0,MAX(A$1:A37)+0.01,(MAX(B$1:B37,A$1:A37))+0.01) -> 1.05 | C38: General Assumptions
C39: Tax Annualisation Factor (Benefit Weeks in an Income Year) | D39: 52 | E39: [Weeks]
C40: Family Tax Credits (days) annualisation factor | D40: =365/7 -> 52.14285714 | E40: [WeeksFTC] | F40: Income Tax Act 2007: MD3 Calculation of family tax credit
B41: =IF(MAX(B$1:B40)=0,MAX(A$1:A40)+0.01,(MAX(B$1:B40,A$1:A40))+0.01) -> 1.06 | C41: Rounding Assumptions
C42: Standard level of rounding applied in model unless otherwise specified | D42: 2 | E42: [Number of Decimal Places]
C43: SWIFTT_Rounding | D43: 3 | E43: [Number of Decimal Places]
B45: =IF(MAX(B$1:B44)=0,MAX(A$1:A44)+0.01,(MAX(B$1:B44,A$1:A44))+0.01) -> 1.07 | C45: Family Tax Credit Assumptions | M45: SWC-22-MIN-0190 / CAB-22-MIN-0469, 28 Oct 2022
C46: First Child Family Tax Credit Weekly payment (after tax) for AS threshold | D46: =ROUND(D47/Weeks,NTNRounding) -> 144.69 | E46: FCFSR (first child family support rate) | G46: Social Security Regulations 2018: Reg 17 Base rate for AS
C47: First Child Family Tax Credit annual payment (after tax) | D47: 7524 | E47: Increased to 7524 (144 pw) from 7121 (136 pw) for first child 1 Apr 23 | H47: CAB-23-MIN-0465, 29 Nov 23 | M47: Income Tax (Tax Credit) Order 2022 (SL 2022/296) Contents – New Zealand Legislation
C48: Subsequent Child Family Tax Credit | D48: 6130 | E48: Increased to 6130 per year (117pw) from 5802 (111pw) for subsequent child | H48: https://www.legislation.govt.nz/regulation/public/2023/0288/latest/LMS924514.html | M48: https://treasury.govt.nz/sites/default/files/2018-02/families-package-dec17.pdf
C49: Best Start Tax Credit annual payment | D49: 3838 | E49: Increased to 3838 per year (73pw) from 3632 (69pw) for BSTC
E50: Reference for future rate changes (Note: cumulative 5% CPI restarts from 1 Oct 2023) | J50: http://www.legislation.govt.nz/act/public/2007/0097/latest/DLM1518597.html?search=ta_act%40regulation_I_ac%40rc%40ainf%40anif%40rinf%40rnif_an%40bn%40rn_25_a&p=2#DLM1518597
B51: =IF(MAX(B$1:B48)=0,MAX(A$1:A48)+0.01,(MAX(B$1:B48,A$1:A48))+0.01) -> 1.08 | C51: Tax Rates & Thresholds In Use (General)
C52: Current Year | D52: Tax Rate | E52: Min Gross Threshold | F52: Max Gross Threshold | G52: Net Weekly Threshold | H52: Gross Weekly Threshold | I52: Tax Bracket | K52: existing | L52: proposed
C53: Tax Bracket 1 | D53: 0.105 | E53: 0 | F53: 15600 | G53: 0 | H53: 0 | I53: 1 | K53: 14000 | L53: 15600
C54: Tax Bracket 2 | D54: 0.175 | E54: =F53+$D$95 -> 15600.01 | F54: 53500 | G54: =GrossThresh2*(1-TaxRate1) -> 268.5 | H54: =ROUND(F53/Weeks,GrossTaxThreshRounding) -> 300 | I54: 2 | K54: 48000 | L54: 53500
C55: Tax Bracket 3 | D55: 0.3 | E55: =F54+$D$95 -> 53500.01 | F55: 78100 | G55: =(GrossThresh3-GrossThresh2)*(1-TaxRate2)+NetThresh2 -> 869.80125 | H55: =ROUND(F54/Weeks,GrossTaxThreshRounding) -> 1028.85 | I55: 3 | K55: 70000 | L55: 78100
C56: Tax Bracket 4 | D56: 0.33 | E56: =F55+$D$95 -> 78100.01 | F56: 180000 | G56: =(GrossThresh4-GrossThresh3)*(1-TaxRate3)+NetThresh3 -> 1200.95025 | H56: =ROUND(F55/Weeks,GrossTaxThreshRounding) -> 1501.92 | I56: 4 | K56: 180000 | L56: 180000
C57: Tax Bracket 5 | D57: 0.39 | E57: =F56+$D$95 -> 180000.01 | G57: =(GrossThresh5-GrossThresh4)*(1-TaxRate4)+NetThresh4 -> 2513.89565 | H57: =ROUND(F56/Weeks,GrossTaxThreshRounding) -> 3461.54 | I57: 5
G58: =COLUMNS($G$52:G52) -> 1 | H58: =COLUMNS($G$52:H52) -> 2 | I58: =COLUMNS($G$52:I52) -> 3
C61: Previous Year | D61: Tax Rate | E61: Min Gross Threshold | F61: Max Gross Threshold | G61: Net Weekly Threshold | H61: Gross Weekly Threshold | I61: Tax Bracket
C62: Tax Bracket 1 | D62: 0.105 | E62: 0 | F62: 15600 | G62: 0 | H62: 0 | I62: 1
C63: Tax Bracket 2 | D63: 0.175 | E63: =F62+$D$95 -> 15600.01 | F63: 53500 | G63: =GrossThresh2_Prev*(1-TaxRate1_Prev) -> 268.5 | H63: =ROUND(F62/Weeks,GrossTaxThreshRounding) -> 300 | I63: 2
C64: Tax Bracket 3 | D64: 0.3 | E64: =F63+$D$95 -> 53500.01 | F64: 78100 | G64: =(GrossThresh3_Prev-GrossThresh2_Prev)*(1-TaxRate2_Prev)+NetThresh2_Prev -> 869.80125 | H64: =ROUND(F63/Weeks,GrossTaxThreshRounding) -> 1028.85 | I64: 3
C65: Tax Bracket 4 | D65: 0.33 | E65: =F64+$D$95 -> 78100.01 | F65: 180000 | G65: =(GrossThresh4_Prev-GrossThresh3_Prev)*(1-TaxRate3_Prev)+NetThresh3_Prev -> 1200.95025 | H65: =ROUND(F64/Weeks,GrossTaxThreshRounding) -> 1501.92 | I65: 4
C66: Tax Bracket 5 | D66: 0.39 | E66: =F65+$D$95 -> 180000.01 | G66: =(GrossThresh5_Prev-GrossThresh4_Prev)*(1-TaxRate4_Prev)+NetThresh4_Prev -> 2513.89565 | H66: =ROUND(F65/Weeks,GrossTaxThreshRounding) -> 3461.54 | I66: 5
G67: =COLUMNS($G$61:G61) -> 1 | H67: =COLUMNS($G$61:H61) -> 2 | I67: =COLUMNS($G$61:I61) -> 3
B70: =IF(MAX(B$1:B67)=0,MAX(A$1:A67)+0.01,(MAX(B$1:B67,A$1:A67))+0.01) -> 1.09 | C70: Tax Thresholds In Use (SWIFTT only) - SWIFTT rounds the Net Weekly Threshold to 5 decimal places
C72: Current Year | F72: Max Gross Threshold | G72: Net Weekly Threshold | H72: Gross Weekly Threshold | I72: Tax Bracket
C73: Tax Bracket 1 | F73: =Thresh1 -> 15600 | G73: 0 | H73: 0 | I73: 1
C74: Tax Bracket 2 | F74: =Thresh2 -> 53500 | G74: =ROUND(GrossThresh2_SWIFTT*(1-TaxRate1),SWIFTT_Net_Weekly_Threshold_Rounding) -> 268.5 | H74: =ROUND(F73/Weeks,GrossTaxThreshRounding) -> 300 | I74: 2
C75: Tax Bracket 3 | F75: =Thresh3 -> 78100 | G75: =ROUND((GrossThresh3_SWIFTT-GrossThresh2_SWIFTT)*(1-TaxRate2),SWIFTT_Net_Weekly_Threshold_Rounding)+NetThresh2_SWIFTT -> 869.80125 | H75: =ROUND(F74/Weeks,GrossTaxThreshRounding) -> 1028.85 | I75: 3
C76: Tax Bracket 4 | F76: =Thresh4 -> 180000 | G76: =ROUND((GrossThresh4_SWIFTT-GrossThresh3_SWIFTT)*(1-TaxRate3),SWIFTT_Net_Weekly_Threshold_Rounding)+NetThresh3_SWIFTT -> 1200.95025 | H76: =ROUND(F75/Weeks,GrossTaxThreshRounding) -> 1501.92 | I76: 4
C77: Tax Bracket 5 | G77: =ROUND((GrossThresh5_SWIFTT-GrossThresh4_SWIFTT)*(1-TaxRate4),SWIFTT_Net_Weekly_Threshold_Rounding)+NetThresh4_SWIFTT -> 2513.89565 | H77: =ROUND(F76/Weeks,GrossTaxThreshRounding) -> 3461.54 | I77: 5
G78: =COLUMNS($G$72:G72) -> 1 | H78: =COLUMNS($G$72:H72) -> 2 | I78: =COLUMNS($G$72:I72) -> 3
C81: Previous Year | F81: Max Gross Threshold | G81: Net Weekly Threshold | H81: Gross Weekly Threshold | I81: Tax Bracket
C82: Tax Bracket 1 | F82: =Thresh1_Prev -> 15600 | G82: 0 | H82: 0 | I82: 1
C83: Tax Bracket 2 | F83: =Thresh2_Prev -> 53500 | G83: =ROUND(GrossThresh2_prev_SWIFTT*(1-TaxRate1_Prev),SWIFTT_Net_Weekly_Threshold_Rounding) -> 268.5 | H83: =ROUND(F82/Weeks,GrossTaxThreshRounding) -> 300 | I83: 2
C84: Tax Bracket 3 | F84: =Thresh3_prev -> 78100 | G84: =ROUND((GrossThresh3_prev_SWIFTT-GrossThresh2_prev_SWIFTT)*(1-TaxRate2_Prev)+NetThresh2_prev_SWIFTT,SWIFTT_Net_Weekly_Threshold_Rounding) -> 869.80125 | H84: =ROUND(F83/Weeks,GrossTaxThreshRounding) -> 1028.85 | I84: 3
C85: Tax Bracket 4 | F85: =Thresh4_prev -> 180000 | G85: =ROUND((GrossThresh4_prev_SWIFTT-GrossThresh3_prev_SWIFTT)*(1-TaxRate3_Prev)+NetThresh3_prev_SWIFTT,SWIFTT_Net_Weekly_Threshold_Rounding) -> 1200.95025 | H85: =ROUND(F84/Weeks,GrossTaxThreshRounding) -> 1501.92 | I85: 4
C86: Tax Bracket 5 | G86: =ROUND((GrossThresh5_prev_SWIFTT-GrossThresh4_prev_SWIFTT)*(1-TaxRate4_Prev)+NetThresh4_prev_SWIFTT,SWIFTT_Net_Weekly_Threshold_Rounding) -> 2513.89565 | H86: =ROUND(F85/Weeks,GrossTaxThreshRounding) -> 3461.54 | I86: 5
G87: =COLUMNS($G$81:G81) -> 1 | H87: =COLUMNS($G$81:H81) -> 2 | I87: =COLUMNS($G$81:I81) -> 3
C89: SWIFTT_Net_Weekly_Threshold_Rounding | D89: 5
C95: Incremental Tax Threshold change | D95: 0.01
C96: Rounding Level - Gross Weekly Thresholds | D96: 2 | E96: [Number of Decimal Places] | G96: 2
B99: =IF(MAX(B$1:B98)=0,MAX(A$1:A98)+0.01,(MAX(B$1:B98,A$1:A98))+0.01) -> 1.1 | C99: Tax Tables For NZS/VP Calculations
C100: Note: The Tax Tables used in the grossing up of New Zealand Superannuation and Veteran's Pensions can be found on Sheet "Tax Tables"
C102: Secondary Tax Rate applicable to New Zealand Superannuation and Veteran's Pensions 1 | D102: 0.105
C103: Secondary Tax Rate applicable to New Zealand Superannuation and Veteran's Pensions 2 | D103: 0.175
C104: Secondary Tax Rate applicable to New Zealand Superannuation and Veteran's Pensions 3 | D104: 0.3
C105: Secondary Tax Rate applicable to New Zealand Superannuation and Veteran's Pensions 4 | D105: 0.33
C106: Secondary Tax Rate applicable to New Zealand Superannuation and Veteran's Pensions 5 | D106: 0.39
C107: Secondary Tax Multiplier | D107: 100
B109: =IF(MAX(B$1:B108)=0,MAX(A$1:A108)+0.01,(MAX(B$1:B108,A$1:A108))+0.01) -> 1.11 | C109: Student Allowance Increase | D109: Full Rate | E109: Couple Rate
C110: Increases to the student allowance rates
D111: Full_rate | E111: Couple_rate
A112: =MAX(A$1:A111)+1 -> 2 | B112: Benefit Specific Assumptions
B114: =IF(MAX(B$1:B113)=0,MAX(A$1:A113)+0.01,(MAX(B$1:B113,A$1:A113))+0.01) -> 2.01 | C114: NZ Superannuation / Veteran's Pension
C116: Standard Rates
C117: Married, Civil Union or Defacto Couple : Single Person ratio | D117: 2
C118: Single Living Alone Rate : Total Married, Civil Union or Defacto Couple (both qualify) Rate ratio | D118: 0.65
C119: Single Sharing Rate : Total Married, Civil Union or Defacto Couple (both qualify) Rate ratio | D119: 0.6
C121: Net Married, Civil Union or Defacto Couple Rate Lower Bound Percentage of Net Average Ordinary Time Weekly Wage | D121: 0.66 | E121: =IF(NAOTWWHigh<=NAOTWWLow,"Upper Threshold is less than the Lower Threshold","") -> 
C122: Net Married, Civil Union or Defacto Couple Rate Upper Bound Percentage of Net Average Ordinary Time Weekly Wage | D122: 0.725 | O122: Announced on 12-Dec-2024
K123: ACC levy increased to 1.46% at 1 Apr 22; 1.53% Apr 23 and 1.60% at Apr 24. | O123: Independent review of ACC announced | Beehive.govt.nz
C124: Average Ordinary Time Weekly Earnings (male and female combined) - Published by Statistics New Zealand in the December Quarterly Employment Survey | D124: 1622.73 | E124: 1622.73 | F124: QEXQ.SBSZ9A | K124: refer Min announcement 10 Dec 2021 at right and as per CAB-21-MIN-0507 (29Nov21) | O124: https://www.acc.co.nz/about-us/our-levies-2/levy-results
C125: Previous year AWE | D125: 1556.16 | K125: https://www.beehive.govt.nz/release/acc-levy-changes-ensure-financial-sustainability
C126: ACC Levy | D126: 0.0167 | F126: ACC levy increased to 1.67% (incl GST) at 1 Apr 25; 1.75% Apr 26 and 1.83% at Apr 27. | K126: 1.21 | L126: 1.27 | M126: 1.33 | N126: 1.39 | O126: 1.45 | P126: 1.52 | Q126: 1.59 | S126: published ACC earners levy
C127: ACC Levy Previous Year | D127: 0.016 | F127: refer Min announcement 12 Dec 2024 at right and as confirmed in CAB-24-MIN-0471 (29Nov24) | K127: =ROUND(K126*1.15,2) -> 1.39 | L127: =ROUND(L126*1.15,2) -> 1.46 | M127: 1.53 | N127: 1.6 | O127: 1.67 | P127: 1.75 | Q127: 1.83 | S127: including GST (15%) that earners actually pay
C128: Additional rounding factor applied to Married, Civil Union or Defacto Couple (NQS Included) total rate (ensures even number) | D128: 0.02 | F128: Same CAB above also sets the maximum liable earnings as shown at right: | K128: 130911 | L128: 136544 | M128: 139384 | N128: 142283 | O128: $152,790 | P128: $156,641 | Q128: $160,244 | R128: eg Apr 25 = 2025/26 March year
C129: ACC Earner Levy - maximum earnings | D129: 152790 | E129: https://www.ird.govt.nz/income-tax/income-tax-for-individuals/acc-clients-and-carers/acc-earners-levy-rates | F129: ACC levy remains at $1.39 for 2017/18 to 2020/21 years | K129: 2021-04-01 | L129: 2022-04-01 | M129: 2023-04-01 | N129: 2024-04-01 | O129: 2025-04-01 | P129: 2026-04-01 | Q129: 2027-04-01
C130: ACC Earner Levy - maximum earnings Previous Year | D130: 142283 | F130: (as agreed by CAB 5 December 2016, CAB-16-MIN-0659 and on 10 Dec 2018 CAB-18-MIN-0619)
C132: Supplementary Standard Rates - NZ Superannuation / Veteran's Pension
C133: Net Married, Civil Union or Defacto Couple Rate Lower Bound Percentage of Net Average Ordinary Time Weekly Wage (65%) | D133: 0.65
C134: Net Married, Civil Union or Defacto Couple Rate Lower Bound Percentage of Net Average Ordinary Time Weekly Wage (66%) | D134: 0.66
C136: Application of Wage Floor Check and Ratios
C137: Apply Standard April Rate Ratios? (Yes/No) | D137: 1 | G137: Yes
G138: No
B140: =IF(MAX(B$1:B139)=0,MAX(A$1:A139)+0.01,(MAX(B$1:B139,A$1:A139))+0.01) -> 2.02 | C140: Tax Rates & Thresholds For Average Wage Calculation Only
C142: Current Year | D142: Tax Rate | E142: Min Gross Threshold | F142: Max Gross Threshold | G142: Net Weekly Threshold | H142: Gross Weekly Threshold | I142: Tax Bracket
C143: Tax Bracket 1 | D143: =TaxRate1+ACCLevy -> 0.1217 | E143: 0 | F143: =Thresh1 -> 15600 | G143: 0 | H143: 0 | I143: 1
C144: Tax Bracket 2 | D144: =TaxRate2+IF(ThreshQES1>=ACCLevy_max_earn,0,ACCLevy) -> 0.1917 | E144: =F143+$D$95 -> 15600.01 | F144: =IF(ThreshQES1=ACCLevy_max_earn,Thresh2,MIN(Thresh2,ACCLevy_max_earn)) -> 53500 | G144: =GrossThresh2_QES*(1-TaxRateQES1) -> 263.49 | H144: =ROUND(F143/Weeks,GrossTaxThreshRounding) -> 300 | I144: 2
C145: Tax Bracket 3 | D145: =TaxRate3+IF(ThreshQES2>=ACCLevy_max_earn,0,ACCLevy) -> 0.3167 | E145: =F144+$D$95 -> 53500.01 | F145: =IF(ThreshQES2=ACCLevy_max_earn,Thresh3,MIN(Thresh3,ACCLevy_max_earn)) -> 78100 | G145: =(GrossThresh3_QES-GrossThresh2_QES)*(1-TaxRateQES2)+NetThresh2_QES -> 852.619455 | H145: =ROUND(F144/Weeks,GrossTaxThreshRounding) -> 1028.85 | I145: 3
C146: Tax Bracket 4 | D146: =TaxRate4+IF(ThreshQES3>=ACCLevy_max_earn,0,ACCLevy) -> 0.3467 | E146: =F145+$D$95 -> 78100.01 | F146: =IF(ThreshQES3=ACCLevy_max_earn,Thresh4,MIN(Thresh4,ACCLevy_max_earn)) -> 152790 | G146: =(GrossThresh4_QES-GrossThresh3_QES)*(1-TaxRateQES3)+NetThresh3_QES -> 1175.868186 | H146: =ROUND(F145/Weeks,GrossTaxThreshRounding) -> 1501.92 | I146: 4
C147: Tax Bracket 5 | D147: =TaxRate4+IF(ThreshQES4>=ACCLevy_max_earn,0,ACCLevy) -> 0.33 | E147: =F146+$D$95 -> 152790.01 | F147: =IF(ThreshQES4=ACCLevy_max_earn,Thresh4,MIN(Thresh4,ACCLevy_max_earn)) -> 180000 | G147: =(GrossThresh5_QES-GrossThresh4_QES)*(1-TaxRateQES4)+NetThresh4_QES -> 2114.235641 | H147: =ROUND(F146/Weeks,GrossTaxThreshRounding) -> 2938.27 | I147: 5
C148: Tax Bracket 6 | D148: =TaxRate5+IF(ThreshQES5>=ACCLevy_max_earn,0,ACCLevy) -> 0.39 | E148: =F147+$D$95 -> 180000.01 | G148: =(GrossThresh6_QES-GrossThresh5_QES)*(1-TaxRateQES5)+NetThresh5_QES -> 2464.826541 | H148: =ROUND(F147/Weeks,GrossTaxThreshRounding) -> 3461.54 | I148: 6
H149: =COLUMNS($H$142:H142) -> 1 | I149: =COLUMNS($H$142:I142) -> 2
C152: Previous Year | D152: Tax Rate | E152: Min Gross Threshold | F152: Max Gross Threshold | G152: Net Weekly Threshold | H152: Gross Weekly Threshold | I152: Tax Bracket
C153: Tax Bracket 1 | D153: =TaxRate1_Prev+ACCLevy_prev -> 0.121 | E153: 0 | F153: =Thresh1_Prev -> 15600 | G153: 0 | H153: 0 | I153: 1
C154: Tax Bracket 2 | D154: =TaxRate2_Prev+IF(ThreshQES1_Prev>=ACCLevy_max_earn_Prev,0,ACCLevy_prev) -> 0.191 | E154: =F153+$D$95 -> 15600.01 | F154: =IF(ThreshQES1_Prev=ACCLevy_max_earn_Prev,Thresh2_Prev,MIN(Thresh2_Prev,ACCLevy_max_earn_Prev)) -> 53500 | G154: =Gross_Thresh2_QES_Prev*(1-TaxRateQES1_Prev) -> 263.7 | H154: =ROUND(F153/Weeks,GrossTaxThreshRounding) -> 300 | I154: 2
C155: Tax Bracket 3 | D155: =TaxRate3_Prev+IF(ThreshQES2_Prev>=ACCLevy_max_earn_Prev,0,ACCLevy_prev) -> 0.316 | E155: =F154+$D$95 -> 53500.01 | F155: =IF(ThreshQES2_Prev=ACCLevy_max_earn_Prev,Thresh3_prev,MIN(Thresh3_prev,ACCLevy_max_earn_Prev)) -> 78100 | G155: =(Gross_Thresh3_QES_Prev-Gross_Thresh2_QES_Prev)*(1-TaxRateQES2_Prev)+NetThresh2_QES_Prev -> 853.33965 | H155: =ROUND(F154/Weeks,GrossTaxThreshRounding) -> 1028.85 | I155: 3
C156: Tax Bracket 4 | D156: =TaxRate4_Prev+IF(ThreshQES3_Prev>=ACCLevy_max_earn_Prev,0,ACCLevy_prev) -> 0.346 | E156: =F155+$D$95 -> 78100.01 | F156: =IF(ThreshQES3_Prev=ACCLevy_max_earn_Prev,Thresh4_prev,MIN(Thresh4_prev,ACCLevy_max_earn_Prev)) -> 142283 | G156: =(Gross_Thresh4_QES_Prev-Gross_Thresh3_QES_Prev)*(1-TaxRateQES3_Prev)+NetThresh3_QES_Prev -> 1176.91953 | H156: =ROUND(F155/Weeks,GrossTaxThreshRounding) -> 1501.92 | I156: 4
C157: Tax Bracket 5 | D157: =TaxRate4_Prev+IF(ThreshQES4_Prev>=ACCLevy_max_earn_Prev,0,ACCLevy_prev) -> 0.33 | E157: =F156+$D$95 -> 142283.01 | F157: =IF(ThreshQES4_Prev=ACCLevy_max_earn_Prev,Thresh4_prev,MIN(Thresh4_prev,ACCLevy_max_earn_Prev)) -> 180000 | G157: =(Gross_Thresh5_QES_Prev-Gross_Thresh4_QES_Prev)*(1-TaxRateQES4_Prev)+NetThresh4_QES_Prev -> 1984.14519 | H157: =ROUND(F156/Weeks,GrossTaxThreshRounding) -> 2736.21 | I157: 5
C158: Tax Bracket 6 | D158: =TaxRate5_Prev+IF(ThreshQES5_Prev>=ACCLevy_max_earn_Prev,0,ACCLevy_prev) -> 0.39 | E158: =F157+$D$95 -> 180000.01 | G158: =(Gross_Thresh6_QES_Prev-Gross_Thresh5_QES_Prev)*(1-TaxRateQES5_Prev)+NetThresh5_QES_Prev -> 2470.11629 | H158: =ROUND(F157/Weeks,GrossTaxThreshRounding) -> 3461.54 | I158: 6
H159: =COLUMNS($H$152:H152) -> 1 | I159: =COLUMNS($H$152:I152) -> 2
B161: =IF(MAX(B$1:B160)=0,MAX(A$1:A160)+0.01,(MAX(B$1:B160,A$1:A160))+0.01) -> 2.03 | C161: Main Benefits
C163: JS
C164: JS 18-19 years old At Home : Away From Home ratio | D164: 0.8
C165: Married, Civil Union or Defacto Couple : Single Person ratio | D165: 2
B167: =IF(MAX(B$1:B166)=0,MAX(A$1:A166)+0.01,(MAX(B$1:B166,A$1:A166))+0.01) -> 2.04 | C167: Youth Payment and Young Parent Payment
C168: Cash Payment | D168: 50 | E168: [per week]
C169: Married, Civil Union or Defacto Couple : Single Person ratio | D169: 2
B171: =IF(MAX(B$1:B170)=0,MAX(A$1:A170)+0.01,(MAX(B$1:B170,A$1:A170))+0.01) -> 2.05 | C171: Student Allowance
C173: Allowance Annualisation Factor (Allowance Weeks in a Year) | D173: 52 | E173: [Weeks]
C174: Deleted "At Home : Away From Home ratio" of 80% due to $50 increase to Student Allowances 1 Jan 2018
C175: One student, one dependent spouse : Both eligible student (each) ratio | D175: 2
C176: Rounding Level - Parental Income Abatement Threshold | D176: 7 | E176: [Number of Decimal Places]
C177: Parental Income abatement on net amounts | D177: 0.25
C178: Parental Income Abatement Rate (grossed up 1st tax bracket) | D178: =ROUND(StuAllowParAbt_net/(1-TaxRate1),StuAllowAbateThresRounding) -> 0.2793296 | F178: 0.2857143
C179: Parental Income Abatement Rate (grossed up 2nd tax bracket) | D179: =ROUND(StuAllowParAbt_net/(1-TaxRate2),StuAllowAbateThresRounding) -> 0.3030303
C180: DependentSpouseRatio | D180: 2
B181: =IF(MAX(B$1:B180)=0,MAX(A$1:A180)+0.01,(MAX(B$1:B180,A$1:A180))+0.01) -> 2.06 | C181: Supplementary Assistance
C183: Training Incentive Allowance Maximum Rate
C184: Benefit Weeks in a Year | D184: 40 | E184: [Weeks]
C186: Birthday Allowance
C187: Birthday Allowance ratio | D187: 2
B189: =IF(MAX(B$1:B188)=0,MAX(A$1:A188)+0.01,(MAX(B$1:B188,A$1:A188))+0.01) -> 2.07 | C189: Childcare Subsidy and OSCAR Subsidy Payments
C191: Childcare Subsidy
C192: Maximum Hours per Week | D192: 50 | E192: [Hours]
C194: OSCAR Subsidy
C195: Maximum Hours per Week (Term Time) | D195: 20 | E195: [Hours]
C196: Maximum Hours per Week (Holidays) | D196: 50 | E196: [Hours]
C198: SWIFTT Calculations
C199: Maximum Hours per Week Required For Calculations in SWIFTT | D199: 30 | E199: [Hours]
B202: =IF(MAX(B$1:B201)=0,MAX(A$1:A201)+0.01,(MAX(B$1:B201,A$1:A201))+0.01) -> 2.08 | C202: Maximum Weekly Amounts of Seasonal Work Assistance Payments
C204: Rounding Level - Calculated Net Rate | D204: 0 | E204: [Number of Decimal Places]
C206: More than 8 and not more than 16 hours rate : 8 hours or less rate multiple | D206: 2
C207: More than 16 and not more than 24 hours rate : 8 hours or less rate multiple | D207: 3
C208: More than 24 and not more than 32 hours rate : 8 hours or less rate multiple | D208: 4
C209: More than 32 hours rate : 8 hours or less rate multiple | D209: 5
C210: Limit of payment : 8 hours or less rate multiple | D210: 17
B213: =IF(MAX(B$1:B212)=0,MAX(A$1:A212)+0.01,(MAX(B$1:B212,A$1:A212))+0.01) -> 2.09 | C213: New Employment Transition Grant
C215: Rounding Significance Level - Calculated Net Rate | D215: 0.5
C216: Limit of payment : Daily rate multiple | D216: 10
B219: =IF(MAX(B$1:B218)=0,MAX(A$1:A218)+0.01,(MAX(B$1:B218,A$1:A218))+0.01) -> 2.1 | C219: Non-Taxable Annual Rates
C221: Blind Subsidy
C222: Blind Subsidy Annualisation Factor (Income Weeks in Year) | D222: 52 | E222: [Weeks]
C223: Blind Subsidy Abatement Rate 1 | D223: =IncTest1Rate1 -> 0.3 | E223: [Of Net Benefit per Dollar of Gross Income]
C224: Blind Subsidy Abatement Threshold 1 | D224: =IncTest1Thres1 -> 160
C225: Blind Subsidy Abatement Threshold 2 | D225: =IncTest1Thres2 -> 250
B228: =IF(MAX(B$1:B227)=0,MAX(A$1:A227)+0.01,(MAX(B$1:B227,A$1:A227))+0.01) -> 2.11 | C228: Other Taxable Weekly Rates
C231: 19Jan2011: Deleted Personal Allowance for "People with Psychiatric or Intellectual Disabilities" : Net Adult "Invalids Benefit" ratio of 22.5%
B234: =IF(MAX(B$1:B233)=0,MAX(A$1:A233)+0.01,(MAX(B$1:B233,A$1:A233))+0.01) -> 2.12 | C234: Benefit Cut-Out Points
C236: Rounding Level - Cut-out points | D236: 0 | E236: [Number of Decimal Places]
C237: Cut-Out Point Annualisation Factor (Income Weeks in a Year) | D237: 52 | E237: [Weeks]
C239: Income Test Parameters
C240: Note: Abatement rates are Dollars of Net Benefit abated per Dollar of Gross Income Earned | I240: para 41 of Budget 2019 Package vote SD, initiative 11546
C241: Income Test: | D241: Abatement Rate 1 | E241: Abatement Rate 2 | F241: Abatement Threshold 1 | G241: Abatement Threshold 2 | I241: 2020-04-01 | J241: 2021-04-01 | K241: 2022-04-01 | L241: 2023-04-01
C242: 1 | D242: 0.3 | E242: 0.7 | F242: 160 | G242: 250 | I242: 115 | J242: 120 | K242: 125 | L242: 130
C243: 2 | D243: 0.15 | E243: 0.35 | F243: 160 | G243: 250 | I243: 115 | J243: 120 | K243: 125 | L243: 130
C244: 3 | D244: 0.7 | F244: 160 | I244: 90 | J244: 95 | K244: 100 | L244: 105
C245: 4 | D245: 0.35 | F245: 160 | I245: 90 | J245: 95 | K245: 100 | L245: 105
C246: 5 | D246: 0.7 | F246: 160 | I246: 115 | J246: 120 | K246: 125 | L246: 130
C247: 6 | D247: 1 | F247: 160 | I247: Thres2 = Thres1+$100 in each year
I248: (above superceded by 160/250 changes to be announced at Budget 2021.
B249: =IF(MAX(B$1:B248)=0,MAX(A$1:A248)+0.01,(MAX(B$1:B248,A$1:A248))+0.01) -> 2.13 | C249: Income Limits for the Disability Allowance | I249: reference = CAB-20-MIN-0512 dated 7 Dec 2020 )
C250: 18Jan2011: Deleted Rounding (0pd named 'DAThresRounding') and Annualisation Factor = 52 income weeks in year (named 'DAThresWeeks)
B255: =IF(MAX(B$1:B254)=0,MAX(A$1:A254)+0.01,(MAX(B$1:B254,A$1:A254))+0.01) -> 2.14 | C255: Accommodation Supplement Entry Thresholds
C257: Rounding Level - Entry Thresholds | D257: 0 | E257: [Number of Decimal Places]
C258: Percentage of Benefit Rate applicable to Rent/Board Payments | D258: 0.25
C259: Percentage of Benefit Rate applicable to Mortgage Payments | D259: 0.3
B262: =IF(MAX(B$1:B261)=0,MAX(A$1:A261)+0.01,(MAX(B$1:B261,A$1:A261))+0.01) -> 2.15 | C262: Accommodation Supplement Cut-Out Points for Non-Beneficiaries
C263: Maximum rates were last changed on 1 April 2018
C264: Accommodation Supplement Maximum Entitlement
C265: Family Type | D265: Area One | E265: Area Two | F265: Area Three | G265: Rest of NZ (Area 4)
C266: 1 person | D266: 165 | E266: 105 | F266: 80 | G266: 70
C267: 2 people | D267: 235 | E267: 155 | F267: 105 | G267: 80
C268: 3+ people | D268: 305 | E268: 220 | F268: 160 | G268: 120
C270: Cut Out Point Calculations
C271: Abatement Rate (Reduction in supplement per dollar of income earned) | D271: 0.25
C272: Cut Out Point Annualisation Factor (Weeks in a Year) | D272: 52 | E272: [Weeks]
B275: =IF(MAX(B$1:B274)=0,MAX(A$1:A274)+0.01,(MAX(B$1:B274,A$1:A274))+0.01) -> 2.16 | C275: Community Services Card Income Thresholds
C277: Rounding Level - Income Thresholds | D277: 0 | E277: [Number of Decimal Places]
B280: =IF(MAX(B$1:B279)=0,MAX(A$1:A279)+0.01,(MAX(B$1:B279,A$1:A279))+0.01) -> 2.17 | C280: Special Transfer Allowance
C282: Average Market Rent for Standard Rental Properties
C283: Date average taken | D283: 2024-12-31
D285: Average Market Rent
D286: 1 Bedroom | E286: 2 Bedrooms | J286: Number of Bedrooms Count 31/12/24 | K286: 1 | L286: 2 | O286: Last Year 1 Bedroom | P286: Last Year 2 Bedrooms | R286: Change from last year (1 bedroom) | S286: Change from last year (2 bedrooms) | T286: % Change from last year (1 bedroom) | U286: % Change from last year (2 bedrooms)
C287: Auckland Region | D287: =ROUNDDOWN(K287,0) -> 459 | E287: 568 | J287: AUCKLAND | K287: 459.1481233 | L287: 568.9848968 | N287: Auckland Region | O287: 426.1167626 | P287: 535.2327179 | R287: =D287-ROUNDDOWN(O287,0) -> 33 | S287: =E287-ROUNDDOWN(P287,0) -> 33 | T287: =R287/ROUNDDOWN(O287,0) -> 0.07746478873 | U287: =S287/ROUNDDOWN(P287,0) -> 0.06168224299
C288: Wellington Region | D288: 456 | E288: 591 | J288: WELLINGTON CITY | K288: 456.1488215 | L288: 591.5839628 | N288: Wellington Region | O288: 430.828125 | P288: 548.2761992 | R288: =D288-ROUNDDOWN(O288,0) -> 26 | S288: 43 | T288: =R288/ROUNDDOWN(O288,0) -> 0.06046511628 | U288: 0.07846715328
C289: Rest of New Zealand | D289: 360 | E289: 460 | J289: REST O NZ | K289: 360.1580007 | L289: 460.4206918 | N289: Rest of New Zealand | O289: 329.2336978 | P289: 426.8941732 | R289: 31 | S289: 34 | T289: 0.09422492401 | U289: 0.07981220657
O290: As used April 2024 | R290: Using rounded down data for both years
... 87 more rows

Sheet RegulationsLinks
C1: CPI change as at | D1: 2025-04-01 | E1: <<<=== update this date
C4: ="Social Security (Rates of Benefits and Allowances) Order "&YEAR($D$1) -> Social Security (Rates of Benefits and Allowances) Order 2025
A5: need to check if anything has moved between 'mandatory' and 'discretionary'. Mandatory under s452A (to be repealed March 24), s453 of SS Act 2018 or s15, s16 of NZSuper&Ret Act 2001; Discretionary under s452 of SS Act 2018
C6: Schedule 1
C7: Mandatory adjustments
G8: cls 3, 4
C9: Part 1
C10: Average weekly earnings wage adjustments to social security benefits and allowances
V11: additional payments under same clause at same rate
A12: Row reference in Table | C12: Provision amended | E12: Old amount ($) | G12: New amount ($) | J12: Check of statutory reference | K12: Check of statutory reference | L12: Legal Description | M12: Statutory reference | S12: Description | V12: =E12 -> Old amount ($) | W12: =G12 -> New amount ($)
C14: Social Security Act 2018
C15: Schedule 4, Part 1 (Jobseeker support)
A16: =MID(_xlfn.FORMULATEXT(E16),3,7)&" Row "&RIGHT(_xlfn.FORMULATEXT(E16),2) -> Table 2 Row 13 | C16: Clause 1 (a) | E16: ='Table 2'!$D$13 -> 262.3 | G16: =INDIRECT(MID(_xlfn.FORMULATEXT($E16),2,LEN(_xlfn.FORMULATEXT($E16))-5)&"L"&RIGHT(_xlfn.FORMULATEXT($E16),2),1) -> 268.13 | J16: =INDIRECT(MID(_xlfn.FORMULATEXT($E16),2,LEN(_xlfn.FORMULATEXT($E16))-5)&"O"&RIGHT(_xlfn.FORMULATEXT($E16),2),1) -> SSA 2018 Schedule 4 Part 1 cl. 1(a) | K16: SSA Schedule 4. Part 1 cl. 1(a) | L16: [Payable] To a single beneficiary under the age of 20 years who is living with a parent (as that term is defined in clause 8), and whose benefit commenced on or after 1 July 1998 | M16: SSA 2018, Sch 4, Prt 1, Cl. 1(a) | S16: =INDIRECT(MID(_xlfn.FORMULATEXT($E16),2,LEN(_xlfn.FORMULATEXT($E16))-5)&"C"&RIGHT(_xlfn.FORMULATEXT($E16),2),1) -> Single 18-19 years old - at home
A17: ="Row "&RIGHT(_xlfn.FORMULATEXT(E17),2)&" & Row "&RIGHT(_xlfn.FORMULATEXT(E17),2)+1 -> Row 14 & Row 15 | C17: Clause 1 (b) | E17: ='Table 2'!$D$14 -> 307.87 | G17: =INDIRECT(MID(_xlfn.FORMULATEXT($E17),2,LEN(_xlfn.FORMULATEXT($E17))-5)&"L"&RIGHT(_xlfn.FORMULATEXT($E17),2),1) -> 314.72 | J17: =INDIRECT(MID(_xlfn.FORMULATEXT($E17),2,LEN(_xlfn.FORMULATEXT($E17))-5)&"O"&RIGHT(_xlfn.FORMULATEXT($E17),2),1) -> SSA Schedule 4 Part 1 cl. 1(b) | K17: SSA Schedule 4 Part 1 cl. 1(b) | L17: [Payable] To any other single beneficiary under the age of 25 years without dependent children | M17: SSA 2018, Sch 4, Prt 1, Cl 1(b) | S17: =INDIRECT(MID(_xlfn.FORMULATEXT($E17),2,LEN(_xlfn.FORMULATEXT($E17))-5)&"C"&RIGHT(_xlfn.FORMULATEXT($E17),2),1) -> Single 18-19 years old - away from home | V17: ='Table 2'!$D$15 -> 307.87 | W17: ='Table 2'!$L$15 -> 314.72 | X17: ='Table 2'!$C$15 -> Single 20-24 years old
A18: ="Row "&RIGHT(_xlfn.FORMULATEXT(E18),2) -> Row 25 | C18: Clause 1 (c) | E18: ='Table 2'!$D$25 -> 364.82 | G18: 372.93 | J18: SSA Schedule 4 Part 1 cl. 1(c) | K18: SSA Schedule 4 Part 1 cl. 1 (c) | L18: [Payable] To any other single beneficiary without dependent children and who was on 15 July 2013 transferred to jobseeker support by clause 2(9) and (11), or by clause 10(6) and (8), of Schedule 32 of the Social Security Act 1964 | M18: SSA 2018, Sch 4, Prt 1, Cl 1(c) | S18: Grandparented Widow woman alone and DPB woman alone (granted before 15/7/2013)
A19: Row 16 | C19: Clause 1 (d) | E19: ='Table 2'!$D$16 -> 353.46 | G19: 361.32 | J19: SSA Schedule 4 Part 1 cl. 1(d) | K19: SSA Schedule 4 Part 1 cl. 1(d) | L19: [Payable] To any other single beneficiary without dependent children | M19: SSA 2018, Sch 4, Prt 1, Cl 1(d) | S19: Single 25 years and over
A20: Row 22 | C20: Clause 1 (e) | E20: ='Table 2'!$D$22 -> 494.8 | G20: 505.8 | J20: SSA Schedule 4 Part 1 cl. 1(e) | K20: SSA Schedule 4 Part 1 cl. 1(e) | L20: [Payable to] To any single beneficiary whose youngest dependent child is aged at least 14 years (including, without limitation, any such beneficiary who is a beneficiary of a kind specified in clause 4(a), (b), or (c), and see also MSD’s discretion (to disregard specified income used to meet the cost of childcare) under clause 5) | M20: SSA 2018, Sch 4, Prt 1, Cl 1(e) | S20: Sole Parent
A21: Row 27 | C21: Clause 1 (f) | E21: ='Table 2'!$D$27 -> 494.8 | G21: 505.8 | J21: SSA Schedule 4 Part 1 cl. 1(f) | K21: SSA Schedule 4 Part 1 cl. 1(f) | L21: [Payable] To any other single beneficiary with 1 or more dependent children | M21: SSA 2018, Sch 4, Prt 1, Cl 1(f) | S21: Student Hardship for 16-17 year olds sole parent
A22: Row 17 | C22: Clause 1 (g) (i) | E22: ='Table 2'!$D$17 -> 300.73 | G22: 307.42 | J22: SSA Schedule 4 Part 1 cl. 1(g)(i) or (h)(i) | K22: SSA Schedule 4 Part 1 cl. 1(g) (i) | L22: [Payable] To a beneficiary who is in a relationship whose spouse or partner is granted, in the spouse’s or partner’s own right, a main benefit under this Act, ... subject to Income Test 4 if the beneficiary and his or her spouse or partner do not have 1 or more dependent children | M22: SSA 2018, Sch 4, Prt 1, Cl 1(g)(i) | S22: Married, Civil Union or Defacto Couple (without children) each
A23: Row 19 | C23: Clause 1 (g) (ii) | E23: ='Table 2'!$D$19 -> 317.55 | G23: 324.61 | J23: SSA Schedule 4 Part 1 cl. 1(g)(ii) | K23: SSA Schedule 4 Part 1 cl. 1(g) (ii) | L23: [Payable] To a beneficiary who is in a relationship whose spouse or partner is granted, in the spouse’s or partner’s own right, a main benefit under this Act ... subject to Income Test 4 if the beneficiary and his or her spouse or partner have 1 or more dependent children | M23: SSA 2018, Sch 4, Prt 1, Cl 1(g)(ii) | S23: Married, Civil Union or Defacto Couple with partner on benefit (with children) each
A24: Row 17 | C24: Clause 1 (h) (i) | D24: clause i merged into clause h on 6 Nov 2020 | E24: ='Table 2'!$D$17 -> 300.73 | G24: 307.42 | J24: SSA Schedule 4 Part 1 cl. 1(g)(i) or (h)(i) | K24: SSA Schedule 4 Part 1 cl. 1(g)(i) or h(i) | L24: [Payable] To a beneficiary who is in a relationship whose spouse or partner is granted, in the spouse’s or partner’s own right, New Zealand superannuation or a veteran’s pension, … subject to Income Test 4 if the beneficiary and his or her spouse or partner do not have 1 or more dependent children | M24: SSA 2018, Sch 4, Prt 1, Cl 1(h)(i) | S24: Married, Civil Union or Defacto Couple (without children) each
A25: Row 21 | C25: Clause 1 (h) (ii) | E25: ='Table 2'!$D$21 -> 317.55 | G25: 324.61 | J25: SSA Schedule 4 Part 1 cl. 1(h)(ii) | K25: SSA Schedule 4 Part 1 cl. 1(h)(ii) | L25: [Payable] To a beneficiary who is in a relationship whose spouse or partner is granted, in the spouse’s or partner’s own right, New Zealand superannuation or a veteran’s pension, … subject to Income Test 4 if the beneficiary and his or her spouse or partner have 1 or more dependent children | M25: SSA 2018, Sch 4, Prt 1, Cl 1(h)(ii) | S25: Married, Civil Union or Defacto Couple with partner not on benefit or with partner receiving NZS or Veteran's Pension (with children) total
A26: Row 29 | C26: Clause 1 (j) (i) | E26: ='Table 2'!$D$29 -> 601.46 | G26: 614.84 | J26: SSA Schedule 4 Part 1 cl. 1(j)(i) | K26: SSA Schedule 4 Part 1 cl. 1(j)(i) | L26: [Payable] To a beneficiary who is in a relationship whose spouse or partner is not granted a main benefit under this Act, New Zealand superannuation, or a veteran’s pension, in the spouse’s or partner’s own right… subject to Income Test 3 if the beneficiary and his or her spouse or partner do not have 1 or more dependent children | M26: SSA 2018, Sch 4, Prt 1, Cl 1(j)(i) | S26: Student Hardship for 16-17 year olds Married, Civil Union or Defacto (without children) total
A27: Row 31 | C27: Clause 1 (j) (ii) | E27: ='Table 2'!$D$31 -> 635.1 | G27: =INDIRECT(MID(_xlfn.FORMULATEXT($E27),2,LEN(_xlfn.FORMULATEXT($E27))-5)&"L"&RIGHT(_xlfn.FORMULATEXT($E27),2),1) -> 649.22 | J27: SSA Schedule 4 Part 1 cl. 1(j)(ii) | K27: SSA Schedule 4 Part 1 cl. 1(j)(ii) | L27: [Payable] To a beneficiary who is in a relationship whose spouse or partner is not granted a main benefit under this Act, New Zealand superannuation, or a veteran’s pension, in the spouse’s or partner’s own right… subject to Income Test 3 if the beneficiary and his or her spouse or partner have 1 or more dependent children | M27: SSA 2018, Sch 4, Prt 1, Cl 1(j)(ii) | S27: Student Hardship for 16-17 year olds Married, Civil Union or Defacto (with children) total
A28: =MID(_xlfn.FORMULATEXT(E28),3,7)&" Row "&RIGHT(_xlfn.FORMULATEXT(E28),2) -> Table 9 Row 13 | C28: Clause 2 | E28: ='Table 9'!$D$13 -> 300.73 | G28: =INDIRECT(MID(_xlfn.FORMULATEXT($E28),2,LEN(_xlfn.FORMULATEXT($E28))-5)&"L"&RIGHT(_xlfn.FORMULATEXT($E28),2),1) -> 307.42 | J28: SSA 2018 Schedule 4 Part 1 cl. 2 | K28: SSA 2018 Schedule 4 Part 1 cl. 2 | L28: Maximum increase in respect of a housekeeper | M28: SSA 2018, Sch 4, Prt 1, Cl 2 | S28: =INDIRECT(MID(_xlfn.FORMULATEXT($E28),2,LEN(_xlfn.FORMULATEXT($E28))-5)&"C"&RIGHT(_xlfn.FORMULATEXT($E28),2)-1,1) -> Housekeeper's Allowance
A29: =MID(_xlfn.FORMULATEXT(E29),3,7)&" Row "&RIGHT(_xlfn.FORMULATEXT(E29),2) -> Table 2 Row 23 | C29: Clause 3 (i) | E29: ='Table 2'!$D$23 -> 300.73 | G29: 307.42 | J29: SSA Schedule 4 Part 1 cl. 3 (a, b,c) (i) | K29: SSA Schedule 4 Part 1 cl. 3(a,b,c) (i) | L29: [A] Special rate of benefit (and a rate to be received by the person during the period of non-entitlement of the person’s spouse or partner) for a person who has a spouse or partner who is ineligible for a benefit for a period because of - (a) the application of sections 225 to 229 (which relate to voluntary unemployment or loss of employment through misconduct, etc); or (b) the application of sections 234 to 238 (which relate to sanctions that may be imposed for failures to comply with work-test or other obligations and work-preparation interviews and exercises); or (c) a strike, either by the spouse or partner, or by fellow members of the same union at the same place of employment subject to Income Test 4 if the beneficiary does not have 1 or more dependent children | M29: SSA 2018, Sch 4, Prt 1, Cl. 3(a,b,c) (i) | S29: Special 88M(4) Rate - without children | V29: 88M = old 1964 SS Act ref
A30: Row 24 | C30: Clause 3 (ii) | E30: ='Table 2'!$D$24 -> 317.55 | G30: 324.61 | J30: SSA Schedule 4 Part 1 cl. 3 (a, b,c) (ii) | K30: SSA Schedule 4 Part 1 cl. 3(a,b,c) (ii) | L30: [A] Special rate of benefit (and a rate to be received by the person during the period of non-entitlement of the person’s spouse or partner) for a person who has a spouse or partner who is ineligible for a benefit for a period because of - (a) the application of sections 225 to 229 (which relate to voluntary unemployment or loss of employment through misconduct, etc); or (b) the application of sections 234 to 238 (which relate to sanctions that may be imposed for failures to comply with work-test or other obligations and work-preparation interviews and exercises); or (c) a strike, either by the spouse or partner, or by fellow members of the same union at the same place of employment subject to Income Test 4 if the beneficiary has 1 or more dependent children | M30: SSA 2018, Sch 4, Prt 1, Cl. 3(a,b,c) (ii) | S30: Special 88M(4) Rate - with children | V30: 88M = old 1964 SS Act ref
C33: Schedule 4, Part 2 (Sole parent support)
A34: =MID(_xlfn.FORMULATEXT(E34),3,7)&" Row "&RIGHT(_xlfn.FORMULATEXT(E34),2) -> Table 2 Row 62 | C34: Clause 1 | E34: ='Table 2'!$D$62 -> 494.8 | G34: =INDIRECT(MID(_xlfn.FORMULATEXT($E34),2,LEN(_xlfn.FORMULATEXT($E34))-5)&"L"&RIGHT(_xlfn.FORMULATEXT($E34),2),1) -> 505.8 | J34: =INDIRECT(MID(_xlfn.FORMULATEXT($E34),2,LEN(_xlfn.FORMULATEXT($E34))-5)&"O"&RIGHT(_xlfn.FORMULATEXT($E34),2),1) -> SSA Schedule 4 Part 2 cl. 1 | K34: SSA Schedule 4 Part 2. cl. 1 | L34: [Payable] To a beneficiary with 1 or more dependent children … subject to Income test 1 | M34: SSA 2018, Sch 4, Prt 2, Cl 1 | S34: =INDIRECT(MID(_xlfn.FORMULATEXT($E34),2,LEN(_xlfn.FORMULATEXT($E34))-5)&"C"&RIGHT(_xlfn.FORMULATEXT($E34),2),1) -> Sole Parent
C37: Schedule 4, Part 3 (Supported living payment)
A38: =MID(_xlfn.FORMULATEXT(E38),3,7)&" Row "&RIGHT(_xlfn.FORMULATEXT(E38),2) -> Table 2 Row 51 | C38: Clause 1 (a) | E38: ='Table 2'!$D$51 -> 337.63 | G38: =INDIRECT(MID(_xlfn.FORMULATEXT($E38),2,LEN(_xlfn.FORMULATEXT($E38))-5)&"L"&RIGHT(_xlfn.FORMULATEXT($E38),2),1) -> 345.14 | J38: =INDIRECT(MID(_xlfn.FORMULATEXT($E38),2,LEN(_xlfn.FORMULATEXT($E38))-5)&"O"&RIGHT(_xlfn.FORMULATEXT($E38),2),1) -> SSA 2018 Schedule 4 Part 3 cl. 1 (a) | K38: SSA Schedule 4 Part 3. cl. 1 (a) | L38: [Payable] To a single beneficiary under the age of 18 years without dependent children, … subject to income test one. | M38: SSA 2018, Sch 4, Prt 3, Cl 1(a) | S38: =INDIRECT(MID(_xlfn.FORMULATEXT($E38),2,LEN(_xlfn.FORMULATEXT($E38))-5)&"C"&RIGHT(_xlfn.FORMULATEXT($E38),2),1) -> Single 16-17 years old
A39: ="Row "&RIGHT(_xlfn.FORMULATEXT(E39),2) -> Row 52 | C39: Clause 1 (b) | E39: ='Table 2'!$D$52 -> 402.84 | G39: 411.8 | J39: SSA Schedule 4 Part 3 cl. 1 (b) | K39: SSA Schedule 4 Part 3. cl. 1 (b) | L39: [Payable] To any other single beneficiary without dependent children … Subject to income test one. | M39: SSA 2018, Sch 4, Prt 3, Cl 1(b) | S39: Single 18 years and over
A40: Row 58 | C40: Clause 1 (c) | E40: ='Table 2'!$D$58 -> 552.14 | G40: 564.42 | J40: SSA Schedule 4 Part 3 cl. 1 (c) | K40: SSA Schedule 4 Part 3. cl. 1 (c) | L40: [Payable] To a single beneficiary with 1 or more dependent children… subject to income test one. | M40: SSA 2018, Sch 4, Prt 3, Cl 1(c) | S40: Sole Parent
A41: Row 53 | C41: Clause 1 (d) (i) | E41: ='Table 2'!$D$53 -> 342.24 | G41: 349.85 | J41: SSA Schedule 4 Part 3 cl. 1 (d,e,h) (i); cl 7(a) | K41: SSA Schedule 4 Part 3. cl. 1 (d,e,h) (i) | L41: [Payable] To a beneficiary who is in a relationship, whose spouse or partner is granted, in the spouse’s or partner’s own right, a main benefit under this Act … subject to Income Test 2 if the beneficiary and his or her spouse or partner do not have 1 or more dependent children | M41: SSA 2018, Sch 4, Prt 3, Cl 1(d)(i) | S41: Married, Civil Union or Defacto Couple (without children) each
A42: Row 55 | C42: Clause 1 (d) (ii) | E42: ='Table 2'!$D$55 -> 359.07 | G42: 367.06 | J42: SSA Schedule 4 Part 3 cl. 1 (d) (ii) | K42: SSA Schedule 4 Part 3. cl. 1 (d) (ii) | L42: [Payable] To a beneficiary who is in a relationship, whose spouse or partner is granted, in the spouse’s or partner’s own right, a main benefit under this Act, … subject to Income Test 2 if the beneficiary and his or her spouse or partner have 1 or more dependent children | M42: SSA 2018, Sch 4, Prt 3, Cl 1(d)(ii) | S42: Married, Civil Union or Defacto Couple partner on benefit (with children) each
A43: Row 53 | C43: Clause 1 (e) (i) | E43: ='Table 2'!$D$53 -> 342.24 | G43: 349.85 | J43: SSA Schedule 4 Part 3 cl. 1 (d,e,h) (i); cl 7(a) | K43: SSA Schedule 4 Part 3. cl. 1 (d,e,h) (i) | L43: [Payable] To a beneficiary who is in a relationship, whose spouse or partner is granted, in the spouse’s or partner’s own right, New Zealand superannuation or a veteran’s pension, … subject to Income Test 2 if the beneficiary and his or her spouse or partner do not have 1 or more dependent children | M43: SSA 2018, Sch 4, Prt 3, Cl 1(e)(i) | S43: Married, Civil Union or Defacto Couple (without children) each
A44: Row 57 | C44: Clause 1 (e) (ii) | E44: ='Table 2'!$D$57 -> 372.81 | G44: 381.1 | J44: SSA Schedule 4 Part 3 cl. 1 (e, h) (ii); cl 7(b) | K44: SSA Schedule 4 Part 3. cl. 1 (e, h) (ii) | L44: [Payable] To a beneficiary who is in a relationship, whose spouse or partner is granted, in the spouse’s or partner’s own right, New Zealand superannuation or a veteran’s pension, … subject to Income Test 2 if the beneficiary and his or her spouse or partner have 1 or more dependent children | M44: SSA 2018, Sch 4, Prt 3, Cl 1(e)(ii) | S44: Married, Civil Union or Defacto Couple with partner not on benefit or with partner receiving NZS or Veteran's Pension (with children) total
A45: Row 54 | C45: Clause 1 (g) (i) | D45: clause f merged into clause e on 6 Nov 2020 | E45: ='Table 2'!$D$54 -> 684.48 | G45: 699.7 | J45: SSA Schedule 4 Part 3 cl. 1 (g) (i) | K45: SSA Schedule 4 Part 3. cl. 1 (g) (i) | L45: [Payable] To a beneficiary receiving a supported living payment under section 34 on the ground of restricted work capacity or total blindness who is in a relationship, whose spouse or partner is not granted, in the spouse’s or partner’s own right, a main benefit under this Act or New Zealand superannuation or a veteran’s pension, ... subject to Income Test 1 if the beneficiary and his or her spouse or partner do not have 1 or more dependent children | M45: SSA 2018, Sch 4, Prt 3, Cl 1(g)(i) | S45: Married, Civil Union or Defacto Couple (without children) total
A46: Row 56 | C46: Clause 1 (g) (ii) | E46: ='Table 2'!$D$56 -> 718.14 | G46: 734.12 | J46: SSA Schedule 4 Part 3 cl. 1 (g) (ii) | K46: SSA Schedule 4 Part 3. cl. 1 (g) (ii) | L46: [Payable] To a beneficiary receiving a supported living payment under section 34 on the ground of restricted work capacity or total blindness who is in a relationship, whose spouse or partner is not granted, in the spouse’s or partner’s own right, a main benefit under this Act or New Zealand superannuation or a veteran’s pension, ... subject to Income Test 1 if the beneficiary and his or her spouse or partner have 1 or more dependent children | M46: SSA 2018, Sch 4, Prt 3, Cl 1(g)(ii) | S46: Married, Civil Union or Defacto Couple partner on benefit (with children) total
A47: Row 53 | C47: Clause 1 (h) (i) | E47: ='Table 2'!$D$53 -> 342.24 | G47: 349.85 | J47: SSA Schedule 4 Part 3 cl. 1 (d,e,h) (i); cl 7(a) | K47: SSA Schedule 4 Part 3. cl. 1 (d,e,h) (i) | L47: [Payable] To a beneficiary receiving a supported living payment under section 40 on the ground of caring for another person, if the beneficiary is in a relationship, and the beneficiary’s spouse or partner is not granted, in the spouse’s or partner’s own right, a main benefit under this Act or New Zealand superannuation or a veteran’s pension, ... subject to Income Test 1 if the beneficiary and his or her spouse or partner do not have 1 or more dependent children | M47: SSA 2018, Sch 4, Prt 3, Cl 1(h)(i) | S47: Married, Civil Union or Defacto Couple (without children) each
A48: Row 57 | C48: Clause 1 (h) (ii) | E48: ='Table 2'!$D$57 -> 372.81 | G48: 381.1 | J48: SSA Schedule 4 Part 3 cl. 1 (e, h) (ii); cl 7(b) | K48: SSA Schedule 4 Part 3. cl. 1 (e, h) (ii) | L48: [Payable] To a beneficiary receiving a supported living payment under section 40 on the ground of caring for another person, if the beneficiary is in a relationship, and the beneficiary’s spouse or partner is not granted, in the spouse’s or partner’s own right, a main benefit under this Act or New Zealand superannuation or a veteran’s pension, ... subject to Income Test 1 if the beneficiary and his or her spouse or partner have 1 or more dependent children | M48: SSA 2018, Sch 4, Prt 3, Cl 1(h)(ii) | S48: Married, Civil Union or Defacto Couple with partner not on benefit or with partner receiving NZS or Veteran's Pension (with children) total
A49: =MID(_xlfn.FORMULATEXT(E49),3,7)&" Row "&RIGHT(_xlfn.FORMULATEXT(E49),2) -> Table 8 Row 32 | C49: Clause 2 | E49: ='Table 8'!$D$32 -> 552.07 | G49: =INDIRECT(MID(_xlfn.FORMULATEXT($E49),2,LEN(_xlfn.FORMULATEXT($E49))-5)&"L"&RIGHT(_xlfn.FORMULATEXT($E49),2),1) -> 564.35 | J49: =INDIRECT(MID(_xlfn.FORMULATEXT($E49),2,LEN(_xlfn.FORMULATEXT($E49))-5)&"O"&RIGHT(_xlfn.FORMULATEXT($E49),2),1) -> SSA 2018 Schedule 4 Part 3 cl. 2 | K49: SSA Schedule 4 Part 3. cl. 2 | L49: Maximum amount from all sources where subsidy (that is to say, an additional allowance under clause 3) is paid on earnings of a blind beneficiary in every case | M49: SSA 2018, Sch 4, Prt 3, Cl 2 | S49: Married, Civil union or Defacto Partner
A50: =MID(_xlfn.FORMULATEXT(E50),3,7)&" Row "&RIGHT(_xlfn.FORMULATEXT(E50),2) -> Table 8 Row 33 | C50: Clause 2 | E50: ='Table 8'!$D$33 -> 71.46 | G50: =INDIRECT(MID(_xlfn.FORMULATEXT($E50),2,LEN(_xlfn.FORMULATEXT($E50))-5)&"L"&RIGHT(_xlfn.FORMULATEXT($E50),2),1) -> 73.05 | J50: =INDIRECT(MID(_xlfn.FORMULATEXT($E50),2,LEN(_xlfn.FORMULATEXT($E50))-5)&"O"&RIGHT(_xlfn.FORMULATEXT($E50),2),1) -> SSA 2018 Schedule 4 Part 3 cl. 2 | K50: SSA Schedule 4 Part 3. cl. 2 | L50: Maximum amount from all sources where subsidy (that is to say, an additional allowance under clause 3) increase if the is paid on earnings of a blind beneficiary in every case [and further increased if the] beneficiary is a single person. | M50: SSA 2018, Sch 4, Prt 3, Cl 2 | S50: Single Supplement
A51: =MID(_xlfn.FORMULATEXT(E51),3,7)&" Row "&RIGHT(_xlfn.FORMULATEXT(E51),2) -> Table 2 Row 53 | C51: Clause 7 (a) | E51: ='Table 2'!$D$53 -> 342.24 | G51: 349.85 | J51: SSA Schedule 4 Part 3 cl. 1 (d,e,h) (i); cl 7(a) | K51: SSA Schedule 4 Part 3. cl. 7 (a) | L51: the rate of a supported living payment on the ground of caring for another person under any of ... paragraphs [(d), (e) and (g)] must not be less than the rates that would be payable if the beneficiary and the spouse or partner of the beneficiary were both entitled to receive the benefit on those grounds; but the rate of benefit payable by virtue of this clause must not exceed if the beneficiary and the spouse or partner of the beneficiary have no dependent children | M51: SSA 2018, Sch 4, Prt 3, Cl 7(a) | S51: Married, Civil Union or Defacto Couple (without children) each
A52: Row 57 | C52: Clause 7 (b) | E52: ='Table 2'!$D$57 -> 372.81 | G52: 381.1 | J52: SSA Schedule 4 Part 3 cl. 1 (e, h) (ii); cl 7(b) | K52: SSA Schedule 4 Part 3. cl. 7 (b) | L52: the rate of a supported living payment on the ground of caring for another person under any of ... paragraphs [(d), (e) and (g)] must not be less than the rates that would be payable if the beneficiary and the spouse or partner of the beneficiary were both entitled to receive the benefit on those grounds; but the rate of benefit payable by virtue of this clause must not exceed if the beneficiary and the spouse or partner of the beneficiary have 1 or more dependent children | M52: SSA 2018, Sch 4, Prt 3, Cl 7(b) | S52: Married, Civil Union or Defacto Couple with partner not on benefit or with partner receiving NZS or Veteran's Pension (with children) total
C55: Schedule 4, Part 6 (Rates and component of youth payment and young parent payment, and criteria for incentive payments)
A56: =MID(_xlfn.FORMULATEXT(E56),3,7)&" Row "&RIGHT(_xlfn.FORMULATEXT(E56),2) -> Table 2 Row 35 | C56: Clause 1 | E56: ='Table 2'!$D$35 -> 307.87 | G56: =INDIRECT(MID(_xlfn.FORMULATEXT($E56),2,LEN(_xlfn.FORMULATEXT($E56))-5)&"L"&RIGHT(_xlfn.FORMULATEXT($E56),2),1) -> 314.72 | J56: =INDIRECT(MID(_xlfn.FORMULATEXT($E56),2,LEN(_xlfn.FORMULATEXT($E56))-5)&"O"&RIGHT(_xlfn.FORMULATEXT($E56),2),1) -> SSA 2018 Schedule 4 Part 6 subpart 1 cl. 1 | K56: SSA Schedule 4 Part 6 subpart 1 cl. 1 | L56: [Payable to] a single young person without dependent children subject to cl. 11 | M56: SSA 2018, Sch 4, Prt 6, Subprt 1, Cl 1 | S56: =INDIRECT(MID(_xlfn.FORMULATEXT($E56),2,LEN(_xlfn.FORMULATEXT($E56))-5)&"C"&RIGHT(_xlfn.FORMULATEXT($E56),2),1) -> Single, 16-17 Year old
A57: ="Row "&RIGHT(_xlfn.FORMULATEXT(E57),2) -> Row 40 | C57: Clause 2 | E57: ='Table 2'!$D$40 -> 285.44 | G57: 291.79 | J57: SSA Schedule 4 Part 6 subpart 1 cl. 2 | K57: SSA Schedule 4 Part 6 subpart 1 cl. 2 | L57: [Payable to] a single young person who— •is aged 16 to 17 years; and •is living with or being financially supported by a parent or guardian; and •has a dependent child or children subject to Cl. 11 | M57: SSA 2018, Sch 4, Prt 6, Subprt 1, Cl 2 | S57: Sole parent 16-17 year old, living at home or financially supported by parents or guardian (earning less than FTC threshold)
A58: Row 44 | C58: Clause 3 | E58: ='Table 2'!$D$44 -> 494.8 | G58: 505.8 | J58: SSA Schedule 4 Part 6 subpart 1 cl. 3 | K58: SSA Schedule 4 Part 6 subpart 1 cl. 3 | L58: [Payable to] any other single young person with a dependent child or children, subject to Cl. 11 | M58: SSA 2018, Sch 4, Prt 6, Subprt 1, Cl 3 | S58: Sole parent
A59: Row 36 | C59: Clause 4 | E59: ='Table 2'!$D$36 -> 300.73 | G59: 307.42 | J59: SSA Schedule 4 Part 6 subpart 1 cl. 4 | K59: SSA Schedule 4 Part 6 subpart 1 cl. 4 | L59: [Payable to] a young person who is in a relationship and is without dependent children, subject to Cl 12 | M59: SSA 2018, Sch 4, Prt 6, Subprt 1, Cl 4 | S59: Married, civil union or de facto couple (without children) each
A60: Row 43 | C60: Clause 5 (a) | E60: ='Table 2'!$D$43 -> 317.55 | G60: 324.61 | J60: SSA Schedule 4 Part 6 subpart 1 cl. 5 (a) | K60: SSA Schedule 4 Part 6 subpart 1 cl. 5(a) | L60: [Payable to] a young person who is in a relationship and has a dependent child or children, subject to Cl 12 if the young person’s spouse or partner is not receiving a main benefit under this Act; or | M60: SSA 2018, Sch 4, Prt 6, Subprt 1, Cl 5(a) | S60: Married, Civil Union or Defacto Couple with partner not on benefit (with children) total
A61: Row 41 | C61: Clause 5 (b) | E61: ='Table 2'!$D$41 -> 317.55 | G61: 324.61 | J61: SSA Schedule 4 Part 6 subpart 1 cl. 5 (b) | K61: SSA Schedule 4 Part 6 subpart 1 cl. 5(b) | L61: [Payable to] a young person who is in a relationship and has a dependent child or children, subject to clause 12 if the young person’s spouse or partner is receiving a main benefit under this Act | M61: SSA 2018, Sch 4, Prt 6, Subprt 1, Cl 5(b) | S61: Married, civil union or de facto couple both qualify (with children) each
C64: Schedule 4, Part 10 (Rates of generally abolished former widows’ benefits under section 21 of Social Security Act 1964 as saved by clause 55 of Schedule 1 of this Act for reciprocity agreement applicants or recipients)
A65: =MID(_xlfn.FORMULATEXT(E65),3,7)&" Row "&RIGHT(_xlfn.FORMULATEXT(E65),2) -> Table 2 Row 67 | C65: Clause 1 | E65: ='Table 2'!$D$67 -> 494.8 | G65: =INDIRECT(MID(_xlfn.FORMULATEXT($E65),2,LEN(_xlfn.FORMULATEXT($E65))-5)&"L"&RIGHT(_xlfn.FORMULATEXT($E65),2),1) -> 505.8 | J65: =INDIRECT(MID(_xlfn.FORMULATEXT($E65),2,LEN(_xlfn.FORMULATEXT($E65))-5)&"O"&RIGHT(_xlfn.FORMULATEXT($E65),2),1) -> SSA Schedule 4 Part 10 cl. 1 and Schedule 4 Part 11 cl. 1 | K65: SSA Schedule 4 Part 10 cl. 1 | L65: [Payable] To a beneficiary with 1 or more dependent children, subject to income test 1 | M65: SSA 2018, Sch 4, Prt 10, Cl 1 | S65: =INDIRECT(MID(_xlfn.FORMULATEXT($E65),2,LEN(_xlfn.FORMULATEXT($E65))-5)&"C"&RIGHT(_xlfn.FORMULATEXT($E65),2),1) -> Sole Parent
A66: ="Row "&RIGHT(_xlfn.FORMULATEXT(E66),2) -> Row 66 | C66: Clause 2 | E66: ='Table 2'!$D$66 -> 364.82 | G66: 372.93 | J66: SSA Schedule 4 Part 10 cl. 2 and Schedule 4 Part 11 cl. 2 | K66: SSA Schedule 4 Part 10 cl. 2 | L66: [Payable] To a beneficiary without any dependent children, subject to Income Test 1 | M66: SSA 2018, Sch 4, Prt 10, Cl 2 | S66: Woman Alone (Single Adult)
C69: Schedule 4, Part 11 (Rates of generally abolished former DPB for solo parents under section 27B of Social Security Act 1964 as saved by clause 55 of Schedule 1 of this Act for reciprocity agreement applicants or recipients)
A70: =MID(_xlfn.FORMULATEXT(E70),3,7)&" Row "&RIGHT(_xlfn.FORMULATEXT(E70),2) -> Table 2 Row 67 | C70: Clause 1 | E70: ='Table 2'!$D$67 -> 494.8 | G70: =INDIRECT(MID(_xlfn.FORMULATEXT($E70),2,LEN(_xlfn.FORMULATEXT($E70))-5)&"L"&RIGHT(_xlfn.FORMULATEXT($E70),2),1) -> 505.8 | J70: =INDIRECT(MID(_xlfn.FORMULATEXT($E70),2,LEN(_xlfn.FORMULATEXT($E70))-5)&"O"&RIGHT(_xlfn.FORMULATEXT($E70),2),1) -> SSA Schedule 4 Part 10 cl. 1 and Schedule 4 Part 11 cl. 1 | K70: SSA Schedule 4 Part 11 cl. 1 | L70: [Payable] To a beneficiary with 1 or more dependent children, subject to income test 1 | M70: SSA 2018, Sch 4, Prt 11, Cl 1 | S70: =INDIRECT(MID(_xlfn.FORMULATEXT($E70),2,LEN(_xlfn.FORMULATEXT($E70))-5)&"C"&RIGHT(_xlfn.FORMULATEXT($E70),2),1) -> Sole Parent
A71: ="Row "&RIGHT(_xlfn.FORMULATEXT(E71),2) -> Row 66 | C71: Clause 2 | E71: ='Table 2'!$D$66 -> 364.82 | G71: 372.93 | J71: SSA Schedule 4 Part 10 cl. 2 and Schedule 4 Part 11 cl. 2 | K71: SSA Schedule 4 Part 11 cl. 2 | L71: [Payable] To a beneficiary without any dependent children, subject to Income Test 1 | M71: SSA 2018, Sch 4, Prt 11, Cl 2 | S71: Woman Alone (Single Adult)
C75: Part 2
C76: CPI adjustments to social security benefits and allowances
V77: additional payments under same clause at same rate
A78: Row reference in Table | C78: Provision amended | E78: Old amount ($) | G78: New amount ($) | J78: Check of statutory reference | S78: Description | V78: =E78 -> Old amount ($) | W78: =G78 -> New amount ($)
C80: Schedule 4, Part 4 (Orphan's benefit)
A81: =MID(_xlfn.FORMULATEXT(E81),3,7)&" Row "&RIGHT(_xlfn.FORMULATEXT(E81),2) -> Table 2 Row 74 | C81: Clause 1 (a) | E81: ='Table 2'!$D$74 -> 332.61 | G81: =INDIRECT(MID(_xlfn.FORMULATEXT($E81),2,LEN(_xlfn.FORMULATEXT($E81))-5)&"L"&RIGHT(_xlfn.FORMULATEXT($E81),2),1) -> 340.01 | J81: =INDIRECT(MID(_xlfn.FORMULATEXT($E81),2,LEN(_xlfn.FORMULATEXT($E81))-5)&"O"&RIGHT(_xlfn.FORMULATEXT($E81),2),1) -> SSA 2018 Schedule 4 Part 4 cl. 1(a) and Part 5 cl. 1(a) | K81: SSA Schedule 4 Part 4 cl. 1(a) | L81: [Payable] In respect of a child aged 14 years or over | M81: SSA 2018, Sch 4, Prt 4, Cl 1(a) | S81: =INDIRECT(MID(_xlfn.FORMULATEXT($E81),2,LEN(_xlfn.FORMULATEXT($E81))-5)&"C"&RIGHT(_xlfn.FORMULATEXT($E81),2),1) -> 14 years old and over
A82: ="Row "&RIGHT(_xlfn.FORMULATEXT(E82),2) -> Row 75 | C82: Clause 1 (b) | E82: ='Table 2'!$D$75 -> 310.4 | G82: 317.3 | J82: =INDIRECT(MID(_xlfn.FORMULATEXT($E82),2,LEN(_xlfn.FORMULATEXT($E82))-5)&"O"&RIGHT(_xlfn.FORMULATEXT($E82),2),1) -> SSA Schedule 4 Part 4 cl. 1(b) and Part 5 cl. 1(b) | K82: SSA Schedule 4 Part 4 cl. 1(b) | L82: [Payable] In respect of a child aged over 10 years and under 14 years | M82: SSA 2018, Sch 4, Prt 4, Cl 1(b) | S82: 10-13 years old
A83: Row 76 | C83: Clause 1 (c) | E83: ='Table 2'!$D$76 -> 288.06 | G83: 294.47 | J83: SSA Schedule 4 Part 4 cl. 1(c) and Part 5 cl. 1(c) | K83: SSA Schedule 4 Part 4 cl. 1 (c) | L83: [Payable] In respect of a child aged over 5 years and under 10 years | M83: SSA 2018, Sch 4, Prt 4, Cl 1(c) | S83: 5-9 years old
A84: Row 77 | C84: Clause 1 (d) | E84: ='Table 2'!$D$77 -> 286.08 | G84: 292.44 | J84: SSA Schedule 4 Part 4 cl. 1(d) and Part 5 cl. 1(d) | K84: SSA Schedule 4 Part 4 cl. 1(d) | L84: [Payable] In respect of a child aged under 5 years | M84: SSA 2018, Sch 4, Prt 4, Cl 1(d) | S84: Under 5 years old
C87: Schedule 4, Part 5 (Unsupported child's benefit)
A88: =MID(_xlfn.FORMULATEXT(E88),3,7)&" Row "&RIGHT(_xlfn.FORMULATEXT(E88),2) -> Table 2 Row 74 | C88: Clause 1 (a) | E88: ='Table 2'!$D$74 -> 332.61 | G88: =INDIRECT(MID(_xlfn.FORMULATEXT($E88),2,LEN(_xlfn.FORMULATEXT($E88))-5)&"L"&RIGHT(_xlfn.FORMULATEXT($E88),2),1) -> 340.01 | J88: =INDIRECT(MID(_xlfn.FORMULATEXT($E88),2,LEN(_xlfn.FORMULATEXT($E88))-5)&"O"&RIGHT(_xlfn.FORMULATEXT($E88),2),1) -> SSA 2018 Schedule 4 Part 4 cl. 1(a) and Part 5 cl. 1(a) | K88: SSA Schedule 4 Part 5 cl. 1(a) | L88: [Payable] In respect of a child aged 14 years or over | M88: SSA 2018, Sch 4, Prt 5, Cl 1(a) | S88: =INDIRECT(MID(_xlfn.FORMULATEXT($E88),2,LEN(_xlfn.FORMULATEXT($E88))-5)&"C"&RIGHT(_xlfn.FORMULATEXT($E88),2),1) -> 14 years old and over
A89: ="Row "&RIGHT(_xlfn.FORMULATEXT(E89),2) -> Row 75 | C89: Clause 1 (b) | E89: ='Table 2'!$D$75 -> 310.4 | G89: 317.3 | J89: SSA Schedule 4 Part 4 cl. 1(b) and Part 5 cl. 1(b) | K89: SSA Schedule 4 Part 5 cl. 1(b) | L89: [Payable] In respect of a child aged over 10 years and under 14 years | M89: SSA 2018, Sch 4, Prt 5, Cl 1(b) | S89: 10-13 years old
A90: Row 76 | C90: Clause 1 (c) | E90: ='Table 2'!$D$76 -> 288.06 | G90: 294.47 | J90: SSA Schedule 4 Part 4 cl. 1(c) and Part 5 cl. 1(c) | K90: SSA Schedule 4 Part 5 cl. 1(c) | L90: [Payable] In respect of a child aged over 5 years and under 10 years | M90: SSA 2018, Sch 4, Prt 5, Cl 1(c) | S90: 5-9 years old
A91: Row 77 | C91: Clause 1 (d) | E91: ='Table 2'!$D$77 -> 286.08 | G91: 292.44 | J91: SSA Schedule 4 Part 4 cl. 1(d) and Part 5 cl. 1(d) | K91: SSA Schedule 4 Part 5 cl. 1(d) | L91: [Payable] In respect of a child aged under 5 years | M91: SSA 2018, Sch 4, Prt 5, Cl 1(d) | S91: Under 5 years old
C94: Schedule 4, Part 12 (Rates of benefits payable to long-term hospital patients)
A95: =MID(_xlfn.FORMULATEXT(E95),3,7)&" Row "&RIGHT(_xlfn.FORMULATEXT(E95),2) -> Table 9 Row 23 | C95: Clause 1 | E95: ='Table 9'!$D$23 -> 55.35 | G95: =INDIRECT(MID(_xlfn.FORMULATEXT($E95),2,LEN(_xlfn.FORMULATEXT($E95))-5)&"L"&RIGHT(_xlfn.FORMULATEXT($E95),2),1) -> 56.58 | J95: =INDIRECT(MID(_xlfn.FORMULATEXT($E95),2,LEN(_xlfn.FORMULATEXT($E95))-5)&"O"&RIGHT(_xlfn.FORMULATEXT($E95),2),1) -> SSA 2018 Schedule 4 Part 12 cls. 1 | K95: SSA 2018 Schedule 4 Part 12 cls. 1,2 | L95: [Payable] To a person without dependent children who is in a relationship, or a single person, who is receiving a main benefit under this Act. | M95: SSA 2018, Sch 4, Prt 12, cl 1 | S95: =INDIRECT(MID(_xlfn.FORMULATEXT($E95),2,LEN(_xlfn.FORMULATEXT($E95))-5)&"C"&RIGHT(_xlfn.FORMULATEXT($E95),2),1) -> Hospital Rate
C99: Part 3
C100: Adjustments to superannuation entitlements
V101: additional payments under same clause at same rate
A102: Row reference in Table | C102: Provision amended | E102: Old amount ($) | G102: New amount ($) | J102: Check of statutory reference | S102: Description | V102: =E102 -> Old amount ($)
C104: New Zealand Superannuation and Retirement Income Act 2001
C105: Schedule 1 (New Zealand superannuation entitlements)
A107: =MID(_xlfn.FORMULATEXT(E107),3,7)&" Row "&RIGHT(_xlfn.FORMULATEXT(E107),2) -> Table 1 Row 52 | C107: Part 1 Clause 1 (a) | D107: and s15 | E107: ='Table 1'!$E$52 -> 606.67 | G107: =INDIRECT(MID(_xlfn.FORMULATEXT($E107),2,LEN(_xlfn.FORMULATEXT($E107))-5)&"U"&RIGHT(_xlfn.FORMULATEXT($E107),2),1) -> 621.54 | J107: =INDIRECT(MID(_xlfn.FORMULATEXT($E107),2,LEN(_xlfn.FORMULATEXT($E107))-5)&"AF"&RIGHT(_xlfn.FORMULATEXT($E107),2),1) -> NZSRI Sch 1 Part 1 cl.1(a) | K107: NZSRI Schedule 1 Part 1 cl.1(a) | L107: [Payable] to a single person who is living alone | M107: NZSRIA 2018, Sch 1, Prt 1, cl 1(a) | S107: =INDIRECT(MID(_xlfn.FORMULATEXT($E107),2,LEN(_xlfn.FORMULATEXT($E107))-5)&"C"&RIGHT(_xlfn.FORMULATEXT($E107),2),1) -> Single Living Alone
A108: ="Row "&RIGHT(_xlfn.FORMULATEXT(E108),2) -> Row 53 | C108: Part 1 Clause 1 (b) | D108: and s15 | E108: ='Table 1'!$E$53 -> 558.31 | G108: =INDIRECT(MID(_xlfn.FORMULATEXT($E108),2,LEN(_xlfn.FORMULATEXT($E108))-5)&"U"&RIGHT(_xlfn.FORMULATEXT($E108),2),1) -> 571.72 | J108: =INDIRECT(MID(_xlfn.FORMULATEXT($E108),2,LEN(_xlfn.FORMULATEXT($E108))-5)&"AF"&RIGHT(_xlfn.FORMULATEXT($E108),2),1) -> NZSRI Sch 1 Part 1 cl.1(b) | K108: NZSRI Schedule 1 Part 1 cl.1(b) | L108: [Payable] to a single person who is not living alone | M108: NZSRIA 2018, Sch 1, Prt 1, cl 1(b) | S108: Single Sharing
A109: Row 55 | C109: Part 1 Clause 1 (c) | D109: and s15 | E109: ='Table 1'!$E$55 -> 461.41 | G109: 472.27 | J109: NZSRI Sch 1 Part 1 cl.1(c) | K109: NZSRI Schedule 1 Part 1 cl.1(c) | L109: [Payable] to a person who is married or in a civil union or in a de facto relationship | M109: NZSRIA 2018, Sch 1, Prt 1, cl 1(c) | S109: Married, Civil Union or Defacto Couple (both qualify) each
A110: Row 58 | C110: Part 2 Clause 1 (b) | D110: and s15 | E110: ='Table 1'!$E$58 -> 874.88 | G110: 895.38 | J110: NZSRI Sch 1 Part 2 cl.1(b) | K110: NZSRI Schedule 1 Part 2 cl.1(b) | L110: Rate payable under clause 7 of Schedule 1AA to a person who is married or in a civil union or in a de facto relationship and whose spouse or partner is not entitled to receive New Zealand superannuation or a veteran’s pension— in any other case [ie on or after1 October 1991] | M110: NZSRIA 2018, Sch 1, Prt 2, cl 1(b) | P110: NZSRIA 2018, Sch 1, Prt 1, cl 2(b) (Repealed) | S110: Married, Civil Union or Defacto Couple (NQP included) total
C113: Schedule 1 (New Zealand superannuation entitlements) | J113: be aware - formulae diff in below NZS wage section to the other sections
P114: old May 17 version - incorrect link, now fixed to Nov 20 version in col K
A115: =MID(_xlfn.FORMULATEXT(G115),3,7)&" Row "&RIGHT(_xlfn.FORMULATEXT(G115),2) -> Table 1 Row 13 | C115: Part 1 Clause 1 (a) | D115: and s16 | E115: =G107 -> 621.54 | G115: ='Table 1'!$U$13 -> 627.14 | J115: =INDIRECT(MID(_xlfn.FORMULATEXT($G115),2,LEN(_xlfn.FORMULATEXT($G115))-5)&"AF"&RIGHT(_xlfn.FORMULATEXT($G115),2),1) -> NZSRI Sch 1 Part 1 cl.1(a) | K115: NZSRI Schedule 1 Part 1 cl.1(a) | L115: [Payable] to a single person who is living alone | M115: NZSRIA 2018, Sch 1, Prt 1, cl 1(a) | P115: NZSRI Schedule 1 Pt 1 cl.1(a) | S115: =INDIRECT(MID(_xlfn.FORMULATEXT($G115),2,LEN(_xlfn.FORMULATEXT($G115))-5)&"C"&RIGHT(_xlfn.FORMULATEXT($G115),2),1) -> Single Living Alone
A116: ="Row "&RIGHT(_xlfn.FORMULATEXT(G116),2) -> Row 14 | C116: Part 1 Clause 1 (b) | D116: and s16 | E116: =G108 -> 571.72 | G116: ='Table 1'!$U$14 -> 576.8 | J116: =INDIRECT(MID(_xlfn.FORMULATEXT($G116),2,LEN(_xlfn.FORMULATEXT($G116))-5)&"AF"&RIGHT(_xlfn.FORMULATEXT($G116),2),1) -> NZSRI Sch 1 Part 1 cl.1(b) | K116: NZSRI Schedule 1 Part 1 cl.1(b) | L116: [Payable] to a single person who is not living alone | M116: NZSRIA 2018, Sch 1, Prt 1, cl 1(b) | S116: Single Sharing
A117: ="Row "&RIGHT(_xlfn.FORMULATEXT(G117),2) -> Row 16 | C117: Part 1 Clause 1 (c) | D117: and s16 | E117: 472.27 | G117: ='Table 1'!$U$16 -> 476.47 | J117: =INDIRECT(MID(_xlfn.FORMULATEXT($G117),2,LEN(_xlfn.FORMULATEXT($G117))-5)&"AF"&RIGHT(_xlfn.FORMULATEXT($G117),2),1) -> NZSRI Sch 1 Part 1 cl.1(c) | K117: NZSRI Schedule 1 Part 1 cl.1(c) | L117: [Payable] to a person who is married or in a civil union or in a de facto relationship | M117: NZSRIA 2018, Sch 1, Prt 1, cl 1(c) | S117: =INDIRECT(MID(_xlfn.FORMULATEXT($G117),2,LEN(_xlfn.FORMULATEXT($G117))-5)&"C"&RIGHT(_xlfn.FORMULATEXT($G117),2),1) -> Married, Civil Union or Defacto Couple (both qualify) each
A118: ="Row "&RIGHT(_xlfn.FORMULATEXT(E118),2) -> Row 24 | C118: Part 2 Clause 1 (a) | D118: and s16 | E118: ='Table 1'!$E$24 -> 922.82 | G118: =INDIRECT(MID(_xlfn.FORMULATEXT($E118),2,LEN(_xlfn.FORMULATEXT($E118))-5)&"U"&RIGHT(_xlfn.FORMULATEXT($E118),2),1) -> 952.94 | J118: =INDIRECT(MID(_xlfn.FORMULATEXT($E118),2,LEN(_xlfn.FORMULATEXT($E118))-5)&"AF"&RIGHT(_xlfn.FORMULATEXT($E118),2),1) -> NZSRI Sch 1 Part 2 cl.1(a) | K118: NZSRI Schedule 1 Part 2 cl.1(a) | L118: Rate payable under clause 7 of Schedule 1AA to a person who is married or in a civil union or in a de facto relationship and whose spouse or partner is not entitled to receive New Zealand superannuation or a veteran’s pension— if, before 1 October 1991, the person was receiving (or had applied for and was entitled to receive) New Zealand superannuation, or a veteran’s pension, at the alternative rate specified in clause 2 of Schedule 1 of the Social Welfare (Transitional Provisions) Act 1990 | M118: NZSRIA 2018, Sch 1, Prt 2, cl 1(a) | P118: NZSRIA 2018, Sch 1, Prt 1, cl 2(a) (Repealed) | S118: =INDIRECT(MID(_xlfn.FORMULATEXT($E118),2,LEN(_xlfn.FORMULATEXT($E118))-5)&"C"&RIGHT(_xlfn.FORMULATEXT($E118),2),1) -> Married, Civil Union or Defacto Couple (NQP included pre 1/10/91) total
A119: ="Row "&RIGHT(_xlfn.FORMULATEXT(G119),2) -> Row 19 | C119: Part 2 Clause 1 (b) | D119: and s16 | E119: =G110 -> 895.38 | G119: ='Table 1'!$U$19 -> 903.42 | J119: =INDIRECT(MID(_xlfn.FORMULATEXT($G119),2,LEN(_xlfn.FORMULATEXT($G119))-5)&"AF"&RIGHT(_xlfn.FORMULATEXT($G119),2),1) -> NZSRI Sch 1 Part 2 cl.1(b) | K119: NZSRI Schedule 1 Part 2 cl.1(b) | L119: Rate payable under clause 7 of Schedule 1AA to a person who is married or in a civil union or in a de facto relationship and whose spouse or partner is not entitled to receive New Zealand superannuation or a veteran’s pension— in any other case [ie on or after1 October 1991] | M119: NZSRIA 2018, Sch 1, Prt 2, cl 1(b) | P119: NZSRIA 2018, Sch 2, Prt 1, cl 1(c) (Repealed) | S119: =INDIRECT(MID(_xlfn.FORMULATEXT($G119),2,LEN(_xlfn.FORMULATEXT($G119))-5)&"C"&RIGHT(_xlfn.FORMULATEXT($G119),2),1) -> Married, Civil Union or Defacto Couple (NQP included) total
A120: ="Row "&RIGHT(_xlfn.FORMULATEXT(E120),2) -> Row 26 | C120: Part 1 Clause 3 | E120: ='Table 1'!$D$26 -> 55.35 | G120: =INDIRECT(MID(_xlfn.FORMULATEXT($E120),2,LEN(_xlfn.FORMULATEXT($E120))-5)&"R"&RIGHT(_xlfn.FORMULATEXT($E120),2),1) -> 56.58 | J120: =INDIRECT(MID(_xlfn.FORMULATEXT($E120),2,LEN(_xlfn.FORMULATEXT($E120))-5)&"AF"&RIGHT(_xlfn.FORMULATEXT($E120),2),1) -> NZSRI Sch 1 Part 1 cl.3 | K120: NZSRI Schedule 1 Part 1 cl.3 | L120: [Payable] Hospital rate payable under section 19 to a person who is married or in a civil union or in a de facto relationship and who has no dependent children, or a single person, who receives New Zealand superannuation - An amount that, after income tax is deducted under tax code M (as stated in schedule 5, part A, clause 4, table row 1 of the Tax Administration Act 1994) is equal to $X a week | M120: NZSRIA 2018, Sch 1, Prt 1, cl 3 | S120: Hospital Rate
K121: SSA Schedule 4 Part 9 cl. 3 and New Zealand Superannuation and Retirement Income Act 2001 Schedule 1 cl. 4 | L121: [Payable] Rate of special disability allowance under | M121: SSA 2018, Sch 4, Prt 9, Cl 3 & NZSRIA 2001, Sch 1, Prt 1, Cl 4 (repealed | P121: SSA 2018, Sch 4, Prt 9, Cl 3 & NZSRIA 2001, Sch 1, Prt 1, Cl 4 (repealed
C125: Schedule 2
A126: 0 | C126: Discretionary increases
A127: =IF(A126=0,"This grey section not needed unless big policy changes that PCO needs split out from normal CPI/wage effect","Discretionary decision made for AGA "&YEAR(D1)) -> This grey section not needed unless big policy changes that PCO needs split out from normal CPI/wage effect
C128: Part 1
C129: Increases to social security benefits - discretionary (ie policy decisions outside of wage adjustmen)
A131: Row reference in Table | C131: Provision amended | E131: Old amount ($) | G131: New amount ($)
A132: Yellow = second vesion of Tables for PCO showing wage/cpi adjusted to final WEAG etc rates | E132: Wage Adjusted Apr 23 | G132: Final Apr 23 = CPI adjusted
C133: Social Security Act 2018
C134: Schedule 4, Part 1 (Jobseeker support) | I134: Policy % Chg at April 2023 | J134: Policy Change at April 2023 | K134: Op Bal Apr 23 in Table 2 | L134: check op bal
A135: Table 2 Row 13 | C135: Clause 1 (a) | E135: =G16 -> 268.13 | G135: =INDIRECT(MID(_xlfn.FORMULATEXT($K135),2,LEN(_xlfn.FORMULATEXT($K135))-5)&"L"&RIGHT(_xlfn.FORMULATEXT($K135),2),1) -> 268.13 | I135: =J135/E135 -> 0 | J135: =G135-E135 -> 0 | K135: ='Table 2'!$D$13 -> 262.3 | L135: =K135=G16 -> FALSE
A136: Row 14 | C136: Clause 1 (b) | E136: =G17 -> 314.72 | G136: 314.72 | I136: =J136/E136 -> 0 | J136: =G136-E136 -> 0 | K136: ='Table 2'!$D$14 -> 307.87 | L136: =K136=G17 -> FALSE
A137: Row 25 | C137: Clause 1 (c) | E137: 372.93 | G137: 372.93 | I137: 0 | J137: 0 | K137: ='Table 2'!$D$25 -> 364.82 | L137: FALSE
A138: Row 16 | C138: Clause 1 (d) | E138: 361.32 | G138: 361.32 | I138: 0 | J138: 0 | K138: ='Table 2'!$D$16 -> 353.46 | L138: FALSE
A139: Row 22 | C139: Clause 1 (e) | E139: 505.8 | G139: 505.8 | I139: 0 | J139: 0 | K139: ='Table 2'!$D$22 -> 494.8 | L139: FALSE
A140: Row 27 | C140: Clause 1 (f) | E140: 505.8 | G140: 505.8 | I140: 0 | J140: 0 | K140: ='Table 2'!$D$27 -> 494.8 | L140: FALSE
A141: Row 17 | C141: Clause 1 (g) (i) | E141: 307.42 | G141: 307.42 | I141: 0 | J141: 0 | K141: ='Table 2'!$D$17 -> 300.73 | L141: FALSE
A142: Row 19 | C142: Clause 1 (g) (ii) | E142: 324.61 | G142: 324.61 | I142: 0 | J142: 0 | K142: ='Table 2'!$D$19 -> 317.55 | L142: FALSE
A143: Row 17 | C143: Clause 1 (h) (i) | E143: 307.42 | G143: 307.42 | I143: 0 | J143: 0 | K143: ='Table 2'!$D$17 -> 300.73 | L143: FALSE
A144: Row 21 | C144: Clause 1 (h) (ii) | E144: 324.61 | G144: 324.61 | I144: 0 | J144: 0 | K144: ='Table 2'!$D$21 -> 317.55 | L144: FALSE
A145: Row 29 | C145: Clause 1 (j) (i) | E145: 614.84 | G145: 614.84 | I145: 0 | J145: 0 | K145: ='Table 2'!$D$29 -> 601.46 | L145: FALSE
A146: Row 31 | C146: Clause 1 (j) (ii) | E146: 649.22 | G146: 649.22 | I146: 0 | J146: 0 | K146: ='Table 2'!$D$31 -> 635.1 | L146: FALSE
A147: Table 9 Row 13 | C147: Clause 2 | E147: 307.42 | G147: 307.42 | I147: 0 | J147: 0 | K147: ='Table 9'!$D$13 -> 300.73 | L147: FALSE
A148: Table 2 Row 23 | C148: Clause 3 (i) | E148: 307.42 | G148: 307.42 | I148: 0 | J148: 0 | K148: ='Table 2'!$D$23 -> 300.73 | L148: FALSE
A149: Row 24 | C149: Clause 3 (ii) | E149: 324.61 | G149: 324.61 | I149: 0 | J149: 0 | K149: ='Table 2'!$D$24 -> 317.55 | L149: FALSE
C152: Schedule 4, Part 2 (Sole parent support)
A153: Table 2 Row 62 | C153: Clause 1 | E153: =G34 -> 505.8 | G153: =INDIRECT(MID(_xlfn.FORMULATEXT($K153),2,LEN(_xlfn.FORMULATEXT($K153))-5)&"L"&RIGHT(_xlfn.FORMULATEXT($K153),2),1) -> 505.8 | I153: =J153/E153 -> 0 | J153: =G153-E153 -> 0 | K153: ='Table 2'!$D$62 -> 494.8 | L153: =K153=G34 -> FALSE
C156: Schedule 4, Part 3 (Supported living payment) | K156: Op Bal Apr 23 | L156: check op bal
A157: Table 2 Row 51 | C157: Clause 1 (a) | E157: =G38 -> 345.14 | G157: =INDIRECT(MID(_xlfn.FORMULATEXT($K157),2,LEN(_xlfn.FORMULATEXT($K157))-5)&"L"&RIGHT(_xlfn.FORMULATEXT($K157),2),1) -> 345.14 | I157: =J157/E157 -> 0 | J157: =G157-E157 -> 0 | K157: ='Table 2'!$D$51 -> 337.63 | L157: =K157=G38 -> FALSE
A158: Row 52 | C158: Clause 1 (b) | E158: 411.8 | G158: 411.8 | I158: 0 | J158: 0 | K158: ='Table 2'!$D$52 -> 402.84 | L158: FALSE
A159: Row 58 | C159: Clause 1 (c) | E159: 564.42 | G159: 564.42 | I159: 0 | J159: 0 | K159: ='Table 2'!$D$58 -> 552.14 | L159: FALSE
A160: Row 53 | C160: Clause 1 (d) (i) | E160: 349.85 | G160: 349.85 | I160: 0 | J160: 0 | K160: ='Table 2'!$D$53 -> 342.24 | L160: FALSE
A161: Row 55 | C161: Clause 1 (d) (ii) | E161: 367.06 | G161: 367.06 | I161: 0 | J161: 0 | K161: ='Table 2'!$D$55 -> 359.07 | L161: FALSE
A162: Row 53 | C162: Clause 1 (e) (i) | E162: 349.85 | G162: 349.85 | I162: 0 | J162: 0 | K162: ='Table 2'!$D$53 -> 342.24 | L162: FALSE
A163: Row 57 | C163: Clause 1 (e) (ii) | E163: 381.1 | G163: 381.1 | I163: 0 | J163: 0 | K163: ='Table 2'!$D$57 -> 372.81 | L163: FALSE
A164: Row 54 | C164: Clause 1 (g) (i) | E164: 699.7 | G164: 699.7 | I164: 0 | J164: 0 | K164: ='Table 2'!$D$54 -> 684.48 | L164: FALSE
A165: Row 56 | C165: Clause 1 (g) (ii) | E165: 734.12 | G165: 734.12 | I165: 0 | J165: 0 | K165: ='Table 2'!$D$56 -> 718.14 | L165: FALSE
A166: Row 53 | C166: Clause 1 (h) (i) | E166: 349.85 | G166: 349.85 | I166: 0 | J166: 0 | K166: ='Table 2'!$D$53 -> 342.24 | L166: FALSE
A167: Row 57 | C167: Clause 1 (h) (ii) | E167: 381.1 | G167: 381.1 | I167: 0 | J167: 0 | K167: ='Table 2'!$D$57 -> 372.81 | L167: FALSE
A168: Table 8 Row 32 | C168: Clause 2 | E168: 564.35 | G168: =INDIRECT(MID(_xlfn.FORMULATEXT($K168),2,LEN(_xlfn.FORMULATEXT($K168))-5)&"l"&RIGHT(_xlfn.FORMULATEXT($K168),2),1) -> 564.35 | I168: 0 | J168: 0 | K168: ='Table 8'!$D$32 -> 552.07 | L168: FALSE
A170: Table 2 Row 53 | C170: Clause 7 (a) | E170: 349.85 | G170: =INDIRECT(MID(_xlfn.FORMULATEXT($K170),2,LEN(_xlfn.FORMULATEXT($K170))-5)&"L"&RIGHT(_xlfn.FORMULATEXT($K170),2),1) -> 349.85 | I170: 0 | J170: 0 | K170: ='Table 2'!$D$53 -> 342.24 | L170: FALSE
A171: Row 57 | C171: Clause 7 (b) | E171: 381.1 | G171: =INDIRECT(MID(_xlfn.FORMULATEXT($K171),2,LEN(_xlfn.FORMULATEXT($K171))-5)&"L"&RIGHT(_xlfn.FORMULATEXT($K171),2),1) -> 381.1 | I171: 0 | J171: 0 | K171: ='Table 2'!$D$57 -> 372.81 | L171: FALSE
C174: Schedule 4, Part 6 (Rates and component of youth payment and young parent payment, and criteria for incentive payments) | K174: =K156 -> Op Bal Apr 23 | L174: check op bal
A175: Table 2 Row 35 | C175: Clause 1 | E175: =G56 -> 314.72 | G175: =INDIRECT(MID(_xlfn.FORMULATEXT($K175),2,LEN(_xlfn.FORMULATEXT($K175))-5)&"L"&RIGHT(_xlfn.FORMULATEXT($K175),2),1) -> 314.72 | I175: =J175/E175 -> 0 | J175: =G175-E175 -> 0 | K175: ='Table 2'!$D$35 -> 307.87 | L175: =K175=G56 -> FALSE
A176: Row 40 | C176: Clause 2 | E176: 291.79 | G176: 291.79 | I176: 0 | J176: 0 | K176: ='Table 2'!$D$40 -> 285.44 | L176: FALSE
A177: Row 44 | C177: Clause 3 | E177: 505.8 | G177: 505.8 | I177: 0 | J177: 0 | K177: ='Table 2'!$D$44 -> 494.8 | L177: FALSE
A178: Row 36 | C178: Clause 4 | E178: 307.42 | G178: 307.42 | I178: 0 | J178: 0 | K178: ='Table 2'!$D$36 -> 300.73 | L178: FALSE
A179: Row 43 | C179: Clause 5 (a) | E179: 324.61 | G179: 324.61 | I179: 0 | J179: 0 | K179: ='Table 2'!$D$43 -> 317.55 | L179: FALSE
A180: Row 41 | C180: Clause 5 (b) | E180: 324.61 | G180: 324.61 | I180: 0 | J180: 0 | K180: ='Table 2'!$D$41 -> 317.55 | L180: FALSE
C183: Schedule 4, Part 10 (Rates of generally abolished former widows’ benefits under section 21 of Social Security Act 1964 as saved by clause 55 of Schedule 1 of this Act for reciprocity agreement applicants or recipients)
A184: Table 2 Row 67 | C184: Clause 1 | E184: =G65 -> 505.8 | G184: =INDIRECT(MID(_xlfn.FORMULATEXT($K184),2,LEN(_xlfn.FORMULATEXT($K184))-5)&"L"&RIGHT(_xlfn.FORMULATEXT($K184),2),1) -> 505.8 | I184: =J184/E184 -> 0 | J184: =G184-E184 -> 0 | K184: ='Table 2'!$D$67 -> 494.8 | L184: =K184=G65 -> FALSE
A185: Row 66 | C185: Clause 2 | E185: 372.93 | G185: =INDIRECT(MID(_xlfn.FORMULATEXT($K185),2,LEN(_xlfn.FORMULATEXT($K185))-5)&"L"&RIGHT(_xlfn.FORMULATEXT($K185),2),1) -> 372.93 | I185: 0 | J185: 0 | K185: ='Table 2'!$D$66 -> 364.82 | L185: FALSE
C188: Schedule 4, Part 11 (Rates of generally abolished former DPB for solo parents under section 27B of Social Security Act 1964 as saved by clause 55 of Schedule 1 of this Act for reciprocity agreement applicants or recipients)
A189: Table 2 Row 67 | C189: Clause 1 | E189: =G70 -> 505.8 | G189: =INDIRECT(MID(_xlfn.FORMULATEXT($K189),2,LEN(_xlfn.FORMULATEXT($K189))-5)&"L"&RIGHT(_xlfn.FORMULATEXT($K189),2),1) -> 505.8 | I189: =J189/E189 -> 0 | J189: =G189-E189 -> 0 | K189: ='Table 2'!$D$67 -> 494.8 | L189: =K189=G70 -> FALSE
A190: Row 66 | C190: Clause 2 | E190: 372.93 | G190: =INDIRECT(MID(_xlfn.FORMULATEXT($K190),2,LEN(_xlfn.FORMULATEXT($K190))-5)&"L"&RIGHT(_xlfn.FORMULATEXT($K190),2),1) -> 372.93 | I190: 0 | J190: 0 | K190: ='Table 2'!$D$66 -> 364.82 | L190: FALSE
C194: Part 2
C195: CPI adjustments to social security benefits and allowances
A197: Row reference in Table | C197: Provision amended | E197: Old amount ($) | G197: New amount ($) | K197: Old amount ($)
E198: CPI Adjusted Apr 22 | G198: Final Apr 22
C199: Schedule 4, Part 4 (Orphan's benefit) | K199: Op Bal Apr 21 | L199: check op bal
A200: Table 2 Row 74 | C200: Clause 1 (a) | E200: =G81 -> 340.01 | G200: =INDIRECT(MID(_xlfn.FORMULATEXT($K200),2,LEN(_xlfn.FORMULATEXT($K200))-5)&"L"&RIGHT(_xlfn.FORMULATEXT($K200),2),1) -> 340.01 | J200: =G200-E200 -> 0 | K200: ='Table 2'!$D$74 -> 332.61 | L200: =K200=E81 -> TRUE
A201: Row 75 | C201: Clause 1 (b) | E201: 317.3 | G201: =INDIRECT(MID(_xlfn.FORMULATEXT($K201),2,LEN(_xlfn.FORMULATEXT($K201))-5)&"L"&RIGHT(_xlfn.FORMULATEXT($K201),2),1) -> 317.3 | J201: 0 | K201: ='Table 2'!$D$75 -> 310.4 | L201: TRUE
A202: Row 76 | C202: Clause 1 (c) | E202: 294.47 | G202: =INDIRECT(MID(_xlfn.FORMULATEXT($K202),2,LEN(_xlfn.FORMULATEXT($K202))-5)&"L"&RIGHT(_xlfn.FORMULATEXT($K202),2),1) -> 294.47 | J202: 0 | K202: ='Table 2'!$D$76 -> 288.06 | L202: TRUE
A203: Row 77 | C203: Clause 1 (d) | E203: 292.44 | G203: =INDIRECT(MID(_xlfn.FORMULATEXT($K203),2,LEN(_xlfn.FORMULATEXT($K203))-5)&"L"&RIGHT(_xlfn.FORMULATEXT($K203),2),1) -> 292.44 | J203: 0 | K203: ='Table 2'!$D$77 -> 286.08 | L203: TRUE
C206: Schedule 4, Part 5 (Unsupported child's benefit)
A207: Table 2 Row 74 | C207: Clause 1 (a) | E207: =G88 -> 340.01 | G207: =INDIRECT(MID(_xlfn.FORMULATEXT($K207),2,LEN(_xlfn.FORMULATEXT($K207))-5)&"L"&RIGHT(_xlfn.FORMULATEXT($K207),2),1) -> 340.01 | J207: =G207-E207 -> 0 | K207: ='Table 2'!$D$74 -> 332.61 | L207: =K207=E88 -> TRUE
A208: Row 75 | C208: Clause 1 (b) | E208: 317.3 | G208: =INDIRECT(MID(_xlfn.FORMULATEXT($K208),2,LEN(_xlfn.FORMULATEXT($K208))-5)&"L"&RIGHT(_xlfn.FORMULATEXT($K208),2),1) -> 317.3 | J208: =G208-E208 -> 0 | K208: ='Table 2'!$D$75 -> 310.4 | L208: TRUE
A209: Row 76 | C209: Clause 1 (c) | E209: 294.47 | G209: =INDIRECT(MID(_xlfn.FORMULATEXT($K209),2,LEN(_xlfn.FORMULATEXT($K209))-5)&"L"&RIGHT(_xlfn.FORMULATEXT($K209),2),1) -> 294.47 | J209: 0 | K209: ='Table 2'!$D$76 -> 288.06 | L209: TRUE
A210: Row 77 | C210: Clause 1 (d) | E210: 292.44 | G210: =INDIRECT(MID(_xlfn.FORMULATEXT($K210),2,LEN(_xlfn.FORMULATEXT($K210))-5)&"L"&RIGHT(_xlfn.FORMULATEXT($K210),2),1) -> 292.44 | J210: 0 | K210: ='Table 2'!$D$77 -> 286.08 | L210: TRUE
C215: Part 3
C216: Increases to social security benefits, asset limits, etc under the Social Security Act 2018
V217: additional payments under same clause at same rate
A218: Row reference in Table | C218: Provision amended | E218: Old amount ($) | G218: New amount ($) | J218: Check of statutory reference | S218: Description | V218: =E218 -> Old amount ($) | X218: =G218 -> New amount ($) | AA218: =E218 -> Old amount ($) | AC218: =G218 -> New amount ($)
C221: Schedule 4, Part 6 (Rates and component of youth payment and young parent payment, and criteria for incentive payments)
A222: =MID(_xlfn.FORMULATEXT(E222),3,8)&" Row "&RIGHT(_xlfn.FORMULATEXT(E222),2) -> Table 10 Row 69 | C222: Clause 11 | E222: ='Table 10'!$D$69 -> 270.1 | G222: =INDIRECT(MID(_xlfn.FORMULATEXT($E222),2,LEN(_xlfn.FORMULATEXT($E222))-5)&"g"&RIGHT(_xlfn.FORMULATEXT($E222),2),1) -> 276.11 | J222: =INDIRECT(MID(_xlfn.FORMULATEXT($E222),2,LEN(_xlfn.FORMULATEXT($E222))-5)&"k"&RIGHT(_xlfn.FORMULATEXT($E222),2),1) -> SSA 2018 Schedule 4 Part 6 Subpart 4 cl. 11 and (for income threshold only) clause 11B | K222: SSA 2018 Schedule 4 Part 6 Subpart 4 cl. 11 | L222: ="The applicable rate of youth payment or young parent payment in clause 1, 2, or 3 must be reduced by $1 for every $1 of the young person’s weekly income (excluding any 1 or more information share child support payments) that exceeds $"&G222&", but no amount of youth payment or young parent payment or incentive payment is payable if the young person’s weekly income (excluding any 1 or more information share child support payments) exceeds $"&G223&"." -> The applicable rate of youth payment or young parent payment in clause 1, 2, or 3 must be reduced by $1 for every $1 of the young person’s weekly income (excluding any 1 or more information share child support payments) that exceeds $276.11, but no amount of youth payment or young parent payment or incentive payment is payable if the young person’s weekly income (excluding any 1 or more information share child support payments) exceeds $326.11. | M222: SSA 2018, Sch 4, Prt 6, Subprt 4, Cl 11 | S222: =INDIRECT(MID(_xlfn.FORMULATEXT($E222),2,LEN(_xlfn.FORMULATEXT($E222))-5)&"C"&RIGHT(_xlfn.FORMULATEXT($E222),2),1) -> Single, 16-17 Year old | V222: ='Table 10'!$D$75 -> 270.1 | X222: =INDIRECT(MID(_xlfn.FORMULATEXT($V222),2,LEN(_xlfn.FORMULATEXT($V222))-5)&"g"&RIGHT(_xlfn.FORMULATEXT($V222),2),1) -> 276.11 | Y222: =INDIRECT(MID(_xlfn.FORMULATEXT($V222),2,LEN(_xlfn.FORMULATEXT($V222))-5)&"C"&RIGHT(_xlfn.FORMULATEXT($V222),2),1) -> Sole parent | AA222: ='Table 10'!$D$73 -> 270.1 | AC222: =INDIRECT(MID(_xlfn.FORMULATEXT($AA222),2,LEN(_xlfn.FORMULATEXT($AA222))-5)&"g"&RIGHT(_xlfn.FORMULATEXT($AA222),2),1) -> 276.11 | AD222: =INDIRECT(MID(_xlfn.FORMULATEXT($AA222),2,LEN(_xlfn.FORMULATEXT($AA222))-5)&"C"&RIGHT(_xlfn.FORMULATEXT($AA222),2),1) -> Sole parent 16-17 year old, living at home or financially supported by parents or guardian (earning less than FTC threshold)
A223: ="Row "&RIGHT(_xlfn.FORMULATEXT(E223),2) -> Row 69 | C223: Clause 11 | E223: ='Table 10'!$E$69 -> 320.1 | G223: =INDIRECT(MID(_xlfn.FORMULATEXT($E223),2,LEN(_xlfn.FORMULATEXT($E223))-5)&"h"&RIGHT(_xlfn.FORMULATEXT($E223),2),1) -> 326.11 | J223: SSA 2018 Schedule 4 Part 6 Subpart 4 cl. 11 and (for income threshold only) clause 11B | K223: SSA 2018 Schedule 4 Part 6 Subpart 4 cl. 11 | L223: =L222 -> The applicable rate of youth payment or young parent payment in clause 1, 2, or 3 must be reduced by $1 for every $1 of the young person’s weekly income (excluding any 1 or more information share child support payments) that exceeds $276.11, but no amount of youth payment or young parent payment or incentive payment is payable if the young person’s weekly income (excluding any 1 or more information share child support payments) exceeds $326.11. | M223: SSA 2018, Sch 4, Prt 6, Subprt 4, Cl 11 | S223: Single, 16-17 Year old | V223: ='Table 10'!$E$75 -> 320.1 | X223: =INDIRECT(MID(_xlfn.FORMULATEXT($V223),2,LEN(_xlfn.FORMULATEXT($V223))-5)&"h"&RIGHT(_xlfn.FORMULATEXT($V223),2),1) -> 326.11 | Y223: =INDIRECT(MID(_xlfn.FORMULATEXT($V223),2,LEN(_xlfn.FORMULATEXT($V223))-5)&"C"&RIGHT(_xlfn.FORMULATEXT($V223),2),1) -> Sole parent | AA223: ='Table 10'!$E$73 -> 320.1 | AC223: =INDIRECT(MID(_xlfn.FORMULATEXT($AA223),2,LEN(_xlfn.FORMULATEXT($AA223))-5)&"h"&RIGHT(_xlfn.FORMULATEXT($AA223),2),1) -> 326.11 | AD223: =INDIRECT(MID(_xlfn.FORMULATEXT($AA223),2,LEN(_xlfn.FORMULATEXT($AA223))-5)&"C"&RIGHT(_xlfn.FORMULATEXT($AA223),2),1) -> Sole parent 16-17 year old, living at home or financially supported by parents or guardian (earning less than FTC threshold)
A224: Row 69 | C224: Clause 11B | E224: ='Table 10'!$D$69 -> 270.1 | G224: =INDIRECT(MID(_xlfn.FORMULATEXT($E224),2,LEN(_xlfn.FORMULATEXT($E224))-5)&"g"&RIGHT(_xlfn.FORMULATEXT($E224),2),1) -> 276.11 | J224: SSA 2018 Schedule 4 Part 6 Subpart 4 cl. 11 and (for income threshold only) clause 11B | K224: SSA 2018 Schedule 4 Part 6 Subpart 4 cl. 11B | L224: In clause 11A, the young person’s relevant weekly income means their weekly income—that is 1 or more information share child support payments; and that exceeds $258.08 of their weekly income that is 1 or both of— | M224: SSA 2018, Sch 4, Prt 6, Subprt 4, Cl 11B | S224: Single, 16-17 Year old | V224: ='Table 10'!$D$75 -> 270.1 | X224: =INDIRECT(MID(_xlfn.FORMULATEXT($V224),2,LEN(_xlfn.FORMULATEXT($V224))-5)&"g"&RIGHT(_xlfn.FORMULATEXT($V224),2),1) -> 276.11 | Y224: =INDIRECT(MID(_xlfn.FORMULATEXT($V224),2,LEN(_xlfn.FORMULATEXT($V224))-5)&"C"&RIGHT(_xlfn.FORMULATEXT($V224),2),1) -> Sole parent | AA224: ='Table 10'!$D$73 -> 270.1 | AC224: =INDIRECT(MID(_xlfn.FORMULATEXT($AA224),2,LEN(_xlfn.FORMULATEXT($AA224))-5)&"g"&RIGHT(_xlfn.FORMULATEXT($AA224),2),1) -> 276.11 | AD224: =INDIRECT(MID(_xlfn.FORMULATEXT($AA224),2,LEN(_xlfn.FORMULATEXT($AA224))-5)&"C"&RIGHT(_xlfn.FORMULATEXT($AA224),2),1) -> Sole parent 16-17 year old, living at home or financially supported by parents or guardian (earning less than FTC threshold)
A225: Row 70 | C225: Clause 12 | E225: ='Table 10'!$D$70 -> 270.1 | G225: =INDIRECT(MID(_xlfn.FORMULATEXT($E225),2,LEN(_xlfn.FORMULATEXT($E225))-5)&"g"&RIGHT(_xlfn.FORMULATEXT($E225),2),1) -> 276.11 | J225: SSA 2018 Schedule 4 Part 6 Subpart 4 cl. 12 and (for income threshold only) clauses 12A,12B | K225: SSA 2018 Schedule 4 Part 6 Subpart 4 cl. 12 | L225: ="The applicable rate of youth payment or young parent payment in clause 4 or 5 must be reduced by 50 cents for every $1 of the combined weekly income"&" of the young person and the young person’s spouse or partner (excluding any 1 or more information share child support payments) that exceeds $"&G225&", but no amount of youth payment or young parent payment or incentive payment is payable if that combined weekly income (excluding any 1 or more information share child support payments) exceeds $"&G226&"." -> The applicable rate of youth payment or young parent payment in clause 4 or 5 must be reduced by 50 cents for every $1 of the combined weekly income of the young person and the young person’s spouse or partner (excluding any 1 or more information share child support payments) that exceeds $276.11, but no amount of youth payment or young parent payment or incentive payment is payable if that combined weekly income (excluding any 1 or more information share child support payments) exceeds $376.11. | M225: SSA 2018, Sch 4, Prt 6, Subprt 4, Cl 12 | S225: Married, civil union or de facto couple (without children) total | V225: ='Table 10'!$E$74 -> 370.1 | X225: =INDIRECT(MID(_xlfn.FORMULATEXT($V225),2,LEN(_xlfn.FORMULATEXT($V225))-5)&"h"&RIGHT(_xlfn.FORMULATEXT($V225),2),1) -> 376.11 | Y225: =INDIRECT(MID(_xlfn.FORMULATEXT($V225),2,LEN(_xlfn.FORMULATEXT($V225))-5)&"C"&RIGHT(_xlfn.FORMULATEXT($V225),2),1) -> Married, civil union or de facto couple (with children) total
A226: Row 70 | C226: Clause 12 | E226: ='Table 10'!$E$70 -> 370.1 | G226: =INDIRECT(MID(_xlfn.FORMULATEXT($E226),2,LEN(_xlfn.FORMULATEXT($E226))-5)&"h"&RIGHT(_xlfn.FORMULATEXT($E226),2),1) -> 376.11 | J226: SSA 2018 Schedule 4 Part 6 Subpart 4 cl. 12 and (for income threshold only) clauses 12A,12B | K226: SSA 2018 Schedule 4 Part 6 Subpart 4 cl. 12 | L226: =L225 -> The applicable rate of youth payment or young parent payment in clause 4 or 5 must be reduced by 50 cents for every $1 of the combined weekly income of the young person and the young person’s spouse or partner (excluding any 1 or more information share child support payments) that exceeds $276.11, but no amount of youth payment or young parent payment or incentive payment is payable if that combined weekly income (excluding any 1 or more information share child support payments) exceeds $376.11. | M226: SSA 2018, Sch 4, Prt 6, Subprt 4, Cl 12 | S226: Married, civil union or de facto couple (without children) total | V226: ='Table 10'!$E$74 -> 370.1 | X226: =INDIRECT(MID(_xlfn.FORMULATEXT($V226),2,LEN(_xlfn.FORMULATEXT($V226))-5)&"h"&RIGHT(_xlfn.FORMULATEXT($V226),2),1) -> 376.11 | Y226: =INDIRECT(MID(_xlfn.FORMULATEXT($V226),2,LEN(_xlfn.FORMULATEXT($V226))-5)&"C"&RIGHT(_xlfn.FORMULATEXT($V226),2),1) -> Married, civil union or de facto couple (with children) total
A227: Row 70 | C227: Clause 12A | E227: ='Table 10'!$D$70 -> 270.1 | G227: =INDIRECT(MID(_xlfn.FORMULATEXT($E227),2,LEN(_xlfn.FORMULATEXT($E227))-5)&"g"&RIGHT(_xlfn.FORMULATEXT($E227),2),1) -> 276.11 | J227: SSA 2018 Schedule 4 Part 6 Subpart 4 cl. 12 and (for income threshold only) clauses 12A,12B | K227: SSA 2018 Schedule 4 Part 6 Subpart 4 cl. 12A | L227: ="If, after complying with clause 12, an amount of youth payment or young parent payment or incentive payment is payable, the applicable rate of youth payment or young parent payment in clause 4 or 5 "&"must also be reduced by 50 cents for every $1 of the relevant combined weekly income of the young person and the young person’s spouse or partner (as defined in clause 12B) that exceeds $"&G227&"." -> If, after complying with clause 12, an amount of youth payment or young parent payment or incentive payment is payable, the applicable rate of youth payment or young parent payment in clause 4 or 5 must also be reduced by 50 cents for every $1 of the relevant combined weekly income of the young person and the young person’s spouse or partner (as defined in clause 12B) that exceeds $276.11. | M227: SSA 2018, Sch 4, Prt 6, Subprt 4, Cl 12A | S227: Married, civil union or de facto couple (without children) total | V227: ='Table 10'!$D$74 -> 270.1 | X227: =INDIRECT(MID(_xlfn.FORMULATEXT($V227),2,LEN(_xlfn.FORMULATEXT($V227))-5)&"g"&RIGHT(_xlfn.FORMULATEXT($V227),2),1) -> 276.11 | Y227: =INDIRECT(MID(_xlfn.FORMULATEXT($V227),2,LEN(_xlfn.FORMULATEXT($V227))-5)&"C"&RIGHT(_xlfn.FORMULATEXT($V227),2),1) -> Married, civil union or de facto couple (with children) total
A228: ="Row "&RIGHT(_xlfn.FORMULATEXT(E228),2) -> Row 70 | C228: Clause 12B | E228: ='Table 10'!$D$70 -> 270.1 | G228: =INDIRECT(MID(_xlfn.FORMULATEXT($E228),2,LEN(_xlfn.FORMULATEXT($E228))-5)&"g"&RIGHT(_xlfn.FORMULATEXT($E228),2),1) -> 276.11 | J228: SSA 2018 Schedule 4 Part 6 Subpart 4 cl. 12 and (for income threshold only) clauses 12A,12B | K228: SSA 2018 Schedule 4 Part 6 Subpart 4 cl. 12B | L228: ="In clause 12A, the relevant combined weekly income of the young person and the young person’s spouse or partner means their combined weekly income— that is 1 or more information share child support payments; and that exceeds $"&G228&" of their combined weekly income that is 1 or both of—" -> In clause 12A, the relevant combined weekly income of the young person and the young person’s spouse or partner means their combined weekly income— that is 1 or more information share child support payments; and that exceeds $276.11 of their combined weekly income that is 1 or both of— | M228: SSA 2018, Sch 4, Prt 6, Subprt 4, Cl 12B | S228: Married, civil union or de facto couple (without children) total | V228: ='Table 10'!$D$74 -> 270.1 | X228: =INDIRECT(MID(_xlfn.FORMULATEXT($V228),2,LEN(_xlfn.FORMULATEXT($V228))-5)&"g"&RIGHT(_xlfn.FORMULATEXT($V228),2),1) -> 276.11 | Y228: Married, civil union or de facto couple (with children) total
C231: Schedule 4, Part 9 (Child disability allowance and disability allowance)
A232: =MID(_xlfn.FORMULATEXT(E232),3,7)&" Row "&RIGHT(_xlfn.FORMULATEXT(E232),2) -> Table 4 Row 13 | C232: Clause 1 | E232: ='Table 4'!$D$13 -> 59.23 | G232: =INDIRECT(MID(_xlfn.FORMULATEXT($E232),2,LEN(_xlfn.FORMULATEXT($E232))-5)&"L"&RIGHT(_xlfn.FORMULATEXT($E232),2),1) -> 60.55 | J232: =INDIRECT(MID(_xlfn.FORMULATEXT($E232),2,LEN(_xlfn.FORMULATEXT($E232))-5)&"O"&RIGHT(_xlfn.FORMULATEXT($E232),2),1) -> SSA Schedule 4 Part 9 cl. 1 | K232: SSA Schedule 4 Part 9 cl. 1 | L232: Rate of child disability allowance | M232: SSA 2018, Sch 4, Prt 9, Cl 1 | S232: =INDIRECT(MID(_xlfn.FORMULATEXT($E232),2,LEN(_xlfn.FORMULATEXT($E232))-5)&"C"&RIGHT(_xlfn.FORMULATEXT($E232),2),1) -> Child Disability Allowance
A233: ="Row "&RIGHT(_xlfn.FORMULATEXT(E233),2) -> Row 22 | C233: Clause 2 | E233: ='Table 4'!$D$22 -> 78.6 | G233: =INDIRECT(MID(_xlfn.FORMULATEXT($E233),2,LEN(_xlfn.FORMULATEXT($E233))-5)&"L"&RIGHT(_xlfn.FORMULATEXT($E233),2),1) -> 80.35 | J233: =INDIRECT(MID(_xlfn.FORMULATEXT($E233),2,LEN(_xlfn.FORMULATEXT($E233))-5)&"O"&RIGHT(_xlfn.FORMULATEXT($E233),2),1) -> SSA Schedule 4 Part 9 cl. 2 | K233: SSA Schedule 4 Part 9 cl. 2 | L233: Maximum rate of disability allowance under section 85 | M233: SSA 2018, Sch 4, Prt 9, Cl 2 | S233: Standard Disability Allowance (Maximum)
A234: Row 23 | C234: Clause 3 | E234: ='Table 4'!$D$23 -> 49.02 | G234: =INDIRECT(MID(_xlfn.FORMULATEXT($E234),2,LEN(_xlfn.FORMULATEXT($E234))-5)&"L"&RIGHT(_xlfn.FORMULATEXT($E234),2),1) -> 50.11 | J234: =INDIRECT(MID(_xlfn.FORMULATEXT($E234),2,LEN(_xlfn.FORMULATEXT($E234))-5)&"O"&RIGHT(_xlfn.FORMULATEXT($E234),2),1) -> SSA Schedule 4 Part 9 cl. 3 | K234: SSA Schedule 4 Part 9 cl. 3 and New Zealand Superannuation and Retirement Income Act 2001 Schedule 1 cl. 3 | L234: Rate of special disability allowance under section 89 | M234: SSA 2018, Sch 4, Prt 9, Cl 3 | S234: Special Disability Allowance
V236: ="rates at left are for "&'Table 23'!$C$18 -> rates at left are for Seasonal Work Assistance Programme, New Employment Transition Grant Programme, and Student Allowance Transfer Grant Programme
C237: Schedule 5, Part 1 (Asset limits) | Y237: ='Table 23'!$C$12 -> Special Benefit, Advance Payment of Benefit, Special Needs Grants, Emergency Housing Grants, Recoverable Assistance, Temporary Additional Support,
A238: =MID(_xlfn.FORMULATEXT(E238),3,8)&" Row "&RIGHT(_xlfn.FORMULATEXT(E238),2) -> Table 23 Row 19 | C238: Clause 1 | E238: ='Table 23'!$D$19 -> 1338.9 | G238: =INDIRECT(MID(_xlfn.FORMULATEXT($E238),2,LEN(_xlfn.FORMULATEXT($E238))-5)&"K"&RIGHT(_xlfn.FORMULATEXT($E238),2),1) -> 1368.68 | J238: =INDIRECT(MID(_xlfn.FORMULATEXT($E238),2,LEN(_xlfn.FORMULATEXT($E238))-5)&"L"&RIGHT(_xlfn.FORMULATEXT($E238),2),1) -> SSA 2018 Schedule 5 Part 1 cl. 1 | K238: SSA 2018 Schedule 5 Part 1 cl. 1 | L238: [Asset limit] For a single person without dependent children | M238: SSA 2018, Sch 5, Prt 1, Cl 1 | S238: =INDIRECT(MID(_xlfn.FORMULATEXT($E238),2,LEN(_xlfn.FORMULATEXT($E238))-5)&"C"&RIGHT(_xlfn.FORMULATEXT($E238),2),1) -> Single person without dependent children | V238: ='Table 23'!$D$14 -> 1338.9 | X238: =INDIRECT(MID(_xlfn.FORMULATEXT($E238),2,LEN(_xlfn.FORMULATEXT($E238))-5)&"K"&RIGHT(_xlfn.FORMULATEXT($E238),2),1) -> 1368.68 | Y238: =INDIRECT(MID(_xlfn.FORMULATEXT($V238),2,LEN(_xlfn.FORMULATEXT($V238))-5)&"C"&RIGHT(_xlfn.FORMULATEXT($V238),2),1) -> Single person without dependent children | AD238: ='Table 23'!$C$25 -> Funeral Grants (cash assets exemption)
A239: ="Row "&RIGHT(_xlfn.FORMULATEXT(E239),2) -> Row 20 | C239: Clause 2 | E239: ='Table 23'!$D$20 -> 2230.96 | G239: =INDIRECT(MID(_xlfn.FORMULATEXT($E239),2,LEN(_xlfn.FORMULATEXT($E239))-5)&"K"&RIGHT(_xlfn.FORMULATEXT($E239),2),1) -> 2280.58 | J239: =INDIRECT(MID(_xlfn.FORMULATEXT($E239),2,LEN(_xlfn.FORMULATEXT($E239))-5)&"L"&RIGHT(_xlfn.FORMULATEXT($E239),2),1) -> SSA 2018 Schedule 5 Part 1 cl. 2 | K239: SSA 2018 Schedule 5 Part 1 cl. 2 | L239: [Asset limit] For a person who is in a relationship with or without dependent children | M239: SSA 2018, Sch 5, Prt 1, Cl 2 | S239: Person who is Married, Civil Union or Defacto with or without dependent children | V239: ='Table 23'!$D$15 -> 2230.96 | X239: =INDIRECT(MID(_xlfn.FORMULATEXT($E239),2,LEN(_xlfn.FORMULATEXT($E239))-5)&"K"&RIGHT(_xlfn.FORMULATEXT($E239),2),1) -> 2280.58 | Y239: =INDIRECT(MID(_xlfn.FORMULATEXT($V239),2,LEN(_xlfn.FORMULATEXT($V239))-5)&"C"&RIGHT(_xlfn.FORMULATEXT($V239),2),1) -> Married, Civil Union or Defacto with or without dependent children and Sole Parents | AA239: ='Table 23'!$D$26 -> 2230.96 | AC239: =INDIRECT(MID(_xlfn.FORMULATEXT($E239),2,LEN(_xlfn.FORMULATEXT($E239))-5)&"K"&RIGHT(_xlfn.FORMULATEXT($E239),2),1) -> 2280.58 | AD239: =INDIRECT(MID(_xlfn.FORMULATEXT($AA239),2,LEN(_xlfn.FORMULATEXT($AA239))-5)&"C"&RIGHT(_xlfn.FORMULATEXT($AA239),2),1) -> Person who is Married, Civil Union or Defacto with or without dependent children and Sole Parents (Does not include Single People)
A240: Row 21 | C240: Clause 3 | E240: ='Table 23'!$D$21 -> 1758.04 | G240: 1797.14 | J240: SSA 2018 Schedule 5 Part 1 cl. 3 | K240: SSA 2018 Schedule 5 Part 1 cl. 3 | L240: [Asset limit] For a sole parent with 1 dependent child | M240: SSA 2018, Sch 5, Prt 1, Cl 3 | S240: Sole parent with 1 dependent child
A241: Row 22 | C241: Clause 4 | E241: ='Table 23'!$D$22 -> 1888.47 | G241: 1930.47 | J241: SSA 2018 Schedule 5 Part 1 cl. 4 | K241: SSA 2018 Schedule 5 Part 1 cl. 4 | L241: [Asset limit] For any other sole parent | M241: SSA 2018, Sch 5, Prt 1, Cl 4 | S241: Any other sole parent
C244: Schedule 5, Part 2 (Income limits)
A245: =MID(_xlfn.FORMULATEXT(E245),3,8)&" Row "&RIGHT(_xlfn.FORMULATEXT(E245),2) -> Table 22 Row 13 | C245: Clause 5 | E245: ='Table 22'!$D$13 -> 611.56 | G245: =INDIRECT(MID(_xlfn.FORMULATEXT($E245),2,LEN(_xlfn.FORMULATEXT($E245))-5)&"K"&RIGHT(_xlfn.FORMULATEXT($E245),2),1) -> 625.16 | J245: =INDIRECT(MID(_xlfn.FORMULATEXT($E245),2,LEN(_xlfn.FORMULATEXT($E245))-5)&"L"&RIGHT(_xlfn.FORMULATEXT($E245),2),1) -> SSA 2018 Schedule 5 Part 2 cl. 5 | K245: SSA 2018 Schedule 5 Part 2 cl. 5 | L245: [Income limit] For a single person aged 16 or 17 years without dependent children | M245: SSA 2018, Sch 5, Prt 2, Cl 5 | S245: =INDIRECT(MID(_xlfn.FORMULATEXT($E245),2,LEN(_xlfn.FORMULATEXT($E245))-5)&"C"&RIGHT(_xlfn.FORMULATEXT($E245),2),1) -> Single person aged 16 or 17 years without dependent children
A246: ="Row "&RIGHT(_xlfn.FORMULATEXT(E246),2) -> Row 14 | C246: Clause 6 | E246: ='Table 22'!$D$14 -> 702.85 | G246: =INDIRECT(MID(_xlfn.FORMULATEXT($E246),2,LEN(_xlfn.FORMULATEXT($E246))-5)&"K"&RIGHT(_xlfn.FORMULATEXT($E246),2),1) -> 718.48 | J246: =INDIRECT(MID(_xlfn.FORMULATEXT($E246),2,LEN(_xlfn.FORMULATEXT($E246))-5)&"L"&RIGHT(_xlfn.FORMULATEXT($E246),2),1) -> SSA 2018 Schedule 5 Part 2 cl. 6 | K246: SSA 2018 Schedule 5 Part 2 cl. 6 | L246: [Income limit] For any other single person without dependent children | M246: SSA 2018, Sch 5, Prt 2, Cl 6 | S246: Single person aged 18+ years without dependent children
A247: Row 15 | C247: Clause 7 | E247: ='Table 22'!$D$15 -> 1020.9 | G247: 1043.6 | J247: SSA 2018 Schedule 5 Part 2 cl. 7 | K247: SSA 2018 Schedule 5 Part 2 cl. 7 | L247: [Income limit] For a person who is in a relationship with or without dependent children | M247: SSA 2018, Sch 5, Prt 2, Cl 7 | S247: Person who is Married, Civil Union or Defacto with or without dependent children
A248: Row 16 | C248: Clause 8 | E248: ='Table 22'!$D$16 -> 852.89 | G248: 871.86 | J248: SSA 2018 Schedule 5 Part 2 cl. 8 | K248: SSA 2018 Schedule 5 Part 2 cl. 8 | L248: [Income limit] For a sole parent with 1 dependent child | M248: SSA 2018, Sch 5, Prt 2, Cl 8 | S248: Sole parent with 1 dependent child
A249: Row 17 | C249: Clause 9 | E249: ='Table 22'!$D$17 -> 898.56 | G249: 918.54 | J249: SSA 2018 Schedule 5 Part 2 cl. 9 | K249: SSA 2018 Schedule 5 Part 2 cl. 9 | L249: [Income limit] For any other sole parent | M249: SSA 2018, Sch 5, Prt 2, Cl 9 | S249: Any other sole parent
C254: Schedule 5, Part 3 (Disability allowance income limits)
A255: =MID(_xlfn.FORMULATEXT(E255),3,8)&" Row "&RIGHT(_xlfn.FORMULATEXT(E255),2) -> Table 11 Row 13 | C255: Clause 10 | E255: ='Table 11'!$D$13 -> 660.9 | G255: =INDIRECT(MID(_xlfn.FORMULATEXT($E255),2,LEN(_xlfn.FORMULATEXT($E255))-5)&"K"&RIGHT(_xlfn.FORMULATEXT($E255),2),1) -> 675.6 | J255: =INDIRECT(MID(_xlfn.FORMULATEXT($E255),2,LEN(_xlfn.FORMULATEXT($E255))-5)&"L"&RIGHT(_xlfn.FORMULATEXT($E255),2),1) -> SSA Schedule 5 Part 3 cl. 10 | K255: SSA Schedule 5 Part 3 cl. 10 | L255: [Disbaility Allowance income limit] For a single person aged 16 or 17 years without dependent children | M255: SSA 2018, Sch 5, Prt 3, Cl 10 | S255: =INDIRECT(MID(_xlfn.FORMULATEXT($E255),2,LEN(_xlfn.FORMULATEXT($E255))-5)&"C"&RIGHT(_xlfn.FORMULATEXT($E255),2),1) -> Single person aged 16 or 17 years without dependent children
A256: ="Row "&RIGHT(_xlfn.FORMULATEXT(E256),2) -> Row 14 | C256: Clause 11 | E256: ='Table 11'!$D$14 -> 823.31 | G256: =INDIRECT(MID(_xlfn.FORMULATEXT($E256),2,LEN(_xlfn.FORMULATEXT($E256))-5)&"K"&RIGHT(_xlfn.FORMULATEXT($E256),2),1) -> 843.78 | J256: =INDIRECT(MID(_xlfn.FORMULATEXT($E256),2,LEN(_xlfn.FORMULATEXT($E256))-5)&"L"&RIGHT(_xlfn.FORMULATEXT($E256),2),1) -> SSA Schedule 5 Part 3 cl. 11 | K256: SSA Schedule 5 Part 3 cl. 11 | L256: [Disbaility Allowance income limit] For any other single person without dependent children | M256: SSA 2018, Sch 5, Prt 3, Cl 11 | S256: Any other single person without dependent children
A257: Row 15 | C257: Clause 12 | E257: ='Table 11'!$D$15 -> 1225.95 | G257: 1256.07 | J257: SSA Schedule 5 Part 3 cl. 12 | K257: SSA Schedule 5 Part 3 cl. 12 | L257: [Disbaility Allowance income limit] For a person who is in a relationship with or without dependent children | M257: SSA 2018, Sch 5, Prt 3, Cl 12 | S257: Person who is Married, Civil Union or Defacto with or without dependent children
A258: Row 16 | C258: Clause 13 | E258: ='Table 11'!$D$16 -> 921.73 | G258: 942.23 | J258: SSA Schedule 5 Part 3 cl. 13 | K258: SSA Schedule 5 Part 3 cl. 13 | L258: [Disbaility Allowance income limit] For a sole parent with 1 dependent child | M258: SSA 2018, Sch 5, Prt 3, Cl 13 | S258: Sole parent with 1 dependent child
A259: Row 17 | C259: Clause 14 | E259: ='Table 11'!$D$17 -> 971.14 | G259: 992.74 | J259: SSA Schedule 5 Part 3 cl. 14 | K259: SSA Schedule 5 Part 3 cl. 14 | L259: [Disbaility Allowance income limit] For any other sole parent | M259: SSA 2018, Sch 5, Prt 3, Cl 14 | S259: Any other sole parent
C265: Social Security (Definition of Income Test 1, Income Test 2,
C266: ="Income Test 3, and Income Test 4) Order "&YEAR($D$1) -> Income Test 3, and Income Test 4) Order 2025
B268: Opening balance needs to be reset here each year (should be automatic if cell D1 has been updated properly) - only the closing balance is stored in the AGA model
C269: IGNORE - NOT RELEVANT at AGA 2022 | F269: opening year | G269: =DATE(YEAR(D1)-1,MONTH(D1),DAY(D1)) -> 2024-04-01 | H269: <<==updated each year to = opening year (eg in AGA 2022, this should read 1 Apr 2021)
B270: Schedule 2 amended (Dictionary) | V270: These are old intended thresholds, rescinded and replaced in april 2021 by 160/250 thresholds at left
... 188 more rows

Sheet WelfProgs_MinDirects
C3: Welfare Programmes and Minsterial Directons
C5: These are programmes and payments that are approved by Minister under:
C7: for Ministerial Directions -
B8: Cl 2(1), Sch1 SSA 2018 | D8: section 5 of the Social Security Act 1964 (saved by clause 2(1) of Schedule 1 of Social Security Act 2018)
B9: section 7 of SSA 2018 | C9: or | D9: section 7 of the Social Security Act 2018
C11: for Welfare Programmes -
B12: Cl 21, Sch1 SSA 2018 | D12: section 124(1)(d) of Social Security Act 1964 (saved by clause 21 of Schedule 1 of Socal Security Act 2018)
B13: section 101 of SSA 2018 | C13: or | D13: section 101 of the Social Security Act 2018
C17: 1. All welfare programme/ ministerial directions references in the model and the relevant link in MAP
E18: Table Reference and Description | F18: Old Amount ($) | H18: New Amount ($) | J18: Check of statutory reference | O18: Statutory Reference | S18: Descriptions in programme
C19: Name of WP/MD | E19: ='Table 22'!B53&" "&'Table 22'!C53 -> 22.05 Advance Payment of Benefit and Special Needs Grants Weekly Income Limits | O19: https://www.workandincome.govt.nz/map/legislation/welfare-programmes/special-needs-grants-programme/clause-7-income-limits.html | S19: Except for the purposes of clauses 14A and 15.6, an applicant is not entitled to a grant if his or her income is in excess of the appropriate amount:
E20: =INDIRECT(MID(_xlfn.FORMULATEXT($F20),2,LEN(_xlfn.FORMULATEXT($F20))-4)&"C"&RIGHT(_xlfn.FORMULATEXT($F20),2),1) -> Single person aged 16 or 17 years without dependent children | F20: ='Table 22'!D54 -> 825.3 | H20: =INDIRECT(MID(_xlfn.FORMULATEXT($F20),2,LEN(_xlfn.FORMULATEXT($F20))-4)&"K"&RIGHT(_xlfn.FORMULATEXT($F20),2),1) -> 854.3 | J20: =INDIRECT(MID(_xlfn.FORMULATEXT($F20),2,LEN(_xlfn.FORMULATEXT($F20))-4)&"L"&RIGHT(_xlfn.FORMULATEXT($F20),2),1) -> SNG Welfare Prog Part 2 Clause 7.1 (a) | O20: =HYPERLINK($O$19,$J20) -> SNG Welfare Prog Part 2 Clause 7.1 (a) | S20: ="for a single person aged 16 or 17 years without dependent children, $"&H20&" per week:" -> for a single person aged 16 or 17 years without dependent children, $854.3 per week:
C21: Special Needs Grants Programme | E21: =INDIRECT(MID(_xlfn.FORMULATEXT($F21),2,LEN(_xlfn.FORMULATEXT($F21))-4)&"C"&RIGHT(_xlfn.FORMULATEXT($F21),2),1) -> Single person aged 18+ years without dependent children | F21: ='Table 22'!D55 -> 948.5 | H21: =INDIRECT(MID(_xlfn.FORMULATEXT($F21),2,LEN(_xlfn.FORMULATEXT($F21))-4)&"K"&RIGHT(_xlfn.FORMULATEXT($F21),2),1) -> 981.83 | J21: =INDIRECT(MID(_xlfn.FORMULATEXT($F21),2,LEN(_xlfn.FORMULATEXT($F21))-4)&"L"&RIGHT(_xlfn.FORMULATEXT($F21),2),1) -> SNG Welfare Prog Part 2 Clause 7.1 (b) | O21: =HYPERLINK($O$19,$J21) -> SNG Welfare Prog Part 2 Clause 7.1 (b) | S21: ="for any other single person without dependent children, $"&H21&" per week:" -> for any other single person without dependent children, $981.83 per week:
C22: (Welfare Programme) | E22: =INDIRECT(MID(_xlfn.FORMULATEXT($F22),2,LEN(_xlfn.FORMULATEXT($F22))-4)&"C"&RIGHT(_xlfn.FORMULATEXT($F22),2),1) -> Person who is Married, Civil Union or Defacto with or without dependent children | F22: ='Table 22'!D56 -> 1377.69 | H22: =INDIRECT(MID(_xlfn.FORMULATEXT($F22),2,LEN(_xlfn.FORMULATEXT($F22))-4)&"K"&RIGHT(_xlfn.FORMULATEXT($F22),2),1) -> 1426.1 | J22: =INDIRECT(MID(_xlfn.FORMULATEXT($F22),2,LEN(_xlfn.FORMULATEXT($F22))-4)&"L"&RIGHT(_xlfn.FORMULATEXT($F22),2),1) -> SNG Welfare Prog Part 2 Clause 7.1 (c) | O22: =HYPERLINK($O$19,$J22) -> SNG Welfare Prog Part 2 Clause 7.1 (c) | S22: ="for a person who is in a relationship with or without dependent children, $"&H22&" per week:" -> for a person who is in a relationship with or without dependent children, $1426.1 per week:
E23: =INDIRECT(MID(_xlfn.FORMULATEXT($F23),2,LEN(_xlfn.FORMULATEXT($F23))-4)&"C"&RIGHT(_xlfn.FORMULATEXT($F23),2),1) -> Sole parent with 1 dependent child | F23: ='Table 22'!D57 -> 1150.97 | H23: =INDIRECT(MID(_xlfn.FORMULATEXT($F23),2,LEN(_xlfn.FORMULATEXT($F23))-4)&"K"&RIGHT(_xlfn.FORMULATEXT($F23),2),1) -> 1191.41 | J23: =INDIRECT(MID(_xlfn.FORMULATEXT($F23),2,LEN(_xlfn.FORMULATEXT($F23))-4)&"L"&RIGHT(_xlfn.FORMULATEXT($F23),2),1) -> SNG Welfare Prog Part 2 Clause 7.1 (d) | O23: =HYPERLINK($O$19,$J23) -> SNG Welfare Prog Part 2 Clause 7.1 (d) | S23: ="for a sole parent with 1 dependent child, $"&H23&" per week:" -> for a sole parent with 1 dependent child, $1191.41 per week:
E24: =INDIRECT(MID(_xlfn.FORMULATEXT($F24),2,LEN(_xlfn.FORMULATEXT($F24))-4)&"C"&RIGHT(_xlfn.FORMULATEXT($F24),2),1) -> Any other sole parent | F24: ='Table 22'!D58 -> 1212.61 | H24: =INDIRECT(MID(_xlfn.FORMULATEXT($F24),2,LEN(_xlfn.FORMULATEXT($F24))-4)&"K"&RIGHT(_xlfn.FORMULATEXT($F24),2),1) -> 1255.22 | J24: =INDIRECT(MID(_xlfn.FORMULATEXT($F24),2,LEN(_xlfn.FORMULATEXT($F24))-4)&"L"&RIGHT(_xlfn.FORMULATEXT($F24),2),1) -> SNG Welfare Prog Part 2 Clause 7.1 (e) | O24: =HYPERLINK($O$19,$J24) -> SNG Welfare Prog Part 2 Clause 7.1 (e) | S24: ="for any other sole parent, $"&H24&" per week." -> for any other sole parent, $1255.22 per week.
C27: Name of WP/MD | E27: ='Table 18'!B12&" "&'Table 18'!C12 -> 18.01 Jobseeker Support and Non-Beneficiaries Without Children | O27: https://www.workandincome.govt.nz/map/legislation/ministerial-directions/special-benefit-direction/schedule.html | S27: For a person who is not a beneficiary, or who is in receipt of an jobseeker support, at the applicable rate in Part 1 of Schedule 4, and who is:
E28: =LEFT(INDIRECT(MID(_xlfn.FORMULATEXT($F28),2,LEN(_xlfn.FORMULATEXT($F28))-4)&"C"&RIGHT(_xlfn.FORMULATEXT($F28),2)-2,1),18)&" "&INDIRECT(MID(_xlfn.FORMULATEXT($F28),2,LEN(_xlfn.FORMULATEXT($F28))-4)&"C"&RIGHT(_xlfn.FORMULATEXT($F28),2),1) -> Single 18-19 years Single 20-24 years | F28: ='Table 18'!D15 -> 114.38 | H28: =INDIRECT(MID(_xlfn.FORMULATEXT($F28),2,LEN(_xlfn.FORMULATEXT($F28))-4)&"L"&RIGHT(_xlfn.FORMULATEXT($F28),2),1) -> 116.92 | J28: =INDIRECT(MID(_xlfn.FORMULATEXT($F28),2,LEN(_xlfn.FORMULATEXT($F28))-4)&"m"&RIGHT(_xlfn.FORMULATEXT($F28),2),1) -> Special Benefit Direction Schedule Part 1 cl.1(a) | O28: =HYPERLINK($O$27,$J28) -> Special Benefit Direction Schedule Part 1 cl.1(a) | S28: single aged 18 to 24 years
C29: Direction in relation to Special Benefit | E29: =INDIRECT(MID(_xlfn.FORMULATEXT($F29),2,LEN(_xlfn.FORMULATEXT($F29))-4)&"C"&RIGHT(_xlfn.FORMULATEXT($F29),2),1) -> Single 25 years and over | F29: ='Table 18'!D16 -> 159.43 | H29: =INDIRECT(MID(_xlfn.FORMULATEXT($F29),2,LEN(_xlfn.FORMULATEXT($F29))-4)&"L"&RIGHT(_xlfn.FORMULATEXT($F29),2),1) -> 162.98 | J29: =INDIRECT(MID(_xlfn.FORMULATEXT($F29),2,LEN(_xlfn.FORMULATEXT($F29))-4)&"m"&RIGHT(_xlfn.FORMULATEXT($F29),2),1) -> Special Benefit Direction Schedule Part 1 cl.1(b) | O29: =HYPERLINK($O$27,$J29) -> Special Benefit Direction Schedule Part 1 cl.1(b) | S29: single aged 25 years or more
C30: (Ministerial Direction) | E30: =INDIRECT(MID(_xlfn.FORMULATEXT($F30),2,LEN(_xlfn.FORMULATEXT($F30))-4)&"C"&RIGHT(_xlfn.FORMULATEXT($F30),2),1) -> Married, Civil Union or Defacto Couple | F30: ='Table 18'!D17 -> 299.15 | H30: =INDIRECT(MID(_xlfn.FORMULATEXT($F30),2,LEN(_xlfn.FORMULATEXT($F30))-4)&"L"&RIGHT(_xlfn.FORMULATEXT($F30),2),1) -> 305.8 | J30: =INDIRECT(MID(_xlfn.FORMULATEXT($F30),2,LEN(_xlfn.FORMULATEXT($F30))-4)&"m"&RIGHT(_xlfn.FORMULATEXT($F30),2),1) -> Special Benefit Direction Schedule Part 1 cl.1(c) | O30: =HYPERLINK($O$27,$J30) -> Special Benefit Direction Schedule Part 1 cl.1(c) | S30: in a relationship
E31: ='Table 18'!B41&" "&'Table 18'!C41 -> 18.08 Supported Living Payments Without Children | S31: For a person in receipt of a supported living payment under section 34 of the Act who is:
E32: =INDIRECT(MID(_xlfn.FORMULATEXT($F32),2,LEN(_xlfn.FORMULATEXT($F32))-4)&"C"&RIGHT(_xlfn.FORMULATEXT($F32),2),1) -> Single 16-17 years | F32: ='Table 18'!D42 -> 152.41 | H32: =INDIRECT(MID(_xlfn.FORMULATEXT($F32),2,LEN(_xlfn.FORMULATEXT($F32))-4)&"L"&RIGHT(_xlfn.FORMULATEXT($F32),2),1) -> 155.8 | J32: =INDIRECT(MID(_xlfn.FORMULATEXT($F32),2,LEN(_xlfn.FORMULATEXT($F32))-4)&"m"&RIGHT(_xlfn.FORMULATEXT($F32),2),1) -> Special Benefit Direction Schedule Part 1 cl. 4(a) | O32: =HYPERLINK($O$27,$J32) -> Special Benefit Direction Schedule Part 1 cl. 4(a) | S32: single aged 16 or 17 years
E33: =INDIRECT(MID(_xlfn.FORMULATEXT($F33),2,LEN(_xlfn.FORMULATEXT($F33))-4)&"C"&RIGHT(_xlfn.FORMULATEXT($F33),2),1) -> Single 18 years and over | F33: ='Table 18'!D43 -> 216.3 | H33: =INDIRECT(MID(_xlfn.FORMULATEXT($F33),2,LEN(_xlfn.FORMULATEXT($F33))-4)&"L"&RIGHT(_xlfn.FORMULATEXT($F33),2),1) -> 221.11 | J33: =INDIRECT(MID(_xlfn.FORMULATEXT($F33),2,LEN(_xlfn.FORMULATEXT($F33))-4)&"m"&RIGHT(_xlfn.FORMULATEXT($F33),2),1) -> Special Benefit Direction Schedule Part 1 cl. 4(b) | O33: =HYPERLINK($O$27,$J33) -> Special Benefit Direction Schedule Part 1 cl. 4(b) | S33: single aged 18 or more
E34: =INDIRECT(MID(_xlfn.FORMULATEXT($F34),2,LEN(_xlfn.FORMULATEXT($F34))-4)&"C"&RIGHT(_xlfn.FORMULATEXT($F34),2),1) -> Married, Civil Union or Defacto Couple | F34: ='Table 18'!D44 -> 394.6 | H34: =INDIRECT(MID(_xlfn.FORMULATEXT($F34),2,LEN(_xlfn.FORMULATEXT($F34))-4)&"L"&RIGHT(_xlfn.FORMULATEXT($F34),2),1) -> 403.38 | J34: =INDIRECT(MID(_xlfn.FORMULATEXT($F34),2,LEN(_xlfn.FORMULATEXT($F34))-4)&"m"&RIGHT(_xlfn.FORMULATEXT($F34),2),1) -> Special Benefit Direction Schedule Part 1 cl. 4(c) | O34: =HYPERLINK($O$27,$J34) -> Special Benefit Direction Schedule Part 1 cl. 4(c) | S34: in a relationship
E35: =E27 -> 18.01 Jobseeker Support and Non-Beneficiaries Without Children
E36: =INDIRECT(MID(_xlfn.FORMULATEXT($F36),2,LEN(_xlfn.FORMULATEXT($F36))-4)&"C"&RIGHT(_xlfn.FORMULATEXT($F36),2),1) -> Grandparented Widow woman alone and DPB woman alone (granted before 15/7/2013) | F36: ='Table 18'!D18 -> 168.53 | H36: =INDIRECT(MID(_xlfn.FORMULATEXT($F36),2,LEN(_xlfn.FORMULATEXT($F36))-4)&"L"&RIGHT(_xlfn.FORMULATEXT($F36),2),1) -> 172.28 | J36: =INDIRECT(MID(_xlfn.FORMULATEXT($F36),2,LEN(_xlfn.FORMULATEXT($F36))-4)&"m"&RIGHT(_xlfn.FORMULATEXT($F36),2),1) -> Special Benefit Direction Schedule Part 1 cl. 5 | O36: =HYPERLINK($O$27,$J36) -> Special Benefit Direction Schedule Part 1 cl. 5 | S36: For a person who was transferred to jobseeker support from a widow's benefit or a domestic purposes benefit for women alone on 15 July 2013 by clause 2(11) or (12) or clause 10(8) of Schedule 32 of the Social Security Act 1964 and who continues to receive jobseeker support
E37: ='Table 18'!B47&" "&'Table 18'!C47 -> 18.09 Supported Living Payments (Caring for a patient requiring care) without children | S37: For a person in receipt of a supported living payment under section 40 of the Act (caring for another person) and who is:
E38: =INDIRECT(MID(_xlfn.FORMULATEXT($F38),2,LEN(_xlfn.FORMULATEXT($F38))-4)&"C"&RIGHT(_xlfn.FORMULATEXT($F38),2),1) -> Single 18 years and over | F38: ='Table 18'!D49 -> 216.3 | H38: =INDIRECT(MID(_xlfn.FORMULATEXT($F38),2,LEN(_xlfn.FORMULATEXT($F38))-4)&"L"&RIGHT(_xlfn.FORMULATEXT($F38),2),1) -> 221.11 | J38: =INDIRECT(MID(_xlfn.FORMULATEXT($F38),2,LEN(_xlfn.FORMULATEXT($F38))-4)&"m"&RIGHT(_xlfn.FORMULATEXT($F38),2),1) -> Special Benefit Direction Schedule Part 1 cl. 6(b) | O38: =HYPERLINK($O$27,$J38) -> Special Benefit Direction Schedule Part 1 cl. 6(b) | S38: single aged 18 or more
E39: =INDIRECT(MID(_xlfn.FORMULATEXT($F39),2,LEN(_xlfn.FORMULATEXT($F39))-4)&"C"&RIGHT(_xlfn.FORMULATEXT($F39),2),1) -> Half Married, Civil Union or Defacto Couple | F39: ='Table 18'!D50 -> 168.53 | H39: =INDIRECT(MID(_xlfn.FORMULATEXT($F39),2,LEN(_xlfn.FORMULATEXT($F39))-4)&"L"&RIGHT(_xlfn.FORMULATEXT($F39),2),1) -> 172.28 | J39: =INDIRECT(MID(_xlfn.FORMULATEXT($F39),2,LEN(_xlfn.FORMULATEXT($F39))-4)&"m"&RIGHT(_xlfn.FORMULATEXT($F39),2),1) -> Special Benefit Direction Schedule Part 1 cl. 6(c) | O39: =HYPERLINK($O$27,$J39) -> Special Benefit Direction Schedule Part 1 cl. 6(c) | S39: in a relationship
E40: ='Table 18'!B53&" "&'Table 18'!C53 -> 18.1 NZ Super/Veterans Without Children | S40: For a person in receipt of a New Zealand superannuation or a veteran's pension and who is:
E41: =INDIRECT(MID(_xlfn.FORMULATEXT($F41),2,LEN(_xlfn.FORMULATEXT($F41))-4)&"C"&RIGHT(_xlfn.FORMULATEXT($F41),2),1) -> Single Living Alone | F41: ='Table 18'!D54 -> 216.61 | H41: =INDIRECT(MID(_xlfn.FORMULATEXT($F41),2,LEN(_xlfn.FORMULATEXT($F41))-4)&"L"&RIGHT(_xlfn.FORMULATEXT($F41),2),1) -> 221.43 | J41: =INDIRECT(MID(_xlfn.FORMULATEXT($F41),2,LEN(_xlfn.FORMULATEXT($F41))-4)&"m"&RIGHT(_xlfn.FORMULATEXT($F41),2),1) -> Special Benefit Direction Schedule Part 1 cl. 7(a) | O41: =HYPERLINK($O$27,$J41) -> Special Benefit Direction Schedule Part 1 cl. 7(a) | S41: single and living alone
E42: =INDIRECT(MID(_xlfn.FORMULATEXT($F42),2,LEN(_xlfn.FORMULATEXT($F42))-4)&"C"&RIGHT(_xlfn.FORMULATEXT($F42),2),1) -> Single Sharing | F42: ='Table 18'!D55 -> 216.61 | H42: =INDIRECT(MID(_xlfn.FORMULATEXT($F42),2,LEN(_xlfn.FORMULATEXT($F42))-4)&"L"&RIGHT(_xlfn.FORMULATEXT($F42),2),1) -> 221.43 | J42: =INDIRECT(MID(_xlfn.FORMULATEXT($F42),2,LEN(_xlfn.FORMULATEXT($F42))-4)&"m"&RIGHT(_xlfn.FORMULATEXT($F42),2),1) -> Special Benefit Direction Schedule Part 1 cl. 7(b) | O42: =HYPERLINK($O$27,$J42) -> Special Benefit Direction Schedule Part 1 cl. 7(b) | S42: single and not living alone
E43: =INDIRECT(MID(_xlfn.FORMULATEXT($F43),2,LEN(_xlfn.FORMULATEXT($F43))-4)&"C"&RIGHT(_xlfn.FORMULATEXT($F43),2),1) -> Married, Civil Union or Defacto Couple | F43: ='Table 18'!D56 -> 395.2 | H43: =INDIRECT(MID(_xlfn.FORMULATEXT($F43),2,LEN(_xlfn.FORMULATEXT($F43))-4)&"L"&RIGHT(_xlfn.FORMULATEXT($F43),2),1) -> 403.99 | J43: =INDIRECT(MID(_xlfn.FORMULATEXT($F43),2,LEN(_xlfn.FORMULATEXT($F43))-4)&"m"&RIGHT(_xlfn.FORMULATEXT($F43),2),1) -> Special Benefit Direction Schedule Part 1 cl. 7(c) | O43: =HYPERLINK($O$27,$J43) -> Special Benefit Direction Schedule Part 1 cl. 7(c) | S43: in a relationship
E44: ='Table 19'!B12&" "&'Table 19'!C12 -> 19.01 Combination
E45: =INDIRECT(MID(_xlfn.FORMULATEXT($F45),2,LEN(_xlfn.FORMULATEXT($F45))-4)&"C"&RIGHT(_xlfn.FORMULATEXT($F45),2),1) -> NZ Super and Jobseeker Support | F45: ='Table 19'!D13 -> 252.01 | H45: =INDIRECT(MID(_xlfn.FORMULATEXT($F45),2,LEN(_xlfn.FORMULATEXT($F45))-4)&"K"&RIGHT(_xlfn.FORMULATEXT($F45),2),1) -> 257.61 | J45: =INDIRECT(MID(_xlfn.FORMULATEXT($F45),2,LEN(_xlfn.FORMULATEXT($F45))-4)&"L"&RIGHT(_xlfn.FORMULATEXT($F45),2),1) -> Special Benefit Direction Schedule Part 1 cl. 9 | O45: =HYPERLINK($O$27,$J45) -> Special Benefit Direction Schedule Part 1 cl. 9 | S45: For a couple who are in a relationship one of whom is in receipt of New Zealand superannuation where the other is receiving jobseeker support at the applicable rate in Part 1 of Schedule 4
E46: =INDIRECT(MID(_xlfn.FORMULATEXT($F46),2,LEN(_xlfn.FORMULATEXT($F46))-4)&"C"&RIGHT(_xlfn.FORMULATEXT($F46),2),1) -> NZ Super and Supported Living Payment | F46: ='Table 19'!D14 -> 363.53 | H46: =INDIRECT(MID(_xlfn.FORMULATEXT($F46),2,LEN(_xlfn.FORMULATEXT($F46))-4)&"K"&RIGHT(_xlfn.FORMULATEXT($F46),2),1) -> 371.61 | J46: =INDIRECT(MID(_xlfn.FORMULATEXT($F46),2,LEN(_xlfn.FORMULATEXT($F46))-4)&"L"&RIGHT(_xlfn.FORMULATEXT($F46),2),1) -> Special Benefit Direction Schedule Part 1 cl. 10 | O46: =HYPERLINK($O$27,$J46) -> Special Benefit Direction Schedule Part 1 cl. 10 | S46: For a couple who are in a relationship one of whom is in receipt of New Zealand superannuation where the other is receiving a supported living payment under section 34 of the Act
E47: =INDIRECT(MID(_xlfn.FORMULATEXT($F47),2,LEN(_xlfn.FORMULATEXT($F47))-4)&"C"&RIGHT(_xlfn.FORMULATEXT($F47),2),1) -> Supported Living Payment and Jobseeker Support | F47: ='Table 19'!D15 -> 283.09 | H47: =INDIRECT(MID(_xlfn.FORMULATEXT($F47),2,LEN(_xlfn.FORMULATEXT($F47))-4)&"K"&RIGHT(_xlfn.FORMULATEXT($F47),2),1) -> 289.39 | J47: =INDIRECT(MID(_xlfn.FORMULATEXT($F47),2,LEN(_xlfn.FORMULATEXT($F47))-4)&"L"&RIGHT(_xlfn.FORMULATEXT($F47),2),1) -> Special Benefit Direction Schedule Part 1 cl. 13 | O47: =HYPERLINK($O$27,$J47) -> Special Benefit Direction Schedule Part 1 cl. 13 | S47: For a couple who are in a relationship one of whom is receiving a supported living payment under section 40 of the Act (caring for another person) where the other is receiving jobseeker support at the applicable rate in Part 1 of Schedule 4
E48: ='Table 18'!B41&" "&'Table 18'!C41 -> 18.08 Supported Living Payments Without Children
E49: =INDIRECT(MID(_xlfn.FORMULATEXT($F49),2,LEN(_xlfn.FORMULATEXT($F49))-4)&"C"&RIGHT(_xlfn.FORMULATEXT($F49),2),1) -> Married, Civil Union or Defacto Couple | F49: ='Table 18'!D44 -> 394.6 | H49: =INDIRECT(MID(_xlfn.FORMULATEXT($F49),2,LEN(_xlfn.FORMULATEXT($F49))-4)&"L"&RIGHT(_xlfn.FORMULATEXT($F49),2),1) -> 403.38 | J49: =INDIRECT(MID(_xlfn.FORMULATEXT($F49),2,LEN(_xlfn.FORMULATEXT($F49))-4)&"O"&RIGHT(_xlfn.FORMULATEXT($F49),2),1) -> Special Benefit Direction Schedule Part 1 cl. 15 | O49: =HYPERLINK($O$27,$J49) -> Special Benefit Direction Schedule Part 1 cl. 15 | S49: For a couple who are in a relationship one of whom is receiving a supported living payment under section 40 of the Act (caring for another person) where the other is receiving a supported living payment under section 34 of the Act
C51: Name of WP/MD | E51: ='Table 22'!B53&" "&'Table 22'!C53 -> 22.05 Advance Payment of Benefit and Special Needs Grants Weekly Income Limits | O51: https://www.workandincome.govt.nz/map/legislation/ministerial-directions/advance-payment-of-benefits-direction/clause-2-identifying-particular-immediate-need.html | S51: The appropriate amount of income in subclause 2.3(b) is:
E52: =INDIRECT(MID(_xlfn.FORMULATEXT($F52),2,LEN(_xlfn.FORMULATEXT($F52))-4)&"C"&RIGHT(_xlfn.FORMULATEXT($F52),2),1) -> Single person aged 16 or 17 years without dependent children | F52: ='Table 22'!D54 -> 825.3 | H52: =INDIRECT(MID(_xlfn.FORMULATEXT($F52),2,LEN(_xlfn.FORMULATEXT($F52))-4)&"K"&RIGHT(_xlfn.FORMULATEXT($F52),2),1) -> 854.3 | J52: =INDIRECT(MID(_xlfn.FORMULATEXT($F52),2,LEN(_xlfn.FORMULATEXT($F52))-4)&"O"&RIGHT(_xlfn.FORMULATEXT($F52),2),1) -> Advance Pays of Ben Direction Clause 2.4(a) | O52: =HYPERLINK($O$51,$J52) -> Advance Pays of Ben Direction Clause 2.4(a) | S52: ="for a single person aged 16 or 17 years without dependent children, $"&H52&" per week:" -> for a single person aged 16 or 17 years without dependent children, $854.3 per week:
C53: Direction in relation to the Advance Payments of Instalments of Benefit | E53: =INDIRECT(MID(_xlfn.FORMULATEXT($F53),2,LEN(_xlfn.FORMULATEXT($F53))-4)&"C"&RIGHT(_xlfn.FORMULATEXT($F53),2),1) -> Single person aged 18+ years without dependent children | F53: ='Table 22'!D55 -> 948.5 | H53: =INDIRECT(MID(_xlfn.FORMULATEXT($F53),2,LEN(_xlfn.FORMULATEXT($F53))-4)&"K"&RIGHT(_xlfn.FORMULATEXT($F53),2),1) -> 981.83 | J53: =INDIRECT(MID(_xlfn.FORMULATEXT($F53),2,LEN(_xlfn.FORMULATEXT($F53))-4)&"O"&RIGHT(_xlfn.FORMULATEXT($F53),2),1) -> Advance Pays of Ben Direction Clause 2.4(b) | O53: =HYPERLINK($O$51,$J53) -> Advance Pays of Ben Direction Clause 2.4(b) | S53: ="for any other single person without dependent children, $"&H53&" per week:" -> for any other single person without dependent children, $981.83 per week:
C54: (Ministerial Direction) | E54: =INDIRECT(MID(_xlfn.FORMULATEXT($F54),2,LEN(_xlfn.FORMULATEXT($F54))-4)&"C"&RIGHT(_xlfn.FORMULATEXT($F54),2),1) -> Person who is Married, Civil Union or Defacto with or without dependent children | F54: ='Table 22'!D56 -> 1377.69 | H54: =INDIRECT(MID(_xlfn.FORMULATEXT($F54),2,LEN(_xlfn.FORMULATEXT($F54))-4)&"K"&RIGHT(_xlfn.FORMULATEXT($F54),2),1) -> 1426.1 | J54: =INDIRECT(MID(_xlfn.FORMULATEXT($F54),2,LEN(_xlfn.FORMULATEXT($F54))-4)&"O"&RIGHT(_xlfn.FORMULATEXT($F54),2),1) -> Advance Pays of Ben Direction Clause 2.4(c) | O54: =HYPERLINK($O$51,$J54) -> Advance Pays of Ben Direction Clause 2.4(c) | S54: ="for a person who is in a relationship with or without dependent children, $"&H54&" per week:" -> for a person who is in a relationship with or without dependent children, $1426.1 per week:
E55: =INDIRECT(MID(_xlfn.FORMULATEXT($F55),2,LEN(_xlfn.FORMULATEXT($F55))-4)&"C"&RIGHT(_xlfn.FORMULATEXT($F55),2),1) -> Sole parent with 1 dependent child | F55: ='Table 22'!D57 -> 1150.97 | H55: =INDIRECT(MID(_xlfn.FORMULATEXT($F55),2,LEN(_xlfn.FORMULATEXT($F55))-4)&"K"&RIGHT(_xlfn.FORMULATEXT($F55),2),1) -> 1191.41 | J55: =INDIRECT(MID(_xlfn.FORMULATEXT($F55),2,LEN(_xlfn.FORMULATEXT($F55))-4)&"O"&RIGHT(_xlfn.FORMULATEXT($F55),2),1) -> Advance Pays of Ben Direction Clause 2.4(d) | O55: =HYPERLINK($O$51,$J55) -> Advance Pays of Ben Direction Clause 2.4(d) | S55: ="for a sole parent with 1 dependent child, $"&H55&" per week:" -> for a sole parent with 1 dependent child, $1191.41 per week:
E56: =INDIRECT(MID(_xlfn.FORMULATEXT($F56),2,LEN(_xlfn.FORMULATEXT($F56))-4)&"C"&RIGHT(_xlfn.FORMULATEXT($F56),2),1) -> Any other sole parent | F56: ='Table 22'!D58 -> 1212.61 | H56: =INDIRECT(MID(_xlfn.FORMULATEXT($F56),2,LEN(_xlfn.FORMULATEXT($F56))-4)&"K"&RIGHT(_xlfn.FORMULATEXT($F56),2),1) -> 1255.22 | J56: =INDIRECT(MID(_xlfn.FORMULATEXT($F56),2,LEN(_xlfn.FORMULATEXT($F56))-4)&"O"&RIGHT(_xlfn.FORMULATEXT($F56),2),1) -> Advance Pays of Ben Direction Clause 2.4(e) | O56: =HYPERLINK($O$51,$J56) -> Advance Pays of Ben Direction Clause 2.4(e) | S56: ="for any other sole parent, $"&H56&" per week." -> for any other sole parent, $1255.22 per week.
C58: Name of WP/MD
E59: ='Table 33'!B12&" "&'Table 33'!C12 -> 33.01 Early Learning Payment | O59: https://www.workandincome.govt.nz/map/legislation/welfare-programmes/family-start-and-early-start-childcare-assistance-programme/clause-8-rate-of-assistance.html
C60: Family Start and Early Start (Childcare Assistance) Programme | E60: =INDIRECT(MID(_xlfn.FORMULATEXT($F60),2,LEN(_xlfn.FORMULATEXT($F60))-4)&"C"&RIGHT(_xlfn.FORMULATEXT($F60),2),1) -> Maximum payment rate for each child | F60: ='Table 33'!D13 -> 9.51 | H60: =INDIRECT(MID(_xlfn.FORMULATEXT($F60),2,LEN(_xlfn.FORMULATEXT($F60))-4)&"K"&RIGHT(_xlfn.FORMULATEXT($F60),2),1) -> 9.72 | J60: =INDIRECT(MID(_xlfn.FORMULATEXT($F60),2,LEN(_xlfn.FORMULATEXT($F60))-4)&"L"&RIGHT(_xlfn.FORMULATEXT($F60),2),1) -> Clause 8(3)c Family Start and Early Start (Childcare Assistance) Programme | O60: =HYPERLINK($O$59,$J60) -> Clause 8(3)c Family Start and Early Start (Childcare Assistance) Programme | S60: ="is $"&H60&" per hour multiplied by the number of hours per week (not exceeding the appropriate number of hours set out in clause 6) for which the child is enrolled to participate in the programme." -> is $9.72 per hour multiplied by the number of hours per week (not exceeding the appropriate number of hours set out in clause 6) for which the child is enrolled to participate in the programme.
C61: (Welfare Programme)
C63: Name of WP/MD
E64: ='Table 32'!B12&" "&'Table 32'!C12 -> 32.01 Home Help Programme | O64: https://www.workandincome.govt.nz/map/legislation/welfare-programmes/home-help-programme/schedule.html | S64: The hourly rate that may be paid for a home helper is-
C65: Home Help Programme | E65: =INDIRECT(MID(_xlfn.FORMULATEXT($F65),2,LEN(_xlfn.FORMULATEXT($F65))-4)&"C"&RIGHT(_xlfn.FORMULATEXT($F65),2),1) -> Home Helper (Excluding Holiday Pay) | F65: ='Table 32'!D13 -> 24.37 | H65: =INDIRECT(MID(_xlfn.FORMULATEXT($F65),2,LEN(_xlfn.FORMULATEXT($F65))-4)&"K"&RIGHT(_xlfn.FORMULATEXT($F65),2),1) -> 24.74 | J65: =INDIRECT(MID(_xlfn.FORMULATEXT($F65),2,LEN(_xlfn.FORMULATEXT($F65))-4)&"L"&RIGHT(_xlfn.FORMULATEXT($F65),2),1) -> Clause 1(a) Part 1 Schedule to Home Help Programme | O65: =HYPERLINK($O$64,$J65) -> Clause 1(a) Part 1 Schedule to Home Help Programme | S65: ="$"&H65&"; plus" -> $24.74; plus
C66: (Welfare Programme)
C68: Name of WP/MD
E69: ='Table 7'!B12&" "&'Table 7'!B6 -> 7.01 New Employment Transition Grant | O69: https://www.workandincome.govt.nz/map/legislation/welfare-programmes/new-employment-transition-grant-programme/clause-5-payment.html | S69: The amount of a Transition Grant is the lesser of-
C70: New Employment Transition Grant Programme | E70: ='Table 7'!C13 -> Daily Rate | F70: ='Table 7'!D13 -> 90.5 | H70: =INDIRECT(MID(_xlfn.FORMULATEXT($F70),2,LEN(_xlfn.FORMULATEXT($F70))-4)&"L"&RIGHT(_xlfn.FORMULATEXT($F70),2),1) -> 93 | J70: =INDIRECT(MID(_xlfn.FORMULATEXT($F70),2,LEN(_xlfn.FORMULATEXT($F70))-4)&"O"&RIGHT(_xlfn.FORMULATEXT($F70),2),1) -> New Employment Transition Grant Programme Clause 5.1.1 | O70: =HYPERLINK($O$69,$J70) -> New Employment Transition Grant Programme Clause 5.1.1 | S70: ="$"&TEXT(H70,"###.00")&" for each day the Eligible Parent is absent from work for a reason referred to in Clause 4.1; or" -> $93.00 for each day the Eligible Parent is absent from work for a reason referred to in Clause 4.1; or
C71: (Welfare Programme) | E71: ='Table 7'!C14 -> Maximum Payment | F71: ='Table 7'!D14 -> 905 | H71: =INDIRECT(MID(_xlfn.FORMULATEXT($F71),2,LEN(_xlfn.FORMULATEXT($F71))-4)&"L"&RIGHT(_xlfn.FORMULATEXT($F71),2),1) -> 930 | J71: =INDIRECT(MID(_xlfn.FORMULATEXT($F71),2,LEN(_xlfn.FORMULATEXT($F71))-4)&"O"&RIGHT(_xlfn.FORMULATEXT($F71),2),1) -> New Employment Transition Grant Programme Clause 5.2 | O71: =HYPERLINK($O$69,$J71) -> New Employment Transition Grant Programme Clause 5.2 | S71: ="Transition Grants totalling no more than $"&H71&" may be paid to an Eligible Parent during the 6 month period of eligibility referred to in Clause 4.2." -> Transition Grants totalling no more than $930 may be paid to an Eligible Parent during the 6 month period of eligibility referred to in Clause 4.2.
C74: Name of WP/MD | E74: ='Table 22'!B53&" "&LEFT('Table 22'!C23,32) -> 22.05 Recoverable Assistance Payments | O74: https://www.workandincome.govt.nz/map/legislation/welfare-programmes/recoverable-assistance-programme/clause-7-income-limits.html | S74: The appropriate amount of income in clause 7.1 is:
E75: =INDIRECT(MID(_xlfn.FORMULATEXT($F75),2,LEN(_xlfn.FORMULATEXT($F75))-4)&"C"&RIGHT(_xlfn.FORMULATEXT($F75),2),1) -> Single person aged 16 or 17 years without dependent children | F75: ='Table 22'!D54 -> 825.3 | H75: =INDIRECT(MID(_xlfn.FORMULATEXT($F75),2,LEN(_xlfn.FORMULATEXT($F75))-4)&"K"&RIGHT(_xlfn.FORMULATEXT($F75),2),1) -> 854.3 | J75: =INDIRECT(MID(_xlfn.FORMULATEXT($F75),2,LEN(_xlfn.FORMULATEXT($F75))-4)&"N"&RIGHT(_xlfn.FORMULATEXT($F75),2),1) -> RAP Welfare Prog Part 2 Clause 7.4(a) | O75: =HYPERLINK($O$74,$J75) -> RAP Welfare Prog Part 2 Clause 7.4(a) | S75: ="for a single person aged 16 or 17 years without dependent children, $"&H75&" per week:" -> for a single person aged 16 or 17 years without dependent children, $854.3 per week:
C76: Recoverable Assistance Programme | E76: =INDIRECT(MID(_xlfn.FORMULATEXT($F76),2,LEN(_xlfn.FORMULATEXT($F76))-4)&"C"&RIGHT(_xlfn.FORMULATEXT($F76),2),1) -> Single person aged 18+ years without dependent children | F76: ='Table 22'!D55 -> 948.5 | H76: =INDIRECT(MID(_xlfn.FORMULATEXT($F76),2,LEN(_xlfn.FORMULATEXT($F76))-4)&"K"&RIGHT(_xlfn.FORMULATEXT($F76),2),1) -> 981.83 | J76: =INDIRECT(MID(_xlfn.FORMULATEXT($F76),2,LEN(_xlfn.FORMULATEXT($F76))-4)&"N"&RIGHT(_xlfn.FORMULATEXT($F76),2),1) -> RAP Welfare Prog Part 2 Clause 7.4(b) | O76: =HYPERLINK($O$74,$J76) -> RAP Welfare Prog Part 2 Clause 7.4(b) | S76: ="for any other single person without dependent children, $"&H76&" per week:" -> for any other single person without dependent children, $981.83 per week:
C77: (Welfare Programme) | E77: =INDIRECT(MID(_xlfn.FORMULATEXT($F77),2,LEN(_xlfn.FORMULATEXT($F77))-4)&"C"&RIGHT(_xlfn.FORMULATEXT($F77),2),1) -> Person who is Married, Civil Union or Defacto with or without dependent children | F77: ='Table 22'!D56 -> 1377.69 | H77: =INDIRECT(MID(_xlfn.FORMULATEXT($F77),2,LEN(_xlfn.FORMULATEXT($F77))-4)&"K"&RIGHT(_xlfn.FORMULATEXT($F77),2),1) -> 1426.1 | J77: =INDIRECT(MID(_xlfn.FORMULATEXT($F77),2,LEN(_xlfn.FORMULATEXT($F77))-4)&"N"&RIGHT(_xlfn.FORMULATEXT($F77),2),1) -> RAP Welfare Prog Part 2 Clause 7.4(c) | O77: =HYPERLINK($O$74,$J77) -> RAP Welfare Prog Part 2 Clause 7.4(c) | S77: ="for a person who is in a relationship with or without dependent children, $"&H77&" per week:" -> for a person who is in a relationship with or without dependent children, $1426.1 per week:
E78: =INDIRECT(MID(_xlfn.FORMULATEXT($F78),2,LEN(_xlfn.FORMULATEXT($F78))-4)&"C"&RIGHT(_xlfn.FORMULATEXT($F78),2),1) -> Sole parent with 1 dependent child | F78: ='Table 22'!D57 -> 1150.97 | H78: =INDIRECT(MID(_xlfn.FORMULATEXT($F78),2,LEN(_xlfn.FORMULATEXT($F78))-4)&"K"&RIGHT(_xlfn.FORMULATEXT($F78),2),1) -> 1191.41 | J78: =INDIRECT(MID(_xlfn.FORMULATEXT($F78),2,LEN(_xlfn.FORMULATEXT($F78))-4)&"N"&RIGHT(_xlfn.FORMULATEXT($F78),2),1) -> RAP Welfare Prog Part 2 Clause 7.4(d) | O78: =HYPERLINK($O$74,$J78) -> RAP Welfare Prog Part 2 Clause 7.4(d) | S78: ="for a sole parent with 1 dependent child, $"&H78&" per week:" -> for a sole parent with 1 dependent child, $1191.41 per week:
E79: =INDIRECT(MID(_xlfn.FORMULATEXT($F79),2,LEN(_xlfn.FORMULATEXT($F79))-4)&"C"&RIGHT(_xlfn.FORMULATEXT($F79),2),1) -> Any other sole parent | F79: ='Table 22'!D58 -> 1212.61 | H79: =INDIRECT(MID(_xlfn.FORMULATEXT($F79),2,LEN(_xlfn.FORMULATEXT($F79))-4)&"K"&RIGHT(_xlfn.FORMULATEXT($F79),2),1) -> 1255.22 | J79: =INDIRECT(MID(_xlfn.FORMULATEXT($F79),2,LEN(_xlfn.FORMULATEXT($F79))-4)&"N"&RIGHT(_xlfn.FORMULATEXT($F79),2),1) -> RAP Welfare Prog Part 2 Clause 7.4(e) | O79: =HYPERLINK($O$74,$J79) -> RAP Welfare Prog Part 2 Clause 7.4(e) | S79: ="for any other sole parent, $"&H79&" per week." -> for any other sole parent, $1255.22 per week.
C81: Name of WP/MD | O81: https://www.workandincome.govt.nz/map/legislation/welfare-programmes/seasonal-work-assistance-programme/clause-7-amount-and-limits-of-payments.html
E82: ='Table 6'!B12&" "&'Table 6'!C12 -> 6.01 Maximum weekly amounts of Seasonal Work Assistance payments | O82: https://www.workandincome.govt.nz/map/legislation/welfare-programmes/seasonal-work-assistance-programme/schedule-1.html
C83: Seasonal Work Assistance Programme | E83: =INDIRECT(MID(_xlfn.FORMULATEXT($F83),2,LEN(_xlfn.FORMULATEXT($F83))-4)&"C"&RIGHT(_xlfn.FORMULATEXT($F83),2),1) -> Limit of payment | F83: ='Table 6'!D18 -> 2601 | H83: =INDIRECT(MID(_xlfn.FORMULATEXT($F83),2,LEN(_xlfn.FORMULATEXT($F83))-4)&"L"&RIGHT(_xlfn.FORMULATEXT($F83),2),1) -> 2669 | J83: =INDIRECT(MID(_xlfn.FORMULATEXT($F83),2,LEN(_xlfn.FORMULATEXT($F83))-4)&"O"&RIGHT(_xlfn.FORMULATEXT($F83),2),1) -> Seasonal Work Assistance Payment Programme Clause 7(3) | O83: =HYPERLINK($O$81,$J83) -> Seasonal Work Assistance Payment Programme Clause 7(3) | S83: ="No grant of a seasonal work assistance payment must be made to an applicant who has received seasonal work assistance payments of $"&H83&" or more during the 26-week period following the date the applicant's working-age benefit was cancelled or suspended." -> No grant of a seasonal work assistance payment must be made to an applicant who has received seasonal work assistance payments of $2669 or more during the 26-week period following the date the applicant's working-age benefit was cancelled or suspended.
C84: (Welfare Programme) | S84: Hours lost (over the week)
E85: =INDIRECT(MID(_xlfn.FORMULATEXT($F85),2,LEN(_xlfn.FORMULATEXT($F85))-4)&"C"&RIGHT(_xlfn.FORMULATEXT($F85),2),1) -> 8 hours or less | F85: ='Table 6'!D13 -> 153 | H85: =INDIRECT(MID(_xlfn.FORMULATEXT($F85),2,LEN(_xlfn.FORMULATEXT($F85))-4)&"L"&RIGHT(_xlfn.FORMULATEXT($F85),2),1) -> 157 | J85: =INDIRECT(MID(_xlfn.FORMULATEXT($F85),2,LEN(_xlfn.FORMULATEXT($F85))-4)&"O"&RIGHT(_xlfn.FORMULATEXT($F85),2),1) -> Seasonal Work Assistance Payment Programme Schedule 1 | O85: =HYPERLINK($O$82,$J85) -> Seasonal Work Assistance Payment Programme Schedule 1 | S85: 8 hours or less
E86: =INDIRECT(MID(_xlfn.FORMULATEXT($F86),2,LEN(_xlfn.FORMULATEXT($F86))-4)&"C"&RIGHT(_xlfn.FORMULATEXT($F86),2),1) -> More than 8 and not more than 16 hours | F86: ='Table 6'!D14 -> 306 | H86: =INDIRECT(MID(_xlfn.FORMULATEXT($F86),2,LEN(_xlfn.FORMULATEXT($F86))-4)&"L"&RIGHT(_xlfn.FORMULATEXT($F86),2),1) -> 314 | J86: =INDIRECT(MID(_xlfn.FORMULATEXT($F86),2,LEN(_xlfn.FORMULATEXT($F86))-4)&"O"&RIGHT(_xlfn.FORMULATEXT($F86),2),1) -> Seasonal Work Assistance Payment Programme Schedule 1 | O86: =HYPERLINK($O$82,$J86) -> Seasonal Work Assistance Payment Programme Schedule 1 | S86: More than 8 and not more than 16 hours
E87: =INDIRECT(MID(_xlfn.FORMULATEXT($F87),2,LEN(_xlfn.FORMULATEXT($F87))-4)&"C"&RIGHT(_xlfn.FORMULATEXT($F87),2),1) -> More than 16 and not more than 24 hours | F87: ='Table 6'!D15 -> 459 | H87: =INDIRECT(MID(_xlfn.FORMULATEXT($F87),2,LEN(_xlfn.FORMULATEXT($F87))-4)&"L"&RIGHT(_xlfn.FORMULATEXT($F87),2),1) -> 471 | J87: =INDIRECT(MID(_xlfn.FORMULATEXT($F87),2,LEN(_xlfn.FORMULATEXT($F87))-4)&"O"&RIGHT(_xlfn.FORMULATEXT($F87),2),1) -> Seasonal Work Assistance Payment Programme Schedule 1 | O87: =HYPERLINK($O$82,$J87) -> Seasonal Work Assistance Payment Programme Schedule 1 | S87: More than 16 and not more than 24 hours
E88: =INDIRECT(MID(_xlfn.FORMULATEXT($F88),2,LEN(_xlfn.FORMULATEXT($F88))-4)&"C"&RIGHT(_xlfn.FORMULATEXT($F88),2),1) -> More than 24 and not more than 32 hours | F88: ='Table 6'!D16 -> 612 | H88: =INDIRECT(MID(_xlfn.FORMULATEXT($F88),2,LEN(_xlfn.FORMULATEXT($F88))-4)&"L"&RIGHT(_xlfn.FORMULATEXT($F88),2),1) -> 628 | J88: =INDIRECT(MID(_xlfn.FORMULATEXT($F88),2,LEN(_xlfn.FORMULATEXT($F88))-4)&"O"&RIGHT(_xlfn.FORMULATEXT($F88),2),1) -> Seasonal Work Assistance Payment Programme Schedule 1 | O88: =HYPERLINK($O$82,$J88) -> Seasonal Work Assistance Payment Programme Schedule 1 | S88: More than 24 and not more than 32 hours
E89: =INDIRECT(MID(_xlfn.FORMULATEXT($F89),2,LEN(_xlfn.FORMULATEXT($F89))-4)&"C"&RIGHT(_xlfn.FORMULATEXT($F89),2),1) -> More than 32 hours | F89: ='Table 6'!D17 -> 765 | H89: =INDIRECT(MID(_xlfn.FORMULATEXT($F89),2,LEN(_xlfn.FORMULATEXT($F89))-4)&"L"&RIGHT(_xlfn.FORMULATEXT($F89),2),1) -> 785 | J89: =INDIRECT(MID(_xlfn.FORMULATEXT($F89),2,LEN(_xlfn.FORMULATEXT($F89))-4)&"O"&RIGHT(_xlfn.FORMULATEXT($F89),2),1) -> Seasonal Work Assistance Payment Programme Schedule 1 | O89: =HYPERLINK($O$82,$J89) -> Seasonal Work Assistance Payment Programme Schedule 1 | S89: More than 32 hours
C91: Name of WP/MD | E91: ='Table 37'!B12&" "&'Table 37'!B6 -> 37.01 Average Regional Rents Information For Special Transfer Allowance | O91: https://www.workandincome.govt.nz/map/legislation/welfare-programmes/special-transfer-allowance-programme-2000/schedule.html | S91: Average Regional Rents
E92: =INDIRECT(MID(_xlfn.FORMULATEXT($F92),2,LEN(_xlfn.FORMULATEXT($F92))-4)&"C"&RIGHT(_xlfn.FORMULATEXT($F92),2),1)&" "&INDIRECT(MID(_xlfn.FORMULATEXT($F92),2,LEN(_xlfn.FORMULATEXT($F92))-4)&"F"&RIGHT(_xlfn.FORMULATEXT($F92),2)-3,1) -> Auckland Region 1 Bedroom Rent | F92: ='Table 37'!D13 -> 426 | H92: =INDIRECT(MID(_xlfn.FORMULATEXT($F92),2,LEN(_xlfn.FORMULATEXT($F92))-4)&"F"&RIGHT(_xlfn.FORMULATEXT($F92),2),1) -> 459 | J92: =INDIRECT(MID(_xlfn.FORMULATEXT($F92),2,LEN(_xlfn.FORMULATEXT($F92))-4)&"H"&RIGHT(_xlfn.FORMULATEXT($F92),2),1) -> Special Transfer Allowance Programme 2000: Schedule | O92: =HYPERLINK($O$91,$J92) -> Special Transfer Allowance Programme 2000: Schedule | S92: For a single person without a dependent child living in Auckland, the average rent for a one-bedroom property in Auckland
C93: Special Transfer Allowance Programme | E93: =INDIRECT(MID(_xlfn.FORMULATEXT($F93),2,LEN(_xlfn.FORMULATEXT($F93))-4)&"C"&RIGHT(_xlfn.FORMULATEXT($F93),2),1)&" "&INDIRECT(MID(_xlfn.FORMULATEXT($F93),2,LEN(_xlfn.FORMULATEXT($F93))-4)&"F"&RIGHT(_xlfn.FORMULATEXT($F93),2)-4,1) -> Wellington Region 1 Bedroom Rent | F93: ='Table 37'!D14 -> 430 | H93: =INDIRECT(MID(_xlfn.FORMULATEXT($F93),2,LEN(_xlfn.FORMULATEXT($F93))-4)&"F"&RIGHT(_xlfn.FORMULATEXT($F93),2),1) -> 456 | J93: Special Transfer Allowance Programme 2000: Schedule | O93: Special Transfer Allowance Programme 2000: Schedule | S93: For a single person without a dependent child living in Wellington, the average rent for a one-bedroom property in Wellington
C94: (Welfare Programme) | E94: =INDIRECT(MID(_xlfn.FORMULATEXT($F94),2,LEN(_xlfn.FORMULATEXT($F94))-4)&"C"&RIGHT(_xlfn.FORMULATEXT($F94),2),1)&" "&INDIRECT(MID(_xlfn.FORMULATEXT($F94),2,LEN(_xlfn.FORMULATEXT($F94))-4)&"F"&RIGHT(_xlfn.FORMULATEXT($F94),2)-5,1) -> Rest of New Zealand 1 Bedroom Rent | F94: ='Table 37'!D15 -> 329 | H94: =INDIRECT(MID(_xlfn.FORMULATEXT($F94),2,LEN(_xlfn.FORMULATEXT($F94))-4)&"F"&RIGHT(_xlfn.FORMULATEXT($F94),2),1) -> 360 | J94: Special Transfer Allowance Programme 2000: Schedule | O94: Special Transfer Allowance Programme 2000: Schedule | S94: For a single person without a dependent child living elsewhere in New Zealand, the average rent for a one-bedroom property in the rest of New Zealand
E95: =INDIRECT(MID(_xlfn.FORMULATEXT($F95),2,LEN(_xlfn.FORMULATEXT($F95))-4)&"C"&RIGHT(_xlfn.FORMULATEXT($F95),2),1)&" "&INDIRECT(MID(_xlfn.FORMULATEXT($F95),2,LEN(_xlfn.FORMULATEXT($F95))-4)&"G"&RIGHT(_xlfn.FORMULATEXT($F95),2)-3,1) -> Auckland Region 2 Bedroom Rent | F95: ='Table 37'!E13 -> 535 | H95: =INDIRECT(MID(_xlfn.FORMULATEXT($F95),2,LEN(_xlfn.FORMULATEXT($F95))-4)&"G"&RIGHT(_xlfn.FORMULATEXT($F95),2),1) -> 568 | J95: Special Transfer Allowance Programme 2000: Schedule | O95: Special Transfer Allowance Programme 2000: Schedule | S95: For any other person living in Auckland, the average rent for a two-bedroom property in Auckland
E96: =INDIRECT(MID(_xlfn.FORMULATEXT($F96),2,LEN(_xlfn.FORMULATEXT($F96))-4)&"C"&RIGHT(_xlfn.FORMULATEXT($F96),2),1)&" "&INDIRECT(MID(_xlfn.FORMULATEXT($F96),2,LEN(_xlfn.FORMULATEXT($F96))-4)&"G"&RIGHT(_xlfn.FORMULATEXT($F96),2)-4,1) -> Wellington Region 2 Bedroom Rent | F96: ='Table 37'!E14 -> 548 | H96: =INDIRECT(MID(_xlfn.FORMULATEXT($F96),2,LEN(_xlfn.FORMULATEXT($F96))-4)&"G"&RIGHT(_xlfn.FORMULATEXT($F96),2),1) -> 591 | J96: Special Transfer Allowance Programme 2000: Schedule | O96: Special Transfer Allowance Programme 2000: Schedule | S96: For any other person living in Wellington, the average rent for a two-bedroom property in Wellington
E97: =INDIRECT(MID(_xlfn.FORMULATEXT($F97),2,LEN(_xlfn.FORMULATEXT($F97))-4)&"C"&RIGHT(_xlfn.FORMULATEXT($F97),2),1)&" "&INDIRECT(MID(_xlfn.FORMULATEXT($F97),2,LEN(_xlfn.FORMULATEXT($F97))-4)&"G"&RIGHT(_xlfn.FORMULATEXT($F97),2)-5,1) -> Rest of New Zealand 2 Bedroom Rent | F97: ='Table 37'!E15 -> 426 | H97: =INDIRECT(MID(_xlfn.FORMULATEXT($F97),2,LEN(_xlfn.FORMULATEXT($F97))-4)&"G"&RIGHT(_xlfn.FORMULATEXT($F97),2),1) -> 460 | J97: Special Transfer Allowance Programme 2000: Schedule | O97: Special Transfer Allowance Programme 2000: Schedule | S97: For any other person living elsewhere in New Zealand, the average rent for a two-bedroom property in the rest of New Zealand
C99: Name of WP/MD
E100: ='Table 4'!B16&" "&'Table 4'!C16 -> 4.02 Training Incentive Allowance Maximum Rate | O100: https://www.workandincome.govt.nz/map/legislation/welfare-programmes/training-incentive-allowance-programme/clause-11-rates-of-assistance.html | S100: Rates of assistance
C101: Training Incentive Allowance Programme | E101: =INDIRECT(MID(_xlfn.FORMULATEXT($F101),2,LEN(_xlfn.FORMULATEXT($F101))-4)&"C"&RIGHT(_xlfn.FORMULATEXT($F101),2),1) -> Weekly maximum rate | F101: ='Table 4'!D17 -> 135.75 | H101: =INDIRECT(MID(_xlfn.FORMULATEXT($F101),2,LEN(_xlfn.FORMULATEXT($F101))-4)&"L"&RIGHT(_xlfn.FORMULATEXT($F101),2),1) -> 138.77 | J101: =INDIRECT(MID(_xlfn.FORMULATEXT($F101),2,LEN(_xlfn.FORMULATEXT($F101))-4)&"O"&RIGHT(_xlfn.FORMULATEXT($F101),2),1) -> Training Incentive Allowance Welfare Program (Clause 11.1) | O101: =HYPERLINK($O$100,$J101) -> Training Incentive Allowance Welfare Program (Clause 11.1) | S101: ="MSD may grant assistance to an eligible applicant, based on the amount of the applicant's compulsory course fees and the actual and reasonable course-related costs, of up to $"&H101&" for each week the assistance for the course is payable," -> MSD may grant assistance to an eligible applicant, based on the amount of the applicant's compulsory course fees and the actual and reasonable course-related costs, of up to $138.77 for each week the assistance for the course is payable,
C102: (Welfare Programme) | E102: =INDIRECT(MID(_xlfn.FORMULATEXT($F102),2,LEN(_xlfn.FORMULATEXT($F102))-4)&"C"&RIGHT(_xlfn.FORMULATEXT($F102),2),1) -> Annual maximum rate | F102: ='Table 4'!D18 -> 5430 | H102: =INDIRECT(MID(_xlfn.FORMULATEXT($F102),2,LEN(_xlfn.FORMULATEXT($F102))-4)&"L"&RIGHT(_xlfn.FORMULATEXT($F102),2),1) -> 5550.8 | J102: =INDIRECT(MID(_xlfn.FORMULATEXT($F102),2,LEN(_xlfn.FORMULATEXT($F102))-4)&"O"&RIGHT(_xlfn.FORMULATEXT($F102),2),1) -> Training Incentive Allowance Welfare Program (Clause 11.1) | O102: =HYPERLINK($O$100,$J102) -> Training Incentive Allowance Welfare Program (Clause 11.1) | S102: =" to a maximum of $"&TEXT(H102,"#,###.00")&" within a 52-week period." -> to a maximum of $5,550.80 within a 52-week period.
C104: Name of WP/MD
E105: ='Table 5'!B38&" "&'Table 5'!C38 -> 5.03 Guaranteed Childcare Assistance Payment | O105: https://www.workandincome.govt.nz/map/legislation/welfare-programmes/guaranteed-childcare-assistance-payment-programme/clause-9-gcap-rates.html | S105: The amount of GCAP payments granted under clause 6 or 7 in respect of any week is: a - b but not more than c
C106: Guaranteed Childcare Assistance Payment Programme | E106: =INDIRECT(MID(_xlfn.FORMULATEXT($F106),2,LEN(_xlfn.FORMULATEXT($F106))-4)&"C"&RIGHT(_xlfn.FORMULATEXT($F106),2),1) -> Hourly Rate | F106: ='Table 5'!D39 -> 6.38 | H106: =INDIRECT(MID(_xlfn.FORMULATEXT($F106),2,LEN(_xlfn.FORMULATEXT($F106))-4)&"L"&RIGHT(_xlfn.FORMULATEXT($F106),2),1) -> 6.52 | J106: =INDIRECT(MID(_xlfn.FORMULATEXT($F106),2,LEN(_xlfn.FORMULATEXT($F106))-4)&"O"&RIGHT(_xlfn.FORMULATEXT($F106),2),1) -> Clause 9 (2) c: GCAP Rates | O106: =HYPERLINK($O$105,$J106) -> Clause 9 (2) c: GCAP Rates | S106: ="c is $"&TEXT(H106,"###.00")&" per hour multiplied by the number of hours a week (not exceeding 50 hours) for which the child " -> c is $6.52 per hour multiplied by the number of hours a week (not exceeding 50 hours) for which the child
C107: (Welfare Programme) | E107: =INDIRECT(MID(_xlfn.FORMULATEXT($F107),2,LEN(_xlfn.FORMULATEXT($F107))-4)&"C"&RIGHT(_xlfn.FORMULATEXT($F107),2),1) -> Maximum Weekly Rate | F107: ='Table 5'!D40 -> 319 | H107: =INDIRECT(MID(_xlfn.FORMULATEXT($F107),2,LEN(_xlfn.FORMULATEXT($F107))-4)&"L"&RIGHT(_xlfn.FORMULATEXT($F107),2),1) -> 326 | J107: =INDIRECT(MID(_xlfn.FORMULATEXT($F107),2,LEN(_xlfn.FORMULATEXT($F107))-4)&"O"&RIGHT(_xlfn.FORMULATEXT($F107),2),1) -> Clause 9 (2) c: GCAP Rates | O107: =HYPERLINK($O$105,$J107) -> Clause 9 (2) c: GCAP Rates | S107: =" is enrolled to participate in the programme not exceeding $"&TEXT(H107,"###.00")&" a week." -> is enrolled to participate in the programme not exceeding $326.00 a week.
C109: Name of WP/MD
E110: ='Table 5'!B60&" "&'Table 5'!C60 -> 5.05 Flexible Childcare Assistance | O110: https://www.workandincome.govt.nz/products/a-z-benefits/flexible-childcare-assistance.html | S110: You can get:
C111: Flexible Childcare Assistance | E111: =INDIRECT(MID(_xlfn.FORMULATEXT($F111),2,LEN(_xlfn.FORMULATEXT($F111))-4)&"C"&RIGHT(_xlfn.FORMULATEXT($F111),2),1) -> Weekly Base Rate | F111: ='Table 5'!D61 -> 32.01 | H111: =INDIRECT(MID(_xlfn.FORMULATEXT($F111),2,LEN(_xlfn.FORMULATEXT($F111))-4)&"L"&RIGHT(_xlfn.FORMULATEXT($F111),2),1) -> 32.72 | J111: =INDIRECT(MID(_xlfn.FORMULATEXT($F111),2,LEN(_xlfn.FORMULATEXT($F111))-4)&"O"&RIGHT(_xlfn.FORMULATEXT($F111),2),1) -> EmploymentProgramme:flexible-childcare-assistance.html | O111: =HYPERLINK($O$110,$J111) -> EmploymentProgramme:flexible-childcare-assistance.html | S111: ="$"&TEXT($H$112,"##.00")&" a week for one child" -> $65.44 a week for one child
E112: =INDIRECT(MID(_xlfn.FORMULATEXT($F112),2,LEN(_xlfn.FORMULATEXT($F112))-4)&"C"&RIGHT(_xlfn.FORMULATEXT($F112),2),1) -> Weekly Rate - 1 Child | F112: ='Table 5'!D62 -> 64.02 | H112: =INDIRECT(MID(_xlfn.FORMULATEXT($F112),2,LEN(_xlfn.FORMULATEXT($F112))-4)&"L"&RIGHT(_xlfn.FORMULATEXT($F112),2),1) -> 65.44 | J112: =INDIRECT(MID(_xlfn.FORMULATEXT($F112),2,LEN(_xlfn.FORMULATEXT($F112))-4)&"O"&RIGHT(_xlfn.FORMULATEXT($F112),2),1) -> EmploymentProgramme:flexible-childcare-assistance.html | O112: EmploymentProgramme:flexible-childcare-assistance.html | S112: ="$"&TEXT($H$111,"##.00")&" a week for each additional child." -> $32.72 a week for each additional child.
C113: (Welfare Programme, paid within broad categories within the Employment & Work Readiness Assistance Programme) | E113: =INDIRECT(MID(_xlfn.FORMULATEXT($F113),2,LEN(_xlfn.FORMULATEXT($F113))-4)&"C"&RIGHT(_xlfn.FORMULATEXT($F113),2),1) -> Weekly Rate - 2 Children | F113: ='Table 5'!D63 -> 96.03 | H113: =INDIRECT(MID(_xlfn.FORMULATEXT($F113),2,LEN(_xlfn.FORMULATEXT($F113))-4)&"L"&RIGHT(_xlfn.FORMULATEXT($F113),2),1) -> 98.16 | J113: =INDIRECT(MID(_xlfn.FORMULATEXT($F113),2,LEN(_xlfn.FORMULATEXT($F113))-4)&"O"&RIGHT(_xlfn.FORMULATEXT($F113),2),1) -> EmploymentProgramme:flexible-childcare-assistance.html | O113: EmploymentProgramme:flexible-childcare-assistance.html | S113: ="The maximum amount you can get is $"&TEXT(H116,"###.00")&" a week." -> The maximum amount you can get is $196.32 a week.
C114: Likely paid under item 9 of Schedule: | E114: =INDIRECT(MID(_xlfn.FORMULATEXT($F114),2,LEN(_xlfn.FORMULATEXT($F114))-4)&"C"&RIGHT(_xlfn.FORMULATEXT($F114),2),1) -> Weekly Rate - 3 Children | F114: ='Table 5'!D64 -> 128.04 | H114: =INDIRECT(MID(_xlfn.FORMULATEXT($F114),2,LEN(_xlfn.FORMULATEXT($F114))-4)&"L"&RIGHT(_xlfn.FORMULATEXT($F114),2),1) -> 130.88 | J114: =INDIRECT(MID(_xlfn.FORMULATEXT($F114),2,LEN(_xlfn.FORMULATEXT($F114))-4)&"O"&RIGHT(_xlfn.FORMULATEXT($F114),2),1) -> EmploymentProgramme:flexible-childcare-assistance.html | O114: EmploymentProgramme:flexible-childcare-assistance.html | S114: (above text appears in W&I page at left; below format also appears on MSD Doogle intranet)
C115: employment-and-work-readiness-assistance-programme/schedule | E115: Weekly Rate - 4 Children | F115: ='Table 5'!D65 -> 160.05 | H115: 163.6 | J115: EmploymentProgramme:flexible-childcare-assistance.html | O115: EmploymentProgramme:flexible-childcare-assistance.html | S115: Number of children | T115: 1 | U115: 2 | V115: 3 | W115: 4 | X115: 5+ | Y115: doogle intranet link to FCA page
E116: Weekly Rate - 5+ Children | F116: ='Table 5'!D66 -> 192.06 | H116: 196.32 | J116: EmploymentProgramme:flexible-childcare-assistance.html | O116: EmploymentProgramme:flexible-childcare-assistance.html | S116: Weekly amount paid | T116: =H112 -> 65.44 | U116: =H113 -> 98.16 | V116: =H114 -> 130.88 | W116: =H115 -> 163.6 | X116: =H116 -> 196.32
E119: Table Reference and Description | F119: Old Amount ($) | H119: New Amount ($) | J119: Check of statutory reference | O119: Statutory Reference

Sheet Short-Form_Check
C1: Below links to pasted version at far right - set up urgently in late May 24 to check the short-form created by income support / policy
AH2: pasted from word doc sent in email for checking
C3: =AH3 -> Benefit rates at 1 April 2025 | AH3: Benefit rates at 1 April 2025
C4: Benefit type | D4: Net weekly rate (after tax at "M") | E4: Gross weekly rate | F4: Special Benefit standard costs | G4: Accommodation Supplement+ | AH4: Benefit type | AI4: Net weekly rate (after tax at "M") | AJ4: Gross weekly rate | AK4: Special Benefit standard costs | AL4: Accommodation Supplement+
G5: Entry threshold | I5: Maximum rate | R5: Entry Thresholds | T5: AS maxima | X5: Check1 | Y5: Check2 | Z5: Check3 | AA5: Check4 | AB5: Check5 | AC5: Check6 | AD5: Check7 | AE5: Check8 | AF5: Check9 | AL5: Entry threshold | AN5: Maximum rate
G6: Rent or board | H6: Mortgage | I6: Area 1 | J6: Area 2 | K6: Area 3 | L6: Area 4 | O6: Link Net | P6: LinkGross | Q6: SpB Std Costs | R6: Rent/Board | S6: Mort | T6: Area1 | U6: Area2 | V6: Area3 | W6: Area4 | AL6: Rent or board | AM6: Mortgage | AN6: Area 1 | AO6: Area 2 | AP6: Area 3 | AQ6: Area 4
C7: =AH7 -> Jobseeker Support without children | Q7: Table 18 | R7: Table 12 / 13 | T7: Table 29 | AH7: Jobseeker Support without children
C8: =AH8 -> Single, 18 to 19 years, at home | D8: 268.13 | E8: 299.59 | F8: Note 1 | G8: 90 | H8: Note 2 | I8: 165 | J8: 105 | K8: 80 | L8: 70 | N8: ='Rates Data'!C25 -> Single 18-19 years old - at home | O8: ='Rates Data'!M25 -> 268.13 | P8: ='Rates Data'!N25 -> 299.59 | R8: ='Rates Data'!M271 -> 90 | T8: ='Table 29'!D23 -> 165 | U8: ='Table 29'!D28 -> 105 | V8: ='Table 29'!D33 -> 80 | W8: ='Table 29'!D38 -> 70 | X8: =D8-O8 -> 0 | Y8: =E8-P8 -> 0 | AA8: =G8-R8 -> 0 | AC8: =I8-T8 -> 0 | AD8: 0 | AE8: 0 | AF8: 0 | AH8: Single, 18 to 19 years, at home | AI8: 268.13 | AJ8: 299.59 | AK8: Note 1 | AL8: 90 | AM8: Note 2 | AN8: 165 | AO8: 105 | AP8: 80 | AQ8: 70
C9: Single, 18 to 19 years, away from home | D9: 314.72 | E9: 356.02 | F9: Note 1 | G9: 90 | H9: 108 | I9: 165 | J9: 105 | K9: 80 | L9: 70 | N9: ='Rates Data'!C26 -> Single 18-19 years old - away from home | O9: ='Rates Data'!M26 -> 314.72 | P9: ='Rates Data'!N26 -> 356.02 | R9: ='Rates Data'!M272 -> 90 | S9: ='Rates Data'!N272 -> 108 | T9: =T8 -> 165 | U9: =U8 -> 105 | V9: 80 | W9: 70 | X9: =D9-O9 -> 0 | Y9: 0 | AA9: 0 | AB9: 0 | AC9: 0 | AD9: 0 | AE9: 0 | AF9: 0 | AH9: Single, 18 to 19 years, away from home | AI9: 314.72 | AJ9: 356.02 | AK9: Note 1 | AL9: 90 | AM9: 108 | AN9: 165 | AO9: 105 | AP9: 80 | AQ9: 70
C10: Single, 20 to 24 years | D10: 314.72 | E10: 356.02 | F10: Note 1 | G10: 90 | H10: 108 | I10: 165 | J10: 105 | K10: 80 | L10: 70 | N10: ='Rates Data'!C27 -> Single 20-24 years old | O10: ='Rates Data'!M27 -> 314.72 | P10: ='Rates Data'!N27 -> 356.02 | R10: ='Rates Data'!M273 -> 90 | S10: ='Rates Data'!N273 -> 108 | T10: =T9 -> 165 | U10: 105 | V10: 80 | W10: 70 | X10: 0 | Y10: 0 | AA10: 0 | AB10: 0 | AC10: 0 | AD10: 0 | AE10: 0 | AF10: 0 | AH10: Single, 20 to 24 years | AI10: 314.72 | AJ10: 356.02 | AK10: Note 1 | AL10: 90 | AM10: 108 | AN10: 165 | AO10: 105 | AP10: 80 | AQ10: 70
C11: Single, 25 years or over | D11: 361.32 | E11: 412.51 | F11: 162.98 | G11: 90 | H11: 108 | I11: 165 | J11: 105 | K11: 80 | L11: 70 | N11: ='Rates Data'!C28 -> Single 25 years and over | O11: ='Rates Data'!M28 -> 361.32 | P11: ='Rates Data'!N28 -> 412.51 | Q11: ='Rates Data'!M385 -> 162.98 | R11: ='Rates Data'!M274 -> 90 | S11: ='Rates Data'!N274 -> 108 | T11: 165 | U11: 105 | V11: 80 | W11: 70 | X11: 0 | Y11: 0 | Z11: 0 | AA11: 0 | AB11: 0 | AC11: 0 | AD11: 0 | AE11: 0 | AF11: 0 | AH11: Single, 25 years or over | AI11: 361.32 | AJ11: 412.51 | AK11: 162.98 | AL11: 90 | AM11: 108 | AN11: 165 | AO11: 105 | AP11: 80 | AQ11: 70
C12: Single, and receiving Domestic Purposes Benefit woman alone or Widows Benefit woman alone, before 15 July 2013 | D12: 372.93 | E12: 426.58 | F12: 172.28 | G12: 93 | H12: 112 | I12: 165 | J12: 105 | K12: 80 | L12: 70 | N12: ='Rates Data'!C66 -> Woman Alone (Single Adult) | O12: ='Rates Data'!M66 -> 372.93 | P12: ='Rates Data'!N66 -> 426.58 | Q12: ='Rates Data'!M387 -> 172.28 | R12: ='Rates Data'!M276 -> 93 | S12: ='Rates Data'!N276 -> 112 | T12: 165 | U12: 105 | V12: 80 | W12: 70 | X12: 0 | Y12: 0 | Z12: 0 | AA12: 0 | AB12: 0 | AC12: 0 | AD12: 0 | AE12: 0 | AF12: 0 | AH12: Single, and receiving Domestic Purposes Benefit woman alone or Widows Benefit woman alone, before 15 July 2013 | AI12: 372.93 | AJ12: 426.58 | AK12: 172.28 | AL12: 93 | AM12: 112 | AN12: 165 | AO12: 105 | AP12: 80 | AQ12: 70
C13: Couple* (total) | D13: 614.84 | E13: 694.36 | F13: 305.8 | G13: 154 | H13: 184 | I13: 235 | J13: 155 | K13: 105 | L13: 80 | N13: ='Rates Data'!C30 -> Married, Civil Union or Defacto Couple (without children) total | O13: ='Rates Data'!M30 -> 614.84 | P13: ='Rates Data'!N30 -> 694.36 | Q13: ='Rates Data'!M386 -> 305.8 | R13: ='Rates Data'!M275 -> 154 | S13: ='Rates Data'!N275 -> 184 | T13: ='Table 29'!D24 -> 235 | U13: ='Table 29'!D29 -> 155 | V13: ='Table 29'!D34 -> 105 | W13: ='Table 29'!D39 -> 80 | X13: 0 | Y13: 0 | Z13: 0 | AA13: 0 | AB13: 0 | AC13: 0 | AD13: 0 | AE13: 0 | AF13: 0 | AH13: Couple* (total) | AI13: 614.84 | AJ13: 694.36 | AK13: 305.8 | AL13: 154 | AM13: 184 | AN13: 235 | AO13: 155 | AP13: 105 | AQ13: 80
C14: Couple* (each) | D14: 307.42 | E14: 347.18 | N14: ='Rates Data'!C29 -> Married, Civil Union or Defacto Couple (without children) each | O14: ='Rates Data'!M29 -> 307.42 | P14: ='Rates Data'!N29 -> 347.18 | X14: 0 | Y14: 0 | AH14: Couple* (each) | AI14: 307.42 | AJ14: 347.18 | AK14: N/A
C15: Jobseeker Support with children | AH15: Jobseeker Support with children
C16: Sole parent | D16: 505.8 | E16: 587.64 | F16: Note 3 | G16: 163 | H16: 195 | I16: Note 4 | J16: Note 4 | K16: Note 4 | L16: Note 4 | N16: ='Rates Data'!C34 -> Sole Parent | O16: ='Rates Data'!M34 -> 505.8 | P16: ='Rates Data'!N34 -> 587.64 | R16: ='Rates Data'!M278 -> 163 | S16: ='Rates Data'!N278 -> 195 | X16: =D16-O16 -> 0 | Y16: 0 | AA16: =G16-R16 -> 0 | AB16: 0 | AH16: Sole parent | AI16: 505.8 | AJ16: 587.64 | AK16: Note 3 | AL16: 163 | AM16: 195 | AN16: Note 4 | AO16: Note 4 | AP16: Note 4 | AQ16: Note 4
C17: Couple* with 1+ children (total) | D17: 649.22 | E17: 736.02 | F17: Note 3 | G17: 198 | H17: 238 | I17: 305 | J17: 220 | K17: 160 | L17: 120 | N17: ='Rates Data'!C32 -> Married, Civil Union or Defacto Couple with partner on benefit (with children) total | O17: ='Rates Data'!M32 -> 649.22 | P17: ='Rates Data'!N32 -> 736.02 | R17: ='Rates Data'!M279 -> 198 | S17: ='Rates Data'!N279 -> 238 | T17: ='Table 29'!D25 -> 305 | U17: ='Table 29'!D30 -> 220 | V17: ='Table 29'!D35 -> 160 | W17: ='Table 29'!D40 -> 120 | X17: 0 | Y17: 0 | AA17: 0 | AB17: 0 | AC17: 0 | AD17: 0 | AE17: 0 | AF17: 0 | AH17: Couple* with 1+ children (total) | AI17: 649.22 | AJ17: 736.02 | AK17: Note 3 | AL17: 198 | AM17: 238 | AN17: 305 | AO17: 220 | AP17: 160 | AQ17: 120
C18: Couple* with 1+ children (each) | D18: 324.61 | E18: 368.01 | N18: ='Rates Data'!C31 -> Married, Civil Union or Defacto Couple with partner on benefit (with children) each | O18: ='Rates Data'!M31 -> 324.61 | P18: ='Rates Data'!N31 -> 368.01 | X18: 0 | Y18: 0 | AH18: Couple* with 1+ children (each) | AI18: 324.61 | AJ18: 368.01
C19: Couple* with 1 partner not on benefit, and 1+ children (total) | D19: 324.61 | E19: 368.01 | F19: Note 3 | G19: 198 | H19: 238 | I19: 305 | J19: 220 | K19: 160 | L19: 120 | N19: ='Rates Data'!C33 -> Married, Civil Union or Defacto Couple with partner not on benefit or with partner receiving NZS or Veteran's Pension (with children) total | O19: ='Rates Data'!M33 -> 324.61 | P19: ='Rates Data'!N33 -> 368.01 | R19: ='Rates Data'!M280 -> 198 | S19: ='Rates Data'!N280 -> 238 | T19: =T17 -> 305 | U19: =U17 -> 220 | V19: 160 | W19: 120 | X19: 0 | Y19: 0 | AA19: =G19-R19 -> 0 | AB19: 0 | AC19: 0 | AD19: 0 | AE19: 0 | AF19: 0 | AH19: Couple* with 1 partner not on benefit, and 1+ children (total) | AI19: 324.61 | AJ19: 368.01 | AK19: Note 3 | AL19: 198 | AM19: 238 | AN19: 305 | AO19: 220 | AP19: 160 | AQ19: 120
C20: Couple* with 1 partner on New Zealand Superannuation or Veterans Pension, and 1+ children (total) | D20: 324.61 | E20: 368.01 | F20: Note 3 | G20: 221 | H20: 265 | I20: 305 | J20: 220 | K20: 160 | L20: 120 | N20: ='Rates Data'!C33 -> Married, Civil Union or Defacto Couple with partner not on benefit or with partner receiving NZS or Veteran's Pension (with children) total | O20: ='Rates Data'!M33 -> 324.61 | P20: ='Rates Data'!N33 -> 368.01 | R20: ='Rates Data'!O318 -> 221 | S20: ='Rates Data'!P318 -> 265 | T20: =T19 -> 305 | U20: =U19 -> 220 | V20: 160 | W20: 120 | X20: 0 | Y20: 0 | AA20: 0 | AB20: 0 | AC20: 0 | AD20: 0 | AE20: 0 | AF20: 0 | AH20: Couple* with 1 partner on New Zealand Superannuation or Veterans Pension, and 1+ children (total) | AI20: 324.61 | AJ20: 368.01 | AK20: Note 3 | AL20: 221 | AM20: 265 | AN20: 305 | AO20: 220 | AP20: 160 | AQ20: 120
C21: Sole Parent Support | AH21: Sole Parent Support
C22: Sole parent | D22: 505.8 | E22: 587.64 | F22: Note 3 | G22: 163 | H22: 195 | I22: Note 4 | J22: Note 4 | K22: Note 4 | L22: Note 4 | N22: ='Rates Data'!C64 -> Sole Parent | O22: ='Rates Data'!M64 -> 505.8 | P22: ='Rates Data'!N64 -> 587.64 | R22: ='Rates Data'!M278 -> 163 | S22: ='Rates Data'!N278 -> 195 | X22: =D22-O22 -> 0 | Y22: 0 | AA22: =G22-R22 -> 0 | AB22: 0 | AH22: Sole parent | AI22: 505.8 | AJ22: 587.64 | AK22: Note 3 | AL22: 163 | AM22: 195 | AN22: Note 4 | AO22: Note 4 | AP22: Note 4 | AQ22: Note 4
C23: Supported Living Payment without children | AH23: Supported Living Payment without children
C24: Single, 16 to 17 years | D24: 345.14 | E24: 392.9 | F24: Note 1 | G24: 103 | H24: 124 | I24: 165 | J24: 105 | K24: 80 | L24: 70 | N24: ='Rates Data'!C55 -> Single 16-17 years old | O24: ='Rates Data'!M55 -> 345.14 | P24: ='Rates Data'!N55 -> 392.9 | R24: ='Rates Data'!M292 -> 103 | S24: ='Rates Data'!N292 -> 124 | T24: =T8 -> 165 | U24: =U8 -> 105 | V24: 80 | W24: 70 | X24: =D24-O24 -> 0 | Y24: 0 | AA24: =G24-R24 -> 0 | AB24: 0 | AC24: 0 | AD24: 0 | AE24: 0 | AF24: 0 | AH24: Single, 16 to 17 years | AI24: 345.14 | AJ24: 392.9 | AK24: Note 1 | AL24: 103 | AM24: 124 | AN24: 165 | AO24: 105 | AP24: 80 | AQ24: 70
C25: Single, 18 years or over | D25: 411.8 | E25: 473.7 | F25: 221.11 | G25: 103 | H25: 124 | I25: 165 | J25: 105 | K25: 80 | L25: 70 | N25: ='Rates Data'!C56 -> Single 18 years and over | O25: ='Rates Data'!M56 -> 411.8 | P25: ='Rates Data'!N56 -> 473.7 | Q25: ='Rates Data'!M392 -> 221.11 | R25: ='Rates Data'!M293 -> 103 | S25: ='Rates Data'!N293 -> 124 | T25: =T24 -> 165 | U25: =U24 -> 105 | V25: 80 | W25: 70 | X25: 0 | Y25: 0 | Z25: 0 | AA25: 0 | AB25: 0 | AC25: 0 | AD25: 0 | AE25: 0 | AF25: 0 | AH25: Single, 18 years or over | AI25: 411.8 | AJ25: 473.7 | AK25: 221.11 | AL25: 103 | AM25: 124 | AN25: 165 | AO25: 105 | AP25: 80 | AQ25: 70
C26: Couple* (total) | D26: 699.7 | E26: 797.22 | F26: 403.38 | G26: 175 | H26: 210 | I26: 235 | J26: 155 | K26: 105 | L26: 80 | N26: ='Rates Data'!C58 -> Married, Civil Union or Defacto Couple (without children) total | O26: ='Rates Data'!M58 -> 699.7 | P26: ='Rates Data'!N58 -> 797.22 | Q26: ='Rates Data'!M393 -> 403.38 | R26: ='Rates Data'!M294 -> 175 | S26: ='Rates Data'!N294 -> 210 | T26: =T13 -> 235 | U26: =U13 -> 155 | V26: 105 | W26: 80 | X26: 0 | Y26: 0 | Z26: 0 | AA26: 0 | AB26: 0 | AC26: 0 | AD26: 0 | AE26: 0 | AF26: 0 | AH26: Couple* (total) | AI26: 699.7 | AJ26: 797.22 | AK26: 403.38 | AL26: 175 | AM26: 210 | AN26: 235 | AO26: 155 | AP26: 105 | AQ26: 80
C27: Couple* (each) | D27: 349.85 | E27: 398.61 | N27: ='Rates Data'!C57 -> Married, Civil Union or Defacto Couple (without children) each | O27: ='Rates Data'!M57 -> 349.85 | P27: ='Rates Data'!N57 -> 398.61 | X27: 0 | Y27: 0 | AH27: Couple* (each) | AI27: 349.85 | AJ27: 398.61 | AK27: N/A
C28: Supported Living Payment with children | AH28: Supported Living Payment with children
C29: Sole parent | D29: 564.42 | E29: 658.69 | F29: Note 3 | G29: 177 | H29: 213 | I29: Note 4 | J29: Note 4 | K29: Note 4 | L29: Note 4 | N29: ='Rates Data'!C62 -> Sole Parent | O29: ='Rates Data'!M62 -> 564.42 | P29: ='Rates Data'!N62 -> 658.69 | R29: ='Rates Data'!M296 -> 177 | S29: ='Rates Data'!N296 -> 213 | X29: =D29-O29 -> 0 | Y29: 0 | AA29: =G29-R29 -> 0 | AB29: 0 | AH29: Sole parent | AI29: 564.42 | AJ29: 658.69 | AK29: Note 3 | AL29: 177 | AM29: 213 | AN29: Note 4 | AO29: Note 4 | AP29: Note 4 | AQ29: Note 4
C30: Couple* with 1+ children (total) | D30: 734.12 | E30: 838.94 | F30: Note 3 | G30: 220 | H30: 264 | I30: 305 | J30: 220 | K30: 160 | L30: 120 | N30: ='Rates Data'!C60 -> Married, Civil Union or Defacto Couple partner on benefit (with children) total | O30: ='Rates Data'!M60 -> 734.12 | P30: ='Rates Data'!N60 -> 838.94 | R30: ='Rates Data'!M297 -> 220 | S30: ='Rates Data'!N297 -> 264 | T30: =T17 -> 305 | U30: =U17 -> 220 | V30: 160 | W30: 120 | X30: 0 | Y30: 0 | AA30: 0 | AB30: 0 | AC30: 0 | AD30: 0 | AE30: 0 | AF30: 0 | AH30: Couple* with 1+ children (total) | AI30: 734.12 | AJ30: 838.94 | AK30: Note 3 | AL30: 220 | AM30: 264 | AN30: 305 | AO30: 220 | AP30: 160 | AQ30: 120
C31: Couple* with 1+ children (each) | D31: 367.06 | E31: 419.47 | N31: ='Rates Data'!C59 -> Married, Civil Union or Defacto Couple partner on benefit (with children) each | O31: ='Rates Data'!M59 -> 367.06 | P31: ='Rates Data'!N59 -> 419.47 | X31: 0 | Y31: 0 | AH31: Couple* with 1+ children (each) | AI31: 367.06 | AJ31: 419.47 | AK31: N/A
C32: Couple* with 1 partner not on benefit, and 1+ children (total) | D32: 381.1 | E32: 436.49 | F32: Note 3 | G32: 220 | H32: 264 | I32: 305 | J32: 220 | K32: 160 | L32: 120 | N32: ='Rates Data'!C61 -> Married, Civil Union or Defacto Couple with partner not on benefit or with partner receiving NZS or Veteran's Pension (with children) total | O32: ='Rates Data'!M61 -> 381.1 | P32: ='Rates Data'!N61 -> 436.49 | R32: ='Rates Data'!M298 -> 220 | S32: ='Rates Data'!N298 -> 264 | T32: =T30 -> 305 | U32: =U30 -> 220 | V32: 160 | W32: 120 | X32: 0 | Y32: 0 | AA32: =G32-R32 -> 0 | AB32: 0 | AC32: 0 | AD32: 0 | AE32: 0 | AF32: 0 | AH32: Couple* with 1 partner not on benefit, and 1+ children (total) | AI32: 381.1 | AJ32: 436.49 | AK32: Note 3 | AL32: 220 | AM32: 264 | AN32: 305 | AO32: 220 | AP32: 160 | AQ32: 120
C33: Couple* with 1 partner on New Zealand Superannuation or Veterans Pension, and 1+ children (total) | D33: 381.1 | E33: 436.49 | F33: Note 3 | G33: 235 | H33: 282 | I33: 305 | J33: 220 | K33: 160 | L33: 120 | N33: ='Rates Data'!C61 -> Married, Civil Union or Defacto Couple with partner not on benefit or with partner receiving NZS or Veteran's Pension (with children) total | O33: ='Rates Data'!M61 -> 381.1 | P33: ='Rates Data'!N61 -> 436.49 | R33: ='Rates Data'!O314 -> 235 | S33: ='Rates Data'!P314 -> 282 | T33: =T32 -> 305 | U33: =U32 -> 220 | V33: 160 | W33: 120 | X33: 0 | Y33: 0 | AA33: 0 | AB33: 0 | AC33: 0 | AD33: 0 | AE33: 0 | AF33: 0 | AH33: Couple* with 1 partner on New Zealand Superannuation or Veterans Pension, and 1+ children (total) | AI33: 381.1 | AJ33: 436.49 | AK33: Note 3 | AL33: 235 | AM33: 282 | AN33: 305 | AO33: 220 | AP33: 160 | AQ33: 120
C34: Young Parent Payment | AH34: Young Parent Payment
C35: Sole parent, 16 to 17 years, living with or supported by parents or guardians who earn less than the ftc^ threshold | D35: 291.79 | E35: 328.23 | F35: Note 1 | G35: 109 | H35: Note 2 | I35: Note 4 | J35: Note 4 | K35: Note 4 | L35: Note 4 | N35: ='Rates Data'!C49 -> Sole parent 16-17 year old, living at home or financially supported by parents or guardian (earning less than FTC threshold) | O35: ='Rates Data'!M49 -> 291.79 | P35: ='Rates Data'!N49 -> 328.23 | R35: ='Rates Data'!M285 -> 109 | X35: 0 | Y35: 0 | AA35: 0 | AH35: Sole parent, 16 to 17 years, living with or supported by parents or guardians who earn less than the ftc^ threshold | AI35: 291.79 | AJ35: 328.23 | AK35: Note 1 | AL35: 109 | AM35: Note 2 | AN35: Note 4 | AO35: Note 4 | AP35: Note 4 | AQ35: Note 4
C36: Sole parent | D36: 505.8 | E36: 587.64 | F36: Note 1 | G36: 163 | H36: 195 | I36: Note 4 | J36: Note 4 | K36: Note 4 | L36: Note 4 | N36: ='Rates Data'!C53 -> Sole parent | O36: ='Rates Data'!M53 -> 505.8 | P36: ='Rates Data'!N53 -> 587.64 | R36: ='Rates Data'!M288 -> 163 | S36: ='Rates Data'!N288 -> 195 | X36: 0 | Y36: 0 | AA36: 0 | AB36: 0 | AH36: Sole parent | AI36: 505.8 | AJ36: 587.64 | AK36: Note 1 | AL36: 163 | AM36: 195 | AN36: Note 4 | AO36: Note 4 | AP36: Note 4 | AQ36: Note 4
C37: Couple* with 1+ children (total) | D37: 649.22 | E37: 736.02 | F37: Note 1 | G37: 198 | H37: 238 | I37: 305 | J37: 220 | K37: 160 | L37: 120 | N37: ='Rates Data'!C51 -> Married, civil union or de facto couple both qualify (with children) total | O37: ='Rates Data'!M51 -> 649.22 | P37: ='Rates Data'!N51 -> 736.02 | R37: ='Rates Data'!M286 -> 198 | S37: ='Rates Data'!N286 -> 238 | T37: =T33 -> 305 | U37: =U33 -> 220 | V37: 160 | W37: 120 | X37: 0 | Y37: 0 | AA37: 0 | AB37: 0 | AC37: 0 | AD37: 0 | AE37: 0 | AF37: 0 | AH37: Couple* with 1+ children (total) | AI37: 649.22 | AJ37: 736.02 | AK37: Note 1 | AL37: 198 | AM37: 238 | AN37: 305 | AO37: 220 | AP37: 160 | AQ37: 120
C38: Couple* with 1+ children (each) | D38: 324.61 | E38: 368.01 | N38: ='Rates Data'!C50 -> Married, civil union or de facto couple both qualify (with children) each | O38: ='Rates Data'!M50 -> 324.61 | P38: ='Rates Data'!N50 -> 368.01 | X38: 0 | Y38: 0 | AA38: 0 | AB38: 0 | AC38: 0 | AD38: 0 | AE38: 0 | AF38: 0 | AH38: Couple* with 1+ children (each) | AI38: 324.61 | AJ38: 368.01 | AK38: N/A
C39: Couple* with 1 partner not on benefit, and 1+ children (total) | D39: 324.61 | E39: 368.01 | F39: Note 1 | G39: 198 | H39: 238 | I39: 305 | J39: 220 | K39: 160 | L39: 120 | N39: ='Rates Data'!C52 -> Married, Civil Union or Defacto Couple with partner not on benefit (with children) total | O39: ='Rates Data'!M52 -> 324.61 | P39: ='Rates Data'!N52 -> 368.01 | R39: ='Rates Data'!M287 -> 198 | S39: ='Rates Data'!N287 -> 238 | T39: =T37 -> 305 | U39: =U37 -> 220 | V39: 160 | W39: 120 | X39: 0 | Y39: 0 | AA39: 0 | AB39: 0 | AC39: 0 | AD39: 0 | AE39: 0 | AF39: 0 | AH39: Couple* with 1 partner not on benefit, and 1+ children (total) | AI39: 324.61 | AJ39: 368.01 | AK39: Note 1 | AL39: 198 | AM39: 238 | AN39: 305 | AO39: 220 | AP39: 160 | AQ39: 120
C40: Youth Payment | AH40: Youth Payment
C41: Single, 16 to 17 years | D41: 314.72 | E41: 356.02 | F41: Note 1 | G41: 90 | H41: 108 | I41: 165 | J41: 105 | K41: 80 | L41: 70 | N41: ='Rates Data'!C45 -> Single, 16-17 Year old | O41: ='Rates Data'!M45 -> 314.72 | P41: ='Rates Data'!N45 -> 356.02 | R41: ='Rates Data'!M282 -> 90 | S41: ='Rates Data'!N282 -> 108 | T41: =T8 -> 165 | U41: =U8 -> 105 | V41: 80 | W41: 70 | X41: 0 | Y41: 0 | AA41: 0 | AB41: 0 | AC41: 0 | AD41: 0 | AE41: 0 | AF41: 0 | AH41: Single, 16 to 17 years | AI41: 314.72 | AJ41: 356.02 | AK41: Note 1 | AL41: 90 | AM41: 108 | AN41: 165 | AO41: 105 | AP41: 80 | AQ41: 70
C42: Couple* (total) | D42: 614.84 | E42: 694.36 | F42: Note 1 | G42: =AL42 -> 154 | H42: 184 | I42: 235 | J42: 155 | K42: 105 | L42: 80 | N42: ='Rates Data'!C47 -> Married, civil union or de facto couple (without children) total | O42: ='Rates Data'!M47 -> 614.84 | P42: ='Rates Data'!N47 -> 694.36 | R42: ='Rates Data'!M283 -> 154 | S42: ='Rates Data'!N283 -> 184 | T42: =T13 -> 235 | U42: =U13 -> 155 | V42: 105 | W42: 80 | X42: 0 | Y42: 0 | AA42: 0 | AB42: 0 | AC42: 0 | AD42: 0 | AE42: 0 | AF42: 0 | AH42: Couple* (total) | AI42: 614.84 | AJ42: 694.36 | AK42: Note 1 | AL42: 154 | AM42: 184 | AN42: 235 | AO42: 155 | AP42: 105 | AQ42: 80
C43: =AH43 -> Couple* (each) | D43: 307.42 | E43: 347.18 | N43: ='Rates Data'!C46 -> Married, civil union or de facto couple (without children) each | O43: ='Rates Data'!M46 -> 307.42 | P43: ='Rates Data'!N46 -> 347.18 | X43: 0 | Y43: 0 | AH43: Couple* (each) | AI43: 307.42 | AJ43: 347.18 | AK43: N/A
C44: + Accommodation Supplement entry thresholds and maximum rates for non‑beneficiaries are the same as those for Jobseeker Support clients | AH44: + Accommodation Supplement entry thresholds and maximum rates for non‑beneficiaries are the same as those for Jobseeker Support clients
C45: (and the entry thresholds and maximum rates for 16 to 17 year old non‑beneficiaries are the same as those for 18 to 19 year old non‑beneficiaries). | AH45: (and the entry thresholds and maximum rates for 16 to 17 year old non‑beneficiaries are the same as those for 18 to 19 year old non‑beneficiaries).
C46: * A married, civil union, or de facto couple. | D46: ^ The family tax credit. | AH46: * A married, civil union, or de facto couple. | AI46: ^ The family tax credit.
C47: Note 1: Special Benefit isn't available for these clients. | AH47: Note 1: Special Benefit isn't available for these clients.
C48: Note 2: The mortgage rate isn't relevant as these clients are living at home or away from home, and supported by their parents. | AH48: Note 2: The mortgage rate isn't relevant as these clients are living at home or away from home, and supported by their parents.
C49: Note 3: Special Benefit standard costs for these clients are equal to 70% of the unabated main benefit and unabated family tax credit, combined. | AH49: Note 3: Special Benefit standard costs for these clients are equal to 70% of the unabated main benefit and unabated family tax credit, combined.
C50: Note 4: Accommodation Supplement maximum rates for these clients are: è | D50: =AI50 -> Area 1 | E50: =AJ50 -> Area 2 | F50: Area 3 | G50: Area 4 | AH50: Note 4: Accommodation Supplement maximum rates for these clients are: è | AI50: Area 1 | AJ50: Area 2 | AK50: Area 3 | AL50: Area 4
D51: =AI51 -> 235 | E51: 155 | F51: 105 | G51: 80 | H51: ç 2-person family | N51: Sole Parent & 1 child | T51: =T13 -> 235 | U51: =U13 -> 155 | V51: 105 | W51: 80 | AC51: =T51-D51 -> 0 | AD51: =U51-E51 -> 0 | AE51: 0 | AF51: 0 | AI51: 235 | AJ51: 155 | AK51: 105 | AL51: 80 | AM51: ç 2-person family
D52: 305 | E52: 220 | F52: 160 | G52: 120 | H52: ç 3-person or more family | N52: Sole Parent & 2+ children | T52: =T17 -> 305 | U52: =U17 -> 220 | V52: 160 | W52: 120 | AC52: =T52-D52 -> 0 | AD52: 0 | AE52: 0 | AF52: 0 | AI52: 305 | AJ52: 220 | AK52: 160 | AL52: 120 | AM52: ç 3-person or more family
C53: The rates, standard costs, and Accommodation Supplement entry thresholds and maximum rates for Emergency Benefit or Emergency Maintenance Allowance are the same as those for the equivalent benefit (the benefit that the client is paid). | AH53: The rates, standard costs, and Accommodation Supplement entry thresholds and maximum rates for Emergency Benefit or Emergency Maintenance Allowance are the same as those for the equivalent benefit (the benefit that the client is paid).
C56: =AH56 -> Benefit rates at 1 April 2025 | AH56: Benefit rates at 1 April 2025
C57: Benefit type | D57: Weekly rate, | AH57: Benefit type | AI57: Weekly rate,
D58: non‑taxable | AI58: non‑taxable
C59: =AH59 -> Disability Allowance | O59: Table 4 | AH59: Disability Allowance
C60: =AH60 -> Standard Disability Allowance — maximum | D60: 80.35 | N60: ='Rates Data'!C132 -> Standard Disability Allowance (Maximum) | O60: ='Rates Data'!M132 -> 80.35 | Q60: =O60-D60 -> 0 | AH60: Standard Disability Allowance — maximum | AI60: 80.35
C61: Special Disability Allowance | D61: 50.11 | N61: ='Rates Data'!C133 -> Special Disability Allowance | O61: ='Rates Data'!M133 -> 50.11 | Q61: =O61-D61 -> 0 | AH61: Special Disability Allowance | AI61: 50.11
C62: Child Disability Allowance | D62: 60.55 | N62: ='Rates Data'!C127 -> Child Disability Allowance | O62: ='Rates Data'!M127 -> 60.55 | Q62: 0 | AH62: Child Disability Allowance | AI62: 60.55
C63: Foster Care Allowance — standard rates | AH63: Foster Care Allowance — standard rates
C64: Aged 0 to 4 years | D64: 292.44 | N64: ='Rates Data'!C138 -> Child 0-4 years | O64: ='Rates Data'!M138 -> 292.44 | Q64: 0 | AH64: Aged 0 to 4 years | AI64: 292.44
C65: Aged 5 to 9 years | D65: 294.47 | N65: ='Rates Data'!C137 -> Child 5-9 years | O65: ='Rates Data'!M137 -> 294.47 | Q65: 0 | AH65: Aged 5 to 9 years | AI65: 294.47
C66: Aged 10 to 13 years | D66: 317.3 | N66: ='Rates Data'!C136 -> Child 10-13 years | O66: ='Rates Data'!M136 -> 317.3 | Q66: 0 | AH66: Aged 10 to 13 years | AI66: 317.3
C67: Aged 14 years or over | D67: 340.01 | N67: ='Rates Data'!C135 -> Child 14+ years | O67: ='Rates Data'!M135 -> 340.01 | Q67: 0 | AH67: Aged 14 years or over | AI67: 340.01
C68: Family home | D68: 322.02 | AH68: Family home | AI68: 322.02
C69: Orphans Benefit or Unsupported Childs Benefit | O69: Table 2 | AH69: Orphans Benefit or Unsupported Childs Benefit
C70: Aged 0 to 4 years | D70: 292.44 | N70: ='Rates Data'!C72 -> Under 5 years old | O70: ='Rates Data'!M72 -> 292.44 | Q70: =O70-D70 -> 0 | AH70: Aged 0 to 4 years | AI70: 292.44
C71: Aged 5 to 9 years | D71: 294.47 | N71: ='Rates Data'!C71 -> 5-9 years old | O71: ='Rates Data'!M71 -> 294.47 | Q71: 0 | AH71: Aged 5 to 9 years | AI71: 294.47
C72: Aged 10 to 13 years | D72: 317.3 | N72: ='Rates Data'!C70 -> 10-13 years old | O72: ='Rates Data'!M70 -> 317.3 | Q72: 0 | AH72: Aged 10 to 13 years | AI72: 317.3
C73: Aged 14 years or over | D73: 340.01 | N73: ='Rates Data'!C69 -> 14 years old and over | O73: ='Rates Data'!M69 -> 340.01 | Q73: 0 | AH73: Aged 14 years or over | AI73: 340.01
C74: Orphans Benefit or Unsupported Childs Benefit — Clothing Allowance | O74: Table 39 | AH74: Orphans Benefit or Unsupported Childs Benefit — Clothing Allowance
C75: Aged 0 to 4 years | D75: 25.59 | N75: ='Rates Data'!C569 -> 0-4 years | O75: ='Rates Data'!M569 -> 25.59 | Q75: 0 | AH75: Aged 0 to 4 years | AI75: 25.59
C76: Aged 5 to 9 years | D76: 29.02 | N76: ='Rates Data'!C570 -> 5-9 years | O76: ='Rates Data'!M570 -> 29.02 | Q76: 0 | AH76: Aged 5 to 9 years | AI76: 29.02
C77: Aged 10 to 13 years | D77: 35.84 | N77: ='Rates Data'!C571 -> 10-13 years | O77: ='Rates Data'!M571 -> 35.84 | Q77: 0 | AH77: Aged 10 to 13 years | AI77: 35.84
C78: Aged 14 years or over | D78: 43 | N78: ='Rates Data'!C572 -> 14+ years | O78: ='Rates Data'!M572 -> 43 | Q78: 0 | AH78: Aged 14 years or over | AI78: 43
D79: Annual rate, | AI79: Annual rate,
D80: non‑taxable | AI80: non‑taxable
C81: Orphans Benefit or Unsupported Childs Benefit — Holiday Allowance and Birthday Allowance | O81: Table 4 | S81: Extra check to confirm birthday = holiday still | AH81: Orphans Benefit or Unsupported Childs Benefit — Holiday Allowance and Birthday Allowance
C82: Aged 0 to 4 years | D82: 146.22 | N82: ='Rates Data'!C149 -> Child 0-4 years | O82: ='Rates Data'!M149 -> 146.22 | Q82: =O82-D82 -> 0 | S82: ='Rates Data'!C144 -> Child 0-4 years | T82: ='Rates Data'!M144 -> 146.22 | U82: =T82=O82 -> TRUE | AH82: Aged 0 to 4 years | AI82: 146.22
C83: Aged 5 to 9 years | D83: 147.24 | N83: ='Rates Data'!C148 -> Child 5-9 years | O83: ='Rates Data'!M148 -> 147.24 | Q83: 0 | S83: ='Rates Data'!C143 -> Child 5-9 years | T83: ='Rates Data'!M143 -> 147.24 | U83: =T83=O83 -> TRUE | AH83: Aged 5 to 9 years | AI83: 147.24
C84: Aged 10 to 13 years | D84: 158.65 | N84: ='Rates Data'!C147 -> Child 10-13 years | O84: ='Rates Data'!M147 -> 158.65 | Q84: 0 | S84: ='Rates Data'!C142 -> Child 10-13 years | T84: ='Rates Data'!M142 -> 158.65 | U84: TRUE | AH84: Aged 10 to 13 years | AI84: 158.65
C85: Aged 14 years or over | D85: 170.01 | N85: ='Rates Data'!C146 -> Child 14+ years | O85: ='Rates Data'!M146 -> 170.01 | Q85: 0 | S85: ='Rates Data'!C141 -> Child 14+ years | T85: ='Rates Data'!M141 -> 170.01 | U85: TRUE | AH85: Aged 14 years or over | AI85: 170.01
C86: =AH86 -> Childcare Subsidy and OSCAR subsidy rates at 1 April 2025 | AH86: Childcare Subsidy and OSCAR subsidy rates at 1 April 2025
C87: =AH87 -> Number of children | D87: =AI87 -> Gross income per week | E87: 0 | F87: 0 | G87: 0 | H87: 0 | N87: Table 5 | P87: Less than | Q87: to | R87: to | S87: to | T87: or more | AH87: Number of children | AI87: Gross income per week
C88: =AH88 -> 1 child | D88: =AI88 -> Less than | E88: $1,099.00 to | F88: $2,002.00 to | G88: $2,169.00 to | H88: 2336 | K88: ='Rates Data'!C176 -> Rate 0 - 1 child | L88: ='Rates Data'!M176 -> 1099 | M88: ='Rates Data'!C182 -> Rate 2 - 1 child | N88: ='Rates Data'!M182 -> 2169 | P88: =P$87 -> Less than | Q88: =TEXT(L88,"$#,###.00"&Q$87) -> $1,099.00 to | R88: =TEXT(L91,"$#,###.00"&R$87) -> $2,002.00 to | S88: =TEXT(N88,"$#,###.00"&S$87) -> $2,169.00 to | T88: =N91 -> 2336 | V88: =P88=D88 -> TRUE | W88: =Q88=E88 -> TRUE | X88: TRUE | Y88: TRUE | Z88: TRUE | AH88: 1 child | AI88: Less than | AJ88: $1,099.00 to | AK88: $2,002.00 to | AL88: $2,169.00 to | AM88: 2336
D89: =AI89 -> 1099 | E89: =AJ89 -> 2001.99 | F89: =AK89 -> 2168.99 | G89: =AL89 -> 2335.99 | H89: =AM89 -> or more | K89: ='Rates Data'!C177 -> Rate 0 - 2 children | L89: ='Rates Data'!M177 -> 1264 | M89: ='Rates Data'!C183 -> Rate 2 - 2 children | N89: ='Rates Data'!M183 -> 2485 | P89: =L88 -> 1099 | Q89: =L91-0.01 -> 2001.99 | R89: =N88-0.01 -> 2168.99 | S89: =N91-0.01 -> 2335.99 | T89: =T$87 -> or more | V89: =P89=D89 -> TRUE | W89: TRUE | X89: TRUE | Y89: TRUE | Z89: TRUE | AI89: 1099 | AJ89: 2001.99 | AK89: 2168.99 | AL89: 2335.99 | AM89: or more
C90: 2 children | D90: Less than | E90: $1,264.00 to | F90: $2,303.00 to | G90: $2,485.00 to | H90: 2670 | K90: ='Rates Data'!C178 -> Rate 0 - 3+ children | L90: ='Rates Data'!M178 -> 1416 | M90: ='Rates Data'!C184 -> Rate 2 - 3+ children | N90: ='Rates Data'!M184 -> 2787 | P90: =P$87 -> Less than | Q90: =TEXT(L89,"$#,###.00"&Q$87) -> $1,264.00 to | R90: =TEXT(L92,"$#,###.00"&R$87) -> $2,303.00 to | S90: =TEXT(N89,"$#,###.00"&S$87) -> $2,485.00 to | T90: =N92 -> 2670 | V90: TRUE | W90: TRUE | X90: TRUE | Y90: TRUE | Z90: TRUE | AH90: 2 children | AI90: Less than | AJ90: $1,264.00 to | AK90: $2,303.00 to | AL90: $2,485.00 to | AM90: 2670
D91: 1264 | E91: 2302.99 | F91: 2484.99 | G91: 2669.99 | H91: or more | K91: ='Rates Data'!C179 -> Rate 1 - 1 child | L91: ='Rates Data'!M179 -> 2002 | M91: ='Rates Data'!C185 -> Rate 3 - 1 child | N91: ='Rates Data'!M185 -> 2336 | P91: =L89 -> 1264 | Q91: =L92-0.01 -> 2302.99 | R91: =N89-0.01 -> 2484.99 | S91: =N92-0.01 -> 2669.99 | T91: =T$87 -> or more | V91: TRUE | W91: TRUE | X91: TRUE | Y91: TRUE | Z91: TRUE | AI91: 1264 | AJ91: 2302.99 | AK91: 2484.99 | AL91: 2669.99 | AM91: or more
C92: 3+ children | D92: Less than | E92: $1,416.00 to | F92: $2,569.00 to | G92: $2,787.00 to | H92: 3004 | K92: ='Rates Data'!C180 -> Rate 1 - 2 children | L92: ='Rates Data'!M180 -> 2303 | M92: ='Rates Data'!C186 -> Rate 3 - 2 children | N92: ='Rates Data'!M186 -> 2670 | P92: =P$87 -> Less than | Q92: =TEXT(L90,"$#,###.00"&Q$87) -> $1,416.00 to | R92: =TEXT(L93,"$#,###.00"&R$87) -> $2,569.00 to | S92: =TEXT(N90,"$#,###.00"&S$87) -> $2,787.00 to | T92: =N93 -> 3004 | V92: TRUE | W92: TRUE | X92: TRUE | Y92: TRUE | Z92: TRUE | AH92: 3+ children | AI92: Less than | AJ92: $1,416.00 to | AK92: $2,569.00 to | AL92: $2,787.00 to | AM92: 3004
D93: 1416 | E93: 2568.99 | F93: 2786.99 | G93: 3003.99 | H93: or more | K93: ='Rates Data'!C181 -> Rate 1 - 3+ children | L93: ='Rates Data'!M181 -> 2569 | M93: ='Rates Data'!C187 -> Rate 3 - 3+ children | N93: ='Rates Data'!M187 -> 3004 | P93: =L90 -> 1416 | Q93: =L93-0.01 -> 2568.99 | R93: =N90-0.01 -> 2786.99 | S93: =N93-0.01 -> 3003.99 | T93: =T$87 -> or more | V93: TRUE | W93: TRUE | X93: TRUE | Y93: TRUE | Z93: TRUE | AI93: 1416 | AJ93: 2568.99 | AK93: 2786.99 | AL93: 3003.99 | AM93: or more
C94: Rate that applies — see the chart below | D94: Rate 0 | E94: Rate 1 | F94: Rate 2 | G94: Rate 3 | H94: Nil | AH94: Rate that applies — see the chart below | AI94: Rate 0 | AJ94: Rate 1 | AK94: Rate 2 | AL94: Rate 3 | AM94: Nil
C96: =AH96 -> Assistance type | D96: =AI96 -> Rate 0 | E96: Rate 1 | F96: Rate 2 | G96: Rate 3 | N96: Table 5 | P96: ='Rates Data'!C151 -> Hourly Rate - Rate 0 | Q96: ='Rates Data'!C152 -> Hourly Rate - Rate 1 | R96: ='Rates Data'!C153 -> Hourly Rate - Rate 2 | S96: ='Rates Data'!C154 -> Hourly Rate - Rate 3 | AH96: Assistance type | AI96: Rate 0 | AJ96: Rate 1 | AK96: Rate 2 | AL96: Rate 3
C97: =AH97 -> Childcare Subsidy hourly rate, non‑taxable | D97: 6.52 | E97: 5.2 | F97: 3.64 | G97: 2.03 | M97: ='Rates Data'!B151 -> Childcare Subsidy | O97: ='Rates Data'!C151 -> Hourly Rate - Rate 0 | P97: ='Rates Data'!M151 -> 6.52 | Q97: ='Rates Data'!M152 -> 5.2 | R97: ='Rates Data'!M153 -> 3.64 | S97: ='Rates Data'!M154 -> 2.03 | V97: =P97=D97 -> TRUE | W97: TRUE | X97: TRUE | Y97: TRUE | AH97: Childcare Subsidy hourly rate, non‑taxable | AI97: 6.52 | AJ97: 5.2 | AK97: 3.64 | AL97: 2.03
C98: Childcare Subsidy up to 50 hours per week, maximum, non‑taxable | D98: 326 | E98: 260 | F98: 182 | G98: 101.5 | M98: ='Rates Data'!B155 -> Childcare Subsidy | O98: ='Rates Data'!C155 -> Maximum Weekly - Rate 0 | P98: ='Rates Data'!$M155 -> 326 | Q98: ='Rates Data'!$M156 -> 260 | R98: ='Rates Data'!$M157 -> 182 | S98: ='Rates Data'!$M158 -> 101.5 | V98: TRUE | W98: TRUE | X98: TRUE | Y98: TRUE | AH98: Childcare Subsidy up to 50 hours per week, maximum, non‑taxable | AI98: 326 | AJ98: 260 | AK98: 182 | AL98: 101.5
C99: OSCAR Subsidy hourly rate, non‑taxable | D99: 6.52 | E99: 5.2 | F99: 3.64 | G99: 2.03 | M99: ='Rates Data'!B160 -> OSCAR Subsidy | O99: ='Rates Data'!C160 -> Hourly Rate - Rate 0 | P99: ='Rates Data'!$M160 -> 6.52 | Q99: ='Rates Data'!$M161 -> 5.2 | R99: ='Rates Data'!$M162 -> 3.64 | S99: ='Rates Data'!$M163 -> 2.03 | V99: TRUE | W99: TRUE | X99: TRUE | Y99: TRUE | AH99: OSCAR Subsidy hourly rate, non‑taxable | AI99: 6.52 | AJ99: 5.2 | AK99: 3.64 | AL99: 2.03
C100: OSCAR Subsidy during term time up to 20 hours per week, maximum, non‑taxable | D100: 130.4 | E100: 104 | F100: 72.8 | G100: 40.6 | M100: ='Rates Data'!B164 -> OSCAR Subsidy | O100: ='Rates Data'!C164 -> Maximum Weekly (Term Time) - Rate 0 | P100: ='Rates Data'!M164 -> 130.4 | Q100: ='Rates Data'!M165 -> 104 | R100: ='Rates Data'!M166 -> 72.8 | S100: ='Rates Data'!M167 -> 40.6 | V100: TRUE | W100: TRUE | X100: TRUE | Y100: TRUE | AH100: OSCAR Subsidy during term time up to 20 hours per week, maximum, non‑taxable | AI100: 130.4 | AJ100: 104 | AK100: 72.8 | AL100: 40.6
C101: OSCAR Subsidy during holidays up to 50 hours per week, maximum, non‑taxable | D101: 326 | E101: 260 | F101: 182 | G101: 101.5 | M101: ='Rates Data'!B168 -> OSCAR Subsidy | O101: ='Rates Data'!C168 -> Maximum Weekly (Holidays) - Rate 0 | P101: ='Rates Data'!M168 -> 326 | Q101: ='Rates Data'!M169 -> 260 | R101: ='Rates Data'!M170 -> 182 | S101: ='Rates Data'!M171 -> 101.5 | V101: TRUE | W101: TRUE | X101: TRUE | Y101: TRUE | AH101: OSCAR Subsidy during holidays up to 50 hours per week, maximum, non‑taxable | AI101: 326 | AJ101: 260 | AK101: 182 | AL101: 101.5
C103: =AH103 -> New Zealand Superannuation and Veterans Pension rates at 1 April 2025 | AH103: New Zealand Superannuation and Veterans Pension rates at 1 April 2025
C104: =AH104 -> Pension type | D104: =AI104 -> Net weekly rate | E104: =AJ104 -> Net weekly rate | F104: Gross weekly rate | AH104: Pension type | AI104: Net weekly rate | AJ104: Net weekly rate | AK104: Gross weekly rate
D105: =AI105 -> (after tax at "M") | E105: (after tax at "S") | F105: 0 | AI105: (after tax at "M") | AJ105: (after tax at "S")
C106: New Zealand Superannuation or Veterans Pension — standard rates | N106: Table 1 | O106: Net | P106: Sec | Q106: Gross | AH106: New Zealand Superannuation or Veterans Pension — standard rates
C107: Single, living alone | D107: 538.42 | E107: 517.42 | F107: 627.14 | N107: ='Rates Data'!C8 -> Single Living Alone | O107: =INDIRECT(MID(_xlfn.FORMULATEXT($N107),2,LEN(_xlfn.FORMULATEXT($N107))-3)&"m"&RIGHT(_xlfn.FORMULATEXT($N107),1),1) -> 538.42 | P107: =INDIRECT(MID(_xlfn.FORMULATEXT($N107),2,LEN(_xlfn.FORMULATEXT($N107))-3)&"o"&RIGHT(_xlfn.FORMULATEXT($N107),1),1) -> 517.42 | Q107: =INDIRECT(MID(_xlfn.FORMULATEXT($N107),2,LEN(_xlfn.FORMULATEXT($N107))-3)&"n"&RIGHT(_xlfn.FORMULATEXT($N107),1),1) -> 627.14 | T107: =O107-D107 -> 0 | U107: =P107-E107 -> 0 | V107: 0 | AH107: Single, living alone | AI107: 538.42 | AJ107: 517.42 | AK107: 627.14
C108: Single, sharing accommodation | D108: 497 | E108: 476 | F108: 576.8 | N108: ='Rates Data'!C9 -> Single Sharing | O108: =INDIRECT(MID(_xlfn.FORMULATEXT($N108),2,LEN(_xlfn.FORMULATEXT($N108))-3)&"m"&RIGHT(_xlfn.FORMULATEXT($N108),1),1) -> 497 | P108: =INDIRECT(MID(_xlfn.FORMULATEXT($N108),2,LEN(_xlfn.FORMULATEXT($N108))-3)&"o"&RIGHT(_xlfn.FORMULATEXT($N108),1),1) -> 476 | Q108: =INDIRECT(MID(_xlfn.FORMULATEXT($N108),2,LEN(_xlfn.FORMULATEXT($N108))-3)&"n"&RIGHT(_xlfn.FORMULATEXT($N108),1),1) -> 576.8 | T108: =O108-D108 -> 0 | U108: 0 | V108: 0 | AH108: Single, sharing accommodation | AI108: 497 | AJ108: 476 | AK108: 576.8
C109: Married person or partner in a civil union or de facto relationship | D109: 414.17 | E109: 393.17 | F109: 476.47 | N109: ='Rates Data'!C11 -> Married, Civil Union or Defacto Couple (both qualify) each | O109: =INDIRECT(MID(_xlfn.FORMULATEXT($N109),2,LEN(_xlfn.FORMULATEXT($N109))-4)&"m"&RIGHT(_xlfn.FORMULATEXT($N109),2),1) -> 414.17 | P109: =INDIRECT(MID(_xlfn.FORMULATEXT($N109),2,LEN(_xlfn.FORMULATEXT($N109))-4)&"o"&RIGHT(_xlfn.FORMULATEXT($N109),2),1) -> 393.17 | Q109: =INDIRECT(MID(_xlfn.FORMULATEXT($N109),2,LEN(_xlfn.FORMULATEXT($N109))-4)&"n"&RIGHT(_xlfn.FORMULATEXT($N109),2),1) -> 476.47 | T109: 0 | U109: 0 | V109: 0 | AH109: Married person or partner in a civil union or de facto relationship | AI109: 414.17 | AJ109: 393.17 | AK109: 476.47
C110: Married, civil union, or de facto couple, both qualify (total) | D110: 828.34 | E110: 786.34 | F110: 952.94 | N110: ='Rates Data'!C12 -> Married, Civil Union or Defacto Couple (both qualify) total | O110: =INDIRECT(MID(_xlfn.FORMULATEXT($N110),2,LEN(_xlfn.FORMULATEXT($N110))-4)&"m"&RIGHT(_xlfn.FORMULATEXT($N110),2),1) -> 828.34 | P110: =INDIRECT(MID(_xlfn.FORMULATEXT($N110),2,LEN(_xlfn.FORMULATEXT($N110))-4)&"o"&RIGHT(_xlfn.FORMULATEXT($N110),2),1) -> 786.34 | Q110: =INDIRECT(MID(_xlfn.FORMULATEXT($N110),2,LEN(_xlfn.FORMULATEXT($N110))-4)&"n"&RIGHT(_xlfn.FORMULATEXT($N110),2),1) -> 952.94 | T110: 0 | U110: 0 | V110: 0 | AH110: Married, civil union, or de facto couple, both qualify (total) | AI110: 828.34 | AJ110: 786.34 | AK110: 952.94
C111: Married, civil union, or de facto couple, both qualify (each) | D111: 414.17 | E111: 393.17 | F111: 476.47 | N111: ='Rates Data'!C11 -> Married, Civil Union or Defacto Couple (both qualify) each | O111: 414.17 | P111: 393.17 | Q111: 476.47 | T111: 0 | U111: 0 | V111: 0 | AH111: Married, civil union, or de facto couple, both qualify (each) | AI111: 414.17 | AJ111: 393.17 | AK111: 476.47
C112: Married, civil union, or de facto couple, with grandparented non‑qualified spouse included (total) | D112: 787.58 | E112: 745.58 | F112: 903.42 | N112: ='Rates Data'!C14 -> Married, Civil Union or Defacto Couple (NQP included) total | O112: 787.58 | P112: 745.58 | Q112: 903.42 | T112: 0 | U112: 0 | V112: 0 | AH112: Married, civil union, or de facto couple, with grandparented non‑qualified spouse included (total) | AI112: 787.58 | AJ112: 745.58 | AK112: 903.42
C113: Married, civil union, or de facto couple, with grandparented non‑qualified spouse included (each) | D113: 393.79 | E113: 372.79 | F113: 451.71 | N113: ='Rates Data'!C13 -> Married, Civil Union or Defacto Couple (NQP included) each | O113: 393.79 | P113: 372.79 | Q113: 451.71 | T113: 0 | U113: 0 | V113: 0 | AH113: Married, civil union, or de facto couple, with grandparented non‑qualified spouse included (each) | AI113: 393.79 | AJ113: 372.79 | AK113: 451.71
C114: New Zealand Superannuation or Veterans Pension — non‑standard rates | AH114: New Zealand Superannuation or Veterans Pension — non‑standard rates
C115: Married couple, with grandparented non‑qualified spouse included before 1 October 1991 (total) | D115: 828.34 | E115: 786.34 | F115: 952.94 | N115: ='Rates Data'!C17 -> Married, Civil Union or Defacto Couple (NQP included pre 1/10/91) total | O115: 828.34 | P115: 786.34 | Q115: 952.94 | T115: 0 | U115: 0 | V115: 0 | AH115: Married couple, with grandparented non‑qualified spouse included before 1 October 1991 (total) | AI115: 828.34 | AJ115: 786.34 | AK115: 952.94
C116: Married couple, with grandparented non‑qualified spouse included before 1 October 1991 (each) | D116: 414.17 | E116: 393.17 | F116: 476.47 | N116: ='Rates Data'!C16 -> Married, Civil Union or Defacto Couple (NQP included pre 1/10/91) each | O116: 414.17 | P116: 393.17 | Q116: 476.47 | T116: 0 | U116: 0 | V116: 0 | AH116: Married couple, with grandparented non‑qualified spouse included before 1 October 1991 (each) | AI116: 414.17 | AJ116: 393.17 | AK116: 476.47
C117: Hospital rate | D117: 56.58 | E117: Note 1 | F117: 63.19 | N117: ='Rates Data'!C19 -> Hospital Rate | O117: 56.58 | P117: 0 | Q117: 63.19 | T117: 0 | V117: 0 | AH117: Hospital rate | AI117: 56.58 | AJ117: Note 1 | AK117: 63.19
C118: Non‑taxable amounts | N118: Table 8 | AH118: Non‑taxable amounts
C119: Veteran's lump sum payment on death | D119: 7580.6 | E119: 0 | F119: 0 | N119: ='Rates Data'!C212 -> Other Veterans | O119: =INDIRECT(MID(_xlfn.FORMULATEXT($N119),2,LEN(_xlfn.FORMULATEXT($N119))-5)&"m"&RIGHT(_xlfn.FORMULATEXT($N119),3),1) -> 7580.6 | T119: 0 | AH119: Veteran's lump sum payment on death | AI119: 7580.6
C120: Veteran’s spouse’s lump sum payment on death | D120: 5780.43 | E120: 0 | F120: 0 | N120: ='Rates Data'!C213 -> Veteran's Spouse, Civil union or Defacto Partner | O120: =INDIRECT(MID(_xlfn.FORMULATEXT($N120),2,LEN(_xlfn.FORMULATEXT($N120))-5)&"m"&RIGHT(_xlfn.FORMULATEXT($N120),3),1) -> 5780.43 | T120: 0 | AH120: Veteran’s spouse’s lump sum payment on death | AI120: 5780.43
C121: Note 1: The hospital rate is always taxed at the "M" rate. | AH121: Note 1: The hospital rate is always taxed at the "M" rate.
C122: =AH122 -> Personal allowance rates at 1 April 2025 | AH122: Personal allowance rates at 1 April 2025
C123: =AH123 -> Category | D123: =AI123 -> Net weekly rate | E123: =AJ123 -> Gross weekly rate | F123: Gross weekly rate | AH123: Category | AI123: Net weekly rate | AJ123: Gross weekly rate | AK123: Gross weekly rate
D124: =AI124 -> (after tax at "M") | E124: — New Zealand Superannuation or Veterans Pension | F124: — other benefits | N124: Table 9 | AI124: (after tax at "M") | AJ124: — New Zealand Superannuation or Veterans Pension | AK124: — other benefits
C125: =AH125 -> People receiving Residential Care Subsidy | D125: 56.58 | E125: 63.19 | F125: 63.22 | N125: ='Rates Data'!C223 -> Older People Receiving RCS | O125: =INDIRECT(MID(_xlfn.FORMULATEXT($N125),2,LEN(_xlfn.FORMULATEXT($N125))-5)&"m"&RIGHT(_xlfn.FORMULATEXT($N125),3),1) -> 56.58 | T125: =O125-D125 -> 0 | AH125: People receiving Residential Care Subsidy | AI125: 56.58 | AJ125: 63.19 | AK125: 63.22
C126: People with psychiatric or intellectual disabilities | D126: 82.46 | E126: 92.12 | F126: 92.13 | N126: ='Rates Data'!C224 -> People with Psychiatric or Intellectual Disabilities | O126: 82.46 | T126: 0 | AH126: People with psychiatric or intellectual disabilities | AI126: 82.46 | AJ126: 92.12 | AK126: 92.13
C127: People with physical or sensory disabilities | D127: 133.98 | E127: 149.62 | F127: 149.7 | N127: ='Rates Data'!C225 -> People with Physical or Sensory Disabilities | O127: 133.98 | T127: 0 | AH127: People with physical or sensory disabilities | AI127: 133.98 | AJ127: 149.62 | AK127: 149.7
C128: =AH128 -> Home Help rates at 1 April 2025 | AH128: Home Help rates at 1 April 2025
C129: =AH129 -> Assistance | D129: =AI129 -> Rate | N129: Table 32 | AH129: Assistance | AI129: Rate
C130: =AH130 -> Maximum gross rate per hour — excluding holiday pay | D130: 24.74 | N130: ='Rates Data'!C539 -> Home Helper (Excluding Holiday Pay) | O130: =INDIRECT(MID(_xlfn.FORMULATEXT($N130),2,LEN(_xlfn.FORMULATEXT($N130))-5)&"m"&RIGHT(_xlfn.FORMULATEXT($N130),3),1) -> 24.74 | T130: =O130-D130 -> 0 | AH130: Maximum gross rate per hour — excluding holiday pay | AI130: 24.74
C131: Maximum gross rate per hour — including holiday pay (8%) | D131: 26.72 | N131: ='Rates Data'!C540 -> Home Helper (Including Holiday Pay) | O131: 26.72 | T131: 0 | AH131: Maximum gross rate per hour — including holiday pay (8%) | AI131: 26.72
C132: =AH132 -> Accommodation Supplement entry thresholds at 1 April 2025 | AH132: Accommodation Supplement entry thresholds at 1 April 2025
C133: =AH133 -> for couples receiving half-married rates of different benefits | AH133: for couples receiving half-married rates of different benefits
C134: =AH134 -> Type of benefit combination | D134: =AI134 -> Without children | F134: =AK134 -> With children | AH134: Type of benefit combination | AI134: Without children | AK134: With children
D135: =AI135 -> Rent or board | E135: =AJ135 -> Mortgage | F135: Rent or board | G135: Mortgage | N135: Table 13 | AI135: Rent or board | AJ135: Mortgage | AK135: Rent or board | AL135: Mortgage
C136: =AH136 -> New Zealand Superannuation or Veterans Pension | D136: 191 | E136: 229 | F136: 235 | G136: 282 | N136: ='Rates Data'!C314 -> NZS/VP and SLP | O136: =INDIRECT(MID(_xlfn.FORMULATEXT($N136),2,LEN(_xlfn.FORMULATEXT($N136))-5)&"m"&RIGHT(_xlfn.FORMULATEXT($N136),3),1) -> 191 | P136: =INDIRECT(MID(_xlfn.FORMULATEXT($N136),2,LEN(_xlfn.FORMULATEXT($N136))-5)&"n"&RIGHT(_xlfn.FORMULATEXT($N136),3),1) -> 229 | Q136: =INDIRECT(MID(_xlfn.FORMULATEXT($N136),2,LEN(_xlfn.FORMULATEXT($N136))-5)&"o"&RIGHT(_xlfn.FORMULATEXT($N136),3),1) -> 235 | R136: =INDIRECT(MID(_xlfn.FORMULATEXT($N136),2,LEN(_xlfn.FORMULATEXT($N136))-5)&"p"&RIGHT(_xlfn.FORMULATEXT($N136),3),1) -> 282 | T136: =O136-D136 -> 0 | U136: 0 | V136: 0 | W136: 0 | AH136: New Zealand Superannuation or Veterans Pension | AI136: 191 | AJ136: 229 | AK136: 235 | AL136: 282
C137: and Supported Living Payment | D137: 0 | E137: 0 | F137: 0 | G137: 0 | AH137: and Supported Living Payment
C138: New Zealand Superannuation or Veterans Pension | D138: 180 | E138: 216 | F138: 221 | G138: 265 | N138: ='Rates Data'!C317 -> NZS/VP and JS/Non-Beneficiary | O138: =INDIRECT(MID(_xlfn.FORMULATEXT($N138),2,LEN(_xlfn.FORMULATEXT($N138))-5)&"m"&RIGHT(_xlfn.FORMULATEXT($N138),3),1) -> 180 | P138: =INDIRECT(MID(_xlfn.FORMULATEXT($N138),2,LEN(_xlfn.FORMULATEXT($N138))-5)&"n"&RIGHT(_xlfn.FORMULATEXT($N138),3),1) -> 216 | Q138: =INDIRECT(MID(_xlfn.FORMULATEXT($N138),2,LEN(_xlfn.FORMULATEXT($N138))-5)&"o"&RIGHT(_xlfn.FORMULATEXT($N138),3),1) -> 221 | R138: =INDIRECT(MID(_xlfn.FORMULATEXT($N138),2,LEN(_xlfn.FORMULATEXT($N138))-5)&"p"&RIGHT(_xlfn.FORMULATEXT($N138),3),1) -> 265 | T138: 0 | U138: 0 | V138: 0 | W138: 0 | AH138: New Zealand Superannuation or Veterans Pension | AI138: 180 | AJ138: 216 | AK138: 221 | AL138: 265
C139: and Jobseeker Support or non‑beneficiary | D139: 0 | E139: 0 | F139: 0 | G139: 0 | AH139: and Jobseeker Support or non‑beneficiary
C140: Supported Living Payment | D140: 164 | E140: 197 | F140: 209 | G140: 251 | AH140: Supported Living Payment | AI140: 164 | AJ140: 197 | AK140: 209 | AL140: 251
C141: and Jobseeker Support or non‑beneficiary | D141: 0 | E141: 0 | F141: 0 | G141: 0 | N141: ='Rates Data'!C320 -> SLP and JS/Non-Beneficiary | O141: =INDIRECT(MID(_xlfn.FORMULATEXT($N141),2,LEN(_xlfn.FORMULATEXT($N141))-5)&"m"&RIGHT(_xlfn.FORMULATEXT($N141),3),1) -> 164 | P141: =INDIRECT(MID(_xlfn.FORMULATEXT($N141),2,LEN(_xlfn.FORMULATEXT($N141))-5)&"n"&RIGHT(_xlfn.FORMULATEXT($N141),3),1) -> 197 | Q141: =INDIRECT(MID(_xlfn.FORMULATEXT($N141),2,LEN(_xlfn.FORMULATEXT($N141))-5)&"o"&RIGHT(_xlfn.FORMULATEXT($N141),3),1) -> 209 | R141: =INDIRECT(MID(_xlfn.FORMULATEXT($N141),2,LEN(_xlfn.FORMULATEXT($N141))-5)&"p"&RIGHT(_xlfn.FORMULATEXT($N141),3),1) -> 251 | T141: =O141-D140 -> 0 | U141: =P141-E140 -> 0 | V141: 0 | W141: 0 | AH141: and Jobseeker Support or non‑beneficiary
C143: =AH143 -> Hospital rate at 1 April 2025 | AH143: Hospital rate at 1 April 2025
C144: =AH144 -> Benefit type | D144: =AI144 -> Net weekly rate | E144: =AJ144 -> Gross weekly rate | AH144: Benefit type | AI144: Net weekly rate | AJ144: Gross weekly rate
D145: =AI145 -> (after tax at "M") | AI145: (after tax at "M")
C146: =AH146 -> Hospital rate | N146: Table 9 | AH146: Hospital rate
C147: =AH147 -> For other than New Zealand Superannuation, Veterans Pension, Orphans Benefit, or Unsupported Childs Benefit | D147: 56.58 | E147: 63.22 | N147: ='Rates Data'!C227 -> Hospital Rate | O147: =INDIRECT(MID(_xlfn.FORMULATEXT($N147),2,LEN(_xlfn.FORMULATEXT($N147))-5)&"m"&RIGHT(_xlfn.FORMULATEXT($N147),3),1) -> 56.58 | P147: =INDIRECT(MID(_xlfn.FORMULATEXT($N147),2,LEN(_xlfn.FORMULATEXT($N147))-5)&"n"&RIGHT(_xlfn.FORMULATEXT($N147),3),1) -> 63.22 | T147: =O147-D147 -> 0 | U147: =P147-E147 -> 0 | AH147: For other than New Zealand Superannuation, Veterans Pension, Orphans Benefit, or Unsupported Childs Benefit | AI147: 56.58 | AJ147: 63.22
C148: =AH148 -> Funeral Grant rate at 1 April 2025 | AH148: Funeral Grant rate at 1 April 2025
C149: =AH149 -> Benefit type | D149: =AI149 -> Rate | AH149: Benefit type | AI149: Rate
C150: =AH150 -> Funeral Grant | N150: Table 8 | AH150: Funeral Grant
C151: Income and asset‑tested — maximum | D151: 2616.12 | M151: ='Rates Data'!B209 -> Funeral Grants | N151: ='Rates Data'!C209 -> Maximum Amount | O151: =INDIRECT(MID(_xlfn.FORMULATEXT($N151),2,LEN(_xlfn.FORMULATEXT($N151))-5)&"m"&RIGHT(_xlfn.FORMULATEXT($N151),3),1) -> 2616.12 | T151: =O151-D151 -> 0 | AH151: Income and asset‑tested — maximum | AI151: 2616.12
C152: =AH152 -> Community Services Card income cut‑out points at 1 April 2025 | AH152: Community Services Card income cut‑out points at 1 April 2025
C153: =AH153 -> Family size | D153: =AI153 -> Gross annual income cut‑out point | E153: =AJ153 -> Gross annual income cut‑out point | AH153: Family size | AI153: Gross annual income cut‑out point | AJ153: Gross annual income cut‑out point
D154: =AI154 -> — New Zealand Superannuation clients | E154: — Other clients | N154: Table 20 | AI154: — New Zealand Superannuation clients | AJ154: — Other clients
C155: Single, sharing accommodation | D155: 36245 | E155: 33919 | M155: ='Rates Data'!B417 -> New Zealand Superannuation - Circumstance | N155: ='Rates Data'!C417 -> Single in shared accommodation | O155: =INDIRECT(MID(_xlfn.FORMULATEXT($N155),2,LEN(_xlfn.FORMULATEXT($N155))-5)&"m"&RIGHT(_xlfn.FORMULATEXT($N155),3),1) -> 36245 | P155: ='Rates Data'!B407 -> Circumstance (other than NZS) | Q155: ='Rates Data'!C407 -> Single in shared accommodation | R155: =INDIRECT(MID(_xlfn.FORMULATEXT($Q155),2,LEN(_xlfn.FORMULATEXT($Q155))-5)&"m"&RIGHT(_xlfn.FORMULATEXT($Q155),3),1) -> 33919 | S155: =O155-R155 -> 2326 | T155: =O155-D155 -> 0 | U155: =R155-E155 -> 0 | AH155: Single, sharing accommodation | AI155: 36245 | AJ155: 33919
C156: Single, living alone | D156: 38596 | E156: 35997 | M156: ='Rates Data'!B418 -> New Zealand Superannuation - Circumstance | N156: ='Rates Data'!C418 -> Single living alone | O156: 38596 | P156: ='Rates Data'!B408 -> Circumstance (other than NZS) | Q156: ='Rates Data'!C408 -> Single living alone | R156: 35997 | S156: =O156-R156 -> 2599 | T156: =O156-D156 -> 0 | U156: =R156-E156 -> 0 | AH156: Single, living alone | AI156: 38596 | AJ156: 35997
C157: Married, civil union, or de facto couple | D157: 57894 | E157: 53828 | M157: ='Rates Data'!B419 -> New Zealand Superannuation - Circumstance | N157: ='Rates Data'!C419 -> Married, Civil Union or Defacto Couple (without children) | O157: 57894 | P157: ='Rates Data'!B409 -> Circumstance (other than NZS) | Q157: ='Rates Data'!C409 -> Married, Civil Union or Defacto Couple (without children) | R157: 53828 | S157: 4066 | T157: 0 | U157: 0 | AH157: Married, civil union, or de facto couple | AI157: 57894 | AJ157: 53828
C158: 2‑person family (1 adult + 1 child) | D158: 65747 | E158: 65747 | M158: ='Rates Data'!B420 -> New Zealand Superannuation - Circumstance | N158: ='Rates Data'!C420 -> 2-person family | O158: 65747 | P158: ='Rates Data'!B410 -> Circumstance (other than NZS) | Q158: ='Rates Data'!C410 -> 2-person family | R158: 65747 | S158: 0 | T158: 0 | U158: 0 | AH158: 2‑person family (1 adult + 1 child) | AI158: 65747 | AJ158: 65747
C159: 3‑person family | D159: 80928 | E159: 80928 | M159: ='Rates Data'!B421 -> New Zealand Superannuation - Circumstance | N159: ='Rates Data'!C421 -> 3-person family | O159: 80928 | P159: ='Rates Data'!B411 -> Circumstance (other than NZS) | Q159: ='Rates Data'!C411 -> 3-person family | R159: 80928 | S159: 0 | T159: 0 | U159: 0 | AH159: 3‑person family | AI159: 80928 | AJ159: 80928
C160: 4‑person family | D160: 93364 | E160: 93364 | M160: ='Rates Data'!B422 -> New Zealand Superannuation - Circumstance | N160: ='Rates Data'!C422 -> 4-person family | O160: 93364 | P160: ='Rates Data'!B412 -> Circumstance (other than NZS) | Q160: ='Rates Data'!C412 -> 4-person family | R160: 93364 | S160: 0 | T160: 0 | U160: 0 | AH160: 4‑person family | AI160: 93364 | AJ160: 93364
C161: 5‑person family | D161: 105578 | E161: 105578 | M161: ='Rates Data'!B423 -> New Zealand Superannuation - Circumstance | N161: ='Rates Data'!C423 -> 5-person family | O161: 105578 | P161: ='Rates Data'!B413 -> Circumstance (other than NZS) | Q161: ='Rates Data'!C413 -> 5-person family | R161: 105578 | S161: 0 | T161: 0 | U161: 0 | AH161: 5‑person family | AI161: 105578 | AJ161: 105578
C162: 6‑person family | D162: 119024 | E162: 119024 | M162: ='Rates Data'!B424 -> New Zealand Superannuation - Circumstance | N162: ='Rates Data'!C424 -> 6-person family | O162: 119024 | P162: ='Rates Data'!B414 -> Circumstance (other than NZS) | Q162: ='Rates Data'!C414 -> 6-person family | R162: 119024 | S162: 0 | T162: 0 | U162: 0 | AH162: 6‑person family | AI162: 119024 | AJ162: 119024
C163: For each additional family member add | D163: 12065 | E163: 12065 | M163: ='Rates Data'!B425 -> New Zealand Superannuation - Circumstance | N163: ='Rates Data'!C425 -> Each additional person above 6 people | O163: 12065 | P163: ='Rates Data'!B415 -> Circumstance (other than NZS) | Q163: ='Rates Data'!C415 -> Each additional person above 6 people | R163: 12065 | S163: 0 | T163: 0 | U163: 0 | AH163: For each additional family member add | AI163: 12065 | AJ163: 12065
C164: =AH164 -> Disability Allowance income limits at 1 April 2025 | AH164: Disability Allowance income limits at 1 April 2025
C165: =AH165 -> Category | D165: Gross weekly income cut‑out point | N165: Table 11 | AH165: Category | AI165: Gross weekly income cut‑out point
C166: Single, 16 to 17 years | D166: 675.6 | N166: ='Rates Data'!C265 -> Single person aged 16 or 17 years without dependent children | O166: =INDIRECT(MID(_xlfn.FORMULATEXT($N166),2,LEN(_xlfn.FORMULATEXT($N166))-5)&"m"&RIGHT(_xlfn.FORMULATEXT($N166),3),1) -> 675.6 | T166: =O166-D166 -> 0 | AH166: Single, 16 to 17 years | AI166: 675.6
C167: Single, 18 years or over | D167: 843.78 | N167: ='Rates Data'!C266 -> Any other single person without dependent children | O167: 843.78 | T167: 0 | AH167: Single, 18 years or over | AI167: 843.78
C168: Married, civil union, or de facto couple, with or without children | D168: 1256.07 | N168: ='Rates Data'!C267 -> Person who is Married, Civil Union or Defacto with or without dependent children | O168: 1256.07 | T168: 0 | AH168: Married, civil union, or de facto couple, with or without children | AI168: 1256.07
C169: Sole parent with 1 child | D169: 942.23 | N169: ='Rates Data'!C268 -> Sole parent with 1 dependent child | O169: 942.23 | T169: 0 | AH169: Sole parent with 1 child | AI169: 942.23
C170: Sole parent with 2+ children | D170: 992.74 | N170: ='Rates Data'!C269 -> Any other sole parent | O170: 992.74 | T170: 0 | AH170: Sole parent with 2+ children | AI170: 992.74
C171: =AH171 -> Family tax credit rates at 1 April 2025 | AH171: Family tax credit rates at 1 April 2025
C172: =AH172 -> Benefit type | D172: Rate | AH172: Benefit type | AI172: Rate
C173: Family tax credit for each child — maximum | N173: Table 29 | AH173: Family tax credit for each child — maximum
C174: First or only child | D174: 144.3 | N174: ='Rates Data'!C510 -> First or only child: 0 - 15 years | O174: =INDIRECT(MID(_xlfn.FORMULATEXT($N174),2,LEN(_xlfn.FORMULATEXT($N174))-5)&"m"&RIGHT(_xlfn.FORMULATEXT($N174),3),1) -> 144.3 | T174: =O174-D174 -> 0 | AH174: First or only child | AI174: 144.3
C175: Second or subsequent child | D175: 117.56 | N175: ='Rates Data'!C512 -> Second or subsequent child: 0 - 12 years | O175: 117.56 | T175: 0 | AH175: Second or subsequent child | AI175: 117.56
C177: =AH177 -> Winter Energy Payment rates at 1 April 2025 | AH177: Winter Energy Payment rates at 1 April 2025
C178: =AH178 -> Category | D178: =AI178 -> Weekly rate | E178: =AJ178 -> Fortnightly rate | F178: Annual rate | M178: WEP is not subject to CPI adjustments and so is not in this AGA model - look up in MAP | AH178: Category | AI178: Weekly rate | AJ178: Fortnightly rate | AK178: Annual rate
D179: =AI179 -> non-taxable | E179: non-taxable | F179: non-taxable | M179: Category | N179: Weekly rate | O179: Fortnightly rate | P179: Annual rate | AI179: non-taxable | AJ179: non-taxable | AK179: non-taxable
C180: Single | D180: 20.46 | E180: 40.92 | F180: 450 | M180: Single | N180: 20.46 | O180: 40.92 | P180: 450 | T180: =N180-D180 -> 0 | U180: =O180-E180 -> 0 | V180: 0 | AH180: Single | AI180: 20.46 | AJ180: 40.92 | AK180: 450
C181: Married, civil union or de facto couple (with or without children) and sole parents | D181: 31.82 | E181: 63.64 | F181: 700 | M181: Couples (with or without children) and sole parents | N181: 31.82 | O181: 63.64 | P181: 700 | T181: =N181-D181 -> 0 | U181: 0 | V181: 0 | AH181: Married, civil union or de facto couple (with or without children) and sole parents | AI181: 31.82 | AJ181: 63.64 | AK181: 700
C182: =AH182 -> Training Incentive Allowance rates at 1 April 2025 | AH182: Training Incentive Allowance rates at 1 April 2025
C183: =AH183 -> Duration | D183: =AI183 -> Rate, | AH183: Duration | AI183: Rate,
D184: =AI184 -> non-taxable | N184: Table 4 | AI184: non-taxable
C185: Weekly — maximum | D185: 138.77 | M185: ='Rates Data'!B129 -> Training Incentive Allowance Maximum Rate | N185: ='Rates Data'!C129 -> Weekly maximum rate | O185: =INDIRECT(MID(_xlfn.FORMULATEXT($N185),2,LEN(_xlfn.FORMULATEXT($N185))-5)&"m"&RIGHT(_xlfn.FORMULATEXT($N185),3),1) -> 138.77 | T185: =O185-D185 -> 0 | AH185: Weekly — maximum | AI185: 138.77
C186: Yearly — maximum | D186: 5550.8 | M186: ='Rates Data'!B130 -> Training Incentive Allowance Maximum Rate | N186: ='Rates Data'!C130 -> Annual maximum rate | O186: 5550.8 | T186: =O186-D186 -> 0 | AH186: Yearly — maximum | AI186: 5550.8
C187: =AH187 -> Student Allowance weekly rates at 1 April 2025 | AH187: Student Allowance weekly rates at 1 April 2025
C188: =AH188 -> Category | D188: =AI188 -> Net weekly allowance | E188: =AJ188 -> Gross weekly allowance | AH188: Category | AI188: Net weekly allowance | AJ188: Gross weekly allowance
D189: =AI189 -> (after tax at "M") | N189: Table 3 | AI189: (after tax at "M")
C190: =AH190 -> Single without children | AH190: Single without children
C191: Under 24 years, at home — up to | D191: 277.72 | E191: 311.18 | N191: ='Rates Data'!C74 -> Under 24, childless, living in parental home | O191: =INDIRECT(MID(_xlfn.FORMULATEXT($N191),2,LEN(_xlfn.FORMULATEXT($N191))-4)&"m"&RIGHT(_xlfn.FORMULATEXT($N191),2),1) -> 277.72 | P191: =INDIRECT(MID(_xlfn.FORMULATEXT($N191),2,LEN(_xlfn.FORMULATEXT($N191))-4)&"n"&RIGHT(_xlfn.FORMULATEXT($N191),2),1) -> 311.18 | T191: =O191-D191 -> 0 | U191: =P191-E191 -> 0 | AH191: Under 24 years, at home — up to | AI191: 277.72 | AJ191: 311.18
C192: Under 24 years, away from home — up to | D192: 323.33 | E192: 366.46 | N192: ='Rates Data'!C75 -> Under 24, childless, not living in a parental home | O192: =INDIRECT(MID(_xlfn.FORMULATEXT($N192),2,LEN(_xlfn.FORMULATEXT($N192))-4)&"m"&RIGHT(_xlfn.FORMULATEXT($N192),2),1) -> 323.33 | P192: =INDIRECT(MID(_xlfn.FORMULATEXT($N192),2,LEN(_xlfn.FORMULATEXT($N192))-4)&"n"&RIGHT(_xlfn.FORMULATEXT($N192),2),1) -> 366.46 | T192: =O192-D192 -> 0 | U192: 0 | AH192: Under 24 years, away from home — up to | AI192: 323.33 | AJ192: 366.46
C193: Independent circumstances | D193: 323.33 | E193: 366.46 | N193: ='Rates Data'!C76 -> Independent Circumstances Allowance | O193: 323.33 | P193: 366.46 | T193: 0 | U193: 0 | AH193: Independent circumstances | AI193: 323.33 | AJ193: 366.46
C194: 24 years or over, at home | D194: 314.21 | E194: 355.41 | N194: ='Rates Data'!C77 -> 24 or older, childless, living in parental home | O194: 314.21 | P194: 355.41 | T194: 0 | U194: 0 | AH194: 24 years or over, at home | AI194: 314.21 | AJ194: 355.41
C195: 24 years or over, away from home | D195: 368.96 | E195: 421.77 | N195: ='Rates Data'!C78 -> 24 or older, childless, not living in parental home | O195: 368.96 | P195: 421.77 | T195: 0 | U195: 0 | AH195: 24 years or over, away from home | AI195: 368.96 | AJ195: 421.77
C196: Single with children | AH196: Single with children
C197: Single with 1+ children | D197: 519.81 | E197: 604.62 | N197: ='Rates Data'!C79 -> Single Student (1+ children) | O197: 519.81 | P197: 604.62 | T197: =O197-D197 -> 0 | U197: 0 | AH197: Single with 1+ children | AI197: 519.81 | AJ197: 604.62
C198: Couple without children | AH198: Couple without children
C199: One student, one dependent partner | D199: 644.46 | E199: 755.71 | N199: ='Rates Data'!C90 -> Spouse or partner not enrolled in more than half of a full time course - childless | O199: 644.46 | P199: 755.71 | T199: =O199-D199 -> 0 | U199: 0 | AH199: One student, one dependent partner | AI199: 644.46 | AJ199: 755.71
C200: Both eligible students (each) | D200: 323.33 | E200: 366.46 | N200: ='Rates Data'!C88 -> Spouse or partner enrolled in more than half of a full time course - either; receives grant OR does not receive grant but is eligible - childless | O200: 323.33 | P200: 366.46 | T200: 0 | U200: 0 | AH200: Both eligible students (each) | AI200: 323.33 | AJ200: 366.46
C201: Both students, one eligible | D201: 368.96 | E201: 421.77 | N201: ='Rates Data'!C89 -> Spouse or partner enrolled in more than half of a full time course - does not receive and is not eligible for grant - childless | O201: 368.96 | P201: 421.77 | T201: 0 | U201: 0 | AH201: Both students, one eligible | AI201: 368.96 | AJ201: 421.77
C202: Couple with children | AH202: Couple with children
C203: Both students, one eligible, with 1+ children | D203: 519.81 | E203: 604.62 | N203: ='Rates Data'!C92 -> Spouse or partner enrolled in more than half of a full time course - does not receive and is not eligible for a grant - 1 or more supported children | O203: 519.81 | P203: 604.62 | T203: =O203-D203 -> 0 | U203: 0 | AH203: Both students, one eligible, with 1+ children | AI203: 519.81 | AJ203: 604.62
C204: Both students, both eligible, partner receiving, with 1+ children (each) | D204: 339.62 | E204: 386.21 | N204: ='Rates Data'!C94 -> Spouse or partner enrolled in more than half of a full time course - receives grant - 1 or more supported children | O204: 339.62 | P204: 386.21 | T204: 0 | U204: 0 | AH204: Both students, both eligible, partner receiving, with 1+ children (each) | AI204: 339.62 | AJ204: 386.21
C205: Both students, both eligible, partner not receiving, with 1+ children | D205: 355.89 | E205: 405.93 | N205: ='Rates Data'!C93 -> Spouse or partner enrolled in more than half of a full time course - does not receive, but is eligible for, a grant - 1 or more supported children | O205: 355.89 | P205: 405.93 | T205: 0 | U205: 0 | AH205: Both students, both eligible, partner not receiving, with 1+ children | AI205: 355.89 | AJ205: 405.93
C206: One student, one dependent partner, with 1+ children | D206: 677.03 | E206: 795.19 | N206: ='Rates Data'!C95 -> Spouse or partner not enrolled in more than half of a full time course - 1 or more supported children | O206: 677.03 | P206: 795.19 | T206: 0 | U206: 0 | AH206: One student, one dependent partner, with 1+ children | AI206: 677.03 | AJ206: 795.19
... 11 more rows

Sheet AGA PDF_OthRates (hidden)
B2: This page is used to collate all the checks and calculations made to confirm rates in the PDF 'long-form' Rates Summary that are not part of the AGA model [or Input Assumptions].
C3: All of these rates appear in the [AGA PDF Check] sheet
B5: ='AGA PDF check'!A271 -> Table 8(b): Accommodation Supplement Cash Asset Thresholds
D7: ='AGA PDF check'!B273 -> Asset Threshold | E7: ='AGA PDF check'!C273 -> Asset Maximum | G7: From first link (Reg 423 (3) | H7: from second link (Reg 15 (1)) | I7: Check1 | J7: Check2
C8: ='AGA PDF check'!A274 -> Single (no children) | D8: ='AGA PDF check'!B274 -> 2700 | E8: ='AGA PDF check'!C274 -> 8100 | G8: 2700 | H8: 8100 | I8: =G8-D8 -> 0 | J8: =H8-E8 -> 0 | K8: not in AGA model | M8: https://www.legislation.govt.nz/act/public/2018/0032/latest/DLM6783993.html?search=sw_096be8ed81ba32c4_asset+threshold_25_se&p=1&sr=9
C9: ='AGA PDF check'!A275 -> Other | D9: ='AGA PDF check'!B275 -> 5400 | E9: ='AGA PDF check'!C275 -> 16200 | G9: 5400 | H9: 16200 | I9: =G9-D9 -> 0 | J9: =H9-E9 -> 0 | K9: not in AGA model | M9: https://www.legislation.govt.nz/regulation/public/2018/0202/latest/LMS96256.html
C11: These thresholds are unchanged since AS started in 1993 (and were relevant to Accomm Benefit prior to AS) - so any change will be a known policy change.
B16: ='AGA PDF check'!A507 -> Table 15: Emergency Benefit and Jobseeker Support (hardship) Cash Asset Limits
C18: ='AGA PDF check'!A509 -> Status | D18: ='AGA PDF check'!B509 -> Cash Asset Limit | F18: From first link (clause 2 of Min Direction) | G18: ='AGA PDF check'!D509 -> Check1
C19: ='AGA PDF check'!A510 -> Single | D19: ='AGA PDF check'!B510 -> 4300 | F19: 4300 | G19: =F19-D19 -> 0 | H19: not in AGA model | J19: Clause 2. Hardship: general criteria - Map (ssi.govt.nz)
C20: ='AGA PDF check'!A511 -> Married civil union or de facto | D20: ='AGA PDF check'!B511 -> 7464 | F20: 7464 | G20: =F20-D20 -> 0 | H20: not in AGA model | K20: Below link = original Min Direction in gazette in 1998 (page 2148, No 4825)
C21: ='AGA PDF check'!A512 -> Single (1 or more children) | D21: ='AGA PDF check'!B512 -> 7464 | F21: 7464 | G21: 0 | H21: not in AGA model | K21: Direction by the Minister of Social Welfare In the matter... - 1998-go4825 - New Zealand Gazette
K22: (above link no longer works as idiots at gazette have changed web site since 2024 so nothing exists prior to year 2000 (just a note saying to contact National Library))
C23: These thresholds are unchanged since EB set up as Ministerial Direction in 1998 (EB existed long before that) - so any change will be a known policy change.
B27: ='AGA PDF check'!A538 -> Table 19: Transition to Work Grant
D29: ='AGA PDF check'!B540 -> Maximum Annual Grant | F29: From first link | G29: ='AGA PDF check'!D540 -> Check1 | J29: Transition to Work Grant rates (current) - Map (ssi.govt.nz)
C30: ='AGA PDF check'!A541 -> Financial Assistance to meet costs of moving into employment | D30: ='AGA PDF check'!B541 -> 1500 | F30: 1500 | G30: =F30-D30 -> 0 | H30: not in AGA model | K30: Above TTW maximum rate from cluase 6 of more general Employment and Work Readiness Assistance Programme
K31: Schedule - Map (ssi.govt.nz)
C33: This assistance amount unchanged since 2014 (and then was a consolidation of other things - no real change) - so any change will be a known policy change.
B37: ='AGA PDF check'!A582 -> Table 21(e): Additional payments for food and clothing | F37: https://doogle.ssi.govt.nz/map/deskfile/extra-help-information/special-needs-grant-tables/civil-defence-payment-rates-current-01.html
F38: Final Table in link above says set = 2 * SNG food rate
C39: ='AGA PDF check'!A584 -> Evacuee | D39: ='AGA PDF check'!B584 -> Total Available | F39: From link above | G39: ='AGA PDF check'!D584 -> Check1 | H39: As Calculated | J39: Clause 11.2. Food - Map (ssi.govt.nz)
C40: ='AGA PDF check'!A585 -> Single | D40: ='AGA PDF check'!B585 -> 400 | F40: 400 | G40: =F40-D40 -> 0 | H40: =LEFT(O40,4)*2 -> 400 | J40: Clause 11.2 in above link give SNG food rates shown: | O40: $200 for a single person with no dependent children:
C41: ='AGA PDF check'!A586 -> Married civil union or de facto (no children) | D41: ='AGA PDF check'!B586 -> 600 | F41: 600 | G41: =F41-D41 -> 0 | H41: =LEFT(O41,4)*2 -> 600 | O41: $300 for a couple who are in a relationship with no dependent children:
C42: ='AGA PDF check'!A587 -> Married civil union or de facto/sole parent –1 - 2 children) | D42: ='AGA PDF check'!B587 -> 900 | F42: 900 | G42: 0 | H42: 900 | O42: $450 for a couple who are in a relationship or a sole parent with 1 or 2 dependent children:
C43: ='AGA PDF check'!A588 -> Married civil union or de facto/sole parent (3+ children) | D43: ='AGA PDF check'!B588 -> 1100 | F43: 1100 | G43: 0 | H43: 1100 | O43: $550 for a couple who are in a relationship or a sole parent with 3 or more dependent children.
C45: Bottom amount of $1100 has been published on MAP as $1110 since at least 2004 - originally typo assumed, fixed after 2024 version of this form.
C46: In 2008 SNG amounts (at right) were altered from 'per 52 weeks' to 'per 26 weeks' - no impact here - this is a one-off maximum payment for evacuees (under Civil Defence Payments)
C47: This assistance amount unchanged since 2004 (at least) - so any change will be a known policy change (downstream impact from SNG (food) change)
B51: ='AGA PDF check'!A602 -> Table 23: Child Support
L52: Minimum CS Rate | M52: https://www.legislation.govt.nz/act/public/1991/0142/latest/DLM254332.html?search=sw_096be8ed81b73af2_minimum_25_se&p=1
C53: ='AGA PDF check'!A604 -> Child Support | E53: From IRD pages link below | F53: As Calculated | G53: ='AGA PDF check'!D604 -> Check1 | N53: All Groups CPI (Dec to Dec; as defined in CS Act 1991 (Section 2 Interpretation 'inflation percentage'))
C54: ='AGA PDF check'!A605 -> Minimum Child Support | D54: ='AGA PDF check'!B605 -> $1,175.00 per year | E54: 1175 | F54: =M66 -> 1175 | G54: =F54-LEFT(D54,7) -> 0 | H54: not in AGA model | L54: 2013-04-01 | M54: 871 | Q54: 2012Q4 | R54: 953.507341
C55: ='AGA PDF check'!A606 -> Living allowances (per annum) | L55: 2014-04-01 | M55: =ROUND(M54*(1+N55),0) -> 885 | N55: =ROUND(O55,3) -> 0.016 | O55: =R55/R54-1 -> 0.01625320785 | Q55: 2013Q4 | R55: 969.004894
C56: ='AGA PDF check'!A607 -> Supported Living Payment | D56: ='AGA PDF check'!B607 -> 33523 | E56: 33523 | F56: =I63 -> 33523 | G56: =F56-LEFT(D56,10) -> 0 | H56: (indirectly) in AGA model | L56: 2015-04-01 | M56: 892 | N56: =ROUND(O56,3) -> 0.008 | O56: =R56/R55-1 -> 0.007575757404 | Q56: 2014Q4 | R56: 976.34584
C57: ='AGA PDF check'!A608 -> Not on Supported Living Payment | D57: ='AGA PDF check'!B608 -> 29909 | E57: 29909 | F57: =I64 -> 29909 | G57: =F57-LEFT(D57,10) -> 0 | H57: (indirectly) in AGA model | L57: 2016-04-01 | M57: 893 | N57: 0.001 | O57: 0.0008354222106 | Q57: 2015Q4 | R57: 977.161501
E58: check2 | H58: (beware if tax changes at 1 Jan) | L58: 2017-04-01 | M58: 905 | N58: 0.013 | O58: 0.01335559269 | Q58: 2016Q4 | R58: 990.212072
E59: =E54-LEFT(D54,7) -> 0 | L59: 2018-04-01 | M59: 919 | N59: 0.016 | O59: 0.01594398659 | Q59: 2017Q4 | R59: 1006
E60: =E56-D56 -> 0 | F60: =ROUND('Rates Data'!S62*52,0) -> 33478 | H60: 2024-04-01 | I60: 2024-07-31 | L60: 2019-04-01 | M60: 936 | N60: 0.019 | O60: 0.01888667992 | Q60: 2018Q4 | R60: 1025
C61: The most recent three years of rates may be found on the IRD site at: | E61: =E57-D57 -> 0 | F61: =ROUND('Rates Data'!S64*52,0) -> 29864 | G61: SLP-Sole Parent | H61: 646.42 | I61: 643.81 | J61: gross pw | L61: 2020-04-01 | M61: 954 | N61: 0.019 | O61: 0.01853658537 | Q61: 2019Q4 | R61: 1044
C62: Child support annual rates (ird.govt.nz) | G62: SPS | H62: 576.91 | I62: 574.3 | L62: 2021-04-01 | M62: 967 | N62: 0.014 | O62: 0.01436781609 | Q62: 2020Q4 | R62: 1059
C63: Use this to verify the above calculations. | H63: =(H61*4+I61*8)/12 -> 644.68 | I63: =ROUND(H63*52,0) -> 33523 | J63: =I63-E56 -> 0 | L63: 2022-04-01 | M63: 1024 | N63: 0.059 | O63: 0.05949008499 | Q63: 2021Q4 | R63: 1122
H64: =(H62*4+I62*8)/12 -> 575.17 | I64: =ROUND(H64*52,0) -> 29909 | J64: =I64-E57 -> 0 | L64: 2023-04-01 | M64: 1098 | N64: 0.072 | O64: 0.07219251337 | Q64: 2022Q4 | R64: 1203
C65: The Minimum CS amount is calculated as at right based on s72 of the CS Act 1991 ($871 at April 2013 + CPI adj each year) - link at right: | G65: Above = how IRD did it in Apr 25 - but leg says to use rate | L65: 2023-04-01 | M65: =ROUND(M64*(1+N65),0) -> 1150 | N65: =ROUND(O65,3) -> 0.047 | O65: =R65/R64-1 -> 0.04655029094 | Q65: 2023Q4 | R65: 1259
G66: as at previous 1 Jan = 31 Jul 24 rate | L66: 2024-04-01 | M66: 1175 | N66: 0.022 | O66: 0.02223987292 | Q66: 2024Q4 | R66: 1287 | S66: CPI index (All Groups) each December quarter
C67: Child Support Act 1991 No 142 (as at 06 October 2023), Public Act 35A Living allowance – New Zealand Legislation | G67: (ref at left)
C68: The Living Allowance rates are as determined by s35A of the CS Act 1991 = gross SLP or SPS rate * 52 (for 1 Jan of current year)
C69: (wording in Act says "as at 1 January in the immediately preceding child support year" = ie for 2024/25 March year then 1 Jan of 2023/24 year = 1 Jan 24)
B74: ='AGA PDF check'!A621 -> Table 25: Income Disregards
C76: ='AGA PDF check'!A623 -> Reason | D76: ='AGA PDF check'!B623 -> Benefit | E76: ='AGA PDF check'!C623 -> Maximum Amount | G76: As per links at right | H76: ='AGA PDF check'!E623 -> Check1
C77: ='AGA PDF check'!A624 -> Childcare cost income exemption | D77: ='AGA PDF check'!B624 -> Sole Parent Support (including Accommodation Supplement) | E77: ='AGA PDF check'!C624 -> $20.00 pw | G77: 20 | H77: =G77-LEFT(E77,4) -> 0 | I77: not in AGA model | J77: SPS rates | K77: Social Security Act 2018 No 32 (as at 22 February 2024), Public Act – New Zealand Legislation
E78: ='AGA PDF check'!C625 -> ($1,040.00 per year) | G78: =G77*52 -> 1040 | H78: =MID(E78,3,5)-G78 -> 0 | I78: not in AGA model | K78: Clause 2
C79: ='AGA PDF check'!A626 -> Personal earnings exemption | D79: ='AGA PDF check'!B626 -> Supported Living Payment | E79: ='AGA PDF check'!C626 -> $20.00 pw | G79: 20 | H79: =G79-LEFT(E79,4) -> 0 | I79: not in AGA model | J79: SLP rates | K79: Social Security Act 2018 No 32 (as at 22 February 2024), Public Act Part 3 Supported living payment – New Zealand Legislation
E80: ='AGA PDF check'!C627 -> ($1,040.00 per year) | G80: =G79*52 -> 1040 | H80: =MID(E80,3,5)-G80 -> 0 | I80: not in AGA model | K80: clause 1 - (a) after clause (h) - non blind
C81: ='AGA PDF check'!A628 -> Personal earnings exemption (Blind) | D81: ='AGA PDF check'!B628 -> Supported Living Payment | E81: ='AGA PDF check'!C628 -> All personal earnings | K81: clause 1 - (b) after clause (h) - blind
C82: ='AGA PDF check'!A629 -> Payments from friendly and like societies | D82: ='AGA PDF check'!B629 -> Jobseeker Support - health condition, injury or disability | E82: ='AGA PDF check'!C629 -> $2.00 per week | G82: 2 | H82: 0 | I82: not in AGA model | J82: Reg 43 (1) (a) | K82: Social Security Regulations 2018 (LI 2018/202) (as at 06 November 2023) 43 Disregard of sick or like benefit as income – New Zealand Legislation
